Workbook

Sheet Overview

Sheet NOTES
A1: NOTES
C2: Assessment Description | D2: Average Percent Correct
A3: Winter IA | B3: 2012-01-20 | C3: Winter Interim Assessment | D3: All Average % Correct of less than 51 are denoted in red.
A4: Fall IA | B4: 2011-11-11 | C4: Fall Interim Assessment
A5: Baseline | B5: 2011-09-17 | C5: Baseline Assessment

Sheet Select School
B3: =VLOOKUP(C3,SchList!$I$1:$J$499,2,FALSE) -> 9999 | C3: 1

Sheet AUTOMATE (hidden)
A1: AUTOMATE
B3: TAB NAME | D3: FILEPATH1 | E3: FILENAME1 | F3: FILENAME2 | G3: FILENAME3 | H3: FILENAME4 | I3: FILENAME5
B5: WIAG8BM-S | D5: E:\Work\01 MACROS\Sandbox\Edusoft Files\ | E5: S-g08-bm-schl-all.xls | F5: S-g08-bm-dist-all.xls | G5: S-g08-bm-dtda-all.xls | H5: S-g08-bm-eto-all.xls | I5: S-g08-bm-sipa-all.xls
B6: WIAG8CC-S | D6: E:\Work\01 MACROS\Sandbox\Edusoft Files\ | E6: S-g08-rc-schl-all.xls | F6: S-g08-rc-dist-all.xls | G6: S-g08-rc-dtda-all.xls | H6: S-g08-rc-eto-all.xls | I6: S-g08-rc-sipa-all.xls
B7: WIAG6BM-R | D7: E:\Work\01 MACROS\Sandbox\Edusoft Files\ | E7: R-g06-bm-schl-all.xls | F7: R-g06-bm-dist-all.xls | G7: R-g06-bm-dtda-all.xls | H7: R-g06-bm-eto-all.xls | I7: R-g06-bm-sipa-all.xls
B8: WIAG6CC-R | D8: E:\Work\01 MACROS\Sandbox\Edusoft Files\ | E8: R-g06-rc-schl-all.xls | F8: R-g06-rc-dist-all.xls | G8: R-g06-rc-dtda-all.xls | H8: R-g06-rc-eto-all.xls | I8: R-g06-rc-sipa-all.xls
B9: WIAG7BM-R | D9: E:\Work\01 MACROS\Sandbox\Edusoft Files\ | E9: R-g07-bm-schl-all.xls | F9: R-g07-bm-dist-all.xls | G9: R-g07-bm-dtda-all.xls | H9: R-g07-bm-eto-all.xls | I9: R-g07-bm-sipa-all.xls
B10: WIAG7CC-R | D10: E:\Work\01 MACROS\Sandbox\Edusoft Files\ | E10: R-g07-rc-schl-all.xls | F10: R-g07-rc-dist-all.xls | G10: R-g07-rc-dtda-all.xls | H10: R-g07-rc-eto-all.xls | I10: R-g07-rc-sipa-all.xls
B11: WIAG8BM-R | D11: E:\Work\01 MACROS\Sandbox\Edusoft Files\ | E11: R-g08-bm-schl-all.xls | F11: R-g08-bm-dist-all.xls | G11: R-g08-bm-dtda-all.xls | H11: R-g08-bm-eto-all.xls | I11: R-g08-bm-sipa-all.xls
B12: WIAG8CC-R | D12: E:\Work\01 MACROS\Sandbox\Edusoft Files\ | E12: R-g08-rc-schl-all.xls | F12: R-g08-rc-dist-all.xls | G12: R-g08-rc-dtda-all.xls | H12: R-g08-rc-eto-all.xls | I12: R-g08-rc-sipa-all.xls
B13: WIAG6BM-M | D13: E:\Work\01 MACROS\Sandbox\Edusoft Files\ | E13: M-g06-bm-schl-all.xls | F13: M-g06-bm-dist-all.xls | G13: M-g06-bm-dtda-all.xls | H13: M-g06-bm-eto-all.xls | I13: M-g06-bm-sipa-all.xls
B14: WIAG6CC-M | D14: E:\Work\01 MACROS\Sandbox\Edusoft Files\ | E14: M-g06-rc-schl-all.xls | F14: M-g06-rc-dist-all.xls | G14: M-g06-rc-dtda-all.xls | H14: M-g06-rc-eto-all.xls | I14: M-g06-rc-sipa-all.xls
B15: WIAG7BM-M | D15: E:\Work\01 MACROS\Sandbox\Edusoft Files\ | E15: M-g07-bm-schl-all.xls | F15: M-g07-bm-dist-all.xls | G15: M-g07-bm-dtda-all.xls | H15: M-g07-bm-eto-all.xls | I15: M-g07-bm-sipa-all.xls
B16: WIAG7CC-M | D16: E:\Work\01 MACROS\Sandbox\Edusoft Files\ | E16: M-g07-rc-schl-all.xls | F16: M-g07-rc-dist-all.xls | G16: M-g07-rc-dtda-all.xls | H16: M-g07-rc-eto-all.xls | I16: M-g07-rc-sipa-all.xls
B17: WIAG8BM-M | D17: E:\Work\01 MACROS\Sandbox\Edusoft Files\ | E17: M-g08-bm-schl-all.xls | F17: M-g08-bm-dist-all.xls | G17: M-g08-bm-dtda-all.xls | H17: M-g08-bm-eto-all.xls | I17: M-g08-bm-sipa-all.xls
B18: WIAG8CC-M | D18: E:\Work\01 MACROS\Sandbox\Edusoft Files\ | E18: M-g08-rc-schl-all.xls | F18: M-g08-rc-dist-all.xls | G18: M-g08-rc-dtda-all.xls | H18: M-g08-rc-eto-all.xls | I18: M-g08-rc-sipa-all.xls

Sheet Grade 6 Math
A1: Direction: Click on "School Name" below then click on arrow key on the right to select a school. To see benchmark description, move the mouse over the benchmark code.
A2: Click here to return to the school and subject selection sheet
B3: =VALUE('Select School'!B3) -> 9999 | U3: =TEXT(B3,"0000") -> 9999
A4: 2011-12 Grade 6 Mathematics Benchmark Analysis Report
A5: Baseline, Fall Interim Assessment (Fall IA) and Winter Interim Assessment (Winter IA)
A6: =TEXT($B$3,"0000")&"-"&VLOOKUP(B3,SchList!$A$2:$B$499,2,FALSE) -> 9999-District
A7: Reporting Categories | B7: Bench-marks | C7: No. of Items | F7: Average % Correct
C8: Base- line | D8: Fall IA | E8: Winter IA | F8: Base- line | G8: Fall IA | H8: Winter IA
B9: No. of Tested | F9: =IFERROR(VLOOKUP($B$3,'BLG6CC-M'!$A$14:$BZ$500,3,FALSE),"") -> 24661 | G9: =IFERROR(VLOOKUP($B$3,'FIAG6CC-M'!$A$14:$BZ$500,3,FALSE),"") -> 25475 | H9: =IFERROR(VLOOKUP($B$3,'WIAG6CC-M'!$A$14:$BZ$500,3,FALSE),"") -> 24251
B10: MA.6.A.1.1 | C10: 2 | D10: 10 | F10: =IFERROR(VLOOKUP($B$3,'BLG6BM-M'!$A$14:$CZ$500,7,FALSE),"") -> 0.13 | G10: =IFERROR(VLOOKUP($B$3,'FIAG6BM-M'!$A$14:$CZ$500,7,FALSE),"") -> 0.43
B11: MA.6.A.1.3 | C11: 2 | D11: 8 | F11: =IFERROR(VLOOKUP($B$3,'BLG6BM-M'!$A$14:$CZ$500,9,FALSE),"") -> 0.25 | G11: =IFERROR(VLOOKUP($B$3,'FIAG6BM-M'!$A$14:$CZ$500,9,FALSE),"") -> 0.45
B12: MA.6.A.2.1 | C12: 4 | E12: 9 | F12: =IFERROR(VLOOKUP($B$3,'BLG6BM-M'!$A$14:$CZ$500,11,FALSE),"") -> 0.31 | H12: =IFERROR(VLOOKUP($B$3,'WIAG6BM-M'!$A$14:$CZ$500,7,FALSE),"") -> 0.5
B13: MA.6.A.2.2 | C13: 2 | E13: 8 | F13: =IFERROR(VLOOKUP($B$3,'BLG6BM-M'!$A$14:$CZ$500,13,FALSE),"") -> 0.29 | H13: =IFERROR(VLOOKUP($B$3,'WIAG6BM-M'!$A$14:$CZ$500,9,FALSE),"") -> 0.47
B14: MA.6.A.5.1 | C14: 2 | E14: 7 | F14: =IFERROR(VLOOKUP($B$3,'BLG6BM-M'!$A$14:$CZ$500,29,FALSE),"") -> 0.32 | H14: =IFERROR(VLOOKUP($B$3,'WIAG6BM-M'!$A$14:$CZ$500,11,FALSE),"") -> 0.45
B15: MA.6.A.5.2 | C15: 3 | E15: 9 | F15: =IFERROR(VLOOKUP($B$3,'BLG6BM-M'!$A$14:$CZ$500,31,FALSE),"") -> 0.31 | H15: =IFERROR(VLOOKUP($B$3,'WIAG6BM-M'!$A$14:$CZ$500,13,FALSE),"") -> 0.55
B16: MA.6.A.5.3 | C16: 1 | E16: 7 | F16: =IFERROR(VLOOKUP($B$3,'BLG6BM-M'!$A$14:$CZ$500,33,FALSE),"") -> 0.32 | H16: =IFERROR(VLOOKUP($B$3,'WIAG6BM-M'!$A$14:$CZ$500,15,FALSE),"") -> 0.34
B17: MA.6.S.6.1 | C17: 2 | F17: =IFERROR(VLOOKUP($B$3,'BLG6BM-M'!$A$14:$CZ$500,35,FALSE),"") -> 0.24
B18: MA.6.S.6.2 | C18: 2 | F18: =IFERROR(VLOOKUP($B$3,'BLG6BM-M'!$A$14:$CZ$500,37,FALSE),"") -> 0.21
B19: MA.6.A.3.1 | C19: 2 | D19: 9 | F19: =IFERROR(VLOOKUP($B$3,'BLG6BM-M'!$A$14:$CZ$500,15,FALSE),"") -> 0.26 | G19: =IFERROR(VLOOKUP($B$3,'FIAG6BM-M'!$A$14:$CZ$500,11,FALSE),"") -> 0.52
B20: MA.6.A.3.2 | C20: 2 | F20: =IFERROR(VLOOKUP($B$3,'BLG6BM-M'!$A$14:$CZ$500,17,FALSE),"") -> 0.43
B21: MA.6.A.3.5 | C21: 2 | D21: 10 | F21: =IFERROR(VLOOKUP($B$3,'BLG6BM-M'!$A$14:$CZ$500,19,FALSE),"") -> 0.49 | G21: =IFERROR(VLOOKUP($B$3,'FIAG6BM-M'!$A$14:$CZ$500,13,FALSE),"") -> 0.53
B22: MA.6.A.3.6 | C22: 2 | F22: =IFERROR(VLOOKUP($B$3,'BLG6BM-M'!$A$14:$CZ$500,21,FALSE),"") -> 0.45
B23: MA.6.G.4.1 | C23: 2 | F23: =IFERROR(VLOOKUP($B$3,'BLG6BM-M'!$A$14:$CZ$500,23,FALSE),"") -> 0.14
B24: MA.6.G.4.2 | C24: 2 | F24: =IFERROR(VLOOKUP($B$3,'BLG6BM-M'!$A$14:$CZ$500,25,FALSE),"") -> 0.17
B25: MA.6.G.4.3 | C25: 3 | F25: =IFERROR(VLOOKUP($B$3,'BLG6BM-M'!$A$14:$CZ$500,27,FALSE),"") -> 0.32
A26: All Benchmarks | C26: =SUM(C10:C25) -> 35 | D26: =SUM(D10:D25) -> 37 | E26: =SUM(E10:E25) -> 40 | F26: =IFERROR(VLOOKUP($B$3,'BLG6CC-M'!$A$14:$CZ$500,5,FALSE),"") -> 0.29 | G26: =IFERROR(VLOOKUP($B$3,'FIAG6CC-M'!$A$14:$CZ$500,5,FALSE),"") -> 0.48 | H26: =IFERROR(VLOOKUP($B$3,'WIAG6CC-M'!$A$14:$CZ$500,5,FALSE),"") -> 0.47
A42: Reporting Categories | C42: Number of Items | F42: Average % Correct | I42: % of Students at or above Proficiency Level (70%)
C43: BL | D43: Fall IA | E43: Winter IA | F43: BL | G43: Fall IA | H43: Winter IA | I43: BL | J43: Fall IA | K43: Winter IA
A44: 1 | B44: Fractions, Ratios/Proportional Relationships, and Statistics | C44: =SUM(C10:C18) -> 20 | D44: =SUM(D10:D18) -> 18 | E44: =SUM(E10:E18) -> 40 | F44: =IFERROR(VLOOKUP($B$3,'BLG6CC-M'!$A$14:$CZ$500,17,FALSE),"") -> 0.27 | G44: =IFERROR(VLOOKUP($B$3,'FIAG6CC-M'!$A$14:$CZ$500,13,FALSE),"") -> 0.43 | H44: =IFERROR(VLOOKUP($B$3,'WIAG6CC-M'!$A$14:$CZ$500,13,FALSE),"") -> 0.47 | K44: =IFERROR(VALUE(VLOOKUP($B$3,'WIAG6CC-M'!$A$14:$CZ$500,9,FALSE)),"") -> 0.4574
A45: 2 | B45: Expressions and Equations | C45: =SUM(C19:C22) -> 8 | D45: =SUM(D19:D22) -> 19 | E45: =SUM(E19:E22) -> 0 | F45: =IFERROR(VLOOKUP($B$3,'BLG6CC-M'!$A$14:$CZ$500,11,FALSE),"") -> 0.41 | G45: =IFERROR(VLOOKUP($B$3,'FIAG6CC-M'!$A$14:$CZ$500,17,FALSE),"") -> 0.53
A46: 3 | B46: Geometry and Measurement | C46: =SUM(C23:C25) -> 7 | D46: =SUM(D23:D25) -> 0 | E46: =SUM(E23:E25) -> 0 | F46: =IFERROR(VLOOKUP($B$3,'BLG6CC-M'!$A$14:$CZ$500,23,FALSE),"") -> 0.23
C47: =SUM(C42:C46) -> 35 | D47: =SUM(D42:D46) -> 37

Sheet Grade 6 MATH NGSSS
A1: Click here to return to the school and subject selection sheet
A2: Next Generation Sunshine State Standards Grade 6 Mathematics Benchmarks Assessed by the FCAT 2.0
A3: Reporting Categories | B3: Benchmarks | C3: Description
A4: Fractions, Ratios, Relation, Stat. | B4: MA.6.A.1.1 | C4: Explain and justify procedures for multiplying and dividing fractions and decimals.
A5: Fractions, Ratios, Relation, Stat. | B5: MA.6.A.1.3 | C5: Solve real-world problems involving multiplication and division of fractions and decimals.
A6: Fractions, Ratios, Relation, Stat. | B6: MA.6.A.2.1 | C6: Use reasoning about multiplication and division to solve ratio and rate problems.
A7: Fractions, Ratios, Relation, Stat. | B7: MA.6.A.2.2 | C7: Interpret and compare ratios and rates.
A8: Expressions & Equations | B8: MA.6.A.3.1 | C8: Write and evaluate mathematical expressions that correspond to given situations.
A9: Expressions & Equations | B9: MA.6.A.3.2 | C9: Write, solve, and graph one- and two- step linear equations and inequalities.
A10: Expressions & Equations | B10: MA.6.A.3.5 | C10: Apply the Commutative, Associative, and Distributive Properties to show that two expressions are equivalent.
A11: Expressions & Equations | B11: MA.6.A.3.6 | C11: Construct and analyze tables, graphs, and equations to describe linear functions and other simple relations using both common language and algebraic notation.
A12: Geometry and Measurement | B12: MA.6.G.4.1 | C12: Understand the concept of Pi, know common estimates of Pi (3.14; 22/7) and use these values to estimate and calculate the circumference and the area of circles.
A13: Geometry and Measurement | B13: MA.6.G.4.2 | C13: Find the perimeters and areas of composite two-dimensional figures, including non-rectangular figures (such as semicircles) using various strategies.
A14: Geometry and Measurement | B14: MA.6.G.4.3 | C14: Determine a missing dimension of a plane figure or prism given its area or volume and some of the dimensions, or determine the area or volume given the dimensions.
A15: Fractions, Ratios, Relation, Stat. | B15: MA.6.A.5.1 | C15: Use equivalent forms of fractions, decimals, and percents to solve problems.
A16: Fractions, Ratios, Relation, Stat. | B16: MA.6.A.5.2 | C16: Compare and order fractions, decimals, and percents, including finding their approximate location on a number line.
A17: Fractions, Ratios, Relation, Stat. | B17: MA.6.A.5.3 | C17: Estimate the results of computations with fractions, decimals, and percents, and judge the reasonableness of the results.
A18: Fractions, Ratios, Relation, Stat. | B18: MA.6.S.6.1 | C18: Determine the measures of central tendency (mean, median, mode) and variability (range) for a given set of data.
A19: Fractions, Ratios, Relation, Stat. | B19: MA.6.S.6.2 | C19: Select and analyze the measures of central tendency or variability to represent, describe, analyze, and/or summarize a data set for the purposes of answering questions appropriately.

Sheet Grade 6 Reading
A1: Direction: Click on "School Name" below then click on arrow key on the right to select a school. To see benchmark description, move the mouse over the benchmark code.
A2: Click here to return to the school and subject selection sheet
B3: =VALUE('Select School'!B3) -> 9999 | U3: =TEXT(B3,"0000") -> 9999
A4: 2011-12 Grade 6 Reading Benchmark Analysis Report
A5: Baseline, Fall Interim Assessment (Fall IA) and Winter Interim Assessment (Winter IA)
A6: =TEXT($B$3,"0000")&"-"&VLOOKUP(B3,SchList!$A$2:$B$499,2,FALSE) -> 9999-District
A7: Reporting Categories | B7: Bench-marks | C7: No. of Items | F7: Average % Correct
C8: Base- line | D8: Fall IA | E8: Winter IA | F8: Base- line | G8: Fall IA | H8: Winter IA
B9: No. of Tested | F9: =IFERROR(VLOOKUP($B$3,'BLG6CC-R'!$A$14:$BZ$500,3,FALSE),"") -> 24471 | G9: =IFERROR(VLOOKUP($B$3,'BLG6CC-R'!$A$14:$BZ$500,3,FALSE),"") -> 24471 | H9: =IFERROR(VLOOKUP($B$3,'WIAG6CC-R'!$A$14:$BZ$500,3,FALSE),"") -> 24673
B10: LA.6.1.6.3 | C10: 2 | E10: 4 | F10: =IFERROR(VLOOKUP($B$3,'BLG6BM-R'!$A$14:$CZ$500,7,FALSE),"") -> 0.68 | H10: =IFERROR(VLOOKUP($B$3,'WIAG6BM-R'!$A$14:$CZ$500,7,FALSE),"") -> 0.68
B11: LA.6.1.6.8 | C11: 1 | D11: 5 | E11: 3 | F11: =IFERROR(VLOOKUP($B$3,'BLG6BM-R'!$A$14:$CZ$500,9,FALSE),"") -> 0.55 | G11: =IFERROR(VLOOKUP($B$3,'FIAG6BM-R'!$A$14:$CZ$500,7,FALSE),"") -> 0.69 | H11: =IFERROR(VLOOKUP($B$3,'WIAG6BM-R'!$A$14:$CZ$500,9,FALSE),"") -> 0.65
B12: LA.6.1.6.9 | C12: 2 | D12: 4 | E12: 4 | F12: =IFERROR(VLOOKUP($B$3,'BLG6BM-R'!$A$14:$CZ$500,11,FALSE),"") -> 0.62 | G12: =IFERROR(VLOOKUP($B$3,'FIAG6BM-R'!$A$14:$CZ$500,9,FALSE),"") -> 0.49 | H12: =IFERROR(VLOOKUP($B$3,'WIAG6BM-R'!$A$14:$CZ$500,11,FALSE),"") -> 0.74
B13: LA.6.1.7.2 | C13: 3 | D13: 5 | E13: 4 | F13: =IFERROR(VLOOKUP($B$3,'BLG6BM-R'!$A$14:$CZ$500,13,FALSE),"") -> 0.62 | G13: =IFERROR(VLOOKUP($B$3,'FIAG6BM-R'!$A$14:$CZ$500,11,FALSE),"") -> 0.63 | H13: =IFERROR(VLOOKUP($B$3,'WIAG6BM-R'!$A$14:$CZ$500,13,FALSE),"") -> 0.63
B14: LA.6.1.7.3 | C14: 5 | D14: 4 | E14: 4 | F14: =IFERROR(VLOOKUP($B$3,'BLG6BM-R'!$A$14:$CZ$500,15,FALSE),"") -> 0.57 | G14: =IFERROR(VLOOKUP($B$3,'FIAG6BM-R'!$A$14:$CZ$500,13,FALSE),"") -> 0.61 | H14: =IFERROR(VLOOKUP($B$3,'WIAG6BM-R'!$A$14:$CZ$500,15,FALSE),"") -> 0.72
B15: LA.6.1.7.4 | C15: 4 | D15: 4 | E15: 6 | F15: =IFERROR(VLOOKUP($B$3,'BLG6BM-R'!$A$14:$CZ$500,17,FALSE),"") -> 0.63 | G15: =IFERROR(VLOOKUP($B$3,'FIAG6BM-R'!$A$14:$CZ$500,15,FALSE),"") -> 0.66 | H15: =IFERROR(VLOOKUP($B$3,'WIAG6BM-R'!$A$14:$CZ$500,17,FALSE),"") -> 0.69
B16: LA.6.1.7.5 | C16: 2 | D16: 5 | E16: 3 | F16: =IFERROR(VLOOKUP($B$3,'BLG6BM-R'!$A$14:$CZ$500,19,FALSE),"") -> 0.65 | G16: =IFERROR(VLOOKUP($B$3,'FIAG6BM-R'!$A$14:$CZ$500,17,FALSE),"") -> 0.57 | H16: =IFERROR(VLOOKUP($B$3,'WIAG6BM-R'!$A$14:$CZ$500,19,FALSE),"") -> 0.49
B17: LA.6.1.7.7 | C17: 2 | D17: 5 | E17: 4 | F17: =IFERROR(VLOOKUP($B$3,'BLG6BM-R'!$A$14:$CZ$500,21,FALSE),"") -> 0.44 | G17: =IFERROR(VLOOKUP($B$3,'FIAG6BM-R'!$A$14:$CZ$500,19,FALSE),"") -> 0.62 | H17: =IFERROR(VLOOKUP($B$3,'WIAG6BM-R'!$A$14:$CZ$500,21,FALSE),"") -> 0.62
B18: LA.6.2.1.2 | C18: 5 | D18: 5 | E18: 4 | F18: =IFERROR(VLOOKUP($B$3,'BLG6BM-R'!$A$14:$CZ$500,23,FALSE),"") -> 0.53 | G18: =IFERROR(VLOOKUP($B$3,'FIAG6BM-R'!$A$14:$CZ$500,21,FALSE),"") -> 0.67 | H18: =IFERROR(VLOOKUP($B$3,'WIAG6BM-R'!$A$14:$CZ$500,23,FALSE),"") -> 0.69
B19: LA.6.2.1.7 | C19: 2 | D19: 5 | E19: 4 | F19: =IFERROR(VLOOKUP($B$3,'BLG6BM-R'!$A$14:$CZ$500,25,FALSE),"") -> 0.64 | G19: =IFERROR(VLOOKUP($B$3,'FIAG6BM-R'!$A$14:$CZ$500,23,FALSE),"") -> 0.53 | H19: =IFERROR(VLOOKUP($B$3,'WIAG6BM-R'!$A$14:$CZ$500,25,FALSE),"") -> 0.75
B20: LA.6.2.2.1 | C20: 3 | D20: 4 | E20: 2 | F20: =IFERROR(VLOOKUP($B$3,'BLG6BM-R'!$A$14:$CZ$500,27,FALSE),"") -> 0.52 | G20: =IFERROR(VLOOKUP($B$3,'FIAG6BM-R'!$A$14:$CZ$500,25,FALSE),"") -> 0.65 | H20: =IFERROR(VLOOKUP($B$3,'WIAG6BM-R'!$A$14:$CZ$500,27,FALSE),"") -> 0.57
B21: LA.6.6.1.1 | C21: 1 | D21: 5 | E21: 3 | F21: =IFERROR(VLOOKUP($B$3,'BLG6BM-R'!$A$14:$CZ$500,29,FALSE),"") -> 0.72 | G21: =IFERROR(VLOOKUP($B$3,'FIAG6BM-R'!$A$14:$CZ$500,27,FALSE),"") -> 0.56 | H21: =IFERROR(VLOOKUP($B$3,'WIAG6BM-R'!$A$14:$CZ$500,29,FALSE),"") -> 0.61
B22: LA.6.6.2.2 | C22: 3 | D22: 3 | E22: 8 | F22: =IFERROR(VLOOKUP($B$3,'BLG6BM-R'!$A$14:$CZ$500,31,FALSE),"") -> 0.38 | G22: =IFERROR(VLOOKUP($B$3,'FIAG6BM-R'!$A$14:$CZ$500,29,FALSE),"") -> 0.57 | H22: =IFERROR(VLOOKUP($B$3,'WIAG6BM-R'!$A$14:$CZ$500,31,FALSE),"") -> 0.57
A23: All Benchmarks | C23: =SUM(C10:C22) -> 35 | D23: =SUM(D10:D22) -> 54 | E23: =SUM(E10:E22) -> 53 | F23: =IFERROR(VLOOKUP($B$3,'BLG6CC-R'!$A$14:$CZ$500,5,FALSE),"") -> 0.57 | G23: =IFERROR(VLOOKUP($B$3,'FIAG6CC-R'!$A$14:$CZ$500,5,FALSE),"") -> 0.61 | H23: =IFERROR(VLOOKUP($B$3,'WIAG6CC-R'!$A$14:$CZ$500,5,FALSE),"") -> 0.65
A39: Reporting Categories | C39: Number of Items | F39: Average % Correct
C40: BL | D40: Fall IA | E40: Winter IA | F40: BL | G40: Fall IA | H40: Winter IA
A41: 1 | B41: Vocabulary | C41: =SUM(C10:C12) -> 5 | D41: =SUM(D10:D12) -> 9 | E41: =SUM(E10:E12) -> 11 | F41: =IFERROR(VLOOKUP($B$3,'BLG6CC-R'!$A$14:$BZ$500,11,FALSE),"") -> 0.63 | G41: =IFERROR(VLOOKUP($B$3,'FIAG6CC-R'!$A$14:$BZ$500,13,FALSE),"") -> 0.6 | H41: =IFERROR(VLOOKUP($B$3,'WIAG6CC-R'!$A$14:$BZ$500,13,FALSE),"") -> 0.69
A42: 2 | B42: Reading Application | C42: =SUM(C13:C17) -> 16 | D42: =SUM(D13:D17) -> 23 | E42: =SUM(E13:E17) -> 21 | F42: =IFERROR(VLOOKUP($B$3,'BLG6CC-R'!$A$14:$BZ$500,17,FALSE),"") -> 0.59 | G42: =IFERROR(VLOOKUP($B$3,'FIAG6CC-R'!$A$14:$BZ$500,17,FALSE),"") -> 0.62 | H42: =IFERROR(VLOOKUP($B$3,'WIAG6CC-R'!$A$14:$BZ$500,17,FALSE),"") -> 0.64
A43: 3 | B43: Literary Analysis-Fiction/NonFiction | C43: =SUM(C18:C20) -> 10 | D43: =SUM(D18:D20) -> 14 | E43: =SUM(E18:E20) -> 10 | F43: =IFERROR(VLOOKUP($B$3,'BLG6CC-R'!$A$14:$BZ$500,23,FALSE),"") -> 0.55 | G43: =IFERROR(VLOOKUP($B$3,'FIAG6CC-R'!$A$14:$BZ$500,21,FALSE),"") -> 0.61 | H43: =IFERROR(VLOOKUP($B$3,'WIAG6CC-R'!$A$14:$BZ$500,21,FALSE),"") -> 0.69
A44: 4 | B44: Informational Text/Research Process | C44: =SUM(C21:C22) -> 4 | D44: =SUM(D21:D22) -> 8 | E44: =SUM(E21:E22) -> 11 | F44: =IFERROR(VLOOKUP($B$3,'BLG6CC-R'!$A$14:$BZ$500,29,FALSE),"") -> 0.47 | G44: =IFERROR(VLOOKUP($B$3,'FIAG6CC-R'!$A$14:$BZ$500,25,FALSE),"") -> 0.57 | H44: =IFERROR(VLOOKUP($B$3,'WIAG6CC-R'!$A$14:$BZ$500,25,FALSE),"") -> 0.58
C45: =SUM(C40:C44) -> 35 | D45: =SUM(D40:D44) -> 54

Sheet Grade 6 Reading NGSSS
A1: Click here to return to the school and subject selection sheet
A2: Next Generation Sunshine State Standards Grade 6 Reading Benchmarks Assessed by the FCAT 2.0
A3: Reporting Categories | B3: Benchmarks | C3: Description
A4: Vocabulary | B4: LA.6.1.6.3 | C4: The student will use context clues to determine meanings of unfamiliar words.
A5: Vocabulary | B5: LA.6.1.6.7 | C5: The student will identify and understand the meaning of conceptually advanced prefixes, suffixes, and root words.
A6: Vocabulary | B6: LA.6.1.6.8 | C6: The student will identify advanced word/phrase relationships and their meanings.
A7: Vocabulary | B7: LA.6.1.6.9 | C7: The student will determine the correct meaning of words with multiple meanings in context.
A8: Reading Application | B8: LA.6.1.7.2 | C8: The student will analyze the author's purpose (e.g., to persuade, inform, entertain, or explain) and perspective in a variety of texts and understand how they affect meaning.
A9: Reading Application | B9: LA.6.1.7.3 | C9: The student will determine the main idea or essential message in grade-level text through inferring, paraphrasing, summarizing, and identifying relevant details.
A10: Reading Application | B10: LA.6.1.7.4 | C10: The student will identify cause-and-effect relationships in text.
A11: Reading Application | B11: LA.6.1.7.5 | C11: The student will analyze a variety of text structures (e.g., comparison/contrast, cause/effect, chronological order, argument/support, lists) and text features (main headings with subheadings) and explain their impact on meaning in text.
A12: Reading Application | B12: LA.6.1.7.7 | C12: The student will compare and contrast elements in multiple texts.
A13: Literary Analysis- Fiction/Nonfiction | B13: LA.6.2.1.2 | C13: The student will locate and analyze the elements of plot structure, including exposition, setting, character development, rising/falling action, conflict/resolution, and theme in a variety of fiction.
A14: Literary Analysis- Fiction/Nonfiction | B14: LA.6.2.1.7 | C14: The student will locate and analyze an author's use of allusions and descriptive, idiomatic, and figurative language in a variety of literary text, identifying how word choice sets the author's tone and advances the work's theme.
A15: Literary Analysis- Fiction/Nonfiction | B15: LA.6.2.2.1 | C15: The student will locate, use, and analyze specific information from organizational text features (e.g., table of contents, headings, captions, bold print, italics, glossaries, indices, key/guide words).
A16: Informational Text/ Research Process | B16: LA.6.6.1.1 | C16: The student will explain how text features (e.g., charts, maps, diagrams, sub-headings, captions, illustrations, graphs) aid the reader's understanding.
A17: Informational Text/ Research Process | B17: LA.6.6.2.2 | C17: The student will collect, evaluate and summarize information using a variety of techniques from multiple sources (e.g., encyclopedias, websites, experts) that includes paraphrasing to convey ideas and details from the source, main idea(s) and relevant details.

Sheet Grade 7 Math
A1: Direction: Click on "School Name" below then click on arrow key on the right to select a school. To see benchmark description, move the mouse over the benchmark code.
A2: Click here to return to the school and subject selection sheet
B3: =VALUE('Select School'!B3) -> 9999 | U3: =TEXT(B3,"0000") -> 9999
A4: 2011-12 Grade 7 Mathematics Benchmark Analysis Report
A5: Baseline, Fall Interim Assessment (Fall IA) and Winter Interim Assessment (Winter IA)
A6: =TEXT($B$3,"0000")&"-"&VLOOKUP(B3,SchList!$A$2:$B$499,2,FALSE) -> 9999-District
A7: Reporting Categories | B7: Bench-marks | C7: No. of Items | F7: Average % Correct
C8: Base- line | D8: Fall IA | E8: Winter IA | F8: Base- line | G8: Fall IA | H8: Winter IA
B9: No. of Tested | F9: =IFERROR(VLOOKUP($B$3,'BLG7CC-M'!$A$14:$BZ$500,3,FALSE),"") -> 24732 | G9: =IFERROR(VLOOKUP($B$3,'FIAG7CC-M'!$A$14:$BZ$500,3,FALSE),"") -> 25442 | H9: =IFERROR(VLOOKUP($B$3,'WIAG7CC-M'!$A$14:$BZ$500,3,FALSE),"") -> 24543
B10: MA.7.A.3.1 | C10: 2 | D10: 7 | F10: =IFERROR(VLOOKUP($B$3,'BLG7BM-M'!$A$14:$CZ$500,23,FALSE),"") -> 0.43 | G10: =IFERROR(VLOOKUP($B$3,'FIAG7BM-M'!$A$14:$CZ$500,7,FALSE),"") -> 0.54
B11: MA.7.A.3.2 | C11: 2 | D11: 8 | F11: =IFERROR(VLOOKUP($B$3,'BLG7BM-M'!$A$14:$CZ$500,25,FALSE),"") -> 0.48 | G11: =IFERROR(VLOOKUP($B$3,'FIAG7BM-M'!$A$14:$CZ$500,9,FALSE),"") -> 0.49
B12: MA.7.A.3.3 | C12: 1 | D12: 8 | F12: =IFERROR(VLOOKUP($B$3,'BLG7BM-M'!$A$14:$CZ$500,27,FALSE),"") -> 0.34 | G12: =IFERROR(VLOOKUP($B$3,'FIAG7BM-M'!$A$14:$CZ$500,11,FALSE),"") -> 0.46
B13: MA.7.A.3.4 | C13: 3 | D13: 8 | F13: =IFERROR(VLOOKUP($B$3,'BLG7BM-M'!$A$14:$CZ$500,29,FALSE),"") -> 0.36 | G13: =IFERROR(VLOOKUP($B$3,'FIAG7BM-M'!$A$14:$CZ$500,13,FALSE),"") -> 0.31
B14: MA.7.A.5.1 | C14: 2 | D14: 8 | F14: =IFERROR(VLOOKUP($B$3,'BLG7BM-M'!$A$14:$CZ$500,39,FALSE),"") -> 0.4 | G14: =IFERROR(VLOOKUP($B$3,'FIAG7BM-M'!$A$14:$CZ$500,15,FALSE),"") -> 0.61
B15: MA.7.A.1.1 | C15: 1 | E15: 6 | F15: =IFERROR(VLOOKUP($B$3,'BLG7BM-M'!$A$14:$CZ$500,7,FALSE),"") -> 0.48 | H15: =IFERROR(VLOOKUP($B$3,'WIAG7BM-M'!$A$14:$CZ$500,7,FALSE),"") -> 0.53
B16: MA.7.A.1.2 | C16: 3 | E16: 6 | F16: =IFERROR(VLOOKUP($B$3,'BLG7BM-M'!$A$14:$CZ$500,9,FALSE),"") -> 0.33 | H16: =IFERROR(VLOOKUP($B$3,'WIAG7BM-M'!$A$14:$CZ$500,9,FALSE),"") -> 0.44
B17: MA.7.A.1.3 | C17: 2 | E17: 6 | F17: =IFERROR(VLOOKUP($B$3,'BLG7BM-M'!$A$14:$CZ$500,11,FALSE),"") -> 0.3 | H17: =IFERROR(VLOOKUP($B$3,'WIAG7BM-M'!$A$14:$CZ$500,11,FALSE),"") -> 0.48
B18: MA.7.A.1.4 | C18: 2 | E18: 6 | F18: =IFERROR(VLOOKUP($B$3,'BLG7BM-M'!$A$14:$CZ$500,13,FALSE),"") -> 0.38 | H18: =IFERROR(VLOOKUP($B$3,'WIAG7BM-M'!$A$14:$CZ$500,13,FALSE),"") -> 0.38
B19: MA.7.A.1.5 | C19: 1 | E19: 6 | F19: =IFERROR(VLOOKUP($B$3,'BLG7BM-M'!$A$14:$CZ$500,15,FALSE),"") -> 0.21 | H19: =IFERROR(VLOOKUP($B$3,'WIAG7BM-M'!$A$14:$CZ$500,15,FALSE),"") -> 0.44
B20: MA.7.A.1.6 | C20: 3 | E20: 6 | F20: =IFERROR(VLOOKUP($B$3,'BLG7BM-M'!$A$14:$CZ$500,17,FALSE),"") -> 0.44 | H20: =IFERROR(VLOOKUP($B$3,'WIAG7BM-M'!$A$14:$CZ$500,17,FALSE),"") -> 0.66
B21: MA.7.G.2.1 | C21: 2 | F21: =IFERROR(VLOOKUP($B$3,'BLG7BM-M'!$A$14:$CZ$500,19,FALSE),"") -> 0.25
B22: MA.7.G.2.2 | C22: 2 | F22: =IFERROR(VLOOKUP($B$3,'BLG7BM-M'!$A$14:$CZ$500,21,FALSE),"") -> 0.3
B23: MA.7.G.4.1 | C23: 2 | F23: =IFERROR(VLOOKUP($B$3,'BLG7BM-M'!$A$14:$CZ$500,31,FALSE),"") -> 0.41
B24: MA.7.G.4.2 | C24: 2 | F24: =IFERROR(VLOOKUP($B$3,'BLG7BM-M'!$A$14:$CZ$500,33,FALSE),"") -> 0.45
B25: MA.7.G.4.3 | C25: 2 | F25: =IFERROR(VLOOKUP($B$3,'BLG7BM-M'!$A$14:$CZ$500,35,FALSE),"") -> 0.61
B26: MA.7.G.4.4 | C26: 2 | F26: =IFERROR(VLOOKUP($B$3,'BLG7BM-M'!$A$14:$CZ$500,37,FALSE),"") -> 0.39
B27: MA.7.P.7.1 | C27: 2 | E27: 6 | F27: =IFERROR(VLOOKUP($B$3,'BLG7BM-M'!$A$14:$CZ$500,45,FALSE),"") -> 0.29 | H27: =IFERROR(VLOOKUP($B$3,'WIAG7BM-M'!$A$14:$CZ$500,19,FALSE),"") -> 0.75
B28: MA.7.P.7.2 | C28: 2 | E28: 5 | F28: =IFERROR(VLOOKUP($B$3,'BLG7BM-M'!$A$14:$CZ$500,47,FALSE),"") -> 0.31 | H28: =IFERROR(VLOOKUP($B$3,'WIAG7BM-M'!$A$14:$CZ$500,21,FALSE),"") -> 0.56
B29: MA.7.S.6.1 | C29: 2 | F29: =IFERROR(VLOOKUP($B$3,'BLG7BM-M'!$A$14:$CZ$500,41,FALSE),"") -> 0.36
B30: MA.7.S.6.2 | C30: 2 | F30: =IFERROR(VLOOKUP($B$3,'BLG7BM-M'!$A$14:$CZ$500,43,FALSE),"") -> 0.44
A31: All Benchmarks | C31: =SUM(C10:C30) -> 42 | D31: =SUM(D10:D30) -> 39 | E31: =SUM(E10:E30) -> 47 | F31: =IFERROR(VLOOKUP($B$3,'BLG7CC-M'!$A$14:$CZ$500,5,FALSE),"") -> 0.38 | G31: =IFERROR(VLOOKUP($B$3,'FIAG7CC-M'!$A$14:$CZ$500,5,FALSE),"") -> 0.48 | H31: =IFERROR(VLOOKUP($B$3,'WIAG7CC-M'!$A$14:$CZ$500,5,FALSE),"") -> 0.53
A47: Reporting Categories | C47: Number of Items | F47: Average % Correct | I47: % of Students at or above Proficiency Level (70%)
C48: BL | D48: Fall IA | E48: Winter IA | F48: BL | G48: Fall IA | H48: Winter IA | I48: BL | J48: Fall IA | K48: Winter IA
A49: 1 | B49: Number: Base Ten | C49: =SUM(C10:C14) -> 10 | D49: =SUM(D10:D14) -> 39 | E49: =SUM(E10:E14) -> 0 | F49: =IFERROR(VLOOKUP($B$3,'BLG7CC-M'!$A$14:$CZ$500,17,FALSE),"") -> 0.4 | G49: =IFERROR(VLOOKUP($B$3,'FIAG7CC-M'!$A$14:$CZ$500,13,FALSE),"") -> 0.48 | K49: =IFERROR(VALUE(VLOOKUP($B$3,'WIAG7CC-M'!$A$14:$CZ$500,9,FALSE)),"") -> 0.395
A50: 2 | B50: Ratios/Proportional Relationships | C50: =SUM(C15:C20) -> 12 | D50: =SUM(D15:D20) -> 0 | E50: =SUM(E15:E20) -> 36 | F50: =IFERROR(VLOOKUP($B$3,'BLG7CC-M'!$A$14:$CZ$500,23,FALSE),"") -> 0.36 | H50: =IFERROR(VLOOKUP($B$3,'WIAG7CC-M'!$A$14:$CZ$500,13,FALSE),"") -> 0.49
A51: 3 | B51: Geometry and Measurement | C51: =SUM(C21:C26) -> 12 | D51: =SUM(D21:D26) -> 0 | E51: =SUM(E21:E26) -> 0 | F51: =IFERROR(VLOOKUP($B$3,'BLG7CC-M'!$A$14:$CZ$500,11,FALSE),"") -> 0.4
A52: 4 | B52: Statistics & Probability | C52: =SUM(C27:C30) -> 8 | D52: =SUM(D27:D30) -> 0 | E52: =SUM(E27:E30) -> 11 | F52: =IFERROR(VLOOKUP($B$3,'BLG7CC-M'!$A$14:$CZ$500,29,FALSE),"") -> 0.35 | H52: =IFERROR(VLOOKUP($B$3,'WIAG7CC-M'!$A$14:$CZ$500,17,FALSE),"") -> 0.66
C53: =SUM(C48:C52) -> 42 | D53: =SUM(D48:D52) -> 39

Sheet Grade 7 MATH NGSSS
A1: Click here to return to the school and subject selection sheet
A2: Next Generation Sunshine State Standards Grade 7 Mathematics Benchmarks Assessed by the FCAT 2.0
A3: Reporting Categories | B3: Benchmarks | C3: Description
A4: Ratios/Proportional Relationships | B4: MA.7.A.1.1 | C4: Distinguish between situations that are proportional or not proportional, and use proportions to solve problems.
A5: Ratios/Proportional Relationships | B5: MA.7.A.1.2 | C5: Solve percent problems, including problems involving discounts, simple interest, taxes, tips, and percents of increase or decrease.
A6: Ratios/Proportional Relationships | B6: MA.7.A.1.3 | C6: Solve problems involving similar figures.
A7: Ratios/Proportional Relationships | B7: MA.7.A.1.4 | C7: Graph proportional relationships and identify the unit rate as the slope of the related linear function.
A8: Ratios/Proportional Relationships | B8: MA.7.A.1.5 | C8: Distinguish direct variation from other relationships, including inverse variation.
A9: Ratios/Proportional Relationships | B9: MA.7.A.1.6 | C9: Apply proportionality to measurement in multiple contexts, including scale drawings and constant speed.
A10: Geometry & Measurement | B10: MA.7.G.2.1 | C10: Justify and apply formulas for surface area and volume of pyramids, prisms, cylinders, and cones.
A11: Geometry & Measurement | B11: MA.7.G.2.2 | C11: Use formulas to find surface areas and volume of three-dimensional composite shapes.
A12: Number: Base Ten | B12: MA.7.A.3.1 | C12: Use and justify the rules for adding, subtracting, multiplying, dividing, and finding the absolute value of integers.
A13: Number: Base Ten | B13: MA.7.A.3.2 | C13: Add, subtract, multiply, and divide integers, fractions, and terminating decimals, and perform exponential operations with rational bases and whole number exponents including solving problems in everyday contexts.
A14: Number: Base Ten | B14: MA.7.A.3.3 | C14: Formulate and use different strategies to solve one-step and two-step linear equations, including equations with rational coefficients.
A15: Number: Base Ten | B15: MA.7.A.3.4 | C15: Use the properties of equality to represent an equation in a different way and to show that two equations are equivalent in a given context.
A16: Geometry & Measurement | B16: MA.7.G.4.1 | C16: Determine how changes in dimensions affect the perimeter, area, and volume of common geometric figures, and apply these relationships to solve problems.
A17: Geometry & Measurement | B17: MA.7.G.4.2 | C17: Predict the results of transformations, and draw transformed figures with and without the coordinate plane.
A18: Geometry & Measurement | B18: MA.7.G.4.3 | C18: Identify and plot ordered pairs in all four quadrants of the coordinate plane.
A19: Geometry & Measurement | B19: MA.7.G.4.4 | C19: Compare, contrast, and convert units of measure between different measurement systems (US customary or metric (SI)), dimensions, and derived units to solve problems.
A20: Number: Base Ten | B20: MA.7.A.5.1 | C20: Express rational numbers as terminating or repeating decimals.
A21: Statistics & Probability | B21: MA.7.S.6.1 | C21: Evaluate the reasonableness of a sample to determine the appropriateness of generalizations made about the population.
A22: Statistics & Probability | B22: MA.7.S.6.2 | C22: Construct and analyze histograms, stem-and-leaf plots, and circle graphs.
A23: Statistics & Probability | B23: MA.7.P.7.1 | C23: Determine the outcome of an experiment and predict which events are likely or unlikely, and if the experiment is fair or unfair.
A24: Statistics & Probability | B24: MA.7.P.7.2 | C24: Determine, compare, and make predictions based on experimental or theoretical probability of independent or dependent events.

Sheet Grade 7 Reading
A1: Direction: Click on "School Name" below then click on arrow key on the right to select a school. To see benchmark description, move the mouse over the benchmark code.
A2: Click here to return to the school and subject selection sheet
B3: =VALUE('Select School'!B3) -> 9999 | U3: =TEXT(B3,"0000") -> 9999
A4: 2011-12 Grade 7 Reading Benchmark Analysis Report
A5: Baseline, Fall Interim Assessment (Fall IA) and Winter Interim Assessment (Winter IA)
A6: =TEXT($B$3,"0000")&"-"&VLOOKUP(B3,SchList!$A$2:$B$499,2,FALSE) -> 9999-District
A7: Reporting Categories | B7: Bench-marks | C7: No. of Items | F7: Average % Correct
C8: Base- line | D8: Fall IA | E8: Winter IA | F8: Base- line | G8: Fall IA | H8: Winter IA
B9: No. of Tested | F9: =IFERROR(VLOOKUP($B$3,'BLG7CC-R'!$A$14:$BZ$500,3,FALSE),"") -> 24904 | G9: =IFERROR(VLOOKUP($B$3,'FIAG7CC-R'!$A$14:$BZ$500,3,FALSE),"") -> 25620 | H9: =IFERROR(VLOOKUP($B$3,'WIAG7CC-R'!$A$14:$BZ$500,3,FALSE),"") -> 25137
B10: LA.7.1.6.3 | C10: 2 | D10: 4 | E10: 4 | F10: =IFERROR(VLOOKUP($B$3,'BLG7BM-R'!$A$14:$CZ$500,7,FALSE),"") -> 0.52 | G10: =IFERROR(VLOOKUP($B$3,'FIAG7BM-R'!$A$14:$CZ$500,7,FALSE),"") -> 0.54 | H10: =IFERROR(VLOOKUP($B$3,'WIAG7BM-R'!$A$14:$CZ$500,7,FALSE),"") -> 0.67
B11: LA.7.1.6.8 | C11: 3 | D11: 5 | E11: 4 | F11: =IFERROR(VLOOKUP($B$3,'BLG7BM-R'!$A$14:$CZ$500,9,FALSE),"") -> 0.68 | G11: =IFERROR(VLOOKUP($B$3,'FIAG7BM-R'!$A$14:$CZ$500,9,FALSE),"") -> 0.63 | H11: =IFERROR(VLOOKUP($B$3,'WIAG7BM-R'!$A$14:$CZ$500,9,FALSE),"") -> 0.58
B12: LA.7.1.6.9 | C12: 2 | D12: 5 | E12: 3 | F12: =IFERROR(VLOOKUP($B$3,'BLG7BM-R'!$A$14:$CZ$500,11,FALSE),"") -> 0.73 | G12: =IFERROR(VLOOKUP($B$3,'FIAG7BM-R'!$A$14:$CZ$500,11,FALSE),"") -> 0.51 | H12: =IFERROR(VLOOKUP($B$3,'WIAG7BM-R'!$A$14:$CZ$500,11,FALSE),"") -> 0.64
B13: LA.7.1.7.2 | C13: 5 | D13: 5 | E13: 3 | F13: =IFERROR(VLOOKUP($B$3,'BLG7BM-R'!$A$14:$CZ$500,13,FALSE),"") -> 0.65 | G13: =IFERROR(VLOOKUP($B$3,'FIAG7BM-R'!$A$14:$CZ$500,13,FALSE),"") -> 0.64 | H13: =IFERROR(VLOOKUP($B$3,'WIAG7BM-R'!$A$14:$CZ$500,13,FALSE),"") -> 0.84
B14: LA.7.1.7.3 | C14: 3 | D14: 5 | E14: 5 | F14: =IFERROR(VLOOKUP($B$3,'BLG7BM-R'!$A$14:$CZ$500,15,FALSE),"") -> 0.69 | G14: =IFERROR(VLOOKUP($B$3,'FIAG7BM-R'!$A$14:$CZ$500,15,FALSE),"") -> 0.6 | H14: =IFERROR(VLOOKUP($B$3,'WIAG7BM-R'!$A$14:$CZ$500,15,FALSE),"") -> 0.67
B15: LA.7.1.7.4 | C15: 5 | D15: 3 | E15: 3 | F15: =IFERROR(VLOOKUP($B$3,'BLG7BM-R'!$A$14:$CZ$500,17,FALSE),"") -> 0.56 | G15: =IFERROR(VLOOKUP($B$3,'FIAG7BM-R'!$A$14:$CZ$500,17,FALSE),"") -> 0.65 | H15: =IFERROR(VLOOKUP($B$3,'WIAG7BM-R'!$A$14:$CZ$500,17,FALSE),"") -> 0.59
B16: LA.7.1.7.5 | C16: 2 | D16: 4 | E16: 4 | F16: =IFERROR(VLOOKUP($B$3,'BLG7BM-R'!$A$14:$CZ$500,19,FALSE),"") -> 0.57 | G16: =IFERROR(VLOOKUP($B$3,'FIAG7BM-R'!$A$14:$CZ$500,19,FALSE),"") -> 0.6 | H16: =IFERROR(VLOOKUP($B$3,'WIAG7BM-R'!$A$14:$CZ$500,19,FALSE),"") -> 0.55
B17: LA.7.1.7.7 | C17: 4 | D17: 4 | E17: 3 | F17: =IFERROR(VLOOKUP($B$3,'BLG7BM-R'!$A$14:$CZ$500,21,FALSE),"") -> 0.64 | G17: =IFERROR(VLOOKUP($B$3,'FIAG7BM-R'!$A$14:$CZ$500,21,FALSE),"") -> 0.63 | H17: =IFERROR(VLOOKUP($B$3,'WIAG7BM-R'!$A$14:$CZ$500,21,FALSE),"") -> 0.77
B18: LA.7.2.1.2 | C18: 3 | D18: 4 | E18: 2 | F18: =IFERROR(VLOOKUP($B$3,'BLG7BM-R'!$A$14:$CZ$500,23,FALSE),"") -> 0.75 | G18: =IFERROR(VLOOKUP($B$3,'FIAG7BM-R'!$A$14:$CZ$500,23,FALSE),"") -> 0.48 | H18: =IFERROR(VLOOKUP($B$3,'WIAG7BM-R'!$A$14:$CZ$500,23,FALSE),"") -> 0.55
B19: LA.7.2.1.7 | C19: 2 | D19: 3 | E19: 3 | F19: =IFERROR(VLOOKUP($B$3,'BLG7BM-R'!$A$14:$CZ$500,25,FALSE),"") -> 0.7 | G19: =IFERROR(VLOOKUP($B$3,'FIAG7BM-R'!$A$14:$CZ$500,25,FALSE),"") -> 0.35 | H19: =IFERROR(VLOOKUP($B$3,'WIAG7BM-R'!$A$14:$CZ$500,25,FALSE),"") -> 0.53
B20: LA.7.2.2.1 | C20: 1 | D20: 4 | E20: 3 | F20: =IFERROR(VLOOKUP($B$3,'BLG7BM-R'!$A$14:$CZ$500,27,FALSE),"") -> 0.53 | G20: =IFERROR(VLOOKUP($B$3,'FIAG7BM-R'!$A$14:$CZ$500,27,FALSE),"") -> 0.54 | H20: =IFERROR(VLOOKUP($B$3,'WIAG7BM-R'!$A$14:$CZ$500,27,FALSE),"") -> 0.51
B21: LA.7.6.1.1 | C21: 2 | D21: 5 | E21: 5 | F21: =IFERROR(VLOOKUP($B$3,'BLG7BM-R'!$A$14:$CZ$500,29,FALSE),"") -> 0.65 | G21: =IFERROR(VLOOKUP($B$3,'FIAG7BM-R'!$A$14:$CZ$500,29,FALSE),"") -> 0.48 | H21: =IFERROR(VLOOKUP($B$3,'WIAG7BM-R'!$A$14:$CZ$500,29,FALSE),"") -> 0.63
B22: LA.7.6.2.2 | C22: 5 | D22: 5 | E22: 5 | F22: =IFERROR(VLOOKUP($B$3,'BLG7BM-R'!$A$14:$CZ$500,31,FALSE),"") -> 0.56 | G22: =IFERROR(VLOOKUP($B$3,'FIAG7BM-R'!$A$14:$CZ$500,31,FALSE),"") -> 0.7 | H22: =IFERROR(VLOOKUP($B$3,'WIAG7BM-R'!$A$14:$CZ$500,31,FALSE),"") -> 0.65
A23: All Benchmarks | C23: =SUM(C10:C22) -> 39 | D23: =SUM(D10:D22) -> 56 | E23: =SUM(E10:E22) -> 47 | F23: =IFERROR(VLOOKUP($B$3,'BLG7CC-R'!$A$14:$CZ$500,5,FALSE),"") -> 0.63 | G23: =IFERROR(VLOOKUP($B$3,'FIAG7CC-R'!$A$14:$CZ$500,5,FALSE),"") -> 0.57 | H23: =IFERROR(VLOOKUP($B$3,'WIAG7CC-R'!$A$14:$CZ$500,5,FALSE),"") -> 0.63
A39: Reporting Categories | C39: Number of Items | F39: Average % Correct | I39: % of Students at or above Proficiency Level (70%)
C40: BL | D40: Fall IA | E40: Winter IA | F40: BL | G40: Fall IA | H40: Winter IA | I40: BL | J40: Fall IA | K40: Winter IA
A41: 1 | B41: Vocabulary | C41: =SUM(C10:C12) -> 7 | D41: =SUM(D10:D12) -> 14 | E41: =SUM(E10:E12) -> 11 | F41: =IFERROR(VLOOKUP($B$3,'BLG7CC-R'!$A$14:$BZ$500,11,FALSE),"") -> 0.65 | G41: =IFERROR(VLOOKUP($B$3,'FIAG7CC-R'!$A$14:$BZ$500,13,FALSE),"") -> 0.56 | H41: =IFERROR(VLOOKUP($B$3,'WIAG7CC-R'!$A$14:$BZ$500,13,FALSE),"") -> 0.63 | K41: =IFERROR(VALUE(VLOOKUP($B$3,'WIAG7CC-R'!$A$14:$CZ$500,9,FALSE)),"") -> 0.3352
A42: 2 | B42: Reading Application | C42: =SUM(C13:C17) -> 19 | D42: =SUM(D13:D17) -> 21 | E42: =SUM(E13:E17) -> 18 | F42: =IFERROR(VLOOKUP($B$3,'BLG7CC-R'!$A$14:$BZ$500,17,FALSE),"") -> 0.62 | G42: =IFERROR(VLOOKUP($B$3,'FIAG7CC-R'!$A$14:$BZ$500,17,FALSE),"") -> 0.62 | H42: =IFERROR(VLOOKUP($B$3,'WIAG7CC-R'!$A$14:$BZ$500,17,FALSE),"") -> 0.68
A43: 3 | B43: Literary Analysis-Fiction/NonFiction | C43: =SUM(C18:C20) -> 6 | D43: =SUM(D18:D20) -> 11 | E43: =SUM(E18:E20) -> 8 | F43: =IFERROR(VLOOKUP($B$3,'BLG7CC-R'!$A$14:$BZ$500,23,FALSE),"") -> 0.7 | G43: =IFERROR(VLOOKUP($B$3,'FIAG7CC-R'!$A$14:$BZ$500,21,FALSE),"") -> 0.47 | H43: =IFERROR(VLOOKUP($B$3,'WIAG7CC-R'!$A$14:$BZ$500,21,FALSE),"") -> 0.53
A44: 4 | B44: Informational Text/Research Process | C44: =SUM(C21:C22) -> 7 | D44: =SUM(D21:D22) -> 10 | E44: =SUM(E21:E22) -> 10 | F44: =IFERROR(VLOOKUP($B$3,'BLG7CC-R'!$A$14:$BZ$500,29,FALSE),"") -> 0.58 | G44: =IFERROR(VLOOKUP($B$3,'FIAG7CC-R'!$A$14:$BZ$500,25,FALSE),"") -> 0.59 | H44: =IFERROR(VLOOKUP($B$3,'WIAG7CC-R'!$A$14:$BZ$500,25,FALSE),"") -> 0.64
C45: =SUM(C40:C44) -> 39 | D45: =SUM(D40:D44) -> 56

Sheet Grade 7 Reading NGSSS
A1: Click here to return to the school and subject selection sheet
A2: Next Generation Sunshine State Standards Grade 7 Reading Benchmarks Assessed by the FCAT 2.0
A3: Reporting Categories | B3: Benchmarks | C3: Description
A4: Vocabulary | B4: LA.7.1.6.3 | C4: The student will use context clues to determine meanings of unfamiliar words.
A5: Vocabulary | B5: LA.7.1.6.7 | C5: The student will identify and understand the meaning of conceptually advanced prefixes, suffixes, and root words.
A6: Vocabulary | B6: LA.7.1.6.8 | C6: The student will identify advanced word/phrase relationships and their meanings.
A7: Vocabulary | B7: LA.7.1.6.9 | C7: The student will determine the correct meaning of words with multiple meanings in context.
A8: Reading Application | B8: LA.7.1.7.2 | C8: The student will analyze the author's purpose (e.g., to persuade, inform, entertain, explain) and perspective in a variety of texts and understand how they affect meaning.
A9: Reading Application | B9: LA.7.1.7.3 | C9: The student will determine the main idea or essential message in grade-level or higher texts through inferring, paraphrasing, summarizing, and identifying relevant details.
A10: Reading Application | B10: LA.7.1.7.4 | C10: The student will identify cause-and-effect relationships in text.
A11: Reading Application | B11: LA.7.1.7.5 | C11: The student will analyze a variety of text structures (e.g., comparison/contrast, cause/effect, chronological order, argument/support, lists) and text features (main headings with subheadings) and explain their impact on meaning in text.
A12: Reading Application | B12: LA.7.1.7.7 | C12: The student will compare and contrast elements in multiple texts.
A13: Literary Analysis- Fiction/Nonfiction | B13: LA.7.2.1.2 | C13: The student will locate and analyze elements of characterization, setting, and plot, including rising action, conflict, resolution, theme, and other literary elements as appropriate in a variety of fiction.
A14: Literary Analysis- Fiction/Nonfiction | B14: LA.7.2.1.7 | C14: The student will locate and analyze an author's use of allusions and descriptive, idiomatic, and figurative language in a variety of literary text, identifying how word choice is used to appeal to the reader's senses and emotions, providing evidence from text to support the analysis.
A15: Literary Analysis- Fiction/Nonfiction | B15: LA.7.2.2.1 | C15: The student will locate, use, and analyze specific information from organizational text features (e.g., table of contents, headings, captions, bold print, italics, glossaries, indices, key/guide words).
A16: Informational Text/Research Process | B16: LA.7.6.1.1 | C16: The student will explain how text features (e.g., charts, maps, diagrams, sub-headings, captions, illustrations, graphs) aid the reader's understanding.
A17: Informational Text/Research Process | B17: LA.7.6.2.2 | C17: The student will assess organize and check the validity and reliability of information in text, using a variety of techniques by examining several sources of information, including both primary and secondary sources.

Sheet Grade 8 Math
A1: Direction: Click on "School Name" below then click on arrow key on the right to select a school. To see benchmark description, move the mouse over the benchmark code.
A2: Click here to return to the school and subject selection sheet
B3: =VALUE('Select School'!B3) -> 9999 | U3: =TEXT(B3,"0000") -> 9999
A4: 2011-12 Grade 8 Mathematics Benchmark Analysis Report
A5: Baseline, Fall Interim Assessment (Fall IA) and Winter Interim Assessment (Winter IA)
A6: =TEXT($B$3,"0000")&"-"&VLOOKUP(B3,SchList!$A$2:$B$499,2,FALSE) -> 9999-District
A7: Reporting Categories | B7: Bench-marks | C7: No. of Items | F7: Average % Correct
C8: Base- line | D8: Fall IA | E8: Winter IA | F8: Base- line | G8: Fall IA | H8: Winter IA
B9: No. of Tested | F9: =IFERROR(VLOOKUP($B$3,'BLG8CC-M'!$A$14:$BZ$500,3,FALSE),"") -> 24226 | G9: =IFERROR(VLOOKUP($B$3,'FIAG8CC-M'!$A$14:$BZ$500,3,FALSE),"") -> 24982 | H9: =IFERROR(VLOOKUP($B$3,'WIAG8CC-M'!$A$14:$BZ$500,3,FALSE),"") -> 24134
B10: MA.8.A.6.1 | C10: 2 | D10: 7 | F10: =IFERROR(VLOOKUP($B$3,'BLG8BM-M'!$A$14:$CZ$500,35,FALSE),"") -> 0.61 | G10: =IFERROR(VLOOKUP($B$3,'FIAG8BM-M'!$A$14:$CZ$500,11,FALSE),"") -> 0.56
B11: MA.8.A.6.2 | C11: 2 | D11: 7 | F11: =IFERROR(VLOOKUP($B$3,'BLG8BM-M'!$A$14:$CZ$500,37,FALSE),"") -> 0.56 | G11: =IFERROR(VLOOKUP($B$3,'FIAG8BM-M'!$A$14:$CZ$500,13,FALSE),"") -> 0.47
B12: MA.8.A.6.3 | D12: 4 | G12: =IFERROR(VLOOKUP($B$3,'FIAG8BM-M'!$A$14:$CZ$500,15,FALSE),"") -> 0.64
B13: MA.8.A.6.4 | C13: 2 | D13: 9 | F13: =IFERROR(VLOOKUP($B$3,'BLG8BM-M'!$A$14:$CZ$500,39,FALSE),"") -> 0.58 | G13: =IFERROR(VLOOKUP($B$3,'FIAG8BM-M'!$A$14:$CZ$500,17,FALSE),"") -> 0.54
B14: MA.8.S.3.1 | C14: 2 | F14: =IFERROR(VLOOKUP($B$3,'BLG8BM-M'!$A$14:$CZ$500,25,FALSE),"") -> 0.56
B15: MA.8.S.3.2 | C15: 2 | F15: =IFERROR(VLOOKUP($B$3,'BLG8BM-M'!$A$14:$CZ$500,27,FALSE),"") -> 0.42
B16: MA.8.A.1.1 | C16: 2 | E16: 8 | F16: =IFERROR(VLOOKUP($B$3,'BLG8BM-M'!$A$14:$CZ$500,7,FALSE),"") -> 0.38 | H16: =IFERROR(VLOOKUP($B$3,'WIAG8BM-M'!$A$14:$CZ$500,7,FALSE),"") -> 0.55
B17: MA.8.A.1.2 | C17: 2 | E17: 8 | F17: =IFERROR(VLOOKUP($B$3,'BLG8BM-M'!$A$14:$CZ$500,9,FALSE),"") -> 0.36 | H17: =IFERROR(VLOOKUP($B$3,'WIAG8BM-M'!$A$14:$CZ$500,9,FALSE),"") -> 0.56
B18: MA.8.A.1.3 | C18: 2 | E18: 8 | F18: =IFERROR(VLOOKUP($B$3,'BLG8BM-M'!$A$14:$CZ$500,11,FALSE),"") -> 0.49 | H18: =IFERROR(VLOOKUP($B$3,'WIAG8BM-M'!$A$14:$CZ$500,11,FALSE),"") -> 0.54
B19: MA.8.A.1.5 | C19: 2 | E19: 8 | F19: =IFERROR(VLOOKUP($B$3,'BLG8BM-M'!$A$14:$CZ$500,13,FALSE),"") -> 0.41 | H19: =IFERROR(VLOOKUP($B$3,'WIAG8BM-M'!$A$14:$CZ$500,13,FALSE),"") -> 0.47
B20: MA.8.A.1.6 | C20: 2 | E20: 8 | F20: =IFERROR(VLOOKUP($B$3,'BLG8BM-M'!$A$14:$CZ$500,15,FALSE),"") -> 0.69 | H20: =IFERROR(VLOOKUP($B$3,'WIAG8BM-M'!$A$14:$CZ$500,15,FALSE),"") -> 0.79
B21: MA.8.A.4.1 | C21: 2 | D21: 7 | F21: =IFERROR(VLOOKUP($B$3,'BLG8BM-M'!$A$14:$CZ$500,29,FALSE),"") -> 0.28 | G21: =IFERROR(VLOOKUP($B$3,'FIAG8BM-M'!$A$14:$CZ$500,7,FALSE),"") -> 0.44
B22: MA.8.A.4.2 | C22: 2 | D22: 6 | F22: =IFERROR(VLOOKUP($B$3,'BLG8BM-M'!$A$14:$CZ$500,31,FALSE),"") -> 0.37 | G22: =IFERROR(VLOOKUP($B$3,'FIAG8BM-M'!$A$14:$CZ$500,9,FALSE),"") -> 0.48
B23: MA.8.G.2.1 | C23: 2 | F23: =IFERROR(VLOOKUP($B$3,'BLG8BM-M'!$A$14:$CZ$500,17,FALSE),"") -> 0.4
B24: MA.8.G.2.2 | C24: 2 | F24: =IFERROR(VLOOKUP($B$3,'BLG8BM-M'!$A$14:$CZ$500,19,FALSE),"") -> 0.63
B25: MA.8.G.2.3 | C25: 2 | F25: =IFERROR(VLOOKUP($B$3,'BLG8BM-M'!$A$14:$CZ$500,21,FALSE),"") -> 0.34
B26: MA.8.G.2.4 | C26: 2 | F26: =IFERROR(VLOOKUP($B$3,'BLG8BM-M'!$A$14:$CZ$500,23,FALSE),"") -> 0.3
B27: MA.8.G.5.1 | C27: 2 | F27: =IFERROR(VLOOKUP($B$3,'BLG8BM-M'!$A$14:$CZ$500,33,FALSE),"") -> 0.38
A28: All Benchmarks | C28: =SUM(C10:C27) -> 34 | D28: =SUM(D10:D27) -> 40 | E28: =SUM(E10:E27) -> 40 | F28: =IFERROR(VLOOKUP($B$3,'BLG8CC-M'!$A$14:$CZ$500,5,FALSE),"") -> 0.46 | G28: =IFERROR(VLOOKUP($B$3,'FIAG8CC-M'!$A$14:$CZ$500,5,FALSE),"") -> 0.52 | H28: =IFERROR(VLOOKUP($B$3,'WIAG8CC-M'!$A$14:$CZ$500,5,FALSE),"") -> 0.58
A44: Reporting Categories | C44: Number of Items | F44: Average % Correct | I44: % of Students at or above Proficiency Level (70%)
C45: BL | D45: Fall IA | E45: Winter IA | F45: BL | G45: Fall IA | H45: Winter IA | I45: BL | J45: Fall IA | K45: Winter IA
A46: 1 | B46: Number: Operations, Problems, and Statistics | C46: =SUM(C10:C15) -> 10 | D46: =SUM(D10:D15) -> 27 | E46: =SUM(E10:E15) -> 0 | F46: =IFERROR(VLOOKUP($B$3,'BLG8CC-M'!$A$14:$CZ$500,23,FALSE),"") -> 0.55 | G46: =IFERROR(VLOOKUP($B$3,'FIAG8CC-M'!$A$14:$CZ$500,13,FALSE),"") -> 0.54 | K46: =IFERROR(VALUE(VLOOKUP($B$3,'WIAG8CC-M'!$A$14:$CZ$500,9,FALSE)),"") -> 0.3308
A47: 2 | B47: Expressions, Equations, and Functions | C47: =SUM(C16:C22) -> 14 | D47: =SUM(D16:D22) -> 13 | E47: =SUM(E16:E22) -> 40 | F47: =IFERROR(VLOOKUP($B$3,'BLG8CC-M'!$A$14:$CZ$500,11,FALSE),"") -> 0.42 | G47: =IFERROR(VLOOKUP($B$3,'FIAG8CC-M'!$A$14:$CZ$500,17,FALSE),"") -> 0.46 | H47: =IFERROR(VLOOKUP($B$3,'WIAG8CC-M'!$A$14:$CZ$500,13,FALSE),"") -> 0.58
A48: 3 | B48: Geometry and Measurement | C48: =SUM(C23:C27) -> 10 | D48: =SUM(D23:D27) -> 0 | E48: =SUM(E23:E27) -> 0 | F48: =IFERROR(VLOOKUP($B$3,'BLG8CC-M'!$A$14:$CZ$500,17,FALSE),"") -> 0.41
C49: =SUM(C44:C48) -> 34 | D49: =SUM(D44:D48) -> 40

Sheet Grade 8 MATH NGSSS
A1: Click here to return to the school and subject selection sheet
A2: Next Generation Sunshine State Standards Grade 8 Mathematics Benchmarks Assessed by the FCAT 2.0
A3: Reporting Categories | B3: Benchmarks | C3: Description
A4: Expression, Eq., & Functions | B4: MA.8.A.1.1 | C4: Create and interpret tables, graphs, and models to represent, analyze, and solve problems related to linear equations, including analysis of domain, range, and the difference between discrete and continuous data.
A5: Expression, Eq., & Functions | B5: MA.8.A.1.2 | C5: Interpret the slope and the x- and y-intercepts when graphing a linear equation for a real-world problem.
A6: Expression, Eq., & Functions | B6: MA.8.A.1.3 | C6: Use tables, graphs, and models to represent, analyze, and solve real-world problems related to systems of linear equations.
A7: Expression, Eq., & Functions | B7: MA.8.A.1.5 | C7: Translate among verbal, tabular, graphical, and algebraic representations of linear functions.
A8: Expression, Eq., & Functions | B8: MA.8.A.1.6 | C8: Compare the graphs of linear and non-linear functions for real-world situations.
A9: Geometry & Measurement | B9: MA.8.G.2.1 | C9: Use similar triangles to solve problems that include height and distances.
A10: Geometry & Measurement | B10: MA.8.G.2.2 | C10: Classify and determine the measure of angles, including angles created when parallel lines are cut by transversals.
A11: Geometry & Measurement | B11: MA.8.G.2.3 | C11: Demonstrate that the sum of the angles in a triangle is 180-degrees and apply this fact to find unknown measure of angles and the sum of angles in polygons.
A12: Geometry & Measurement | B12: MA.8.G.2.4 | C12: Validate and apply Pythagorean Theorem to find distances in real world situations or between points in the coordinate plane.
A13: Number: Oper., Prob., & Stat. | B13: MA.8.S.3.1 | C13: Select, organize and construct appropriate data displays, including box and whisker plots, scatter plots, and lines of best fit to convey information and make conjectures about possible relationships.
A14: Number: Oper., Prob., & Stat. | B14: MA.8.S.3.2 | C14: Determine and describe how changes in data values impact measures of central tendency.
A15: Expression, Eq., & Functions | B15: MA.8.A.4.1 | C15: Solve literal equations for a specified variable.
A16: Expression, Eq., & Functions | B16: MA.8.A.4.2 | C16: Solve and graph one- and two-step inequalities in one variable.
A17: Geometry & Measurement | B17: MA.8.G.5.1 | C17: Compare, contrast, and convert units of measure between different measurement systems (US customary or metric (SI)) and dimensions including temperature, area, volume, and derived units to solve problems.
A18: Number: Oper., Prob., & Stat. | B18: MA.8.A.6.1 | C18: Use exponents and scientific notation to write large and small numbers and vice versa and to solve problems.
A19: Number: Oper., Prob., & Stat. | B19: MA.8.A.6.2 | C19: Make reasonable approximations of square roots and mathematical expressions that include square roots, and use them to estimate solutions to problems and to compare mathematical expressions involving real numbers and radical expressions.
A20: Number: Oper., Prob., & Stat. | B20: MA.8.A.6.3 | C20: Simplify real number expressions using the laws of exponents.
A21: Number: Oper., Prob., & Stat. | B21: MA.8.A.6.4 | C21: Perform operations on real numbers (including integer exponents, radicals, percents, scientific notation, absolute value, rational numbers, and irrational numbers) using multi-step and real world problems.

Sheet Grade 8 Reading
A1: Direction: Click on "School Name" below then click on arrow key on the right to select a school. To see benchmark description, move the mouse over the benchmark code.
A2: Click here to return to the school and subject selection sheet
B3: =VALUE('Select School'!B3) -> 9999 | U3: =TEXT(B3,"0000") -> 9999
A4: 2011-12 Grade 8 Reading Benchmark Analysis Report
A5: Baseline, Fall Interim Assessment (Fall IA) and Winter Interim Assessment (Winter IA)
A6: =TEXT($B$3,"0000")&"-"&VLOOKUP(B3,SchList!$A$2:$B$499,2,FALSE) -> 9999-District
A7: Reporting Categories | B7: Bench-marks | C7: No. of Items | F7: Average % Correct
C8: Base- line | D8: Fall IA | E8: Winter IA | F8: Base- line | G8: Fall IA | H8: Winter IA
B9: No. of Tested | F9: =IFERROR(VLOOKUP($B$3,'BLG8CC-R'!$A$14:$BZ$500,3,FALSE),"") -> 24917 | G9: =IFERROR(VLOOKUP($B$3,'FIAG8CC-R'!$A$14:$BZ$500,3,FALSE),"") -> 25375 | H9: =IFERROR(VLOOKUP($B$3,'WIAG8CC-R'!$A$14:$BZ$500,3,FALSE),"") -> 24888
B10: LA.8.1.6.3 | C10: 2 | D10: 4 | E10: 4 | F10: =IFERROR(VLOOKUP($B$3,'BLG8BM-R'!$A$14:$CZ$500,7,FALSE),"") -> 0.59 | G10: =IFERROR(VLOOKUP($B$3,'FIAG8BM-R'!$A$14:$CZ$500,7,FALSE),"") -> 0.51 | H10: =IFERROR(VLOOKUP($B$3,'WIAG8BM-R'!$A$14:$CZ$500,7,FALSE),"") -> 0.59
B11: LA.8.1.6.8 | C11: 2 | D11: 4 | E11: 4 | F11: =IFERROR(VLOOKUP($B$3,'BLG8BM-R'!$A$14:$CZ$500,9,FALSE),"") -> 0.7 | G11: =IFERROR(VLOOKUP($B$3,'FIAG8BM-R'!$A$14:$CZ$500,9,FALSE),"") -> 0.62 | H11: =IFERROR(VLOOKUP($B$3,'WIAG8BM-R'!$A$14:$CZ$500,9,FALSE),"") -> 0.62
B12: LA.8.1.6.9 | C12: 2 | D12: 4 | E12: 3 | F12: =IFERROR(VLOOKUP($B$3,'BLG8BM-R'!$A$14:$CZ$500,11,FALSE),"") -> 0.59 | G12: =IFERROR(VLOOKUP($B$3,'FIAG8BM-R'!$A$14:$CZ$500,11,FALSE),"") -> 0.65 | H12: =IFERROR(VLOOKUP($B$3,'WIAG8BM-R'!$A$14:$CZ$500,11,FALSE),"") -> 0.6
B13: LA.8.1.7.2 | C13: 4 | D13: 5 | E13: 4 | F13: =IFERROR(VLOOKUP($B$3,'BLG8BM-R'!$A$14:$CZ$500,13,FALSE),"") -> 0.59 | G13: =IFERROR(VLOOKUP($B$3,'FIAG8BM-R'!$A$14:$CZ$500,13,FALSE),"") -> 0.65 | H13: =IFERROR(VLOOKUP($B$3,'WIAG8BM-R'!$A$14:$CZ$500,13,FALSE),"") -> 0.7
B14: LA.8.1.7.3 | C14: 4 | D14: 8 | E14: 4 | F14: =IFERROR(VLOOKUP($B$3,'BLG8BM-R'!$A$14:$CZ$500,15,FALSE),"") -> 0.5 | G14: =IFERROR(VLOOKUP($B$3,'FIAG8BM-R'!$A$14:$CZ$500,15,FALSE),"") -> 0.57 | H14: =IFERROR(VLOOKUP($B$3,'WIAG8BM-R'!$A$14:$CZ$500,15,FALSE),"") -> 0.66
B15: LA.8.1.7.4 | C15: 3 | D15: 5 | E15: 4 | F15: =IFERROR(VLOOKUP($B$3,'BLG8BM-R'!$A$14:$CZ$500,17,FALSE),"") -> 0.62 | G15: =IFERROR(VLOOKUP($B$3,'FIAG8BM-R'!$A$14:$CZ$500,17,FALSE),"") -> 0.59 | H15: =IFERROR(VLOOKUP($B$3,'WIAG8BM-R'!$A$14:$CZ$500,17,FALSE),"") -> 0.63
B16: LA.8.1.7.5 | C16: 2 | D16: 4 | E16: 3 | F16: =IFERROR(VLOOKUP($B$3,'BLG8BM-R'!$A$14:$CZ$500,19,FALSE),"") -> 0.43 | G16: =IFERROR(VLOOKUP($B$3,'FIAG8BM-R'!$A$14:$CZ$500,19,FALSE),"") -> 0.48 | H16: =IFERROR(VLOOKUP($B$3,'WIAG8BM-R'!$A$14:$CZ$500,19,FALSE),"") -> 0.62
B17: LA.8.1.7.7 | C17: 4 | D17: 4 | E17: 4 | F17: =IFERROR(VLOOKUP($B$3,'BLG8BM-R'!$A$14:$CZ$500,21,FALSE),"") -> 0.58 | G17: =IFERROR(VLOOKUP($B$3,'FIAG8BM-R'!$A$14:$CZ$500,21,FALSE),"") -> 0.57 | H17: =IFERROR(VLOOKUP($B$3,'WIAG8BM-R'!$A$14:$CZ$500,21,FALSE),"") -> 0.66
B18: LA.8.2.1.2 | C18: 3 | D18: 5 | E18: 4 | F18: =IFERROR(VLOOKUP($B$3,'BLG8BM-R'!$A$14:$CZ$500,23,FALSE),"") -> 0.53 | G18: =IFERROR(VLOOKUP($B$3,'FIAG8BM-R'!$A$14:$CZ$500,23,FALSE),"") -> 0.6 | H18: =IFERROR(VLOOKUP($B$3,'WIAG8BM-R'!$A$14:$CZ$500,23,FALSE),"") -> 0.76
B19: LA.8.2.1.7 | C19: 2 | D19: 2 | E19: 3 | F19: =IFERROR(VLOOKUP($B$3,'BLG8BM-R'!$A$14:$CZ$500,25,FALSE),"") -> 0.54 | G19: =IFERROR(VLOOKUP($B$3,'FIAG8BM-R'!$A$14:$CZ$500,25,FALSE),"") -> 0.59 | H19: =IFERROR(VLOOKUP($B$3,'WIAG8BM-R'!$A$14:$CZ$500,25,FALSE),"") -> 0.63
B20: LA.8.2.2.1 | C20: 1 | D20: 2 | E20: 3 | F20: =IFERROR(VLOOKUP($B$3,'BLG8BM-R'!$A$14:$CZ$500,27,FALSE),"") -> 0.3 | G20: =IFERROR(VLOOKUP($B$3,'FIAG8BM-R'!$A$14:$CZ$500,27,FALSE),"") -> 0.4 | H20: =IFERROR(VLOOKUP($B$3,'WIAG8BM-R'!$A$14:$CZ$500,27,FALSE),"") -> 0.37
B21: LA.8.6.1.1 | C21: 2 | D21: 8 | E21: 2 | F21: =IFERROR(VLOOKUP($B$3,'BLG8BM-R'!$A$14:$CZ$500,29,FALSE),"") -> 0.42 | G21: =IFERROR(VLOOKUP($B$3,'FIAG8BM-R'!$A$14:$CZ$500,29,FALSE),"") -> 0.51 | H21: =IFERROR(VLOOKUP($B$3,'WIAG8BM-R'!$A$14:$CZ$500,29,FALSE),"") -> 0.73
B22: LA.8.6.2.2 | C22: 2 | D22: 6 | E22: 6 | F22: =IFERROR(VLOOKUP($B$3,'BLG8BM-R'!$A$14:$CZ$500,31,FALSE),"") -> 0.61 | G22: =IFERROR(VLOOKUP($B$3,'FIAG8BM-R'!$A$14:$CZ$500,31,FALSE),"") -> 0.61 | H22: =IFERROR(VLOOKUP($B$3,'WIAG8BM-R'!$A$14:$CZ$500,31,FALSE),"") -> 0.59
A23: All Benchmarks | C23: =SUM(C10:C22) -> 33 | D23: =SUM(D10:D22) -> 61 | E23: =SUM(E10:E22) -> 48 | F23: =IFERROR(VLOOKUP($B$3,'BLG8CC-R'!$A$14:$CZ$500,5,FALSE),"") -> 0.55 | G23: =IFERROR(VLOOKUP($B$3,'FIAG8CC-R'!$A$14:$CZ$500,5,FALSE),"") -> 0.57 | H23: =IFERROR(VLOOKUP($B$3,'WIAG8CC-R'!$A$14:$CZ$500,5,FALSE),"") -> 0.63
A39: Reporting Categories | C39: Number of Items | F39: Average % Correct | I39: % of Students at or above Proficiency Level (70%)
C40: BL | D40: Fall IA | E40: Winter IA | F40: BL | G40: Fall IA | H40: Winter IA | I40: BL | J40: Fall IA | K40: Winter IA
A41: 1 | B41: Vocabulary | C41: =SUM(C10:C12) -> 6 | D41: =SUM(D10:D12) -> 12 | E41: =SUM(E10:E12) -> 11 | F41: =IFERROR(VLOOKUP($B$3,'BLG8CC-R'!$A$14:$BZ$500,11,FALSE),"") -> 0.63 | G41: =IFERROR(VLOOKUP($B$3,'FIAG8CC-R'!$A$14:$BZ$500,13,FALSE),"") -> 0.6 | H41: =IFERROR(VLOOKUP($B$3,'WIAG8CC-R'!$A$14:$BZ$500,13,FALSE),"") -> 0.61 | K41: =IFERROR(VALUE(VLOOKUP($B$3,'WIAG8CC-R'!$A$14:$CZ$500,9,FALSE)),"") -> 0.3772
A42: 2 | B42: Reading Application | C42: =SUM(C13:C17) -> 17 | D42: =SUM(D13:D17) -> 26 | E42: =SUM(E13:E17) -> 19 | F42: =IFERROR(VLOOKUP($B$3,'BLG8CC-R'!$A$14:$BZ$500,17,FALSE),"") -> 0.55 | G42: =IFERROR(VLOOKUP($B$3,'FIAG8CC-R'!$A$14:$BZ$500,17,FALSE),"") -> 0.57 | H42: =IFERROR(VLOOKUP($B$3,'WIAG8CC-R'!$A$14:$BZ$500,17,FALSE),"") -> 0.65
A43: 3 | B43: Literary Analysis-Fiction/NonFiction | C43: =SUM(C18:C20) -> 6 | D43: =SUM(D18:D20) -> 9 | E43: =SUM(E18:E20) -> 10 | F43: =IFERROR(VLOOKUP($B$3,'BLG8CC-R'!$A$14:$BZ$500,23,FALSE),"") -> 0.5 | G43: =IFERROR(VLOOKUP($B$3,'FIAG8CC-R'!$A$14:$BZ$500,21,FALSE),"") -> 0.56 | H43: =IFERROR(VLOOKUP($B$3,'WIAG8CC-R'!$A$14:$BZ$500,21,FALSE),"") -> 0.61
A44: 4 | B44: Informational Text/Research Process | C44: =SUM(C21:C22) -> 4 | D44: =SUM(D21:D22) -> 14 | E44: =SUM(E21:E22) -> 8 | F44: =IFERROR(VLOOKUP($B$3,'BLG8CC-R'!$A$14:$BZ$500,29,FALSE),"") -> 0.51 | G44: =IFERROR(VLOOKUP($B$3,'FIAG8CC-R'!$A$14:$BZ$500,25,FALSE),"") -> 0.55 | H44: =IFERROR(VLOOKUP($B$3,'WIAG8CC-R'!$A$14:$BZ$500,25,FALSE),"") -> 0.63
C45: =SUM(C40:C44) -> 33 | D45: =SUM(D40:D44) -> 61

Sheet Grade 8 Reading NGSSS
A1: Click here to return to the school and subject selection sheet
A2: Next Generation Sunshine State Standards Grade 8 Reading Benchmarks Assessed by the FCAT 2.0
A3: Reporting Categories | B3: Benchmarks | C3: Description
A4: Vocabulary | B4: LA.8.1.6.3 | C4: The student will use context clues to determine meanings of unfamiliar words.
A5: Vocabulary | B5: LA.8.1.6.7 | C5: The student will identify and understand the meaning of conceptually advanced prefixes, suffixes, and root words.
A6: Vocabulary | B6: LA.8.1.6.8 | C6: The student will identify advanced word/phrase relationships and their meanings.
A7: Vocabulary | B7: LA.8.1.6.9 | C7: The student will determine the correct meaning of words with multiple meanings in context.
A8: Reading Application | B8: LA.8.1.7.2 | C8: The student will analyze the author's purpose and/or perspective in a variety of texts and understand how they affect meaning.
A9: Reading Application | B9: LA.8.1.7.3 | C9: The student will determine the main idea or essential message in grade-level or higher texts through inferring, paraphrasing, summarizing, and identifying relevant details.
A10: Reading Application | B10: LA.8.1.7.4 | C10: The student will identify cause-and-effect relationships in text.
A11: Reading Application | B11: LA.8.1.7.5 | C11: The student will analyze a variety of text structures (e.g., comparison/contrast, cause/effect, chronological order, argument/support, lists) and text features (main headings with subheadings) and explain their impact on meaning in text.
A12: Reading Application | B12: LA.8.1.7.7 | C12: The student will compare and contrast elements in multiple texts (e.g., setting, characters, problems).
A13: Literary Analysis- Fiction/Nonfiction | B13: LA.8.2.1.2 | C13: The student will locate and analyze elements of characterization, setting, and plot, including rising action, conflict, resolution, theme, and other literary elements as appropriate in a variety of fiction.
A14: Literary Analysis- Fiction/Nonfiction | B14: LA.8.2.1.7 | C14: The student will locate and analyze an author's use of allusions and descriptive, idiomatic, and figurative language in a variety of literary text, identifying how word choice is used to appeal to the reader's senses and emotions, providing evidence from text to support the analysis.
A15: Literary Analysis- Fiction/Nonfiction | B15: LA.8.2.2.1 | C15: The student will locate, use, and analyze specific information from organizational text features (e.g., table of contents, headings, captions, bold print, italics, glossaries, indices, key/guide words).
A16: Informational Text/Research Process | B16: LA.8.6.1.1 | C16: The student will explain how text features (e.g., charts, maps, diagrams, sub-headings, captions, illustrations, graphs) aid the reader's understanding.
A17: Informational Text/Research Process | B17: LA.8.6.2.2 | C17: The student will assess, organize, synthesize, and evaluate the validity and reliability of information in text, using a variety of techniques by examining several sources of information, including both primary and secondary sources.

Sheet Grade 8 Science
A1: Direction: Click on "School Name" below then click on arrow key on the right to select a school. To see benchmark description, move the mouse over the benchmark code.
A2: Click here to return to the school and subject selection sheet
B3: =VALUE('Select School'!B3) -> 9999 | U3: =TEXT(B3,"0000") -> 9999
A4: 2011-12 Grade 8 Science Benchmark Analysis Report
A5: Baseline, Fall Interim Assessment (Fall IA) and Winter Interim Assessment (Winter IA)
A6: =TEXT($B$3,"0000")&"-"&VLOOKUP(B3,SchList!$A$2:$B$499,2,FALSE) -> 9999-District
A7: Reporting Categories | B7: Bench-marks | C7: No. of Items | F7: Average % Correct
C8: Base- line | D8: Fall IA | E8: Winter IA | F8: Base- line | G8: Fall IA | H8: Winter IA
B9: No. of Tested | F9: =IFERROR(VLOOKUP($B$3,'BLG8CC-S'!$A$14:$BZ$500,3,FALSE),"") -> 24579 | G9: =IFERROR(VLOOKUP($B$3,'FIAG8CC-S'!$A$14:$BZ$500,3,FALSE),"") -> 25023 | H9: =IFERROR(VLOOKUP($B$3,'WIAG8CC-S'!$A$14:$BZ$500,3,FALSE),"") -> 23252
B10: SC.6.N.2.2 | C10: 2 | D10: 2 | E10: 2 | F10: =IFERROR(VLOOKUP($B$3,'BLG8BM-S'!$A$14:$FZ$500,7,FALSE),"") -> 0.37 | G10: =IFERROR(VLOOKUP($B$3,'FIAG8BM-S'!$A$14:$FZ$500,7,FALSE),"") -> 0.54 | H10: =IFERROR(VLOOKUP($B$3,'WIAG8BM-S'!$A$14:$GH$500,9,FALSE),"") -> 0.68
B11: SC.7.N.1.2 | C11: 2 | D11: 2 | E11: 2 | F11: =IFERROR(VLOOKUP($B$3,'BLG8BM-S'!$A$14:$FZ$500,33,FALSE),"") -> 0.33 | G11: =IFERROR(VLOOKUP($B$3,'FIAG8BM-S'!$A$14:$FZ$500,31,FALSE),"") -> 0.29 | H11: =IFERROR(VLOOKUP($B$3,'WIAG8BM-S'!$A$14:$GH$500,33,FALSE),"") -> 0.44
B12: SC.7.N.1.5 | C12: 3 | D12: 2 | E12: 2 | F12: =IFERROR(VLOOKUP($B$3,'BLG8BM-S'!$A$14:$FZ$500,39,FALSE),"") -> 0.54 | G12: =IFERROR(VLOOKUP($B$3,'FIAG8BM-S'!$A$14:$FZ$500,35,FALSE),"") -> 0.48 | H12: =IFERROR(VLOOKUP($B$3,'WIAG8BM-S'!$A$14:$GH$500,35,FALSE),"") -> 0.6
B13: SC.7.N.3.1 | C13: 2 | D13: 2 | E13: 2 | F13: =IFERROR(VLOOKUP($B$3,'BLG8BM-S'!$A$14:$FZ$500,43,FALSE),"") -> 0.39 | G13: =IFERROR(VLOOKUP($B$3,'FIAG8BM-S'!$A$14:$FZ$500,39,FALSE),"") -> 0.43 | H13: =IFERROR(VLOOKUP($B$3,'WIAG8BM-S'!$A$14:$GH$500,41,FALSE),"") -> 0.28
B14: SC.8.N.1.1 | C14: 3 | D14: 3 | E14: 3 | F14: =IFERROR(VLOOKUP($B$3,'BLG8BM-S'!$A$14:$FZ$500,81,FALSE),"") -> 0.3 | G14: =IFERROR(VLOOKUP($B$3,'FIAG8BM-S'!$A$14:$FZ$500,75,FALSE),"") -> 0.33 | H14: =IFERROR(VLOOKUP($B$3,'WIAG8BM-S'!$A$14:$GH$500,69,FALSE),"") -> 0.44
B15: SC.6.E.7.4 | C15: 2 | D15: 2 | E15: 2 | F15: =IFERROR(VLOOKUP($B$3,'BLG8BM-S'!$A$14:$FZ$500,13,FALSE),"") -> 0.49 | G15: =IFERROR(VLOOKUP($B$3,'FIAG8BM-S'!$A$14:$FZ$500,11,FALSE),"") -> 0.33 | H15: =IFERROR(VLOOKUP($B$3,'WIAG8BM-S'!$A$14:$GH$500,13,FALSE),"") -> 0.58
B16: SC.6.E.7.5 | C16: 2 | D16: 2 | E16: 2 | F16: =IFERROR(VLOOKUP($B$3,'BLG8BM-S'!$A$14:$FZ$500,15,FALSE),"") -> 0.44 | G16: =IFERROR(VLOOKUP($B$3,'FIAG8BM-S'!$A$14:$FZ$500,13,FALSE),"") -> 0.23 | H16: =IFERROR(VLOOKUP($B$3,'WIAG8BM-S'!$A$14:$GH$500,15,FALSE),"") -> 0.46
B17: SC.7.E.6.2 | C17: 2 | D17: 2 | E17: 2 | F17: =IFERROR(VLOOKUP($B$3,'BLG8BM-S'!$A$14:$FZ$500,47,FALSE),"") -> 0.42 | G17: =IFERROR(VLOOKUP($B$3,'FIAG8BM-S'!$A$14:$FZ$500,43,FALSE),"") -> 0.53 | H17: =IFERROR(VLOOKUP($B$3,'WIAG8BM-S'!$A$14:$GH$500,43,FALSE),"") -> 0.51
B18: SC.7.E.6.4 | C18: 2 | D18: 2 | E18: 2 | F18: =IFERROR(VLOOKUP($B$3,'BLG8BM-S'!$A$14:$FZ$500,49,FALSE),"") -> 0.54 | G18: =IFERROR(VLOOKUP($B$3,'FIAG8BM-S'!$A$14:$FZ$500,47,FALSE),"") -> 0.44 | H18: =IFERROR(VLOOKUP($B$3,'WIAG8BM-S'!$A$14:$GH$500,45,FALSE),"") -> 0.71
B19: SC.7.E.6.5 | C19: 2 | D19: 2 | E19: 2 | F19: =IFERROR(VLOOKUP($B$3,'BLG8BM-S'!$A$14:$FZ$500,51,FALSE),"") -> 0.36 | G19: =IFERROR(VLOOKUP($B$3,'FIAG8BM-S'!$A$14:$FZ$500,49,FALSE),"") -> 0.37 | H19: =IFERROR(VLOOKUP($B$3,'WIAG8BM-S'!$A$14:$GH$500,47,FALSE),"") -> 0.48
B20: SC.8.E.5.3 | C20: 3 | D20: 3 | E20: 3 | F20: =IFERROR(VLOOKUP($B$3,'BLG8BM-S'!$A$14:$FZ$500,89,FALSE),"") -> 0.51 | G20: =IFERROR(VLOOKUP($B$3,'FIAG8BM-S'!$A$14:$FZ$500,79,FALSE),"") -> 0.51 | H20: =IFERROR(VLOOKUP($B$3,'WIAG8BM-S'!$A$14:$GH$500,73,FALSE),"") -> 0.51
B21: SC.8.E.5.5 | C21: 3 | D21: 3 | E21: 3 | F21: =IFERROR(VLOOKUP($B$3,'BLG8BM-S'!$A$14:$FZ$500,91,FALSE),"") -> 0.35 | G21: =IFERROR(VLOOKUP($B$3,'FIAG8BM-S'!$A$14:$FZ$500,81,FALSE),"") -> 0.46 | H21: =IFERROR(VLOOKUP($B$3,'WIAG8BM-S'!$A$14:$GH$500,75,FALSE),"") -> 0.44
B22: SC.8.E.5.7 | C22: 3 | D22: 3 | E22: 3 | F22: =IFERROR(VLOOKUP($B$3,'BLG8BM-S'!$A$14:$FZ$500,93,FALSE),"") -> 0.36 | G22: =IFERROR(VLOOKUP($B$3,'FIAG8BM-S'!$A$14:$FZ$500,83,FALSE),"") -> 0.43 | H22: =IFERROR(VLOOKUP($B$3,'WIAG8BM-S'!$A$14:$GH$500,77,FALSE),"") -> 0.49
B23: SC.8.E.5.9 | C23: 3 | D23: 3 | E23: 3 | F23: =IFERROR(VLOOKUP($B$3,'BLG8BM-S'!$A$14:$FZ$500,95,FALSE),"") -> 0.34 | G23: =IFERROR(VLOOKUP($B$3,'FIAG8BM-S'!$A$14:$FZ$500,85,FALSE),"") -> 0.47 | H23: =IFERROR(VLOOKUP($B$3,'WIAG8BM-S'!$A$14:$GH$500,79,FALSE),"") -> 0.44
B24: SC.6.P.13.1 | C24: 1 | D24: 2 | E24: 2 | F24: =IFERROR(VLOOKUP($B$3,'BLG8BM-S'!$A$14:$FZ$500,19,FALSE),"") -> 0.45 | G24: =IFERROR(VLOOKUP($B$3,'FIAG8BM-S'!$A$14:$FZ$500,15,FALSE),"") -> 0.42 | H24: =IFERROR(VLOOKUP($B$3,'WIAG8BM-S'!$A$14:$GH$500,17,FALSE),"") -> 0.57
B25: SC.6.P.13.3 | C25: 3 | D25: 2 | E25: 2 | F25: =IFERROR(VLOOKUP($B$3,'BLG8BM-S'!$A$14:$FZ$500,21,FALSE),"") -> 0.47 | G25: =IFERROR(VLOOKUP($B$3,'FIAG8BM-S'!$A$14:$FZ$500,19,FALSE),"") -> 0.52 | H25: =IFERROR(VLOOKUP($B$3,'WIAG8BM-S'!$A$14:$GH$500,21,FALSE),"") -> 0.71
B26: SC.7.P.10.1 | C26: 2 | D26: 2 | E26: 2 | F26: =IFERROR(VLOOKUP($B$3,'BLG8BM-S'!$A$14:$FZ$500,53,FALSE),"") -> 0.38 | G26: =IFERROR(VLOOKUP($B$3,'FIAG8BM-S'!$A$14:$FZ$500,53,FALSE),"") -> 0.55 | H26: =IFERROR(VLOOKUP($B$3,'WIAG8BM-S'!$A$14:$GH$500,51,FALSE),"") -> 0.3
B27: SC.7.P.10.3 | C27: 2 | D27: 2 | E27: 2 | F27: =IFERROR(VLOOKUP($B$3,'BLG8BM-S'!$A$14:$FZ$500,57,FALSE),"") -> 0.39 | G27: =IFERROR(VLOOKUP($B$3,'FIAG8BM-S'!$A$14:$FZ$500,55,FALSE),"") -> 0.36 | H27: =IFERROR(VLOOKUP($B$3,'WIAG8BM-S'!$A$14:$GH$500,53,FALSE),"") -> 0.38
B28: SC.7.P.11.2 | C28: 2 | D28: 2 | E28: 2 | F28: =IFERROR(VLOOKUP($B$3,'BLG8BM-S'!$A$14:$FZ$500,61,FALSE),"") -> 0.27 | G28: =IFERROR(VLOOKUP($B$3,'FIAG8BM-S'!$A$14:$FZ$500,59,FALSE),"") -> 0.5 | H28: =IFERROR(VLOOKUP($B$3,'WIAG8BM-S'!$A$14:$GH$500,57,FALSE),"") -> 0.37
B29: SC.7.P.11.4 | C29: 2 | D29: 2 | E29: 2 | F29: =IFERROR(VLOOKUP($B$3,'BLG8BM-S'!$A$14:$FZ$500,63,FALSE),"") -> 0.36 | G29: =IFERROR(VLOOKUP($B$3,'FIAG8BM-S'!$A$14:$FZ$500,63,FALSE),"") -> 0.37 | H29: =IFERROR(VLOOKUP($B$3,'WIAG8BM-S'!$A$14:$GH$500,59,FALSE),"") -> 0.41
B30: SC.8.P.8.4 | C30: 3 | D30: 3 | E30: 3 | F30: =IFERROR(VLOOKUP($B$3,'BLG8BM-S'!$A$14:$FZ$500,103,FALSE),"") -> 0.36 | G30: =IFERROR(VLOOKUP($B$3,'FIAG8BM-S'!$A$14:$FZ$500,91,FALSE),"") -> 0.27 | H30: =IFERROR(VLOOKUP($B$3,'WIAG8BM-S'!$A$14:$GH$500,83,FALSE),"") -> 0.36
B31: SC.8.P.8.5 | C31: 3 | D31: 3 | E31: 3 | F31: =IFERROR(VLOOKUP($B$3,'BLG8BM-S'!$A$14:$FZ$500,105,FALSE),"") -> 0.37 | G31: =IFERROR(VLOOKUP($B$3,'FIAG8BM-S'!$A$14:$FZ$500,93,FALSE),"") -> 0.49 | H31: =IFERROR(VLOOKUP($B$3,'WIAG8BM-S'!$A$14:$GH$500,85,FALSE),"") -> 0.42
B32: SC.8.P.9.2 | C32: 3 | D32: 3 | E32: 3 | F32: =IFERROR(VLOOKUP($B$3,'BLG8BM-S'!$A$14:$FZ$500,109,FALSE),"") -> 0.42 | G32: =IFERROR(VLOOKUP($B$3,'FIAG8BM-S'!$A$14:$FZ$500,95,FALSE),"") -> 0.49 | H32: =IFERROR(VLOOKUP($B$3,'WIAG8BM-S'!$A$14:$GH$500,89,FALSE),"") -> 0.65
B33: SC.6.L.14.1 | C33: 2 | D33: 2 | E33: 2 | F33: =IFERROR(VLOOKUP($B$3,'BLG8BM-S'!$A$14:$FZ$500,23,FALSE),"") -> 0.62 | G33: =IFERROR(VLOOKUP($B$3,'FIAG8BM-S'!$A$14:$FZ$500,21,FALSE),"") -> 0.64 | H33: =IFERROR(VLOOKUP($B$3,'WIAG8BM-S'!$A$14:$GH$500,23,FALSE),"") -> 0.48
B34: SC.6.L.14.2 | C34: 2 | D34: 2 | E34: 2 | F34: =IFERROR(VLOOKUP($B$3,'BLG8BM-S'!$A$14:$FZ$500,25,FALSE),"") -> 0.41 | G34: =IFERROR(VLOOKUP($B$3,'FIAG8BM-S'!$A$14:$FZ$500,23,FALSE),"") -> 0.34 | H34: =IFERROR(VLOOKUP($B$3,'WIAG8BM-S'!$A$14:$GH$500,25,FALSE),"") -> 0.34
B35: SC.6.L.14.4 | C35: 2 | D35: 2 | E35: 2 | F35: =IFERROR(VLOOKUP($B$3,'BLG8BM-S'!$A$14:$FZ$500,27,FALSE),"") -> 0.48 | G35: =IFERROR(VLOOKUP($B$3,'FIAG8BM-S'!$A$14:$FZ$500,25,FALSE),"") -> 0.41 | H35: =IFERROR(VLOOKUP($B$3,'WIAG8BM-S'!$A$14:$GH$500,27,FALSE),"") -> 0.46
B36: SC.6.L.14.5 | C36: 2 | D36: 2 | E36: 2 | F36: =IFERROR(VLOOKUP($B$3,'BLG8BM-S'!$A$14:$FZ$500,29,FALSE),"") -> 0.33 | G36: =IFERROR(VLOOKUP($B$3,'FIAG8BM-S'!$A$14:$FZ$500,27,FALSE),"") -> 0.59 | H36: =IFERROR(VLOOKUP($B$3,'WIAG8BM-S'!$A$14:$GH$500,29,FALSE),"") -> 0.57
B37: SC.6.L.15.1 | C37: 2 | D37: 2 | E37: 2 | F37: =IFERROR(VLOOKUP($B$3,'BLG8BM-S'!$A$14:$FZ$500,31,FALSE),"") -> 0.25 | G37: =IFERROR(VLOOKUP($B$3,'FIAG8BM-S'!$A$14:$FZ$500,29,FALSE),"") -> 0.54 | H37: =IFERROR(VLOOKUP($B$3,'WIAG8BM-S'!$A$14:$GH$500,31,FALSE),"") -> 0.18
B38: SC.7.L.15.2 | C38: 2 | D38: 2 | E38: 2 | F38: =IFERROR(VLOOKUP($B$3,'BLG8BM-S'!$A$14:$FZ$500,67,FALSE),"") -> 0.48 | G38: =IFERROR(VLOOKUP($B$3,'FIAG8BM-S'!$A$14:$FZ$500,67,FALSE),"") -> 0.38 | H38: =IFERROR(VLOOKUP($B$3,'WIAG8BM-S'!$A$14:$GH$500,61,FALSE),"") -> 0.6
B39: SC.7.L.16.1 | C39: 2 | D39: 2 | E39: 2 | F39: =IFERROR(VLOOKUP($B$3,'BLG8BM-S'!$A$14:$FZ$500,71,FALSE),"") -> 0.3 | G39: =IFERROR(VLOOKUP($B$3,'FIAG8BM-S'!$A$14:$FZ$500,69,FALSE),"") -> 0.41 | H39: =IFERROR(VLOOKUP($B$3,'WIAG8BM-S'!$A$14:$GH$500,65,FALSE),"") -> 0.7
B40: SC.7.L.17.2 | C40: 2 | D40: 2 | E40: 2 | F40: =IFERROR(VLOOKUP($B$3,'BLG8BM-S'!$A$14:$FZ$500,77,FALSE),"") -> 0.41 | G40: =IFERROR(VLOOKUP($B$3,'FIAG8BM-S'!$A$14:$FZ$500,73,FALSE),"") -> 0.4 | H40: =IFERROR(VLOOKUP($B$3,'WIAG8BM-S'!$A$14:$GH$500,67,FALSE),"") -> 0.37
B41: SC.8.L.18.4 | C41: 3 | D41: 3 | E41: 3 | F41: =IFERROR(VLOOKUP($B$3,'BLG8BM-S'!$A$14:$FZ$500,113,FALSE),"") -> 0.28 | G41: =IFERROR(VLOOKUP($B$3,'FIAG8BM-S'!$A$14:$FZ$500,101,FALSE),"") -> 0.35 | H41: =IFERROR(VLOOKUP($B$3,'WIAG8BM-S'!$A$14:$GH$500,93,FALSE),"") -> 0.61
A42: All Benchmarks | C42: =SUM(C9:C41) -> 74 | D42: =SUM(D9:D41) -> 73 | E42: =SUM(E9:E41) -> 73 | F42: =IFERROR(VLOOKUP($B$3,'BLG8CC-S'!$A$14:$FZ$500,5,FALSE),"") -> 0.4 | G42: =IFERROR(VLOOKUP($B$3,'FIAG8CC-S'!$A$14:$FZ$500,5,FALSE),"") -> 0.43 | H42: =IFERROR(VLOOKUP($B$3,'WIAG8CC-S'!$A$14:$FZ$500,5,FALSE),"") -> 0.49
A43: Q1 BM Shaded in Blue | C43: =SUM(C10:C11,C13:C14,C24,C30,C32) -> 16 | D43: =SUM(D10:D11,D13:D14,D24,D30,D32) -> 17 | E43: =SUM(E11,E13:E14,E20:E21,E30:E32,E41) -> 25 | F43: =IFERROR(VLOOKUP($B$3,'BLG8BM-S'!$A$14:$FZ$500,115,FALSE),"") -> 0.3687499966 | G43: =IFERROR(VLOOKUP($B$3,'FIAG8CC-S'!$A$14:$FZ$500,35,FALSE),"") -> 0.39 | H43: =IFERROR(VLOOKUP($B$3,'WIAG8BM-S'!$A$14:$GH$500,95,FALSE),"") -> 0.4294117619
A44: Q2 BM Shaded in Green | C44: 25 | D44: 17 | E44: 25 | F44: =IFERROR(VLOOKUP($B$3,'BLG8BM-S'!$A$14:$FZ$500,117,FALSE),"") -> 0.3720000005 | G44: =IFERROR(VLOOKUP($B$3,'FIAG8BM-S'!$A$14:$FZ$500,105,FALSE),"") -> 0.4079999995 | H44: =IFERROR(VLOOKUP($B$3,'WIAG8CC-S'!$A$14:$FZ$500,35,FALSE),"") -> 0.47
A60: Reporting Categories | C60: Number of Items | F60: Average % Correct | I60: % of Students at or above Proficiency Level (70%)
C61: BL | D61: Fall IA | E61: Winter IA | F61: BL | G61: Fall IA | H61: Winter IA | I61: BL | J61: Fall IA | K61: Winter IA
A62: 1 | B62: Nature of Science | C62: =SUM(C10:C14) -> 12 | D62: =SUM(D10:D14) -> 11 | E62: =SUM(E10:E14) -> 11 | F62: =IFERROR(VLOOKUP($B$3,'BLG8CC-S'!$A$14:$BZ$500,11,FALSE),"") -> 0.39 | G62: =IFERROR(VLOOKUP($B$3,'FIAG8CC-S'!$A$14:$BZ$500,11,FALSE),"") -> 0.4 | H62: =IFERROR(VLOOKUP($B$3,'WIAG8CC-S'!$A$14:$BZ$500,11,FALSE),"") -> 0.48 | K62: =IFERROR(VALUE(VLOOKUP($B$3,'WIAG8CC-S'!$A$14:$AA$500,11,FALSE)),"") -> 0.48
A63: 2 | B63: Earth & Space Science | C63: =SUM(C15:C23) -> 22 | D63: =SUM(D15:D23) -> 22 | E63: =SUM(E15:E23) -> 22 | F63: =IFERROR(VLOOKUP($B$3,'BLG8CC-S'!$A$14:$BZ$500,17,FALSE),"") -> 0.42 | G63: =IFERROR(VLOOKUP($B$3,'FIAG8CC-S'!$A$14:$BZ$500,17,FALSE),"") -> 0.43 | H63: =IFERROR(VLOOKUP($B$3,'WIAG8CC-S'!$A$14:$BZ$500,17,FALSE),"") -> 0.51
A64: 3 | B64: Physical Science | C64: =SUM(C24:C32) -> 21 | D64: =SUM(D24:D32) -> 21 | E64: =SUM(E24:E32) -> 21 | F64: =IFERROR(VLOOKUP($B$3,'BLG8CC-S'!$A$14:$BZ$500,23,FALSE),"") -> 0.39 | G64: =IFERROR(VLOOKUP($B$3,'FIAG8CC-S'!$A$14:$BZ$500,23,FALSE),"") -> 0.44 | H64: =IFERROR(VLOOKUP($B$3,'WIAG8CC-S'!$A$14:$BZ$500,23,FALSE),"") -> 0.47
A65: 4 | B65: Life Science | C65: =SUM(C33:C41) -> 19 | D65: =SUM(D33:D41) -> 19 | E65: =SUM(E33:E41) -> 19 | F65: =IFERROR(VLOOKUP($B$3,'BLG8CC-S'!$A$14:$BZ$500,29,FALSE),"") -> 0.39 | G65: =IFERROR(VLOOKUP($B$3,'FIAG8CC-S'!$A$14:$BZ$500,29,FALSE),"") -> 0.44 | H65: =IFERROR(VLOOKUP($B$3,'WIAG8CC-S'!$A$14:$BZ$500,29,FALSE),"") -> 0.49
B66: Total | C66: =SUM(C62:C65) -> 74 | D66: =SUM(D62:D65) -> 73

Sheet Grade 8 SCIENCE NGSSS
A1: Click here to return to the school and subject selection sheet
A2: Next Generation Sunshine State Standards Grade 8 Science Benchmarks Assessed by the FCAT 2.0
A3: Reporting Categories | B3: Benchmarks | C3: Description
A4: The Nature of Science | B4: SC.8.N.1.1 | C4: SC.8.N.1.1 Define a problem from the eighth grade curriculum using appropriate reference materials to support scientific understanding, plan and carry out scientific investigations of various types, such as systematic observations or experiments, identify variables, collect and organize data, interpret data in charts, tables, and graphics, analyze information, make predictions, and defend conclusions. (Also assesses SC.6.N.1.1, SC.6.N.1.3, SC.7.N.1.1, SC.7.N.1.3, SC.7.N.1.4, SC.8.N.1.3, and SC.8.N.1.4.)
A5: The Nature of Science | B5: SC.6.N.1.1 | C5: SC.6.N.1.1 Define a problem from the sixth grade curriculum, use appropriate reference materials to support scientific understanding, plan and carry out scientific investigation of various types, such as systematic observations or experiments, identify variables, collect and organize data, interpret data in charts, tables, and graphics, analyze information, make predictions, and defend conclusions.
A6: The Nature of Science | B6: SC.6.N.1.3 | C6: SC.6.N.1.3 Explain the difference between an experiment and other types of scientific investigation, and explain the relative benefits and limitations of each.
A7: The Nature of Science | B7: SC.7.N.1.1 | C7: SC.7.N.1.1 Define a problem from the seventh grade curriculum, use appropriate reference materials to support scientific understanding, plan and carry out scientific investigation of various types, such as systematic observations or experiments, identify variables, collect and organize data, interpret data in charts, tables, and graphics, analyze information, make predictions, and defend conclusions.
A8: The Nature of Science | B8: SC.7.N.1.3 | C8: SC.7.N.1.3 Distinguish between an experiment (which must involve the identification and control of variables) and other forms of scientific investigation and explain that not all scientific knowledge is derived from experimentation.
A9: The Nature of Science | B9: SC.7.N.1.4 | C9: SC.7.N.1.4 Identify test variables (independent variables) and outcome variables (dependent variables) in an experiment.
A10: The Nature of Science | B10: SC.8.N.1.3 | C10: SC.8.N.1.3 Use phrases such as “results support” or “fail to support” in science, understanding that science does not offer conclusive ‘proof’ of a knowledge claim.
A11: The Nature of Science | B11: SC.8.N.1.4 | C11: SC.8.N.1.4 Explain how hypotheses are valuable if they lead to further investigations, even if they turn out not to be supported by the data.
A12: The Nature of Science | B12: SC.7.N.1.2 | C12: SC.7.N.1.2 Differentiate replication (by others) from repetition (multiple trials). (Also assesses SC.6.N.1.2, SC.6.N.1.4, and SC.8.N.1.2.)
A13: The Nature of Science | B13: SC.6.N.1.2 | C13: SC.6.N.1.2 Explain why scientific investigations should be replicable.
A14: The Nature of Science | B14: SC.6.N.1.4 | C14: SC.6.N.1.4 Discuss, compare, and negotiate methods used, results obtained, and explanations among groups of students conducting the same investigation.
A15: The Nature of Science | B15: SC.8.N.1.2 | C15: SC.8.N.1.2 Design and conduct a study using repeated trials and replication.
A16: The Nature of Science | B16: SC.7.N.1.5 | C16: SC.7.N.1.5 Describe the methods used in the pursuit of a scientific explanation as seen in different fields of science such as biology, geology, and physics. (Also assesses SC.7.N.3.2, SC.8.N.1.5, and SC.8.E.5.10.)
A17: The Nature of Science | B17: SC.7.N.3.2 | C17: SC.7.N.3.2 Identify the benefits and limitations of the use of scientific models.
A18: The Nature of Science | B18: SC.8.N.1.5 | C18: SC.8.N.1.5 Analyze the methods used to develop a scientific explanation as seen in different fields of science.
A19: The Nature of Science | B19: SC.8.E.5.10 | C19: SC.8.E.5.10 Assess how technology is essential to science for such purposes as access to outer space and other remote locations, sample collection, measurement, data collection and storage, computation, and communication of information.
A20: The Nature of Science | B20: SC.6.N.2.2 | C20: SC.6.N.2.2 Explain that scientific knowledge is durable because it is open to change as new evidence or interpretations are encountered. (Also assesses SC.7.N.1.6, SC.7.N.1.7, SC.7.N.2.1, and SC.8.N.1.6.)
A21: The Nature of Science | B21: SC.7.N.1.6 | C21: SC.7.N.1.6 Explain that empirical evidence is the cumulative body of observations of a natural phenomenon on which scientific explanations are based.
A22: The Nature of Science | B22: SC.7.N.1.7 | C22: SC.7.N.1.7 Explain that scientific knowledge is the result of a great deal of debate and confirmation within the science community.
A23: The Nature of Science | B23: SC.7.N.2.1 | C23: SC.7.N.2.1 Identify an instance from the history of science in which scientific knowledge has changed when new evidence or new interpretations are encountered.
A24: The Nature of Science | B24: SC.8.N.1.6 | C24: SC.8.N.1.6 Understand that scientific investigations involve the collection of relevant empirical evidence, the use of logical reasoning, and the application of imagination in devising hypotheses, predictions, explanations and models to make sense of the collected evidence.
A25: The Nature of Science | B25: SC.7.N.3.1 | C25: SC.7.N.3.1 Recognize and explain the difference between theories and laws and give several examples of scientific theories and the evidence that supports them. (Also assesses SC.6.N.3.1 and SC.8.N.3.2.)
A26: The Nature of Science | B26: SC.6.N.3.1 | C26: SC.6.N.3.1 Recognize and explain that a scientific theory is a well-supported and widely accepted explanation of nature and is not simply a claim posed by an individual. Thus, the use of the term theory in science is very different than how it is used in everyday life.
A27: The Nature of Science | B27: SC.8.N.3.2 | C27: SC.8.N.3.2 Explain why theories may be modified but are rarely discarded.
A28: Earth and Space Science | B28: SC.8.E.5.3 | C28: SC.8.E.5.3 Distinguish the hierarchical relationships between planets and other astronomical bodies relative to solar system, galaxy, and universe, including distance, size, and composition. (Also assesses SC.8.E.5.1 and SC.8.E.5.2.)
A29: Earth and Space Science | B29: SC.8.E.5.1 | C29: SC.8.E.5.1 Recognize that there are enormous distances between objects in space and apply our knowledge of light and space travel to understand this distance.
A30: Earth and Space Science | B30: SC.8.E.5.2 | C30: SC.8.E.5.2 Recognize that the universe contains many billions of galaxies and that each galaxy contains many billions of stars.
A31: Earth and Space Science | B31: SC.8.E.5.5 | C31: SC.8.E.5.5 Describe and classify specific physical properties of stars: apparent magnitude (brightness), temperature (color), size, and luminosity (absolute brightness). (Also assesses SC.8.E.5.6.)
A32: Earth and Space Science | B32: SC.8.E.5.6 | C32: SC.8.E.5.6 Create models of solar properties including: rotation, structure of the Sun, convection, sunspots, solar flares, and prominences.
A33: Earth and Space Science | B33: SC.8.E.5.7 | C33: SC.8.E.5.7 Compare and contrast the properties of objects in the Solar System including the Sun, planets, and moons to those of Earth, such as gravitational force, distance from the Sun, speed, movement, temperature, and atmospheric conditions. (Also assesses SC.8.E.5.4 and SC.8.E.5.8.)
A34: Earth and Space Science | B34: SC.8.E.5.4 | C34: SC.8.E.5.4 Explore the Law of Universal Gravitation by explaining the role that gravity plays in the formation of planets, stars, and solar systems and in determining their motions.
A35: Earth and Space Science | B35: SC.8.E.5.8 | C35: SC.8.E.5.8 Compare various historical models of the Solar System, including geocentric and heliocentric.
A36: Earth and Space Science | B36: SC.8.E.5.9 | C36: SC.8.E.5.9 Explain the impact of objects in space on each other including: 1. the Sun on the Earth including seasons and gravitational attraction 2. the Moon on the Earth, including phases, tides, and eclipses, and the relative position of each body.
A37: Earth and Space Science | B37: SC.7.E.6.2 | C37: SC.7.E.6.2 Identify the patterns within the rock cycle and relate them to surface events (weathering and erosion) and subsurface events (plate tectonics and mountain building). (Also assesses SC.6.E.6.1, SC.6.E.6.2, and SC.7.E.6.6.)
A38: Earth and Space Science | B38: SC.6.E.6.1 | C38: SC.6.E.6.1 Describe and give examples of ways in which Earth’s surface is built up and torn down by physical and chemical weathering, erosion, and deposition.
A39: Earth and Space Science | B39: SC.6.E.6.2 | C39: SC.6.E.6.2 Recognize that there are a variety of different landforms on Earth’s surface such as coastlines, dunes, rivers, mountains, glaciers, deltas, and lakes and relate these landforms as they apply to Florida.
A40: Earth and Space Science | B40: SC.7.E.6.6 | C40: SC.7.E.6.6 Identify the impact that humans have had on Earth, such as deforestation, urbanization, desertification, erosion, air and water quality, changing the flow of water.
A41: Earth and Space Science | B41: SC.7.E.6.4 | C41: SC.7.E.6.4 Explain and give examples of how physical evidence supports scientific theories that Earth has evolved over geologic time due to natural processes. (Also assesses SC.7.E.6.3.)
A42: Earth and Space Science | B42: SC.7.E.6.3 | C42: SC.7.E.6.3 Identify current methods for measuring the age of Earth and its parts, including the law of superposition and radioactive dating.
A43: Earth and Space Science | B43: SC.7.E.6.5 | C43: SC.7.E.6.5 Explore the scientific theory of plate tectonics by describing how the movement of Earth’s crustal plates causes both slow and rapid changes in Earth’s surface, including volcanic eruptions, earthquakes, and mountain building. (Also assesses SC.7.E.6.1 and SC.7.E.6.7.)
A44: Earth and Space Science | B44: SC.7.E.6.1 | C44: SC.7.E.6.1 Describe the layers of the solid Earth, including the lithosphere, the hot convecting mantle, and the dense metallic liquid and solid cores.
A45: Earth and Space Science | B45: SC.7.E.6.7 | C45: SC.7.E.6.7 Recognize that heat flow and movement of material within Earth causes earthquakes and volcanic eruptions, and creates mountains and ocean basins.
A46: Earth and Space Science | B46: SC.6.E.7.4 | C46: SC.6.E.7.4 Differentiate and show interactions among the geosphere, hydrosphere, cryosphere, atmosphere, and biosphere. (Also assesses SC.6.E.7.2, SC.6.E.7.3, SC.6.E.7.6, and SC.6.E.7.9.)
A47: Earth and Space Science | B47: SC.6.E.7.2 | C47: SC.6.E.7.2 Investigate and apply how the cycling of water between the atmosphere and hydrosphere has an effect on weather patterns and climate.
A48: Earth and Space Science | B48: SC.6.E.7.3 | C48: SC.6.E.7.3 Describe how global patterns such as the jet stream and ocean currents influence local weather in measurable terms such as temperature, air pressure, wind direction and speed, and humidity and precipitation.
A49: Earth and Space Science | B49: SC.6.E.7.6 | C49: SC.6.E.7.6 Differentiate between weather and climate.
A50: Earth and Space Science | B50: SC.6.E.7.9 | C50: SC.6.E.7.9 Describe how the composition and structure of the atmosphere protects life and insulates the planet.
A51: Earth and Space Science | B51: SC.6.E.7.5 | C51: SC.6.E.7.5 Explain how energy provided by the sun influences global patterns of atmospheric movement and the temperature differences between air, water, and land. (Also assesses SC.6.E.7.1.)
A52: Earth and Space Science | B52: SC.6.E.7.1 | C52: SC.6.E.7.1 Differentiate among radiation, conduction, and convection, the three mechanisms by which heat is transferred through Earth’s system.
A53: Physical Science | B53: SC.8.P.8.4 | C53: SC.8.P.8.4 Classify and compare substances on the basis of characteristic physical properties that can be demonstrated or measured; for example, density, thermal or electrical conductivity, solubility, magnetic properties, melting and boiling points, and know that these properties are independent of the amount of the sample. (Also assesses SC.8.P.8.3.)
A54: Physical Science | B54: SC.8.P.8.3 | C54: SC.8.P.8.3 Explore and describe the densities of various materials through measurement of their masses and volumes.
A55: Physical Science | B55: SC.8.P.8.5 | C55: SC.8.P.8.5 Recognize that there are a finite number of elements and that their atoms combine in a multitude of ways to produce compounds that make up all of the living and nonliving things that we encounter. (Also assesses SC.8.P.8.1, SC.8.P.8.6, SC.8.P.8.7, SC.8.P.8.8, and SC.8.P.8.9.)
A56: Physical Science | B56: SC.8.P.8.1 | C56: SC.8.P.8.1 Explore the scientific theory of atoms (also known as atomic theory) by using models to explain the motion of particles in solids, liquids, and gases.
A57: Physical Science | B57: SC.8.P.8.6 | C57: SC.8.P.8.6 Recognize that elements are grouped in the periodic table according to similarities of their properties.
A58: Physical Science | B58: SC.8.P.8.7 | C58: SC.8.P.8.7 Explore the scientific theory of atoms (also known as atomic theory) by recognizing that atoms are the smallest unit of an element and are composed of sub-atomic particles (electrons surrounding a nucleus containing protons and neutrons).
A59: Physical Science | B59: SC.8.P.8.8 | C59: SC.8.P.8.8 Identify basic examples of and compare and classify the properties of compounds, including acids, bases, and salts.
A60: Physical Science | B60: SC.8.P.8.9 | C60: SC.8.P.8.9 Distinguish among mixtures (including solutions) and pure substances.
A61: Physical Science | B61: SC.8.P.9.2 | C61: SC.8.P.9.2 Differentiate between physical changes and chemical changes. (Also assesses SC.8.P.9.1 and SC.8.P.9.3.)
A62: Physical Science | B62: SC.8.P.9.1 | C62: SC.8.P.9.1 Explore the Law of Conservation of Mass by demonstrating and concluding that mass is conserved when substances undergo physical and chemical changes.
A63: Physical Science | B63: SC.8.P.9.3 | C63: SC.8.P.9.3 Investigate and describe how temperature influences chemical changes.
A64: Physical Science | B64: SC.7.P.10.1 | C64: SC.7.P.10.1 Illustrate that the sun’s energy arrives as radiation with a wide range of wavelengths, including infrared, visible, and ultraviolet, and that white light is made up of a spectrum of many different colors. (Also assesses SC.8.E.5.11.)
A65: Physical Science | B65: SC.8.E.5.11 | C65: SC.8.E.5.11 Identify and compare characteristics of the electromagnetic spectrum such as wavelength, frequency, use, and hazards and recognize its application to an understanding of planetary images and satellite photographs.
A66: Physical Science | B66: SC.7.P.10.3 | C66: SC.7.P.10.3 Recognize that light waves, sound waves, and other waves move at different speeds in different materials. (Also assesses SC.7.P.10.2.)
A67: Physical Science | B67: SC.7.P.10.2 | C67: SC.7.P.10.2 Observe and explain that light can be reflected, refracted, and/or absorbed.
A68: Physical Science | B68: SC.7.P.11.2 | C68: SC.7.P.11.2 Investigate and describe the transformation of energy from one form to another. (Also assesses SC.6.P.11.1 and SC.7.P.11.3.)
A69: Physical Science | B69: SC.6.P.11.1 | C69: SC.6.P.11.1 Explore the Law of Conservation of Energy by differentiating between potential and kinetic energy. Identify situations where kinetic energy is transformed into potential energy and vice versa.
A70: Physical Science | B70: SC.7.P.11.3 | C70: SC.7.P.11.3 Cite evidence to explain that energy cannot be created nor destroyed, only changed from one form to another.
A71: Physical Science | B71: SC.7.P.11.4 | C71: SC.7.P.11.4 Observe and describe that heat flows in predictable ways, moving from warmer objects to cooler ones until they reach the same temperature. (Also assesses SC.7.P.11.1.)
A72: Physical Science | B72: SC.7.P.11.1 | C72: SC.7.P.11.1 Recognize that adding heat to or removing heat from a system may result in a temperature change and possibly a change of state.
A73: Physical Science | B73: SC.6.P.13.1 | C73: SC.6.P.13.1 Investigate and describe types of forces including contact forces and forces acting at a distance, such as electrical, magnetic, and gravitational. (Also assesses SC.6.P.13.2 and SC.8.P.8.2.)
A74: Physical Science | B74: SC.6.P.13.2 | C74: SC.6.P.13.2 Explore the Law of Gravity by recognizing that every object exerts gravitational force on every other object and that the force depends on how much mass the objects have and how far apart they are.
A75: Physical Science | B75: SC.8.P.8.2 | C75: SC.8.P.8.2 Differentiate between weight and mass recognizing that weight is the amount of gravitational pull on an object and is distinct from, though proportional to, mass.
A76: Physical Science | B76: SC.6.P.13.3 | C76: SC.6.P.13.3 Investigate and describe that an unbalanced force acting on an object changes its speed, or direction of motion, or both. (Also assesses SC.6.P.12.1.)
A77: Physical Science | B77: SC.6.P.12.1 | C77: SC.6.P.12.1 Measure and graph distance versus time for an object moving at a constant speed. Interpret this relationship.
A78: Life Science | B78: SC.6.L.14.1 | C78: SC.6.L.14.1 Describe and identify patterns in the hierarchical organization of organisms from atoms to molecules and cells to tissues to organs to organ systems to organisms.
A79: Life Science | B79: SC.6.L.14.2 | C79: SC.6.L.14.2 Investigate and explain the components of the scientific theory of cells (cell theory): all organisms are composed of cells (single-celled or multi-cellular), all cells come from preexisting cells, and cells are the basic unit of life. (Also assesses SC.6.L.14.3.)
A80: Life Science | B80: SC.6.L.14.3 | C80: SC.6.L.14.3 Recognize and explore how cells of all organisms undergo similar processes to maintain homeostasis, including extracting energy from food, getting rid of waste, and reproducing.
A81: Life Science | B81: SC.6.L.14.4 | C81: SC.6.L.14.4 Compare and contrast the structure and function of major organelles of plant and animal cells, including cell wall, cell membrane, nucleus, cytoplasm, chloroplasts, mitochondria, and vacuoles.
A82: Life Science | B82: SC.6.L.14.5 | C82: SC.6.L.14.5 Identify and investigate the general functions of the major systems of the human body (digestive, respiratory, circulatory, reproductive, excretory, immune, nervous, and musculoskeletal) and describe ways these systems interact with each other to maintain homeostasis. (Also assesses SC.6.14.6.)
A83: Life Science | B83: SC.6.L.14.6 | C83: SC.6.L.14.6 Compare and contrast types of infectious agents that may infect the human body, including viruses, bacteria, fungi, and parasites.
A84: Life Science | B84: SC.6.L.15.1 | C84: SC.6.L.15.1 Analyze and describe how and why organisms are classified according to shared characteristics with emphasis on the Linnaean system combined with the concept of Domains.
A85: Life Science | B85: SC.7.L.15.2 | C85: SC.7.L.15.2 Explore the scientific theory of evolution by recognizing and explaining ways in which genetic variation and environmental factors contribute to evolution by natural selection and diversity of organisms. (Also assesses SC.7.L.15.1 and SC.7.L.15.3.)
A86: Life Science | B86: SC.7.L.15.1 | C86: SC.7.L.15.1 Recognize that fossil evidence is consistent with the scientific theory of evolution that living things evolved from earlier species.
A87: Life Science | B87: SC.7.L.15.3 | C87: SC.7.L.15.3 Explore the scientific theory of evolution by relating how the inability of a species to adapt within a changing environment may contribute to the extinction of that species.
A88: Life Science | B88: SC.7.L.16.1 | C88: SC.7.L.16.1 Understand and explain that every organism requires a set of instructions that specifies its traits, that this hereditary information (DNA) contains genes located in the chromosomes of each cell, and that heredity is the passage of these instructions from one generation to another. (Also assesses SC.7.L.16.2 and SC.7.L.16.3.)
A89: Life Science | B89: SC.7.L.16.2 | C89: SC.7.L.16.2 Determine the probabilities for genotype and phenotype combinations using Punnett Squares and pedigrees.
A90: Life Science | B90: SC.7.L.16.3 | C90: SC.7.L.16.3 Compare and contrast the general processes of sexual reproduction requiring meiosis and asexual reproduction requiring mitosis.
A91: Life Science | B91: SC.7.L.17.2 | C91: SC.7.L.17.2 Compare and contrast the relationships among organisms such as mutualism, predation, parasitism, competition, and commensalism. (Also assesses SC.7.L.17.1 and SC.7.L.17.3.)
A92: Life Science | B92: SC.7.L.17.1 | C92: SC.7.L.17.1 Explain and illustrate the roles of and relationships among producers, consumers, and decomposers in the process of energy transfer in a food web.
A93: Life Science | B93: SC.7.L.17.3 | C93: SC.7.L.17.3 Describe and investigate various limiting factors in the local ecosystem and their impact on native populations, including food, shelter, water, space, disease, parasitism, predation, and nesting sites.
A94: Life Science | B94: SC.8.L.18.4 | C94: SC.8.L.18.4 Cite evidence that living systems follow the Laws of Conservation of Mass and Energy. (Also assesses SC.8.L.18.1, SC.8.L.18.2, and SC.8.L.18.3.)
A95: Life Science | B95: SC.8.L.18.1 | C95: SC.8.L.18.1 Describe and investigate the process of photosynthesis, such as the roles of light, carbon dioxide, water and chlorophyll; production of food; release of oxygen.
A96: Life Science | B96: SC.8.L.18.2 | C96: SC.8.L.18.2 Describe and investigate how cellular respiration breaks down food to provide energy and releases carbon dioxide.
A97: Life Science | B97: SC.8.L.18.3 | C97: SC.8.L.18.3 Construct a scientific model of the carbon cycle to show how matter and energy are continuously transferred within and between organisms and their physical environment.

Sheet BLG6BM-R (hidden)
B1: R-G06-BM-SCHL-ALL
B3: Description: | C3: Reading, G06, BM, School, All
B4: Student Selection: | C4: Multiple | 2011-2012 Fall, 2011-2012 School Year
B5: Group By Data: | C5: School
B6: Assessments: | C6: Baseline 2011 - Grade 6 Reading AUGUST 2011 Teacher __________ Period _____
B7: Scores: | C7: Overall Avg Raw Score, Overall Avg % Correct, Standards Avg Raw Score, Standards Avg % Correct
B8: Author Name: | C8: Yuwadee Wongbundhit
A9: =COLUMN() -> 1 | B9: =COLUMN() -> 2 | C9: =COLUMN() -> 3 | D9: =COLUMN() -> 4 | E9: =COLUMN() -> 5 | F9: =COLUMN() -> 6 | G9: =COLUMN() -> 7 | H9: =COLUMN() -> 8 | I9: =COLUMN() -> 9 | J9: =COLUMN() -> 10 | K9: =COLUMN() -> 11 | L9: =COLUMN() -> 12 | M9: =COLUMN() -> 13 | N9: =COLUMN() -> 14 | O9: =COLUMN() -> 15 | P9: =COLUMN() -> 16 | Q9: =COLUMN() -> 17 | R9: =COLUMN() -> 18 | S9: =COLUMN() -> 19 | T9: =COLUMN() -> 20 | U9: =COLUMN() -> 21 | V9: =COLUMN() -> 22 | W9: =COLUMN() -> 23 | X9: =COLUMN() -> 24 | Y9: =COLUMN() -> 25 | Z9: =COLUMN() -> 26 | AA9: =COLUMN() -> 27 | AB9: =COLUMN() -> 28 | AC9: =COLUMN() -> 29 | AD9: =COLUMN() -> 30 | AE9: =COLUMN() -> 31
B10: Total Row(s): 144 Generated on Sep-17-2011 by Yuwadee Wongbundhit | C10: Baseline 2011 - Grade 6 Reading AUGUST 2011 Teacher __________ Period _____
C11: Total # students | D11: Overall (35 pts max) | F11: LA.6.1--LA.6.1.6: Benchmark LA.6.1.6.3 | H11: LA.6.1--LA.6.1.6: Benchmark LA.6.1.6.8 | J11: LA.6.1--LA.6.1.6: Benchmark LA.6.1.6.9 | L11: LA.6.1--LA.6.1.7: Benchmark LA.6.1.7.2 | N11: LA.6.1--LA.6.1.7: Benchmark LA.6.1.7.3 | P11: LA.6.1--LA.6.1.7: Benchmark LA.6.1.7.4 | R11: LA.6.1--LA.6.1.7: Benchmark LA.6.1.7.5 | T11: LA.6.1--LA.6.1.7: Benchmark LA.6.1.7.7 | V11: LA.6.2--LA.6.2.1: Benchmark LA.6.2.1.2 | X11: LA.6.2--LA.6.2.1: Benchmark LA.6.2.1.7 | Z11: LA.6.2--LA.6.2.2: Benchmark LA.6.2.2.1 | AB11: LA.6.6--LA.6.6.1: Benchmark LA.6.6.1.1 | AD11: LA.6.6--LA.6.6.2: Benchmark LA.6.6.2.2
D12: Avg Raw Score | E12: Avg % Correct | F12: Avg Raw Score | G12: Avg % Correct | H12: Avg Raw Score | I12: Avg % Correct | J12: Avg Raw Score | K12: Avg % Correct | L12: Avg Raw Score | M12: Avg % Correct | N12: Avg Raw Score | O12: Avg % Correct | P12: Avg Raw Score | Q12: Avg % Correct | R12: Avg Raw Score | S12: Avg % Correct | T12: Avg Raw Score | U12: Avg % Correct | V12: Avg Raw Score | W12: Avg % Correct | X12: Avg Raw Score | Y12: Avg % Correct | Z12: Avg Raw Score | AA12: Avg % Correct | AB12: Avg Raw Score | AC12: Avg % Correct | AD12: Avg Raw Score | AE12: Avg % Correct
B13: School Name
A14: =IFERROR(VALUE(LEFT(B14,4)),"") -> 70 | B14: 0070 Coral Reef Montessori Academy | C14: 39 | D14: 21.39999962 | E14: 0.61 | F14: 1.700000048 | G14: 0.83 | H14: 0.6000000238 | I14: 0.59 | J14: 1.299999952 | K14: 0.65 | L14: 1.899999976 | M14: 0.65 | N14: 2.799999952 | O14: 0.57 | P14: 2.900000095 | Q14: 0.74 | R14: 1.399999976 | S14: 0.71 | T14: 1.100000024 | U14: 0.53 | V14: 3 | W14: 0.59 | X14: 1.299999952 | Y14: 0.64 | Z14: 1.700000048 | AA14: 0.56 | AB14: 0.6999999881 | AC14: 0.69 | AD14: 1 | AE14: 0.33
A15: =IFERROR(VALUE(LEFT(B15,4)),"") -> 71 | B15: 0071 Eugenia B. Thomas K-8 | C15: 141 | D15: 20.79999924 | E15: 0.59 | F15: 1.399999976 | G15: 0.68 | H15: 0.6000000238 | I15: 0.56 | J15: 1.299999952 | K15: 0.65 | L15: 1.899999976 | M15: 0.62 | N15: 3 | O15: 0.6 | P15: 2.700000048 | Q15: 0.68 | R15: 1.399999976 | S15: 0.72 | T15: 1 | U15: 0.48 | V15: 2.599999905 | W15: 0.53 | X15: 1.299999952 | Y15: 0.66 | Z15: 1.600000024 | AA15: 0.54 | AB15: 0.6999999881 | AC15: 0.74 | AD15: 1.200000048 | AE15: 0.41
A16: 72 | B16: 0072 Summerville Charter School | C16: 56 | D16: 20.60000038 | E16: 0.59 | F16: 1.5 | G16: 0.73 | H16: 0.5 | I16: 0.54 | J16: 1.299999952 | K16: 0.63 | L16: 1.899999976 | M16: 0.62 | N16: 2.900000095 | O16: 0.59 | P16: 2.700000048 | Q16: 0.67 | R16: 1.5 | S16: 0.76 | T16: 0.8999999762 | U16: 0.44 | V16: 2.900000095 | W16: 0.57 | X16: 1.299999952 | Y16: 0.67 | Z16: 1.399999976 | AA16: 0.45 | AB16: 0.8000000119 | AC16: 0.75 | AD16: 1.100000024 | AE16: 0.38
A17: 73 | B17: 0073 Mandarin Lakes K-8 Center | C17: 98 | D17: 14.30000019 | E17: 0.41 | F17: 1.100000024 | G17: 0.54 | H17: 0.400000006 | I17: 0.38 | J17: 1 | K17: 0.51 | L17: 1.200000048 | M17: 0.41 | N17: 2.099999905 | O17: 0.41 | P17: 1.700000048 | Q17: 0.43 | R17: 0.6999999881 | S17: 0.37 | T17: 0.5 | U17: 0.27 | V17: 1.899999976 | W17: 0.37 | X17: 1 | Y17: 0.49 | Z17: 1.299999952 | AA17: 0.44 | AB17: 0.6000000238 | AC17: 0.58 | AD17: 0.8000000119 | AE17: 0.25
A18: 91 | B18: 0091 Bob Graham Education Center | C18: 231 | D18: 20.29999924 | E18: 0.58 | F18: 1.399999976 | G18: 0.72 | H18: 0.6000000238 | I18: 0.61 | J18: 1.299999952 | K18: 0.64 | L18: 1.799999952 | M18: 0.61 | N18: 2.900000095 | O18: 0.58 | P18: 2.5 | Q18: 0.64 | R18: 1.299999952 | S18: 0.65 | T18: 0.8999999762 | U18: 0.45 | V18: 2.700000048 | W18: 0.54 | X18: 1.299999952 | Y18: 0.67 | Z18: 1.600000024 | AA18: 0.54 | AB18: 0.8000000119 | AC18: 0.76 | AD18: 1.100000024 | AE18: 0.36
A19: 92 | B19: 0092 Sunny Isles Beach Community School K-8 | C19: 187 | D19: 22.5 | E19: 0.64 | F19: 1.5 | G19: 0.74 | H19: 0.6000000238 | I19: 0.58 | J19: 1.399999976 | K19: 0.68 | L19: 2.200000048 | M19: 0.73 | N19: 3.200000048 | O19: 0.64 | P19: 2.900000095 | Q19: 0.73 | R19: 1.5 | S19: 0.73 | T19: 1.100000024 | U19: 0.56 | V19: 2.900000095 | W19: 0.59 | X19: 1.399999976 | Y19: 0.69 | Z19: 1.799999952 | AA19: 0.61 | AB19: 0.8000000119 | AC19: 0.78 | AD19: 1.299999952 | AE19: 0.44
A20: 122 | B20: 0122 Dr. Rolando Espinosa K-8 Center | C20: 186 | D20: 21.89999962 | E20: 0.63 | F20: 1.399999976 | G20: 0.72 | H20: 0.6000000238 | I20: 0.61 | J20: 1.299999952 | K20: 0.65 | L20: 2.099999905 | M20: 0.71 | N20: 3.099999905 | O20: 0.62 | P20: 2.799999952 | Q20: 0.69 | R20: 1.399999976 | S20: 0.69 | T20: 1 | U20: 0.51 | V20: 3 | W20: 0.6 | X20: 1.399999976 | Y20: 0.68 | Z20: 1.600000024 | AA20: 0.54 | AB20: 0.8000000119 | AC20: 0.82 | AD20: 1.399999976 | AE20: 0.46
A21: 231 | B21: 0231 Aventura Waterways K-8 | C21: 183 | D21: 20.20000076 | E21: 0.58 | F21: 1.5 | G21: 0.74 | H21: 0.6000000238 | I21: 0.56 | J21: 1.299999952 | K21: 0.67 | L21: 1.899999976 | M21: 0.64 | N21: 2.799999952 | O21: 0.56 | P21: 2.5 | Q21: 0.63 | R21: 1.299999952 | S21: 0.67 | T21: 1 | U21: 0.5 | V21: 2.5 | W21: 0.51 | X21: 1.299999952 | Y21: 0.65 | Z21: 1.5 | AA21: 0.51 | AB21: 0.6999999881 | AC21: 0.73 | AD21: 1.200000048 | AE21: 0.39
A22: 241 | B22: 0241 Ruth K. Broad/Bay Harbor K-8 | C22: 109 | D22: 21.29999924 | E22: 0.61 | F22: 1.5 | G22: 0.75 | H22: 0.6000000238 | I22: 0.63 | J22: 1.399999976 | K22: 0.71 | L22: 2 | M22: 0.68 | N22: 3 | O22: 0.59 | P22: 2.799999952 | Q22: 0.7 | R22: 1.399999976 | S22: 0.68 | T22: 1 | U22: 0.51 | V22: 2.799999952 | W22: 0.56 | X22: 1.299999952 | Y22: 0.66 | Z22: 1.700000048 | AA22: 0.56 | AB22: 0.8000000119 | AC22: 0.78 | AD22: 1 | AE22: 0.34
A23: 332 | B23: 0332 Somerset Silver Palms K-8 | C23: 134 | D23: 19.29999924 | E23: 0.55 | F23: 1.399999976 | G23: 0.69 | H23: 0.5 | I23: 0.54 | J23: 1.200000048 | K23: 0.62 | L23: 1.899999976 | M23: 0.63 | N23: 2.599999905 | O23: 0.53 | P23: 2.400000095 | Q23: 0.61 | R23: 1.200000048 | S23: 0.61 | T23: 0.8000000119 | U23: 0.41 | V23: 2.5 | W23: 0.51 | X23: 1.299999952 | Y23: 0.65 | Z23: 1.5 | AA23: 0.5 | AB23: 0.6999999881 | AC23: 0.69 | AD23: 1.100000024 | AE23: 0.36
A24: 451 | B24: 0451 Doolin /Ashe K-8 Academy | C24: 192 | D24: 20.10000038 | E24: 0.57 | F24: 1.399999976 | G24: 0.7 | H24: 0.6000000238 | I24: 0.6 | J24: 1.200000048 | K24: 0.62 | L24: 1.899999976 | M24: 0.64 | N24: 2.900000095 | O24: 0.58 | P24: 2.5 | Q24: 0.63 | R24: 1.399999976 | S24: 0.7 | T24: 0.8000000119 | U24: 0.4 | V24: 2.599999905 | W24: 0.52 | X24: 1.299999952 | Y24: 0.64 | Z24: 1.600000024 | AA24: 0.52 | AB24: 0.8000000119 | AC24: 0.78 | AD24: 1.100000024 | AE24: 0.37
A25: 651 | B25: 0651 Campbell Drive Elementary | C25: 69 | D25: 17.39999962 | E25: 0.5 | F25: 1.200000048 | G25: 0.61 | H25: 0.3000000119 | I25: 0.3 | J25: 1.200000048 | K25: 0.59 | L25: 1.600000024 | M25: 0.54 | N25: 2.599999905 | O25: 0.51 | P25: 2.400000095 | Q25: 0.59 | R25: 1.200000048 | S25: 0.59 | T25: 0.6999999881 | U25: 0.35 | V25: 2 | W25: 0.39 | X25: 1.100000024 | Y25: 0.56 | Z25: 1.5 | AA25: 0.5 | AB25: 0.6999999881 | AC25: 0.68 | AD25: 1 | AE25: 0.34
A26: 761 | B26: 0761 Fienberg Fisher K-8 Center | C26: 100 | D26: 18.39999962 | E26: 0.52 | F26: 1.399999976 | G26: 0.7 | H26: 0.5 | I26: 0.51 | J26: 1.100000024 | K26: 0.55 | L26: 1.700000048 | M26: 0.58 | N26: 2.700000048 | O26: 0.54 | P26: 2.400000095 | Q26: 0.59 | R26: 1.100000024 | S26: 0.54 | T26: 0.8000000119 | U26: 0.42 | V26: 2.299999952 | W26: 0.47 | X26: 1.100000024 | Y26: 0.55 | Z26: 1.399999976 | AA26: 0.48 | AB26: 0.6000000238 | AC26: 0.64 | AD26: 1.100000024 | AE26: 0.38
A27: 950 | B27: 0950 Aventura City Of Excellence School | C27: 100 | D27: 23.79999924 | E27: 0.68 | F27: 1.5 | G27: 0.73 | H27: 0.8000000119 | I27: 0.83 | J27: 1.5 | K27: 0.73 | L27: 2.200000048 | M27: 0.72 | N27: 3.400000095 | O27: 0.68 | P27: 3.099999905 | Q27: 0.76 | R27: 1.5 | S27: 0.74 | T27: 1.399999976 | U27: 0.71 | V27: 3 | W27: 0.6 | X27: 1.5 | Y27: 0.74 | Z27: 1.799999952 | AA27: 0.6 | AB27: 0.8999999762 | AC27: 0.86 | AD27: 1.5 | AE27: 0.48
A28: 961 | B28: 0961 Coral Gables Elementary | C28: 79 | D28: 22.79999924 | E28: 0.65 | F28: 1.299999952 | G28: 0.67 | H28: 0.6000000238 | I28: 0.63 | J28: 1.399999976 | K28: 0.7 | L28: 2.099999905 | M28: 0.69 | N28: 3.200000048 | O28: 0.64 | P28: 2.900000095 | Q28: 0.72 | R28: 1.5 | S28: 0.74 | T28: 1.299999952 | U28: 0.63 | V28: 3.099999905 | W28: 0.63 | X28: 1.299999952 | Y28: 0.63 | Z28: 1.799999952 | AA28: 0.59 | AB28: 0.8999999762 | AC28: 0.89 | AD28: 1.5 | AE28: 0.51
A29: 1010 | B29: 1010 The Charter School At Waterstone | C29: 140 | D29: 22.89999962 | E29: 0.65 | F29: 1.5 | G29: 0.75 | H29: 0.6000000238 | I29: 0.62 | J29: 1.299999952 | K29: 0.65 | L29: 2.200000048 | M29: 0.74 | N29: 3.200000048 | O29: 0.64 | P29: 2.900000095 | Q29: 0.72 | R29: 1.399999976 | S29: 0.71 | T29: 1.299999952 | U29: 0.63 | V29: 3.200000048 | W29: 0.63 | X29: 1.5 | Y29: 0.75 | Z29: 1.700000048 | AA29: 0.58 | AB29: 0.6999999881 | AC29: 0.73 | AD29: 1.399999976 | AE29: 0.46
A30: 1020 | B30: 1020 Youth Co-op Charter School | C30: 86 | D30: 20.5 | E30: 0.58 | F30: 1.399999976 | G30: 0.68 | H30: 0.6999999881 | I30: 0.65 | J30: 1.299999952 | K30: 0.64 | L30: 1.899999976 | M30: 0.63 | N30: 3.099999905 | O30: 0.61 | P30: 2.5 | Q30: 0.63 | R30: 1.399999976 | S30: 0.7 | T30: 0.8000000119 | U30: 0.4 | V30: 2.700000048 | W30: 0.54 | X30: 1.299999952 | Y30: 0.67 | Z30: 1.700000048 | AA30: 0.55 | AB30: 0.6999999881 | AC30: 0.72 | AD30: 1.200000048 | AE30: 0.38
A31: 1121 | B31: 1121 Coral Way K-8 Center | C31: 149 | D31: 20.89999962 | E31: 0.6 | F31: 1.399999976 | G31: 0.72 | H31: 0.6000000238 | I31: 0.63 | J31: 1.299999952 | K31: 0.67 | L31: 1.899999976 | M31: 0.64 | N31: 3.099999905 | O31: 0.62 | P31: 2.700000048 | Q31: 0.66 | R31: 1.299999952 | S31: 0.65 | T31: 1 | U31: 0.51 | V31: 2.700000048 | W31: 0.54 | X31: 1.299999952 | Y31: 0.65 | Z31: 1.600000024 | AA31: 0.52 | AB31: 0.8000000119 | AC31: 0.76 | AD31: 1.100000024 | AE31: 0.38
A32: 1331 | B32: 1331 Devon Aire K-8 Center | C32: 173 | D32: 21.60000038 | E32: 0.62 | F32: 1.399999976 | G32: 0.71 | H32: 0.6999999881 | I32: 0.65 | J32: 1.399999976 | K32: 0.71 | L32: 1.899999976 | M32: 0.65 | N32: 3.099999905 | O32: 0.62 | P32: 2.799999952 | Q32: 0.7 | R32: 1.5 | S32: 0.75 | T32: 0.8999999762 | U32: 0.46 | V32: 2.900000095 | W32: 0.57 | X32: 1.299999952 | Y32: 0.64 | Z32: 1.700000048 | AA32: 0.58 | AB32: 0.8000000119 | AC32: 0.76 | AD32: 1.200000048 | AE32: 0.4
A33: 1681 | B33: 1681 Lillie C. Evans Elementary | C33: 30 | D33: 21.29999924 | E33: 0.61 | F33: 1.600000024 | G33: 0.8 | H33: 0.400000006 | I33: 0.4 | J33: 1.399999976 | K33: 0.68 | L33: 1.899999976 | M33: 0.64 | N33: 2.799999952 | O33: 0.57 | P33: 2.900000095 | Q33: 0.72 | R33: 1.600000024 | S33: 0.8 | T33: 0.8999999762 | U33: 0.47 | V33: 2.900000095 | W33: 0.57 | X33: 1.399999976 | Y33: 0.7 | Z33: 1.600000024 | AA33: 0.52 | AB33: 0.8999999762 | AC33: 0.9 | AD33: 1.100000024 | AE33: 0.35
A34: 1721 | B34: 1721 Everglades K-8 Center | C34: 155 | D34: 20.20000076 | E34: 0.58 | F34: 1.399999976 | G34: 0.68 | H34: 0.6000000238 | I34: 0.58 | J34: 1.299999952 | K34: 0.65 | L34: 1.899999976 | M34: 0.63 | N34: 2.700000048 | O34: 0.55 | P34: 2.599999905 | Q34: 0.65 | R34: 1.299999952 | S34: 0.66 | T34: 0.8999999762 | U34: 0.47 | V34: 2.700000048 | W34: 0.54 | X34: 1.200000048 | Y34: 0.62 | Z34: 1.5 | AA34: 0.49 | AB34: 0.8000000119 | AC34: 0.77 | AD34: 1.299999952 | AE34: 0.43
A35: 2041 | B35: 2041 Benjamin Franklin Elementary School | C35: 58 | D35: 16.89999962 | E35: 0.48 | F35: 1.200000048 | G35: 0.59 | H35: 0.3000000119 | I35: 0.33 | J35: 1 | K35: 0.52 | L35: 1.600000024 | M35: 0.55 | N35: 2.599999905 | O35: 0.52 | P35: 2 | Q35: 0.5 | R35: 1.200000048 | S35: 0.61 | T35: 0.6000000238 | U35: 0.3 | V35: 2.200000048 | W35: 0.44 | X35: 1.200000048 | Y35: 0.59 | Z35: 1.100000024 | AA35: 0.37 | AB35: 0.6999999881 | AC35: 0.67 | AD35: 1.100000024 | AE35: 0.36
A36: 2060 | B36: 2060 Theodore R. And Thelma A. Gibson Charter | C36: 37 | D36: 17.10000038 | E36: 0.49 | F36: 1.299999952 | G36: 0.66 | H36: 0.200000003 | I36: 0.22 | J36: 1 | K36: 0.5 | L36: 1.799999952 | M36: 0.6 | N36: 2.099999905 | O36: 0.42 | P36: 2 | Q36: 0.49 | R36: 1.299999952 | S36: 0.65 | T36: 0.6000000238 | U36: 0.28 | V36: 2.5 | W36: 0.51 | X36: 1 | Y36: 0.51 | Z36: 1.399999976 | AA36: 0.47 | AB36: 0.6999999881 | AC36: 0.68 | AD36: 1.100000024 | AE36: 0.38
A37: 2241 | B37: 2241 Gratigny Elementary | C37: 74 | D37: 17.70000076 | E37: 0.51 | F37: 1.299999952 | G37: 0.65 | H37: 0.400000006 | I37: 0.38 | J37: 1.200000048 | K37: 0.62 | L37: 1.600000024 | M37: 0.53 | N37: 2.5 | O37: 0.5 | P37: 2.099999905 | Q37: 0.53 | R37: 1.100000024 | S37: 0.56 | T37: 0.8000000119 | U37: 0.39 | V37: 2.299999952 | W37: 0.46 | X37: 1.200000048 | Y37: 0.62 | Z37: 1.5 | AA37: 0.51 | AB37: 0.5 | AC37: 0.54 | AD37: 1 | AE37: 0.35
A38: 2701 | B38: 2701 Kenwood K-8 Center | C38: 115 | D38: 22.29999924 | E38: 0.64 | F38: 1.399999976 | G38: 0.72 | H38: 0.6999999881 | I38: 0.73 | J38: 1.299999952 | K38: 0.66 | L38: 2.200000048 | M38: 0.73 | N38: 3.200000048 | O38: 0.64 | P38: 2.700000048 | Q38: 0.68 | R38: 1.5 | S38: 0.75 | T38: 1 | U38: 0.5 | V38: 3 | W38: 0.61 | X38: 1.399999976 | Y38: 0.7 | Z38: 1.799999952 | AA38: 0.6 | AB38: 0.6999999881 | AC38: 0.71 | AD38: 1.299999952 | AE38: 0.44
A39: 2741 | B39: 2741 Key Biscayne K-8 Center | C39: 135 | D39: 22.20000076 | E39: 0.64 | F39: 1.399999976 | G39: 0.71 | H39: 0.8000000119 | I39: 0.78 | J39: 1.399999976 | K39: 0.69 | L39: 2 | M39: 0.67 | N39: 3 | O39: 0.6 | P39: 2.799999952 | Q39: 0.71 | R39: 1.299999952 | S39: 0.67 | T39: 1.100000024 | U39: 0.57 | V39: 3.099999905 | W39: 0.61 | X39: 1.299999952 | Y39: 0.67 | Z39: 1.799999952 | AA39: 0.59 | AB39: 0.8000000119 | AC39: 0.76 | AD39: 1.299999952 | AE39: 0.45
A40: 2881 | B40: 2881 Leewood K-8 Center | C40: 80 | D40: 23.29999924 | E40: 0.67 | F40: 1.600000024 | G40: 0.79 | H40: 0.6999999881 | I40: 0.69 | J40: 1.399999976 | K40: 0.71 | L40: 2.299999952 | M40: 0.77 | N40: 3.099999905 | O40: 0.61 | P40: 3 | Q40: 0.74 | R40: 1.600000024 | S40: 0.79 | T40: 1.299999952 | U40: 0.65 | V40: 3.200000048 | W40: 0.65 | X40: 1.299999952 | Y40: 0.66 | Z40: 1.700000048 | AA40: 0.58 | AB40: 0.6999999881 | AC40: 0.74 | AD40: 1.399999976 | AE40: 0.45
A41: 2901 | B41: 2901 Leisure City K-8 Center | C41: 109 | D41: 18.39999962 | E41: 0.52 | F41: 1.299999952 | G41: 0.63 | H41: 0.400000006 | I41: 0.42 | J41: 1.100000024 | K41: 0.55 | L41: 2 | M41: 0.68 | N41: 2.700000048 | O41: 0.54 | P41: 2.099999905 | Q41: 0.53 | R41: 1.100000024 | S41: 0.56 | T41: 0.8999999762 | U41: 0.44 | V41: 2.5 | W41: 0.51 | X41: 1.100000024 | Y41: 0.53 | Z41: 1.399999976 | AA41: 0.47 | AB41: 0.6000000238 | AC41: 0.61 | AD41: 1.100000024 | AE41: 0.38
A42: 2911 | B42: 2911 Linda Lentin K - 8 Center | C42: 97 | D42: 19.5 | E42: 0.56 | F42: 1.299999952 | G42: 0.64 | H42: 0.6000000238 | I42: 0.57 | J42: 1.299999952 | K42: 0.63 | L42: 1.799999952 | M42: 0.61 | N42: 2.700000048 | O42: 0.54 | P42: 2.400000095 | Q42: 0.61 | R42: 1.299999952 | S42: 0.66 | T42: 0.8000000119 | U42: 0.4 | V42: 2.799999952 | W42: 0.55 | X42: 1.299999952 | Y42: 0.64 | Z42: 1.399999976 | AA42: 0.45 | AB42: 0.6999999881 | AC42: 0.66 | AD42: 1.200000048 | AE42: 0.4
A43: 3029 | B43: 3029 Doral Academy Of Technology | C43: 32 | D43: 27.39999962 | E43: 0.78 | F43: 1.799999952 | G43: 0.88 | H43: 0.8000000119 | I43: 0.84 | J43: 1.600000024 | K43: 0.81 | L43: 2.299999952 | M43: 0.78 | N43: 4 | O43: 0.79 | P43: 3.299999952 | Q43: 0.83 | R43: 1.799999952 | S43: 0.89 | T43: 1.600000024 | U43: 0.78 | V43: 3.700000048 | W43: 0.74 | X43: 1.700000048 | Y43: 0.83 | Z43: 2.299999952 | AA43: 0.75 | AB43: 0.8999999762 | AC43: 0.91 | AD43: 1.700000048 | AE43: 0.57
A44: 3101 | B44: 3101 Frank C. Martin K-8 Center | C44: 151 | D44: 23.60000038 | E44: 0.67 | F44: 1.5 | G44: 0.77 | H44: 0.6999999881 | I44: 0.7 | J44: 1.5 | K44: 0.73 | L44: 2.200000048 | M44: 0.72 | N44: 3.400000095 | O44: 0.67 | P44: 3.099999905 | Q44: 0.76 | R44: 1.600000024 | S44: 0.8 | T44: 1.200000048 | U44: 0.59 | V44: 3.200000048 | W44: 0.63 | X44: 1.5 | Y44: 0.76 | Z44: 1.799999952 | AA44: 0.61 | AB44: 0.6999999881 | AC44: 0.74 | AD44: 1.299999952 | AE44: 0.44
A45: 3191 | B45: 3191 Ada Merritt K-8 Center | C45: 109 | D45: 24.20000076 | E45: 0.69 | F45: 1.600000024 | G45: 0.8 | H45: 0.6999999881 | I45: 0.66 | J45: 1.600000024 | K45: 0.78 | L45: 2.299999952 | M45: 0.77 | N45: 3.400000095 | O45: 0.68 | P45: 3 | Q45: 0.76 | R45: 1.5 | S45: 0.77 | T45: 1.200000048 | U45: 0.62 | V45: 3.400000095 | W45: 0.67 | X45: 1.399999976 | Y45: 0.71 | Z45: 1.899999976 | AA45: 0.62 | AB45: 0.6999999881 | AC45: 0.74 | AD45: 1.5 | AE45: 0.5
A46: 3281 | B46: 3281 Miami Lakes K-8 Center | C46: 182 | D46: 21 | E46: 0.6 | F46: 1.399999976 | G46: 0.7 | H46: 0.6999999881 | I46: 0.67 | J46: 1.299999952 | K46: 0.65 | L46: 2.099999905 | M46: 0.69 | N46: 2.900000095 | O46: 0.58 | P46: 2.700000048 | Q46: 0.68 | R46: 1.200000048 | S46: 0.6 | T46: 1 | U46: 0.48 | V46: 2.700000048 | W46: 0.54 | X46: 1.299999952 | Y46: 0.63 | Z46: 1.700000048 | AA46: 0.58 | AB46: 0.6999999881 | AC46: 0.7 | AD46: 1.399999976 | AE46: 0.45
A47: 3421 | B47: 3421 Milam K-8 Center | C47: 102 | D47: 16.10000038 | E47: 0.46 | F47: 1.200000048 | G47: 0.58 | H47: 0.400000006 | I47: 0.35 | J47: 0.8999999762 | K47: 0.46 | L47: 1.5 | M47: 0.5 | N47: 2.5 | O47: 0.5 | P47: 1.899999976 | Q47: 0.48 | R47: 1.100000024 | S47: 0.55 | T47: 0.8000000119 | U47: 0.39 | V47: 2.099999905 | W47: 0.43 | X47: 1 | Y47: 0.49 | Z47: 1.200000048 | AA47: 0.39 | AB47: 0.6999999881 | AC47: 0.7 | AD47: 0.8999999762 | AE47: 0.3
A48: 3621 | B48: 3621 Coconut Palms K-8 Academy | C48: 136 | D48: 19.5 | E48: 0.56 | F48: 1.399999976 | G48: 0.7 | H48: 0.5 | I48: 0.46 | J48: 1.200000048 | K48: 0.61 | L48: 1.799999952 | M48: 0.6 | N48: 2.900000095 | O48: 0.57 | P48: 2.5 | Q48: 0.63 | R48: 1.200000048 | S48: 0.61 | T48: 0.8999999762 | U48: 0.46 | V48: 2.700000048 | W48: 0.54 | X48: 1.200000048 | Y48: 0.59 | Z48: 1.399999976 | AA48: 0.48 | AB48: 0.6999999881 | AC48: 0.72 | AD48: 1.100000024 | AE48: 0.35
A49: 3701 | B49: 3701 Norland Elementary School | C49: 1 | D49: 14 | E49: 0.4 | F49: 2 | G49: 1 | H49: 0 | I49: 0 | J49: 2 | K49: 1 | L49: 1 | M49: 0.33 | N49: 2 | O49: 0.4 | P49: 2 | Q49: 0.5 | R49: 2 | S49: 1 | T49: 1 | U49: 0.5 | V49: 0 | W49: 0 | X49: 1 | Y49: 0.5 | Z49: 1 | AA49: 0.33 | AB49: 0 | AC49: 0 | AD49: 0 | AE49: 0
A50: 3821 | B50: 3821 North County Elementary School | C50: 44 | D50: 17.5 | E50: 0.5 | F50: 1.100000024 | G50: 0.55 | H50: 0.400000006 | I50: 0.41 | J50: 1 | K50: 0.5 | L50: 1.899999976 | M50: 0.63 | N50: 2.5 | O50: 0.49 | P50: 2.200000048 | Q50: 0.56 | R50: 1.399999976 | S50: 0.69 | T50: 0.5 | U50: 0.27 | V50: 2.200000048 | W50: 0.44 | X50: 1.100000024 | Y50: 0.53 | Z50: 1.5 | AA50: 0.48 | AB50: 0.8000000119 | AC50: 0.77 | AD50: 1 | AE50: 0.35
A51: 4021 | B51: 4021 Oak Grove Elementary | C51: 50 | D51: 17.79999924 | E51: 0.51 | F51: 1.200000048 | G51: 0.61 | H51: 0.200000003 | I51: 0.22 | J51: 1.200000048 | K51: 0.59 | L51: 1.700000048 | M51: 0.58 | N51: 2.5 | O51: 0.5 | P51: 2.200000048 | Q51: 0.55 | R51: 1.299999952 | S51: 0.63 | T51: 0.6999999881 | U51: 0.36 | V51: 2.299999952 | W51: 0.46 | X51: 1.399999976 | Y51: 0.7 | Z51: 1.399999976 | AA51: 0.46 | AB51: 0.6999999881 | AC51: 0.66 | AD51: 1 | AE51: 0.33
A52: 4031 | B52: 4031 Gateway Environmental K-8 Learning Center | C52: 133 | D52: 18.79999924 | E52: 0.54 | F52: 1.299999952 | G52: 0.66 | H52: 0.5 | I52: 0.51 | J52: 1.200000048 | K52: 0.59 | L52: 1.600000024 | M52: 0.55 | N52: 2.799999952 | O52: 0.56 | P52: 2.299999952 | Q52: 0.57 | R52: 1.299999952 | S52: 0.67 | T52: 0.8000000119 | U52: 0.42 | V52: 2.5 | W52: 0.51 | X52: 1.200000048 | Y52: 0.62 | Z52: 1.399999976 | AA52: 0.48 | AB52: 0.6999999881 | AC52: 0.65 | AD52: 0.8999999762 | AE52: 0.32
A53: 4391 | B53: 4391 Irving and Beatrice Peskoe Elementary School | C53: 45 | D53: 17 | E53: 0.49 | F53: 1.200000048 | G53: 0.62 | H53: 0.400000006 | I53: 0.36 | J53: 1 | K53: 0.49 | L53: 1.700000048 | M53: 0.57 | N53: 2.299999952 | O53: 0.46 | P53: 2.099999905 | Q53: 0.53 | R53: 1.100000024 | S53: 0.54 | T53: 0.6999999881 | U53: 0.34 | V53: 2.400000095 | W53: 0.48 | X53: 1.100000024 | Y53: 0.57 | Z53: 1.299999952 | AA53: 0.43 | AB53: 0.5 | AC53: 0.51 | AD53: 1.200000048 | AE53: 0.39
A54: 4691 | B54: 4691 Jane S. Roberts K-8 Center | C54: 109 | D54: 21.39999962 | E54: 0.61 | F54: 1.5 | G54: 0.75 | H54: 0.6999999881 | I54: 0.65 | J54: 1.200000048 | K54: 0.6 | L54: 2 | M54: 0.68 | N54: 3 | O54: 0.61 | P54: 2.799999952 | Q54: 0.71 | R54: 1.5 | S54: 0.74 | T54: 1 | U54: 0.51 | V54: 2.799999952 | W54: 0.55 | X54: 1.299999952 | Y54: 0.65 | Z54: 1.700000048 | AA54: 0.58 | AB54: 0.8000000119 | AC54: 0.75 | AD54: 1.200000048 | AE54: 0.4
A55: 5003 | B55: 5003 South Dade Middle School | C55: 252 | D55: 18.79999924 | E55: 0.54 | F55: 1.299999952 | G55: 0.65 | H55: 0.5 | I55: 0.5 | J55: 1.100000024 | K55: 0.56 | L55: 1.700000048 | M55: 0.58 | N55: 2.700000048 | O55: 0.54 | P55: 2.400000095 | Q55: 0.61 | R55: 1.200000048 | S55: 0.6 | T55: 0.8999999762 | U55: 0.45 | V55: 2.599999905 | W55: 0.51 | X55: 1.100000024 | Y55: 0.55 | Z55: 1.5 | AA55: 0.49 | AB55: 0.6999999881 | AC55: 0.69 | AD55: 1.100000024 | AE55: 0.36
A56: 5005 | B56: 5005 David Lawrence Jr. K8 Center | C56: 166 | D56: 21.60000038 | E56: 0.62 | F56: 1.5 | G56: 0.77 | H56: 0.6000000238 | I56: 0.59 | J56: 1.299999952 | K56: 0.66 | L56: 2.099999905 | M56: 0.69 | N56: 3.099999905 | O56: 0.62 | P56: 2.700000048 | Q56: 0.67 | R56: 1.399999976 | S56: 0.69 | T56: 1 | U56: 0.52 | V56: 2.799999952 | W56: 0.56 | X56: 1.399999976 | Y56: 0.7 | Z56: 1.600000024 | AA56: 0.52 | AB56: 0.8000000119 | AC56: 0.78 | AD56: 1.299999952 | AE56: 0.43
A57: 5007 | B57: 5007 Lincoln-marti Charter Schools (Hialeah) | C57: 37 | D57: 20.39999962 | E57: 0.58 | F57: 1.200000048 | G57: 0.61 | H57: 0.5 | I57: 0.46 | J57: 1.5 | K57: 0.73 | L57: 1.799999952 | M57: 0.6 | N57: 3 | O57: 0.61 | P57: 2.400000095 | Q57: 0.59 | R57: 1.200000048 | S57: 0.59 | T57: 1.100000024 | U57: 0.55 | V57: 2.900000095 | W57: 0.57 | X57: 1.399999976 | Y57: 0.68 | Z57: 1.5 | AA57: 0.51 | AB57: 0.6999999881 | AC57: 0.68 | AD57: 1.299999952 | AE57: 0.44
A58: 5021 | B58: 5021 Ben Sheppard Elementary | C58: 1 | D58: 26 | E58: 0.74 | F58: 1 | G58: 0.5 | H58: 1 | I58: 1 | J58: 2 | K58: 1 | L58: 3 | M58: 1 | N58: 4 | O58: 0.8 | P58: 4 | Q58: 1 | R58: 2 | S58: 1 | T58: 1 | U58: 0.5 | V58: 3 | W58: 0.6 | X58: 2 | Y58: 1 | Z58: 1 | AA58: 0.33 | AB58: 1 | AC58: 1 | AD58: 1 | AE58: 0.33
A59: 5022 | B59: 5022 Ben Gamla Charter School (Miami Beach) | C59: 13 | D59: 20.29999924 | E59: 0.58 | F59: 1.399999976 | G59: 0.69 | H59: 0.5 | I59: 0.54 | J59: 1.200000048 | K59: 0.62 | L59: 2 | M59: 0.67 | N59: 2.700000048 | O59: 0.54 | P59: 2.599999905 | Q59: 0.65 | R59: 1.200000048 | S59: 0.58 | T59: 0.8000000119 | U59: 0.38 | V59: 3 | W59: 0.6 | X59: 1.399999976 | Y59: 0.69 | Z59: 1.799999952 | AA59: 0.62 | AB59: 0.8000000119 | AC59: 0.77 | AD59: 0.8999999762 | AE59: 0.31
A60: 5025 | B60: 5025 Lincoln-marti Charter Schools(Little Havana) | C60: 73 | D60: 16.20000076 | E60: 0.46 | F60: 1.100000024 | G60: 0.57 | H60: 0.3000000119 | I60: 0.29 | J60: 0.8999999762 | K60: 0.46 | L60: 1.600000024 | M60: 0.54 | N60: 2.599999905 | O60: 0.52 | P60: 1.899999976 | Q60: 0.48 | R60: 1.100000024 | S60: 0.55 | T60: 0.6999999881 | U60: 0.36 | V60: 2.099999905 | W60: 0.42 | X60: 1 | Y60: 0.48 | Z60: 1.200000048 | AA60: 0.41 | AB60: 0.6999999881 | AC60: 0.67 | AD60: 0.8999999762 | AE60: 0.31
A61: 5029 | B61: 5029 Excelsior Language Academy of Hialeah | C61: 80 | D61: 18.79999924 | E61: 0.54 | F61: 1.200000048 | G61: 0.62 | H61: 0.5 | I61: 0.54 | J61: 1 | K61: 0.49 | L61: 1.799999952 | M61: 0.61 | N61: 2.799999952 | O61: 0.56 | P61: 2.400000095 | Q61: 0.61 | R61: 1.200000048 | S61: 0.57 | T61: 0.8000000119 | U61: 0.42 | V61: 2.5 | W61: 0.49 | X61: 1.299999952 | Y61: 0.66 | Z61: 1.399999976 | AA61: 0.46 | AB61: 0.6000000238 | AC61: 0.63 | AD61: 1.200000048 | AE61: 0.39
A62: 5032 | B62: 5032 Excelsior Charter Academy | C62: 15 | D62: 20 | E62: 0.57 | F62: 1.5 | G62: 0.73 | H62: 0.3000000119 | I62: 0.33 | J62: 1.399999976 | K62: 0.7 | L62: 1.700000048 | M62: 0.58 | N62: 2.5 | O62: 0.51 | P62: 2.700000048 | Q62: 0.67 | R62: 1.200000048 | S62: 0.6 | T62: 1 | U62: 0.5 | V62: 2.599999905 | W62: 0.52 | X62: 1.600000024 | Y62: 0.8 | Z62: 1.5 | AA62: 0.51 | AB62: 0.6999999881 | AC62: 0.73 | AD62: 1.200000048 | AE62: 0.4
A63: 5047 | B63: 5047 Mater Academy (Miami Beach) | C63: 76 | D63: 21.29999924 | E63: 0.61 | F63: 1.5 | G63: 0.76 | H63: 0.6000000238 | I63: 0.62 | J63: 1.200000048 | K63: 0.61 | L63: 2.200000048 | M63: 0.73 | N63: 2.700000048 | O63: 0.55 | P63: 2.799999952 | Q63: 0.71 | R63: 1.399999976 | S63: 0.69 | T63: 1 | U63: 0.51 | V63: 2.799999952 | W63: 0.57 | X63: 1.299999952 | Y63: 0.64 | Z63: 1.5 | AA63: 0.51 | AB63: 0.8000000119 | AC63: 0.75 | AD63: 1.299999952 | AE63: 0.44
A64: 5049 | B64: 5049 Pinecrest Cove Academy | C64: 31 | D64: 22.39999962 | E64: 0.64 | F64: 1.5 | G64: 0.73 | H64: 0.6000000238 | I64: 0.61 | J64: 1.5 | K64: 0.74 | L64: 2.400000095 | M64: 0.8 | N64: 3.200000048 | O64: 0.64 | P64: 2.700000048 | Q64: 0.67 | R64: 1.200000048 | S64: 0.6 | T64: 1.299999952 | U64: 0.66 | V64: 2.599999905 | W64: 0.53 | X64: 1.299999952 | Y64: 0.65 | Z64: 1.799999952 | AA64: 0.6 | AB64: 0.8999999762 | AC64: 0.87 | AD64: 1.5 | AE64: 0.48
A65: 5051 | B65: 5051 Ernest R Graham Elementary | C65: 105 | D65: 20.89999962 | E65: 0.6 | F65: 1.399999976 | G65: 0.72 | H65: 0.5 | I65: 0.48 | J65: 1.200000048 | K65: 0.6 | L65: 1.899999976 | M65: 0.65 | N65: 3 | O65: 0.59 | P65: 2.700000048 | Q65: 0.69 | R65: 1.399999976 | S65: 0.71 | T65: 1 | U65: 0.48 | V65: 2.700000048 | W65: 0.54 | X65: 1.299999952 | Y65: 0.65 | Z65: 1.600000024 | AA65: 0.55 | AB65: 0.8000000119 | AC65: 0.77 | AD65: 1.299999952 | AE65: 0.45
A66: 5101 | B66: 5101 John I. Smith Elementary | C66: 127 | D66: 20.20000076 | E66: 0.58 | F66: 1.299999952 | G66: 0.67 | H66: 0.6000000238 | I66: 0.57 | J66: 1.299999952 | K66: 0.66 | L66: 1.799999952 | M66: 0.61 | N66: 3 | O66: 0.59 | P66: 2.5 | Q66: 0.64 | R66: 1.299999952 | S66: 0.65 | T66: 0.8999999762 | U66: 0.47 | V66: 2.700000048 | W66: 0.54 | X66: 1.299999952 | Y66: 0.67 | Z66: 1.5 | AA66: 0.51 | AB66: 0.6999999881 | AC66: 0.71 | AD66: 1.100000024 | AE66: 0.36
A67: 5141 | B67: 5141 Hubert O. Sibley Elem. | C67: 91 | D67: 18.39999962 | E67: 0.53 | F67: 1.299999952 | G67: 0.63 | H67: 0.5 | I67: 0.55 | J67: 1.100000024 | K67: 0.57 | L67: 1.899999976 | M67: 0.63 | N67: 2.599999905 | O67: 0.52 | P67: 2.299999952 | Q67: 0.57 | R67: 1.299999952 | S67: 0.64 | T67: 0.8000000119 | U67: 0.38 | V67: 2.200000048 | W67: 0.44 | X67: 1.299999952 | Y67: 0.66 | Z67: 1.399999976 | AA67: 0.46 | AB67: 0.8000000119 | AC67: 0.76 | AD67: 0.8999999762 | AE67: 0.31
A68: 5241 | B68: 5241 South Miami K-8 Center | C68: 79 | D68: 19.29999924 | E68: 0.55 | F68: 1.399999976 | G68: 0.69 | H68: 0.6000000238 | I68: 0.59 | J68: 1.200000048 | K68: 0.62 | L68: 1.899999976 | M68: 0.63 | N68: 2.700000048 | O68: 0.53 | P68: 2.5 | Q68: 0.62 | R68: 1.299999952 | S68: 0.63 | T68: 0.6999999881 | U68: 0.35 | V68: 2.5 | W68: 0.49 | X68: 1.299999952 | Y68: 0.64 | Z68: 1.5 | AA68: 0.51 | AB68: 0.6999999881 | AC68: 0.71 | AD68: 1.100000024 | AE68: 0.36
A69: 5671 | B69: 5671 Vineland K-8 Center | C69: 89 | D69: 24 | E69: 0.68 | F69: 1.600000024 | G69: 0.82 | H69: 0.8000000119 | I69: 0.79 | J69: 1.600000024 | K69: 0.78 | L69: 2 | M69: 0.68 | N69: 3.599999905 | O69: 0.71 | P69: 3.099999905 | Q69: 0.78 | R69: 1.5 | S69: 0.76 | T69: 1.100000024 | U69: 0.54 | V69: 3.099999905 | W69: 0.63 | X69: 1.600000024 | Y69: 0.78 | Z69: 1.899999976 | AA69: 0.62 | AB69: 0.8000000119 | AC69: 0.76 | AD69: 1.399999976 | AE69: 0.46
A70: 5861 | B70: 5861 Dr. Henry W. Mack/West Little River Elem. | C70: 40 | D70: 16.70000076 | E70: 0.48 | F70: 1.200000048 | G70: 0.59 | H70: 0.5 | I70: 0.52 | J70: 0.8999999762 | K70: 0.43 | L70: 1.799999952 | M70: 0.59 | N70: 2.599999905 | O70: 0.51 | P70: 2 | Q70: 0.51 | R70: 1.200000048 | S70: 0.57 | T70: 0.6000000238 | U70: 0.31 | V70: 2.099999905 | W70: 0.41 | X70: 1.200000048 | Y70: 0.57 | Z70: 1.100000024 | AA70: 0.36 | AB70: 0.6999999881 | AC70: 0.68 | AD70: 1 | AE70: 0.34
A71: 5901 | B71: 5901 Carrie P. Meek/Westview Elementary | C71: 52 | D71: 18.29999924 | E71: 0.52 | F71: 1.200000048 | G71: 0.6 | H71: 0.3000000119 | I71: 0.33 | J71: 1.200000048 | K71: 0.59 | L71: 1.600000024 | M71: 0.54 | N71: 2.400000095 | O71: 0.49 | P71: 2.599999905 | Q71: 0.64 | R71: 1.399999976 | S71: 0.69 | T71: 0.8000000119 | U71: 0.38 | V71: 2.599999905 | W71: 0.52 | X71: 1.100000024 | Y71: 0.57 | Z71: 1.399999976 | AA71: 0.46 | AB71: 0.8000000119 | AC71: 0.77 | AD71: 0.8999999762 | AE71: 0.3
A72: 5961 | B72: 5961 Winston Park K-8 Center | C72: 153 | D72: 20.89999962 | E72: 0.6 | F72: 1.399999976 | G72: 0.71 | H72: 0.5 | I72: 0.52 | J72: 1.299999952 | K72: 0.63 | L72: 1.899999976 | M72: 0.62 | N72: 3.200000048 | O72: 0.63 | P72: 2.599999905 | Q72: 0.65 | R72: 1.5 | S72: 0.74 | T72: 0.8999999762 | U72: 0.47 | V72: 2.599999905 | W72: 0.53 | X72: 1.5 | Y72: 0.73 | Z72: 1.700000048 | AA72: 0.58 | AB72: 0.8000000119 | AC72: 0.79 | AD72: 1 | AE72: 0.35
A73: 6001 | B73: 6001 Herbert A. Ammons Middle School | C73: 421 | D73: 25.29999924 | E73: 0.72 | F73: 1.600000024 | G73: 0.81 | H73: 0.8000000119 | I73: 0.76 | J73: 1.600000024 | K73: 0.78 | L73: 2.299999952 | M73: 0.76 | N73: 3.599999905 | O73: 0.71 | P73: 3.299999952 | Q73: 0.82 | R73: 1.600000024 | S73: 0.8 | T73: 1.299999952 | U73: 0.63 | V73: 3.5 | W73: 0.7 | X73: 1.600000024 | Y73: 0.78 | Z73: 2 | AA73: 0.65 | AB73: 0.8999999762 | AC73: 0.87 | AD73: 1.5 | AE73: 0.51
A74: 6003 | B74: 6003 Pinecrest Academy Middle | C74: 14 | D74: 20.39999962 | E74: 0.58 | F74: 1.100000024 | G74: 0.57 | H74: 0.6999999881 | I74: 0.71 | J74: 1 | K74: 0.5 | L74: 2.400000095 | M74: 0.79 | N74: 3.099999905 | O74: 0.61 | P74: 2.400000095 | Q74: 0.61 | R74: 1.399999976 | S74: 0.71 | T74: 0.8000000119 | U74: 0.39 | V74: 2.5 | W74: 0.5 | X74: 1.399999976 | Y74: 0.71 | Z74: 1.399999976 | AA74: 0.45 | AB74: 0.8999999762 | AC74: 0.86 | AD74: 1.399999976 | AE74: 0.45
A75: 6004 | B75: 6004 Somerset Academy Charter Middle | C75: 97 | D75: 23.20000076 | E75: 0.66 | F75: 1.5 | G75: 0.76 | H75: 0.8000000119 | I75: 0.77 | J75: 1.399999976 | K75: 0.68 | L75: 2.400000095 | M75: 0.8 | N75: 3.200000048 | O75: 0.65 | P75: 3 | Q75: 0.75 | R75: 1.5 | S75: 0.76 | T75: 1 | U75: 0.51 | V75: 3.099999905 | W75: 0.61 | X75: 1.399999976 | Y75: 0.68 | Z75: 1.700000048 | AA75: 0.57 | AB75: 0.8000000119 | AC75: 0.76 | AD75: 1.5 | AE75: 0.5
A76: 6006 | B76: 6006 Archimedean Middle Conservatory | C76: 117 | D76: 25.79999924 | E76: 0.74 | F76: 1.700000048 | G76: 0.84 | H76: 0.8000000119 | I76: 0.79 | J76: 1.399999976 | K76: 0.72 | L76: 2.400000095 | M76: 0.79 | N76: 3.700000048 | O76: 0.74 | P76: 3.299999952 | Q76: 0.82 | R76: 1.600000024 | S76: 0.82 | T76: 1.399999976 | U76: 0.7 | V76: 3.400000095 | W76: 0.68 | X76: 1.600000024 | Y76: 0.82 | Z76: 2 | AA76: 0.67 | AB76: 0.8000000119 | AC76: 0.8 | AD76: 1.600000024 | AE76: 0.53
A77: 6008 | B77: 6008 Lawrence Academy | C77: 47 | D77: 16.60000038 | E77: 0.47 | F77: 1.200000048 | G77: 0.59 | H77: 0.400000006 | I77: 0.45 | J77: 1 | K77: 0.5 | L77: 1.5 | M77: 0.49 | N77: 2.299999952 | O77: 0.46 | P77: 2.200000048 | Q77: 0.54 | R77: 1.100000024 | S77: 0.55 | T77: 0.5 | U77: 0.27 | V77: 2.200000048 | W77: 0.45 | X77: 1.299999952 | Y77: 0.66 | Z77: 1.399999976 | AA77: 0.46 | AB77: 0.6999999881 | AC77: 0.72 | AD77: 0.6999999881 | AE77: 0.25
A78: 6009 | B78: 6009 Mater East Academy Middle School | C78: 103 | D78: 20.20000076 | E78: 0.58 | F78: 1.399999976 | G78: 0.7 | H78: 0.5 | I78: 0.53 | J78: 1.100000024 | K78: 0.54 | L78: 2 | M78: 0.67 | N78: 2.900000095 | O78: 0.58 | P78: 2.5 | Q78: 0.61 | R78: 1.299999952 | S78: 0.67 | T78: 0.8999999762 | U78: 0.44 | V78: 2.700000048 | W78: 0.55 | X78: 1.299999952 | Y78: 0.63 | Z78: 1.5 | AA78: 0.51 | AB78: 0.6999999881 | AC78: 0.72 | AD78: 1.200000048 | AE78: 0.41
A79: =IFERROR(VALUE(LEFT(B79,4)),"") -> 6010 | B79: 6010 Florida International Academy | C79: 132 | D79: 18.70000076 | E79: 0.53 | F79: 1.399999976 | G79: 0.68 | H79: 0.5 | I79: 0.47 | J79: 1.200000048 | K79: 0.59 | L79: 1.700000048 | M79: 0.58 | N79: 2.700000048 | O79: 0.54 | P79: 2.299999952 | Q79: 0.58 | R79: 1.399999976 | S79: 0.69 | T79: 0.8000000119 | U79: 0.38 | V79: 2.5 | W79: 0.5 | X79: 1.200000048 | Y79: 0.61 | Z79: 1.299999952 | AA79: 0.44 | AB79: 0.6999999881 | AC79: 0.67 | AD79: 1.100000024 | AE79: 0.36
A80: 6011 | B80: 6011 Allapattah Middle | C80: 188 | D80: 14.89999962 | E80: 0.43 | F80: 1 | G80: 0.52 | H80: 0.3000000119 | I80: 0.34 | J80: 0.8999999762 | K80: 0.46 | L80: 1.399999976 | M80: 0.46 | N80: 2.400000095 | O80: 0.47 | P80: 1.799999952 | Q80: 0.46 | R80: 1 | S80: 0.51 | T80: 0.400000006 | U80: 0.22 | V80: 1.899999976 | W80: 0.37 | X80: 1 | Y80: 0.52 | Z80: 1.200000048 | AA80: 0.39 | AB80: 0.6000000238 | AC80: 0.62 | AD80: 0.8999999762 | AE80: 0.29
A81: 6012 | B81: 6012 Mater Academy Middle | C81: 477 | D81: 21.29999924 | E81: 0.61 | F81: 1.399999976 | G81: 0.72 | H81: 0.6000000238 | I81: 0.57 | J81: 1.299999952 | K81: 0.64 | L81: 2 | M81: 0.65 | N81: 3.099999905 | O81: 0.62 | P81: 2.700000048 | Q81: 0.68 | R81: 1.399999976 | S81: 0.68 | T81: 1 | U81: 0.48 | V81: 2.900000095 | W81: 0.57 | X81: 1.399999976 | Y81: 0.7 | Z81: 1.700000048 | AA81: 0.56 | AB81: 0.8000000119 | AC81: 0.75 | AD81: 1.200000048 | AE81: 0.4
A82: 6013 | B82: 6013 Somerset Academy MS (South Campus) | C82: 43 | D82: 20.60000038 | E82: 0.59 | F82: 1.5 | G82: 0.73 | H82: 0.6000000238 | I82: 0.56 | J82: 1.200000048 | K82: 0.6 | L82: 2 | M82: 0.66 | N82: 3.099999905 | O82: 0.62 | P82: 2.599999905 | Q82: 0.65 | R82: 1.200000048 | S82: 0.62 | T82: 1.100000024 | U82: 0.53 | V82: 2.700000048 | W82: 0.54 | X82: 1.200000048 | Y82: 0.59 | Z82: 1.600000024 | AA82: 0.53 | AB82: 0.6000000238 | AC82: 0.63 | AD82: 1.299999952 | AE82: 0.43
A83: 6020 | B83: 6020 Aspira Charter | C83: 203 | D83: 18.60000038 | E83: 0.53 | F83: 1.299999952 | G83: 0.64 | H83: 0.5 | I83: 0.53 | J83: 1.299999952 | K83: 0.63 | L83: 1.600000024 | M83: 0.54 | N83: 2.599999905 | O83: 0.52 | P83: 2.200000048 | Q83: 0.54 | R83: 1.299999952 | S83: 0.67 | T83: 0.8000000119 | U83: 0.38 | V83: 2.400000095 | W83: 0.48 | X83: 1.200000048 | Y83: 0.6 | Z83: 1.5 | AA83: 0.5 | AB83: 0.6999999881 | AC83: 0.72 | AD83: 1.200000048 | AE83: 0.39
A84: 6021 | B84: 6021 Arvida Middle School | C84: 372 | D84: 23.5 | E84: 0.67 | F84: 1.5 | G84: 0.77 | H84: 0.6999999881 | I84: 0.69 | J84: 1.5 | K84: 0.75 | L84: 2.200000048 | M84: 0.73 | N84: 3.400000095 | O84: 0.68 | P84: 3 | Q84: 0.75 | R84: 1.5 | S84: 0.75 | T84: 1.100000024 | U84: 0.56 | V84: 3.099999905 | W84: 0.62 | X84: 1.399999976 | Y84: 0.72 | Z84: 1.799999952 | AA84: 0.59 | AB84: 0.8000000119 | AC84: 0.79 | AD84: 1.399999976 | AE84: 0.48
A85: 6022 | B85: 6022 Pinecrest Academy Charter Middle | C85: 208 | D85: 21.39999962 | E85: 0.61 | F85: 1.399999976 | G85: 0.72 | H85: 0.6999999881 | I85: 0.7 | J85: 1.299999952 | K85: 0.66 | L85: 2 | M85: 0.66 | N85: 2.900000095 | O85: 0.58 | P85: 2.700000048 | Q85: 0.67 | R85: 1.399999976 | S85: 0.7 | T85: 1.100000024 | U85: 0.54 | V85: 2.900000095 | W85: 0.57 | X85: 1.299999952 | Y85: 0.67 | Z85: 1.600000024 | AA85: 0.55 | AB85: 0.8000000119 | AC85: 0.77 | AD85: 1.299999952 | AE85: 0.43
A86: 6023 | B86: 6023 Andover Middle School | C86: 356 | D86: 18.89999962 | E86: 0.54 | F86: 1.399999976 | G86: 0.68 | H86: 0.5 | I86: 0.51 | J86: 1.100000024 | K86: 0.56 | L86: 1.700000048 | M86: 0.58 | N86: 2.799999952 | O86: 0.55 | P86: 2.400000095 | Q86: 0.61 | R86: 1.299999952 | S86: 0.67 | T86: 0.8000000119 | U86: 0.4 | V86: 2.5 | W86: 0.5 | X86: 1.200000048 | Y86: 0.62 | Z86: 1.5 | AA86: 0.49 | AB86: 0.6999999881 | AC86: 0.72 | AD86: 0.8999999762 | AE86: 0.31
A87: 6028 | B87: 6028 Renaisssance Middle Charter School | C87: 1 | D87: 20 | E87: 0.57 | F87: 1 | G87: 0.5 | H87: 1 | I87: 1 | J87: 2 | K87: 1 | L87: 2 | M87: 0.67 | N87: 3 | O87: 0.6 | P87: 3 | Q87: 0.75 | R87: 2 | S87: 1 | T87: 0 | U87: 0 | V87: 2 | W87: 0.4 | X87: 1 | Y87: 0.5 | Z87: 2 | AA87: 0.67 | AB87: 1 | AC87: 1 | AD87: 0 | AE87: 0
A88: 6030 | B88: 6030 Doral Academy Charter Middle | C88: 467 | D88: 22.5 | E88: 0.64 | F88: 1.5 | G88: 0.75 | H88: 0.6999999881 | I88: 0.71 | J88: 1.399999976 | K88: 0.68 | L88: 2.099999905 | M88: 0.69 | N88: 3.099999905 | O88: 0.63 | P88: 2.799999952 | Q88: 0.71 | R88: 1.399999976 | S88: 0.71 | T88: 1.100000024 | U88: 0.54 | V88: 3.099999905 | W88: 0.62 | X88: 1.399999976 | Y88: 0.68 | Z88: 1.799999952 | AA88: 0.61 | AB88: 0.8000000119 | AC88: 0.82 | AD88: 1.299999952 | AE88: 0.42
A89: 6031 | B89: 6031 Brownsville Middle School | C89: 210 | D89: 15.19999981 | E89: 0.43 | F89: 1.100000024 | G89: 0.53 | H89: 0.400000006 | I89: 0.42 | J89: 1.100000024 | K89: 0.55 | L89: 1.399999976 | M89: 0.46 | N89: 2.299999952 | O89: 0.47 | P89: 1.799999952 | Q89: 0.45 | R89: 1 | S89: 0.51 | T89: 0.5 | U89: 0.26 | V89: 1.899999976 | W89: 0.38 | X89: 1.100000024 | Y89: 0.53 | Z89: 1.299999952 | AA89: 0.42 | AB89: 0.6000000238 | AC89: 0.63 | AD89: 0.6999999881 | AE89: 0.22
A90: 6033 | B90: 6033 Mater Academy Lakes Middle School | C90: 196 | D90: 23.79999924 | E90: 0.68 | F90: 1.5 | G90: 0.75 | H90: 0.6999999881 | I90: 0.66 | J90: 1.399999976 | K90: 0.72 | L90: 2.400000095 | M90: 0.79 | N90: 3.400000095 | O90: 0.67 | P90: 3 | Q90: 0.76 | R90: 1.5 | S90: 0.76 | T90: 1.100000024 | U90: 0.56 | V90: 3.200000048 | W90: 0.63 | X90: 1.399999976 | Y90: 0.71 | Z90: 1.899999976 | AA90: 0.62 | AB90: 0.8000000119 | AC90: 0.8 | AD90: 1.600000024 | AE90: 0.52
A91: 6040 | B91: 6040 Doctors Charter School Of Miami Shores | C91: 84 | D91: 23.5 | E91: 0.67 | F91: 1.700000048 | G91: 0.84 | H91: 0.6999999881 | I91: 0.73 | J91: 1.399999976 | K91: 0.7 | L91: 2.299999952 | M91: 0.77 | N91: 3.200000048 | O91: 0.64 | P91: 3 | Q91: 0.74 | R91: 1.5 | S91: 0.77 | T91: 0.8999999762 | U91: 0.47 | V91: 3.200000048 | W91: 0.64 | X91: 1.399999976 | Y91: 0.7 | Z91: 1.899999976 | AA91: 0.64 | AB91: 0.8000000119 | AC91: 0.81 | AD91: 1.399999976 | AE91: 0.46
A92: 6041 | B92: 6041 Paul W. Bell Middle School | C92: 173 | D92: 18.39999962 | E92: 0.52 | F92: 1.200000048 | G92: 0.61 | H92: 0.5 | I92: 0.46 | J92: 1.200000048 | K92: 0.58 | L92: 1.700000048 | M92: 0.58 | N92: 2.700000048 | O92: 0.54 | P92: 2.400000095 | Q92: 0.59 | R92: 1.200000048 | S92: 0.6 | T92: 0.6999999881 | U92: 0.33 | V92: 2.400000095 | W92: 0.47 | X92: 1.299999952 | Y92: 0.63 | Z92: 1.600000024 | AA92: 0.53 | AB92: 0.6999999881 | AC92: 0.7 | AD92: 1 | AE92: 0.33
A93: 6042 | B93: 6042 Mater Gardens Academy Middle School | C93: 97 | D93: 24.10000038 | E93: 0.69 | F93: 1.5 | G93: 0.75 | H93: 0.6999999881 | I93: 0.72 | J93: 1.5 | K93: 0.74 | L93: 2.200000048 | M93: 0.74 | N93: 3.599999905 | O93: 0.71 | P93: 3 | Q93: 0.76 | R93: 1.600000024 | S93: 0.78 | T93: 1.200000048 | U93: 0.59 | V93: 3.200000048 | W93: 0.65 | X93: 1.600000024 | Y93: 0.79 | Z93: 1.700000048 | AA93: 0.57 | AB93: 0.8000000119 | AC93: 0.77 | AD93: 1.5 | AE93: 0.51
A94: 6043 | B94: 6043 Somerset Academy MS (Country Palms) | C94: 14 | D94: 19.70000076 | E94: 0.56 | F94: 1.5 | G94: 0.75 | H94: 0.6000000238 | I94: 0.64 | J94: 1.299999952 | K94: 0.64 | L94: 2.200000048 | M94: 0.74 | N94: 2.700000048 | O94: 0.54 | P94: 2.700000048 | Q94: 0.68 | R94: 1.100000024 | S94: 0.54 | T94: 0.8000000119 | U94: 0.39 | V94: 2.599999905 | W94: 0.53 | X94: 1.100000024 | Y94: 0.54 | Z94: 1.100000024 | AA94: 0.38 | AB94: 0.8000000119 | AC94: 0.79 | AD94: 1.100000024 | AE94: 0.38
A95: 6045 | B95: 6045 International Studies Charter Middle | C95: 68 | D95: 20.5 | E95: 0.59 | F95: 1.399999976 | G95: 0.68 | H95: 0.6999999881 | I95: 0.66 | J95: 1.200000048 | K95: 0.6 | L95: 1.899999976 | M95: 0.64 | N95: 3 | O95: 0.6 | P95: 2.5 | Q95: 0.63 | R95: 1.399999976 | S95: 0.72 | T95: 1 | U95: 0.49 | V95: 2.599999905 | W95: 0.51 | X95: 1.299999952 | Y95: 0.64 | Z95: 1.600000024 | AA95: 0.53 | AB95: 0.8000000119 | AC95: 0.76 | AD95: 1.200000048 | AE95: 0.4
A96: 6047 | B96: 6047 Mater Acad. MS of International Studies | C96: 41 | D96: 21.10000038 | E96: 0.6 | F96: 1.5 | G96: 0.77 | H96: 0.6000000238 | I96: 0.61 | J96: 1.299999952 | K96: 0.67 | L96: 1.899999976 | M96: 0.64 | N96: 3.099999905 | O96: 0.62 | P96: 2.400000095 | Q96: 0.61 | R96: 1.399999976 | S96: 0.72 | T96: 1.100000024 | U96: 0.56 | V96: 3 | W96: 0.6 | X96: 1.200000048 | Y96: 0.6 | Z96: 1.5 | AA96: 0.49 | AB96: 0.6999999881 | AC96: 0.68 | AD96: 1.299999952 | AE96: 0.42
A97: 6048 | B97: 6048 Miami Community Charter Middle School | C97: 78 | D97: 18.70000076 | E97: 0.53 | F97: 1.299999952 | G97: 0.63 | H97: 0.5 | I97: 0.47 | J97: 1.100000024 | K97: 0.56 | L97: 1.799999952 | M97: 0.59 | N97: 2.599999905 | O97: 0.52 | P97: 2.299999952 | Q97: 0.59 | R97: 1.299999952 | S97: 0.67 | T97: 0.6999999881 | U97: 0.37 | V97: 2.5 | W97: 0.51 | X97: 1.200000048 | Y97: 0.61 | Z97: 1.5 | AA97: 0.51 | AB97: 0.6000000238 | AC97: 0.64 | AD97: 1.100000024 | AE97: 0.37
A98: 6049 | B98: 6049 River Cities Community Charter School | C98: 52 | D98: 13.39999962 | E98: 0.38 | F98: 0.8999999762 | G98: 0.46 | H98: 0.400000006 | I98: 0.38 | J98: 0.6999999881 | K98: 0.37 | L98: 1.299999952 | M98: 0.42 | N98: 2.099999905 | O98: 0.42 | P98: 1.5 | Q98: 0.38 | R98: 0.8000000119 | S98: 0.39 | T98: 0.5 | U98: 0.23 | V98: 1.700000048 | W98: 0.34 | X98: 1 | Y98: 0.52 | Z98: 1 | AA98: 0.34 | AB98: 0.6000000238 | AC98: 0.56 | AD98: 0.8999999762 | AE98: 0.31
A99: 6051 | B99: 6051 Carol City Middle School | C99: 212 | D99: 17.60000038 | E99: 0.5 | F99: 1.200000048 | G99: 0.62 | H99: 0.5 | I99: 0.46 | J99: 1.100000024 | K99: 0.57 | L99: 1.700000048 | M99: 0.55 | N99: 2.400000095 | O99: 0.48 | P99: 2.099999905 | Q99: 0.53 | R99: 1.200000048 | S99: 0.61 | T99: 0.6999999881 | U99: 0.37 | V99: 2.299999952 | W99: 0.45 | X99: 1.200000048 | Y99: 0.6 | Z99: 1.299999952 | AA99: 0.43 | AB99: 0.6999999881 | AC99: 0.73 | AD99: 1.100000024 | AE99: 0.38
A100: 6052 | B100: 6052 Zelda Glazer Middle | C100: 408 | D100: 19.60000038 | E100: 0.56 | F100: 1.299999952 | G100: 0.67 | H100: 0.6000000238 | I100: 0.6 | J100: 1.200000048 | K100: 0.58 | L100: 1.799999952 | M100: 0.62 | N100: 2.799999952 | O100: 0.55 | P100: 2.5 | Q100: 0.64 | R100: 1.299999952 | S100: 0.63 | T100: 0.8000000119 | U100: 0.41 | V100: 2.599999905 | W100: 0.52 | X100: 1.299999952 | Y100: 0.63 | Z100: 1.600000024 | AA100: 0.53 | AB100: 0.6999999881 | AC100: 0.75 | AD100: 1.100000024 | AE100: 0.36
A101: 6053 | B101: 6053 Somerset Academy Middle (South Miami) | C101: 54 | D101: 24.20000076 | E101: 0.69 | F101: 1.5 | G101: 0.75 | H101: 0.8000000119 | I101: 0.83 | J101: 1.399999976 | K101: 0.71 | L101: 2.400000095 | M101: 0.8 | N101: 3.200000048 | O101: 0.64 | P101: 3.299999952 | Q101: 0.82 | R101: 1.600000024 | S101: 0.8 | T101: 1.299999952 | U101: 0.66 | V101: 3.200000048 | W101: 0.64 | X101: 1.600000024 | Y101: 0.79 | Z101: 1.799999952 | AA101: 0.6 | AB101: 0.8000000119 | AC101: 0.8 | AD101: 1.299999952 | AE101: 0.44
A102: 6060 | B102: 6060 Aspira south | C102: 79 | D102: 19.89999962 | E102: 0.57 | F102: 1.5 | G102: 0.77 | H102: 0.5 | I102: 0.52 | J102: 1.299999952 | K102: 0.63 | L102: 2 | M102: 0.65 | N102: 2.900000095 | O102: 0.58 | P102: 2.400000095 | Q102: 0.6 | R102: 1.100000024 | S102: 0.54 | T102: 0.8999999762 | U102: 0.44 | V102: 2.599999905 | W102: 0.53 | X102: 1.200000048 | Y102: 0.6 | Z102: 1.600000024 | AA102: 0.53 | AB102: 0.6999999881 | AC102: 0.7 | AD102: 1.200000048 | AE102: 0.41
A103: 6061 | B103: 6061 Campbell Drive Middle School | C103: 143 | D103: 15.5 | E103: 0.44 | F103: 1 | G103: 0.52 | H103: 0.3000000119 | I103: 0.3 | J103: 1 | K103: 0.48 | L103: 1.600000024 | M103: 0.53 | N103: 2.200000048 | O103: 0.43 | P103: 1.799999952 | Q103: 0.45 | R103: 1.100000024 | S103: 0.53 | T103: 0.6999999881 | U103: 0.37 | V103: 2 | W103: 0.4 | X103: 1 | Y103: 0.51 | Z103: 1.299999952 | AA103: 0.43 | AB103: 0.5 | AC103: 0.55 | AD103: 1 | AE103: 0.32
A104: 6070 | B104: 6070 Aspira | C104: 170 | D104: 17.70000076 | E104: 0.51 | F104: 1.200000048 | G104: 0.59 | H104: 0.400000006 | I104: 0.4 | J104: 1.200000048 | K104: 0.6 | L104: 1.700000048 | M104: 0.56 | N104: 2.700000048 | O104: 0.53 | P104: 2.099999905 | Q104: 0.53 | R104: 1.299999952 | S104: 0.63 | T104: 0.6999999881 | U104: 0.34 | V104: 2.200000048 | W104: 0.45 | X104: 1.299999952 | Y104: 0.63 | Z104: 1.399999976 | AA104: 0.46 | AB104: 0.8000000119 | AC104: 0.76 | AD104: 0.8999999762 | AE104: 0.29
A105: 6071 | B105: 6071 G. W. Carver Middle | C105: 317 | D105: 24.79999924 | E105: 0.71 | F105: 1.600000024 | G105: 0.82 | H105: 0.8000000119 | I105: 0.77 | J105: 1.5 | K105: 0.74 | L105: 2.299999952 | M105: 0.76 | N105: 3.5 | O105: 0.7 | P105: 3.099999905 | Q105: 0.79 | R105: 1.600000024 | S105: 0.79 | T105: 1.399999976 | U105: 0.68 | V105: 3.400000095 | W105: 0.67 | X105: 1.5 | Y105: 0.74 | Z105: 1.899999976 | AA105: 0.62 | AB105: 0.8000000119 | AC105: 0.83 | AD105: 1.5 | AE105: 0.49
A106: 6081 | B106: 6081 Centennial Middle School | C106: 344 | D106: 16.79999924 | E106: 0.48 | F106: 1.200000048 | G106: 0.59 | H106: 0.5 | I106: 0.46 | J106: 1.100000024 | K106: 0.54 | L106: 1.5 | M106: 0.5 | N106: 2.400000095 | O106: 0.47 | P106: 2.099999905 | Q106: 0.53 | R106: 1.100000024 | S106: 0.55 | T106: 0.6000000238 | U106: 0.3 | V106: 2.200000048 | W106: 0.44 | X106: 1.100000024 | Y106: 0.54 | Z106: 1.399999976 | AA106: 0.47 | AB106: 0.6000000238 | AC106: 0.6 | AD106: 1.100000024 | AE106: 0.35
A107: 6091 | B107: 6091 CItrus Grove Middle School | C107: 261 | D107: 16.20000076 | E107: 0.46 | F107: 1.200000048 | G107: 0.58 | H107: 0.400000006 | I107: 0.42 | J107: 1.100000024 | K107: 0.53 | L107: 1.600000024 | M107: 0.53 | N107: 2.400000095 | O107: 0.48 | P107: 2 | Q107: 0.51 | R107: 1.100000024 | S107: 0.54 | T107: 0.6000000238 | U107: 0.29 | V107: 2.099999905 | W107: 0.41 | X107: 1 | Y107: 0.51 | Z107: 1.200000048 | AA107: 0.42 | AB107: 0.6000000238 | AC107: 0.62 | AD107: 1 | AE107: 0.32
A108: 6111 | B108: 6111 Cutler Ridge Middle School | C108: 219 | D108: 16.70000076 | E108: 0.48 | F108: 1.200000048 | G108: 0.61 | H108: 0.5 | I108: 0.45 | J108: 1.100000024 | K108: 0.53 | L108: 1.5 | M108: 0.49 | N108: 2.5 | O108: 0.5 | P108: 2 | Q108: 0.5 | R108: 1.200000048 | S108: 0.59 | T108: 0.6999999881 | U108: 0.34 | V108: 2.200000048 | W108: 0.43 | X108: 1 | Y108: 0.52 | Z108: 1.299999952 | AA108: 0.44 | AB108: 0.6000000238 | AC108: 0.63 | AD108: 1 | AE108: 0.32
A109: 6121 | B109: 6121 Ruben Dario Middle School | C109: 148 | D109: 18.10000038 | E109: 0.52 | F109: 1.299999952 | G109: 0.63 | H109: 0.400000006 | I109: 0.43 | J109: 1.100000024 | K109: 0.57 | L109: 1.799999952 | M109: 0.59 | N109: 2.700000048 | O109: 0.54 | P109: 2.200000048 | Q109: 0.55 | R109: 1.100000024 | S109: 0.57 | T109: 0.6999999881 | U109: 0.34 | V109: 2.299999952 | W109: 0.46 | X109: 1.200000048 | Y109: 0.6 | Z109: 1.5 | AA109: 0.49 | AB109: 0.8000000119 | AC109: 0.76 | AD109: 1.100000024 | AE109: 0.36
A110: 6131 | B110: 6131 Howard Doolin Middle School | C110: 1 | D110: 19 | E110: 0.54 | F110: 1 | G110: 0.5 | H110: 0 | I110: 0 | J110: 1 | K110: 0.5 | L110: 1 | M110: 0.33 | N110: 3 | O110: 0.6 | P110: 3 | Q110: 0.75 | R110: 1 | S110: 0.5 | T110: 1 | U110: 0.5 | V110: 1 | W110: 0.2 | X110: 1 | Y110: 0.5 | Z110: 3 | AA110: 1 | AB110: 1 | AC110: 1 | AD110: 2 | AE110: 0.67
A111: 6141 | B111: 6141 Charles R Drew Middle School | C111: 131 | D111: 17.29999924 | E111: 0.49 | F111: 1.100000024 | G111: 0.56 | H111: 0.3000000119 | I111: 0.34 | J111: 1.100000024 | K111: 0.56 | L111: 1.600000024 | M111: 0.55 | N111: 2.700000048 | O111: 0.53 | P111: 2 | Q111: 0.5 | R111: 1.299999952 | S111: 0.63 | T111: 0.6999999881 | U111: 0.37 | V111: 2.200000048 | W111: 0.44 | X111: 1.299999952 | Y111: 0.63 | Z111: 1.299999952 | AA111: 0.44 | AB111: 0.6999999881 | AC111: 0.71 | AD111: 0.8999999762 | AE111: 0.3
A112: 6151 | B112: 6151 Doral Middle School | C112: 1 | D112: 18 | E112: 0.51 | F112: 2 | G112: 1 | H112: 1 | I112: 1 | J112: 2 | K112: 1 | L112: 1 | M112: 0.33 | N112: 3 | O112: 0.6 | P112: 1 | Q112: 0.25 | R112: 1 | S112: 0.5 | T112: 1 | U112: 0.5 | V112: 2 | W112: 0.4 | X112: 1 | Y112: 0.5 | Z112: 1 | AA112: 0.33 | AB112: 1 | AC112: 1 | AD112: 1 | AE112: 0.33
A113: 6161 | B113: 6161 Lawton Chiles Middle | C113: 276 | D113: 19.10000038 | E113: 0.55 | F113: 1.299999952 | G113: 0.67 | H113: 0.5 | I113: 0.52 | J113: 1.200000048 | K113: 0.61 | L113: 1.799999952 | M113: 0.59 | N113: 2.700000048 | O113: 0.55 | P113: 2.299999952 | Q113: 0.58 | R113: 1.299999952 | S113: 0.64 | T113: 0.6999999881 | U113: 0.35 | V113: 2.599999905 | W113: 0.52 | X113: 1.299999952 | Y113: 0.64 | Z113: 1.5 | AA113: 0.49 | AB113: 0.8000000119 | AC113: 0.76 | AD113: 1.100000024 | AE113: 0.36
A114: 6171 | B114: 6171 Henry H. Filer Middle School | C114: 357 | D114: 18.39999962 | E114: 0.53 | F114: 1.200000048 | G114: 0.62 | H114: 0.5 | I114: 0.49 | J114: 1.200000048 | K114: 0.58 | L114: 1.700000048 | M114: 0.57 | N114: 2.700000048 | O114: 0.53 | P114: 2.299999952 | Q114: 0.57 | R114: 1.200000048 | S114: 0.6 | T114: 0.8000000119 | U114: 0.39 | V114: 2.400000095 | W114: 0.49 | X114: 1.200000048 | Y114: 0.59 | Z114: 1.5 | AA114: 0.51 | AB114: 0.6999999881 | AC114: 0.68 | AD114: 1.100000024 | AE114: 0.37
A115: 6211 | B115: 6211 Glades Middle School | C115: 350 | D115: 20.29999924 | E115: 0.58 | F115: 1.399999976 | G115: 0.68 | H115: 0.5 | I115: 0.54 | J115: 1.299999952 | K115: 0.66 | L115: 1.799999952 | M115: 0.6 | N115: 2.900000095 | O115: 0.57 | P115: 2.5 | Q115: 0.62 | R115: 1.399999976 | S115: 0.69 | T115: 1 | U115: 0.48 | V115: 2.799999952 | W115: 0.55 | X115: 1.299999952 | Y115: 0.64 | Z115: 1.600000024 | AA115: 0.54 | AB115: 0.6999999881 | AC115: 0.72 | AD115: 1.200000048 | AE115: 0.4
A116: 6221 | B116: 6221 Hammocks Middle School | C116: 344 | D116: 20 | E116: 0.57 | F116: 1.399999976 | G116: 0.71 | H116: 0.6000000238 | I116: 0.56 | J116: 1.200000048 | K116: 0.62 | L116: 1.899999976 | M116: 0.62 | N116: 2.799999952 | O116: 0.57 | P116: 2.599999905 | Q116: 0.65 | R116: 1.299999952 | S116: 0.64 | T116: 0.8000000119 | U116: 0.42 | V116: 2.599999905 | W116: 0.53 | X116: 1.299999952 | Y116: 0.65 | Z116: 1.5 | AA116: 0.51 | AB116: 0.6999999881 | AC116: 0.72 | AD116: 1.200000048 | AE116: 0.39
A117: 6231 | B117: 6231 Hialeah Middle School | C117: 259 | D117: 18.70000076 | E117: 0.53 | F117: 1.299999952 | G117: 0.65 | H117: 0.5 | I117: 0.51 | J117: 1.200000048 | K117: 0.59 | L117: 1.799999952 | M117: 0.59 | N117: 2.700000048 | O117: 0.55 | P117: 2.400000095 | Q117: 0.59 | R117: 1.200000048 | S117: 0.58 | T117: 0.8000000119 | U117: 0.39 | V117: 2.400000095 | W117: 0.48 | X117: 1.200000048 | Y117: 0.6 | Z117: 1.5 | AA117: 0.51 | AB117: 0.6999999881 | AC117: 0.68 | AD117: 1.100000024 | AE117: 0.36
A118: 6241 | B118: 6241 Highland Oaks Middle School | C118: 393 | D118: 19.79999924 | E118: 0.57 | F118: 1.399999976 | G118: 0.7 | H118: 0.6000000238 | I118: 0.59 | J118: 1.299999952 | K118: 0.64 | L118: 1.799999952 | M118: 0.59 | N118: 2.799999952 | O118: 0.56 | P118: 2.400000095 | Q118: 0.61 | R118: 1.299999952 | S118: 0.66 | T118: 0.8999999762 | U118: 0.46 | V118: 2.599999905 | W118: 0.52 | X118: 1.200000048 | Y118: 0.6 | Z118: 1.600000024 | AA118: 0.55 | AB118: 0.6999999881 | AC118: 0.69 | AD118: 1.100000024 | AE118: 0.38
A119: 6251 | B119: 6251 Homestead Middle School | C119: 200 | D119: 16.89999962 | E119: 0.48 | F119: 1.100000024 | G119: 0.54 | H119: 0.400000006 | I119: 0.38 | J119: 1.100000024 | K119: 0.55 | L119: 1.600000024 | M119: 0.54 | N119: 2.400000095 | O119: 0.47 | P119: 2.099999905 | Q119: 0.51 | R119: 1.200000048 | S119: 0.58 | T119: 0.6999999881 | U119: 0.33 | V119: 2.299999952 | W119: 0.45 | X119: 1.200000048 | Y119: 0.6 | Z119: 1.299999952 | AA119: 0.44 | AB119: 0.6999999881 | AC119: 0.65 | AD119: 1 | AE119: 0.33
A120: 6281 | B120: 6281 Thomas Jefferson Middle | C120: 62 | D120: 17.5 | E120: 0.5 | F120: 1.100000024 | G120: 0.56 | H120: 0.5 | I120: 0.47 | J120: 0.8999999762 | K120: 0.44 | L120: 1.899999976 | M120: 0.63 | N120: 2.400000095 | O120: 0.48 | P120: 2.099999905 | Q120: 0.52 | R120: 1.399999976 | S120: 0.68 | T120: 0.8000000119 | U120: 0.4 | V120: 2.299999952 | W120: 0.46 | X120: 1.100000024 | Y120: 0.53 | Z120: 1.299999952 | AA120: 0.45 | AB120: 0.6000000238 | AC120: 0.6 | AD120: 1.200000048 | AE120: 0.41
A121: 6301 | B121: 6301 JFK Middle School | C121: 437 | D121: 19.89999962 | E121: 0.57 | F121: 1.399999976 | G121: 0.68 | H121: 0.5 | I121: 0.54 | J121: 1.299999952 | K121: 0.63 | L121: 1.899999976 | M121: 0.63 | N121: 2.799999952 | O121: 0.57 | P121: 2.5 | Q121: 0.63 | R121: 1.399999976 | S121: 0.7 | T121: 0.8999999762 | U121: 0.43 | V121: 2.5 | W121: 0.51 | X121: 1.299999952 | Y121: 0.65 | Z121: 1.5 | AA121: 0.51 | AB121: 0.8000000119 | AC121: 0.75 | AD121: 1.100000024 | AE121: 0.36
A122: 6331 | B122: 6331 Kinloch Park Middle School | C122: 369 | D122: 18 | E122: 0.51 | F122: 1.299999952 | G122: 0.63 | H122: 0.400000006 | I122: 0.45 | J122: 1.100000024 | K122: 0.56 | L122: 1.700000048 | M122: 0.58 | N122: 2.599999905 | O122: 0.52 | P122: 2.299999952 | Q122: 0.57 | R122: 1.200000048 | S122: 0.59 | T122: 0.6999999881 | U122: 0.37 | V122: 2.299999952 | W122: 0.46 | X122: 1.100000024 | Y122: 0.57 | Z122: 1.399999976 | AA122: 0.45 | AB122: 0.6999999881 | AC122: 0.69 | AD122: 1.100000024 | AE122: 0.37
A123: 6351 | B123: 6351 Lake Stevens Middle School | C123: 219 | D123: 18.29999924 | E123: 0.52 | F123: 1.299999952 | G123: 0.63 | H123: 0.5 | I123: 0.48 | J123: 1.200000048 | K123: 0.62 | L123: 1.799999952 | M123: 0.59 | N123: 2.599999905 | O123: 0.52 | P123: 2.299999952 | Q123: 0.57 | R123: 1.100000024 | S123: 0.57 | T123: 0.8000000119 | U123: 0.39 | V123: 2.299999952 | W123: 0.47 | X123: 1.100000024 | Y123: 0.56 | Z123: 1.5 | AA123: 0.5 | AB123: 0.6999999881 | AC123: 0.67 | AD123: 1.200000048 | AE123: 0.39
A124: 6361 | B124: 6361 Jose de Diego Middle School | C124: 115 | D124: 16.10000038 | E124: 0.46 | F124: 1.100000024 | G124: 0.53 | H124: 0.400000006 | I124: 0.37 | J124: 0.8999999762 | K124: 0.46 | L124: 1.600000024 | M124: 0.54 | N124: 2.299999952 | O124: 0.45 | P124: 1.899999976 | Q124: 0.48 | R124: 1.100000024 | S124: 0.54 | T124: 0.8000000119 | U124: 0.39 | V124: 2.200000048 | W124: 0.44 | X124: 1.100000024 | Y124: 0.57 | Z124: 1.299999952 | AA124: 0.44 | AB124: 0.6000000238 | AC124: 0.58 | AD124: 0.8999999762 | AE124: 0.29
A125: 6391 | B125: 6391 Madison Middle School | C125: 148 | D125: 15.69999981 | E125: 0.45 | F125: 1.100000024 | G125: 0.55 | H125: 0.3000000119 | I125: 0.32 | J125: 1 | K125: 0.52 | L125: 1.5 | M125: 0.51 | N125: 2.299999952 | O125: 0.47 | P125: 1.899999976 | Q125: 0.48 | R125: 1.100000024 | S125: 0.55 | T125: 0.6000000238 | U125: 0.3 | V125: 2 | W125: 0.4 | X125: 1 | Y125: 0.51 | Z125: 1.299999952 | AA125: 0.42 | AB125: 0.6000000238 | AC125: 0.64 | AD125: 0.8000000119 | AE125: 0.27
A126: 6411 | B126: 6411 Horace Mann Middle School | C126: 222 | D126: 18.5 | E126: 0.53 | F126: 1.299999952 | G126: 0.65 | H126: 0.400000006 | I126: 0.44 | J126: 1.100000024 | K126: 0.54 | L126: 1.899999976 | M126: 0.62 | N126: 2.599999905 | O126: 0.51 | P126: 2.200000048 | Q126: 0.56 | R126: 1.299999952 | S126: 0.63 | T126: 0.8999999762 | U126: 0.43 | V126: 2.5 | W126: 0.5 | X126: 1.200000048 | Y126: 0.59 | Z126: 1.399999976 | AA126: 0.46 | AB126: 0.6999999881 | AC126: 0.72 | AD126: 1.100000024 | AE126: 0.38
A127: 6431 | B127: 6431 Arthur & Polly Mays Middle Community School | C127: 78 | D127: 17.89999962 | E127: 0.51 | F127: 1.299999952 | G127: 0.67 | H127: 0.400000006 | I127: 0.42 | J127: 1.299999952 | K127: 0.65 | L127: 1.600000024 | M127: 0.54 | N127: 2.599999905 | O127: 0.52 | P127: 2.200000048 | Q127: 0.54 | R127: 1.200000048 | S127: 0.6 | T127: 0.6999999881 | U127: 0.33 | V127: 2.400000095 | W127: 0.47 | X127: 1.299999952 | Y127: 0.64 | Z127: 1.399999976 | AA127: 0.46 | AB127: 0.6999999881 | AC127: 0.65 | AD127: 1 | AE127: 0.33
A128: 6441 | B128: 6441 Howard D. McMillan Middle | C128: 235 | D128: 19.39999962 | E128: 0.55 | F128: 1.299999952 | G128: 0.67 | H128: 0.5 | I128: 0.52 | J128: 1.299999952 | K128: 0.67 | L128: 1.700000048 | M128: 0.55 | N128: 2.799999952 | O128: 0.56 | P128: 2.400000095 | Q128: 0.6 | R128: 1.299999952 | S128: 0.64 | T128: 0.8000000119 | U128: 0.41 | V128: 2.5 | W128: 0.51 | X128: 1.299999952 | Y128: 0.67 | Z128: 1.600000024 | AA128: 0.53 | AB128: 0.8000000119 | AC128: 0.79 | AD128: 1 | AE128: 0.33
A129: 6481 | B129: 6481 Miami Edison Middle Schools | C129: 174 | D129: 16.20000076 | E129: 0.46 | F129: 1.100000024 | G129: 0.53 | H129: 0.400000006 | I129: 0.37 | J129: 1 | K129: 0.5 | L129: 1.5 | M129: 0.51 | N129: 2.400000095 | O129: 0.47 | P129: 2 | Q129: 0.49 | R129: 1.200000048 | S129: 0.61 | T129: 0.6000000238 | U129: 0.3 | V129: 2.099999905 | W129: 0.42 | X129: 1.100000024 | Y129: 0.53 | Z129: 1.299999952 | AA129: 0.45 | AB129: 0.6000000238 | AC129: 0.62 | AD129: 0.8999999762 | AE129: 0.3
A130: 6501 | B130: 6501 Miami Lakes Middle School | C130: 262 | D130: 17.39999962 | E130: 0.5 | F130: 1.100000024 | G130: 0.56 | H130: 0.5 | I130: 0.47 | J130: 1.100000024 | K130: 0.54 | L130: 1.5 | M130: 0.52 | N130: 2.599999905 | O130: 0.51 | P130: 2.299999952 | Q130: 0.58 | R130: 1 | S130: 0.52 | T130: 0.6999999881 | U130: 0.34 | V130: 2.299999952 | W130: 0.47 | X130: 1.100000024 | Y130: 0.56 | Z130: 1.5 | AA130: 0.49 | AB130: 0.6000000238 | AC130: 0.61 | AD130: 1 | AE130: 0.32
A131: 6521 | B131: 6521 Miami Springs Middle School | C131: 493 | D131: 17.79999924 | E131: 0.51 | F131: 1.200000048 | G131: 0.62 | H131: 0.5 | I131: 0.52 | J131: 1.200000048 | K131: 0.58 | L131: 1.5 | M131: 0.51 | N131: 2.599999905 | O131: 0.53 | P131: 2.200000048 | Q131: 0.55 | R131: 1.200000048 | S131: 0.6 | T131: 0.8000000119 | U131: 0.38 | V131: 2.299999952 | W131: 0.46 | X131: 1.200000048 | Y131: 0.59 | Z131: 1.399999976 | AA131: 0.46 | AB131: 0.6999999881 | AC131: 0.69 | AD131: 1 | AE131: 0.33
A132: 6541 | B132: 6541 Nautilus Middle | C132: 334 | D132: 20.70000076 | E132: 0.59 | F132: 1.299999952 | G132: 0.67 | H132: 0.6000000238 | I132: 0.58 | J132: 1.299999952 | K132: 0.66 | L132: 1.899999976 | M132: 0.65 | N132: 2.900000095 | O132: 0.59 | P132: 2.599999905 | Q132: 0.65 | R132: 1.399999976 | S132: 0.71 | T132: 1 | U132: 0.49 | V132: 2.799999952 | W132: 0.56 | X132: 1.299999952 | Y132: 0.67 | Z132: 1.600000024 | AA132: 0.53 | AB132: 0.8000000119 | AC132: 0.75 | AD132: 1.100000024 | AE132: 0.38
A133: 6571 | B133: 6571 Norland Middle | C133: 214 | D133: 18.70000076 | E133: 0.53 | F133: 1.399999976 | G133: 0.68 | H133: 0.5 | I133: 0.48 | J133: 1.200000048 | K133: 0.6 | L133: 1.700000048 | M133: 0.57 | N133: 2.599999905 | O133: 0.51 | P133: 2.299999952 | Q133: 0.57 | R133: 1.299999952 | S133: 0.64 | T133: 0.8000000119 | U133: 0.39 | V133: 2.5 | W133: 0.5 | X133: 1.200000048 | Y133: 0.6 | Z133: 1.5 | AA133: 0.51 | AB133: 0.6999999881 | AC133: 0.7 | AD133: 1.100000024 | AE133: 0.37
A134: 6591 | B134: 6591 North Dade Middle School | C134: 287 | D134: 18.60000038 | E134: 0.53 | F134: 1.299999952 | G134: 0.63 | H134: 0.400000006 | I134: 0.43 | J134: 1.100000024 | K134: 0.57 | L134: 1.899999976 | M134: 0.63 | N134: 2.599999905 | O134: 0.53 | P134: 2.299999952 | Q134: 0.57 | R134: 1.200000048 | S134: 0.61 | T134: 0.8000000119 | U134: 0.42 | V134: 2.5 | W134: 0.5 | X134: 1.200000048 | Y134: 0.6 | Z134: 1.399999976 | AA134: 0.47 | AB134: 0.6999999881 | AC134: 0.68 | AD134: 1.200000048 | AE134: 0.39
A135: 6611 | B135: 6611 Country Club Middle School | C135: 442 | D135: 19 | E135: 0.54 | F135: 1.299999952 | G135: 0.66 | H135: 0.5 | I135: 0.51 | J135: 1.200000048 | K135: 0.61 | L135: 1.700000048 | M135: 0.57 | N135: 2.700000048 | O135: 0.54 | P135: 2.5 | Q135: 0.61 | R135: 1.200000048 | S135: 0.62 | T135: 0.8000000119 | U135: 0.4 | V135: 2.5 | W135: 0.49 | X135: 1.200000048 | Y135: 0.62 | Z135: 1.5 | AA135: 0.51 | AB135: 0.6999999881 | AC135: 0.67 | AD135: 1.100000024 | AE135: 0.35
A136: 6631 | B136: 6631 North Miami Middle School | C136: 295 | D136: 17 | E136: 0.49 | F136: 1.200000048 | G136: 0.62 | H136: 0.400000006 | I136: 0.43 | J136: 1.200000048 | K136: 0.58 | L136: 1.5 | M136: 0.51 | N136: 2.599999905 | O136: 0.51 | P136: 2.099999905 | Q136: 0.51 | R136: 1.200000048 | S136: 0.6 | T136: 0.6000000238 | U136: 0.32 | V136: 2.200000048 | W136: 0.44 | X136: 1.200000048 | Y136: 0.58 | Z136: 1.299999952 | AA136: 0.43 | AB136: 0.6999999881 | AC136: 0.71 | AD136: 0.8999999762 | AE136: 0.29
A137: 6681 | B137: 6681 Palm Springs Middle | C137: 356 | D137: 19.20000076 | E137: 0.55 | F137: 1.399999976 | G137: 0.68 | H137: 0.5 | I137: 0.52 | J137: 1.200000048 | K137: 0.61 | L137: 1.799999952 | M137: 0.59 | N137: 2.700000048 | O137: 0.55 | P137: 2.5 | Q137: 0.62 | R137: 1.200000048 | S137: 0.58 | T137: 0.8000000119 | U137: 0.41 | V137: 2.5 | W137: 0.5 | X137: 1.200000048 | Y137: 0.6 | Z137: 1.600000024 | AA137: 0.54 | AB137: 0.6999999881 | AC137: 0.72 | AD137: 1.100000024 | AE137: 0.36
A138: 6701 | B138: 6701 Palmetto Middle School | C138: 321 | D138: 22.39999962 | E138: 0.64 | F138: 1.5 | G138: 0.74 | H138: 0.6999999881 | I138: 0.68 | J138: 1.399999976 | K138: 0.69 | L138: 2.099999905 | M138: 0.72 | N138: 3 | O138: 0.6 | P138: 2.900000095 | Q138: 0.72 | R138: 1.399999976 | S138: 0.71 | T138: 1.100000024 | U138: 0.57 | V138: 3.099999905 | W138: 0.62 | X138: 1.399999976 | Y138: 0.68 | Z138: 1.700000048 | AA138: 0.58 | AB138: 0.6999999881 | AC138: 0.72 | AD138: 1.299999952 | AE138: 0.45
A139: 6721 | B139: 6721 Parkway Middle Community School | C139: 125 | D139: 16.79999924 | E139: 0.48 | F139: 1.200000048 | G139: 0.6 | H139: 0.3000000119 | I139: 0.34 | J139: 1.100000024 | K139: 0.54 | L139: 1.5 | M139: 0.51 | N139: 2.299999952 | O139: 0.47 | P139: 2 | Q139: 0.5 | R139: 1.200000048 | S139: 0.6 | T139: 0.6999999881 | U139: 0.34 | V139: 2.200000048 | W139: 0.44 | X139: 1.200000048 | Y139: 0.6 | Z139: 1.299999952 | AA139: 0.44 | AB139: 0.6999999881 | AC139: 0.66 | AD139: 1.100000024 | AE139: 0.36
A140: 6741 | B140: 6741 Ponce de Leon Middle School | C140: 360 | D140: 20.20000076 | E140: 0.58 | F140: 1.399999976 | G140: 0.68 | H140: 0.6000000238 | I140: 0.62 | J140: 1.200000048 | K140: 0.6 | L140: 1.799999952 | M140: 0.61 | N140: 2.900000095 | O140: 0.57 | P140: 2.599999905 | Q140: 0.65 | R140: 1.399999976 | S140: 0.68 | T140: 0.8999999762 | U140: 0.46 | V140: 2.700000048 | W140: 0.54 | X140: 1.299999952 | Y140: 0.65 | Z140: 1.600000024 | AA140: 0.53 | AB140: 0.6999999881 | AC140: 0.72 | AD140: 1.200000048 | AE140: 0.4
A141: 6751 | B141: 6751 Hialeah Gardens Middle School | C141: 564 | D141: 19.5 | E141: 0.56 | F141: 1.299999952 | G141: 0.64 | H141: 0.5 | I141: 0.49 | J141: 1.200000048 | K141: 0.62 | L141: 1.799999952 | M141: 0.61 | N141: 2.900000095 | O141: 0.59 | P141: 2.5 | Q141: 0.61 | R141: 1.299999952 | S141: 0.63 | T141: 0.8999999762 | U141: 0.44 | V141: 2.5 | W141: 0.5 | X141: 1.299999952 | Y141: 0.65 | Z141: 1.600000024 | AA141: 0.52 | AB141: 0.6999999881 | AC141: 0.75 | AD141: 1 | AE141: 0.34
A142: 6761 | B142: 6761 Redland Middle School | C142: 136 | D142: 15.19999981 | E142: 0.43 | F142: 1.100000024 | G142: 0.57 | H142: 0.400000006 | I142: 0.42 | J142: 1 | K142: 0.5 | L142: 1.399999976 | M142: 0.47 | N142: 2.099999905 | O142: 0.42 | P142: 1.899999976 | Q142: 0.48 | R142: 0.8999999762 | S142: 0.47 | T142: 0.6000000238 | U142: 0.3 | V142: 2 | W142: 0.4 | X142: 0.8999999762 | Y142: 0.47 | Z142: 1.299999952 | AA142: 0.43 | AB142: 0.5 | AC142: 0.54 | AD142: 0.8999999762 | AE142: 0.29
A143: =IFERROR(VALUE(LEFT(B143,4)),"") -> 6771 | B143: 6771 Jorge Mas Canosa Middle School | C143: 653 | D143: 20.5 | E143: 0.59 | F143: 1.399999976 | G143: 0.71 | H143: 0.6000000238 | I143: 0.59 | J143: 1.299999952 | K143: 0.65 | L143: 1.899999976 | M143: 0.62 | N143: 3 | O143: 0.59 | P143: 2.700000048 | Q143: 0.67 | R143: 1.299999952 | S143: 0.67 | T143: 0.8999999762 | U143: 0.47 | V143: 2.799999952 | W143: 0.55 | X143: 1.299999952 | Y143: 0.66 | Z143: 1.600000024 | AA143: 0.53 | AB143: 0.6999999881 | AC143: 0.72 | AD143: 1 | AE143: 0.34
A144: 6781 | B144: 6781 Richmond heights Middle School | C144: 174 | D144: 18.10000038 | E144: 0.52 | F144: 1.299999952 | G144: 0.67 | H144: 0.5 | I144: 0.51 | J144: 1.200000048 | K144: 0.58 | L144: 1.700000048 | M144: 0.57 | N144: 2.599999905 | O144: 0.52 | P144: 2.299999952 | Q144: 0.57 | R144: 1.200000048 | S144: 0.6 | T144: 0.8000000119 | U144: 0.4 | V144: 2.200000048 | W144: 0.45 | X144: 1.100000024 | Y144: 0.57 | Z144: 1.5 | AA144: 0.49 | AB144: 0.6000000238 | AC144: 0.6 | AD144: 1 | AE144: 0.34
A145: 6801 | B145: 6801 Riviera Middle School | C145: 229 | D145: 19.10000038 | E145: 0.54 | F145: 1.299999952 | G145: 0.67 | H145: 0.5 | I145: 0.48 | J145: 1.200000048 | K145: 0.62 | L145: 1.799999952 | M145: 0.6 | N145: 2.799999952 | O145: 0.57 | P145: 2.400000095 | Q145: 0.6 | R145: 1.200000048 | S145: 0.59 | T145: 0.6999999881 | U145: 0.37 | V145: 2.5 | W145: 0.5 | X145: 1.200000048 | Y145: 0.62 | Z145: 1.5 | AA145: 0.51 | AB145: 0.6999999881 | AC145: 0.73 | AD145: 1 | AE145: 0.34
A146: 6821 | B146: 6821 Rockway Middle School | C146: 422 | D146: 19.10000038 | E146: 0.54 | F146: 1.299999952 | G146: 0.63 | H146: 0.5 | I146: 0.52 | J146: 1.200000048 | K146: 0.59 | L146: 1.700000048 | M146: 0.56 | N146: 2.799999952 | O146: 0.55 | P146: 2.400000095 | Q146: 0.6 | R146: 1.299999952 | S146: 0.66 | T146: 0.8000000119 | U146: 0.41 | V146: 2.5 | W146: 0.5 | X146: 1.200000048 | Y146: 0.6 | Z146: 1.600000024 | AA146: 0.53 | AB146: 0.6999999881 | AC146: 0.74 | AD146: 1.100000024 | AE146: 0.35
A147: 6841 | B147: 6841 Shenandoah Middle School | C147: 396 | D147: 18.20000076 | E147: 0.52 | F147: 1.200000048 | G147: 0.62 | H147: 0.5 | I147: 0.5 | J147: 1.200000048 | K147: 0.59 | L147: 1.700000048 | M147: 0.57 | N147: 2.700000048 | O147: 0.53 | P147: 2.200000048 | Q147: 0.56 | R147: 1.200000048 | S147: 0.59 | T147: 0.8000000119 | U147: 0.39 | V147: 2.400000095 | W147: 0.47 | X147: 1.100000024 | Y147: 0.57 | Z147: 1.600000024 | AA147: 0.52 | AB147: 0.6999999881 | AC147: 0.66 | AD147: 1 | AE147: 0.35
A148: 6861 | B148: 6861 Southwood Middle School | C148: 483 | D148: 21.10000038 | E148: 0.6 | F148: 1.5 | G148: 0.73 | H148: 0.6999999881 | I148: 0.65 | J148: 1.299999952 | K148: 0.67 | L148: 1.799999952 | M148: 0.6 | N148: 3 | O148: 0.6 | P148: 2.700000048 | Q148: 0.68 | R148: 1.399999976 | S148: 0.72 | T148: 0.8999999762 | U148: 0.47 | V148: 2.900000095 | W148: 0.58 | X148: 1.399999976 | Y148: 0.69 | Z148: 1.700000048 | AA148: 0.58 | AB148: 0.6999999881 | AC148: 0.72 | AD148: 1.100000024 | AE148: 0.35
A149: 6881 | B149: 6881 South Miami Middle School | C149: 291 | D149: 24.20000076 | E149: 0.69 | F149: 1.600000024 | G149: 0.79 | H149: 0.6999999881 | I149: 0.72 | J149: 1.5 | K149: 0.75 | L149: 2.299999952 | M149: 0.77 | N149: 3.400000095 | O149: 0.68 | P149: 3 | Q149: 0.76 | R149: 1.600000024 | S149: 0.79 | T149: 1.200000048 | U149: 0.61 | V149: 3.299999952 | W149: 0.65 | X149: 1.5 | Y149: 0.74 | Z149: 1.899999976 | AA149: 0.62 | AB149: 0.8000000119 | AC149: 0.84 | AD149: 1.399999976 | AE149: 0.48
A150: 6901 | B150: 6901 WR Thomas Middle School | C150: 304 | D150: 22.10000038 | E150: 0.63 | F150: 1.5 | G150: 0.73 | H150: 0.6000000238 | I150: 0.63 | J150: 1.399999976 | K150: 0.68 | L150: 2 | M150: 0.68 | N150: 3.099999905 | O150: 0.63 | P150: 2.799999952 | Q150: 0.71 | R150: 1.399999976 | S150: 0.71 | T150: 1 | U150: 0.5 | V150: 3 | W150: 0.59 | X150: 1.399999976 | Y150: 0.68 | Z150: 1.799999952 | AA150: 0.59 | AB150: 0.6999999881 | AC150: 0.73 | AD150: 1.399999976 | AE150: 0.47
A151: 6921 | B151: 6921 Lamar Louise Curry Middle School | C151: 357 | D151: 22.29999924 | E151: 0.64 | F151: 1.5 | G151: 0.73 | H151: 0.6999999881 | I151: 0.66 | J151: 1.399999976 | K151: 0.71 | L151: 2.099999905 | M151: 0.71 | N151: 3.099999905 | O151: 0.61 | P151: 2.900000095 | Q151: 0.72 | R151: 1.399999976 | S151: 0.71 | T151: 1.100000024 | U151: 0.53 | V151: 2.900000095 | W151: 0.59 | X151: 1.399999976 | Y151: 0.72 | Z151: 1.700000048 | AA151: 0.58 | AB151: 0.6999999881 | AC151: 0.74 | AD151: 1.399999976 | AE151: 0.47
A152: 6961 | B152: 6961 West Miami Middle School | C152: 297 | D152: 18.70000076 | E152: 0.53 | F152: 1.299999952 | G152: 0.66 | H152: 0.5 | I152: 0.49 | J152: 1.200000048 | K152: 0.58 | L152: 1.700000048 | M152: 0.56 | N152: 2.700000048 | O152: 0.54 | P152: 2.400000095 | Q152: 0.59 | R152: 1.200000048 | S152: 0.59 | T152: 0.8000000119 | U152: 0.38 | V152: 2.5 | W152: 0.5 | X152: 1.200000048 | Y152: 0.61 | Z152: 1.5 | AA152: 0.49 | AB152: 0.6999999881 | AC152: 0.69 | AD152: 1.100000024 | AE152: 0.36
A153: 7055 | B153: 7055 Young Women's Preparatory Academy | C153: 89 | D153: 22.70000076 | E153: 0.65 | F153: 1.5 | G153: 0.76 | H153: 0.6999999881 | I153: 0.65 | J153: 1.299999952 | K153: 0.66 | L153: 2.099999905 | M153: 0.7 | N153: 3.299999952 | O153: 0.65 | P153: 2.900000095 | Q153: 0.73 | R153: 1.600000024 | S153: 0.78 | T153: 1 | U153: 0.49 | V153: 3.200000048 | W153: 0.64 | X153: 1.399999976 | Y153: 0.7 | Z153: 1.700000048 | AA153: 0.55 | AB153: 0.8000000119 | AC153: 0.76 | AD153: 1.299999952 | AE153: 0.45
A154: 7059 | B154: 7059 Miami Arts Charter | C154: 107 | D154: 23.89999962 | E154: 0.68 | F154: 1.600000024 | G154: 0.8 | H154: 0.8000000119 | I154: 0.81 | J154: 1.5 | K154: 0.76 | L154: 2.200000048 | M154: 0.74 | N154: 3.299999952 | O154: 0.67 | P154: 3.099999905 | Q154: 0.79 | R154: 1.700000048 | S154: 0.83 | T154: 0.8999999762 | U154: 0.47 | V154: 3.299999952 | W154: 0.65 | X154: 1.5 | Y154: 0.75 | Z154: 1.799999952 | AA154: 0.6 | AB154: 0.8000000119 | AC154: 0.78 | AD154: 1.299999952 | AE154: 0.42
A155: 7631 | B155: 7631 MacArthur South Senior High | C155: 8 | D155: 9.800000191 | E155: 0.28 | F155: 0.6000000238 | G155: 0.31 | H155: 0.1000000015 | I155: 0.13 | J155: 0.5 | K155: 0.25 | L155: 0.400000006 | M155: 0.13 | N155: 1.5 | O155: 0.3 | P155: 1.399999976 | Q155: 0.34 | R155: 0.400000006 | S155: 0.19 | T155: 0.5 | U155: 0.25 | V155: 1.299999952 | W155: 0.25 | X155: 0.6000000238 | Y155: 0.31 | Z155: 1.100000024 | AA155: 0.38 | AB155: 0.3000000119 | AC155: 0.25 | AD155: 1.100000024 | AE155: 0.37
A156: 8101 | B156: 8101 Jan Mann Opp. Center | C156: 1 | D156: 0 | E156: 0 | F156: 0 | G156: 0 | H156: 0 | I156: 0 | J156: 0 | K156: 0 | L156: 0 | M156: 0 | N156: 0 | O156: 0 | P156: 0 | Q156: 0 | R156: 0 | S156: 0 | T156: 0 | U156: 0 | V156: 0 | W156: 0 | X156: 0 | Y156: 0 | Z156: 0 | AA156: 0 | AB156: 0 | AC156: 0 | AD156: 0 | AE156: 0
A157: 8141 | B157: 8141 Juvenile Justice Center | C157: 3 | D157: 9.699999809 | E157: 0.27 | F157: 0.6999999881 | G157: 0.33 | H157: 0.3000000119 | I157: 0.33 | J157: 0.6999999881 | K157: 0.33 | L157: 0.6999999881 | M157: 0.22 | N157: 1.700000048 | O157: 0.33 | P157: 1.299999952 | Q157: 0.33 | R157: 1 | S157: 0.5 | T157: 0.3000000119 | U157: 0.17 | V157: 0.6999999881 | W157: 0.13 | X157: 0.3000000119 | Y157: 0.17 | Z157: 1 | AA157: 0.33 | AB157: 0.3000000119 | AC157: 0.33 | AD157: 0.6999999881 | AE157: 0.22
C158: =SUM(C14:C157) -> 24904
A159: 9999 | B159: 9999 DISTRICT | C159: 24611 | D159: 19.89999962 | E159: 0.57 | F159: 1.399999976 | G159: 0.68 | H159: 0.6000000238 | I159: 0.55 | J159: 1.200000048 | K159: 0.62 | L159: 1.899999976 | M159: 0.62 | N159: 2.799999952 | O159: 0.57 | P159: 2.5 | Q159: 0.63 | R159: 1.299999952 | S159: 0.65 | T159: 0.8999999762 | U159: 0.44 | V159: 2.599999905 | W159: 0.53 | X159: 1.299999952 | Y159: 0.64 | Z159: 1.600000024 | AA159: 0.52 | AB159: 0.6999999881 | AC159: 0.72 | AD159: 1.100000024 | AE159: 0.38
C160: 293
A207: =IFERROR(VALUE(LEFT(B207,4)),"") -> 
A271: =IFERROR(VALUE(LEFT(B271,4)),"") -> 
A335: =IFERROR(VALUE(LEFT(B335,4)),"") -> 
A399: =IFERROR(VALUE(LEFT(B399,4)),"") -> 
A463: =IFERROR(VALUE(LEFT(B463,4)),"") -> 

Sheet BLG6CC-R (hidden)
B1: R-G06-RC-SCHL-ALL
B3: Description: | C3: Reading, G06, RC, School, All
B4: Student Selection: | C4: Multiple | 2011-2012 Fall, 2011-2012 School Year
B5: Group By Data: | C5: School
B6: Assessments: | C6: Baseline 2011 - Grade 6 Reading AUGUST 2011 Teacher __________ Period _____
B7: Scores: | C7: Overall Avg Raw Score, Overall Avg % Correct, Overall # in Performance Band, Overall % in Performance Band, Question Groups Avg Raw Score, Question Groups Avg % Correct, Question Groups # in Performance Band, Question Groups % in Performance Band
B8: Author Name: | C8: Yuwadee Wongbundhit
A9: =COLUMN() -> 1 | B9: =COLUMN() -> 2 | C9: =COLUMN() -> 3 | D9: =COLUMN() -> 4 | E9: =COLUMN() -> 5 | F9: =COLUMN() -> 6 | G9: =COLUMN() -> 7 | H9: =COLUMN() -> 8 | I9: =COLUMN() -> 9 | J9: =COLUMN() -> 10 | K9: =COLUMN() -> 11 | L9: =COLUMN() -> 12 | M9: =COLUMN() -> 13 | N9: =COLUMN() -> 14 | O9: =COLUMN() -> 15 | P9: =COLUMN() -> 16 | Q9: =COLUMN() -> 17 | R9: =COLUMN() -> 18 | S9: =COLUMN() -> 19 | T9: =COLUMN() -> 20 | U9: =COLUMN() -> 21 | V9: =COLUMN() -> 22 | W9: =COLUMN() -> 23 | X9: =COLUMN() -> 24 | Y9: =COLUMN() -> 25 | Z9: =COLUMN() -> 26 | AA9: =COLUMN() -> 27 | AB9: =COLUMN() -> 28 | AC9: =COLUMN() -> 29
B10: Total Row(s): 144 Generated on Sep-17-2011 by Yuwadee Wongbundhit | C10: Baseline 2011 - Grade 6 Reading AUGUST 2011 Teacher __________ Period _____
C11: Total # students | D11: Overall (35 pts max) | J11: Vocabulary (5 pts max) | P11: Reading Application (16 pts max) | V11: Literary Analysis - Fiction/Non-Fiction (10 pts max) | AB11: Informational Text/Research Process (4 pts max)
D12: Avg Raw Score | E12: Avg % Correct | F12: # in Performance Band | H12: % in Performance Band | J12: Avg Raw Score | K12: Avg % Correct | L12: # in Performance Band | N12: % in Performance Band | P12: Avg Raw Score | Q12: Avg % Correct | R12: # in Performance Band | T12: % in Performance Band | V12: Avg Raw Score | W12: Avg % Correct | X12: # in Performance Band | Z12: % in Performance Band | AB12: Avg Raw Score | AC12: Avg % Correct | AD12: # in Performance Band | AF12: % in Performance Band
B13: School Name | F13: Non Proficient | G13: Proficient | H13: Non Proficient | I13: Proficient | L13: Non Proficient | M13: Proficient | N13: Non Proficient | O13: Proficient | R13: Non Proficient | S13: Proficient | T13: Non Proficient | U13: Proficient | X13: Non Proficient | Y13: Proficient | Z13: Non Proficient | AA13: Proficient | AD13: Non Proficient | AE13: Proficient | AF13: Non Proficient | AG13: Proficient
A14: =IFERROR(VALUE(LEFT(B14,4)),"") -> 70 | B14: 0070 Coral Reef Montessori Academy | C14: 39 | D14: 21.39999962 | E14: 0.61 | F14: 29 | G14: 10 | H14: 74.36% | I14: 25.64% | J14: 3.599999905 | K14: 0.71 | L14: 17 | M14: 22 | N14: 43.59% | O14: 56.41% | P14: 10.19999981 | Q14: 0.64 | R14: 27 | S14: 12 | T14: 69.23% | U14: 30.77% | V14: 5.900000095 | W14: 0.59 | X14: 25 | Y14: 14 | Z14: 64.10% | AA14: 35.90% | AB14: 1.700000048 | AC14: 0.42 | AD14: 32 | AE14: 7 | AF14: 82.05% | AG14: 17.95%
A15: =IFERROR(VALUE(LEFT(B15,4)),"") -> 71 | B15: 0071 Eugenia B. Thomas K-8 | C15: 141 | D15: 20.79999924 | E15: 0.59 | F15: 104 | G15: 37 | H15: 73.76% | I15: 26.24% | J15: 3.200000048 | K15: 0.65 | L15: 75 | M15: 66 | N15: 53.19% | O15: 46.81% | P15: 10 | Q15: 0.63 | R15: 91 | S15: 50 | T15: 64.54% | U15: 35.46% | V15: 5.599999905 | W15: 0.56 | X15: 96 | Y15: 45 | Z15: 68.09% | AA15: 31.91% | AB15: 2 | AC15: 0.49 | AD15: 99 | AE15: 42 | AF15: 70.21% | AG15: 29.79%
A16: 72 | B16: 0072 Summerville Charter School | C16: 56 | D16: 20.60000038 | E16: 0.59 | F16: 46 | G16: 10 | H16: 82.14% | I16: 17.86% | J16: 3.299999952 | K16: 0.65 | L16: 33 | M16: 23 | N16: 58.93% | O16: 41.07% | P16: 9.899999619 | Q16: 0.62 | R16: 38 | S16: 18 | T16: 67.86% | U16: 32.14% | V16: 5.599999905 | W16: 0.56 | X16: 43 | Y16: 13 | Z16: 76.79% | AA16: 23.21% | AB16: 1.899999976 | AC16: 0.47 | AD16: 41 | AE16: 15 | AF16: 73.21% | AG16: 26.79%
A17: 73 | B17: 0073 Mandarin Lakes K-8 Center | C17: 100 | D17: 14.30000019 | E17: 0.41 | F17: 95 | G17: 5 | H17: 95.00% | I17: 5.00% | J17: 2.5 | K17: 0.49 | L17: 83 | M17: 17 | N17: 83.00% | O17: 17.00% | P17: 6.300000191 | Q17: 0.39 | R17: 96 | S17: 4 | T17: 96.00% | U17: 4.00% | V17: 4.199999809 | W17: 0.42 | X17: 85 | Y17: 15 | Z17: 85.00% | AA17: 15.00% | AB17: 1.299999952 | AC17: 0.34 | AD17: 92 | AE17: 8 | AF17: 92.00% | AG17: 8.00%
A18: 91 | B18: 0091 Bob Graham Education Center | C18: 233 | D18: 20.29999924 | E18: 0.58 | F18: 162 | G18: 71 | H18: 69.53% | I18: 30.47% | J18: 3.299999952 | K18: 0.66 | L18: 114 | M18: 119 | N18: 48.93% | O18: 51.07% | P18: 9.5 | Q18: 0.59 | R18: 160 | S18: 73 | T18: 68.67% | U18: 31.33% | V18: 5.699999809 | W18: 0.57 | X18: 147 | Y18: 86 | Z18: 63.09% | AA18: 36.91% | AB18: 1.799999952 | AC18: 0.46 | AD18: 167 | AE18: 66 | AF18: 71.67% | AG18: 28.33%
A19: 92 | B19: 0092 Sunny Isles Beach Community School K-8 | C19: 188 | D19: 22.5 | E19: 0.64 | F19: 101 | G19: 87 | H19: 53.72% | I19: 46.28% | J19: 3.400000095 | K19: 0.69 | L19: 90 | M19: 98 | N19: 47.87% | O19: 52.13% | P19: 10.89999962 | Q19: 0.68 | R19: 92 | S19: 96 | T19: 48.94% | U19: 51.06% | V19: 6.099999905 | W19: 0.61 | X19: 102 | Y19: 86 | Z19: 54.26% | AA19: 45.74% | AB19: 2.099999905 | AC19: 0.52 | AD19: 118 | AE19: 70 | AF19: 62.77% | AG19: 37.23%
A20: 122 | B20: 0122 Dr. Rolando Espinosa K-8 Center | C20: 186 | D20: 21.89999962 | E20: 0.63 | F20: 118 | G20: 68 | H20: 63.44% | I20: 36.56% | J20: 3.299999952 | K20: 0.67 | L20: 92 | M20: 94 | N20: 49.46% | O20: 50.54% | P20: 10.39999962 | Q20: 0.65 | R20: 104 | S20: 82 | T20: 55.91% | U20: 44.09% | V20: 6 | W20: 0.6 | X20: 101 | Y20: 85 | Z20: 54.30% | AA20: 45.70% | AB20: 2.200000048 | AC20: 0.55 | AD20: 111 | AE20: 75 | AF20: 59.68% | AG20: 40.32%
A21: 231 | B21: 0231 Aventura Waterways K-8 | C21: 185 | D21: 20.20000076 | E21: 0.58 | F21: 134 | G21: 51 | H21: 72.43% | I21: 27.57% | J21: 3.400000095 | K21: 0.67 | L21: 95 | M21: 90 | N21: 51.35% | O21: 48.65% | P21: 9.600000381 | Q21: 0.6 | R21: 123 | S21: 62 | T21: 66.49% | U21: 33.51% | V21: 5.400000095 | W21: 0.54 | X21: 132 | Y21: 53 | Z21: 71.35% | AA21: 28.65% | AB21: 1.899999976 | AC21: 0.47 | AD21: 137 | AE21: 48 | AF21: 74.05% | AG21: 25.95%
A22: 241 | B22: 0241 Ruth K. Broad/Bay Harbor K-8 | C22: 110 | D22: 21.29999924 | E22: 0.61 | F22: 77 | G22: 33 | H22: 70.00% | I22: 30.00% | J22: 3.599999905 | K22: 0.71 | L22: 52 | M22: 58 | N22: 47.27% | O22: 52.73% | P22: 10.19999981 | Q22: 0.64 | R22: 72 | S22: 38 | T22: 65.45% | U22: 34.55% | V22: 5.800000191 | W22: 0.58 | X22: 63 | Y22: 47 | Z22: 57.27% | AA22: 42.73% | AB22: 1.799999952 | AC22: 0.45 | AD22: 84 | AE22: 26 | AF22: 76.36% | AG22: 23.64%
A23: 332 | B23: 0332 Somerset Silver Palms K-8 | C23: 134 | D23: 19.29999924 | E23: 0.55 | F23: 105 | G23: 29 | H23: 78.36% | I23: 21.64% | J23: 3.200000048 | K23: 0.63 | L23: 72 | M23: 62 | N23: 53.73% | O23: 46.27% | P23: 9 | Q23: 0.56 | R23: 109 | S23: 25 | T23: 81.34% | U23: 18.66% | V23: 5.300000191 | W23: 0.53 | X23: 96 | Y23: 38 | Z23: 71.64% | AA23: 28.36% | AB23: 1.799999952 | AC23: 0.45 | AD23: 100 | AE23: 34 | AF23: 74.63% | AG23: 25.37%
A24: 451 | B24: 0451 Doolin /Ashe K-8 Academy | C24: 192 | D24: 20.10000038 | E24: 0.57 | F24: 140 | G24: 52 | H24: 72.92% | I24: 27.08% | J24: 3.200000048 | K24: 0.65 | L24: 107 | M24: 85 | N24: 55.73% | O24: 44.27% | P24: 9.5 | Q24: 0.59 | R24: 131 | S24: 61 | T24: 68.23% | U24: 31.77% | V24: 5.400000095 | W24: 0.54 | X24: 128 | Y24: 64 | Z24: 66.67% | AA24: 33.33% | AB24: 1.899999976 | AC24: 0.48 | AD24: 144 | AE24: 48 | AF24: 75.00% | AG24: 25.00%
A25: 651 | B25: 0651 Campbell Drive Elementary | C25: 69 | D25: 17.39999962 | E25: 0.5 | F25: 65 | G25: 4 | H25: 94.20% | I25: 5.80% | J25: 2.700000048 | K25: 0.54 | L25: 53 | M25: 16 | N25: 76.81% | O25: 23.19% | P25: 8.399999619 | Q25: 0.53 | R25: 61 | S25: 8 | T25: 88.41% | U25: 11.59% | V25: 4.599999905 | W25: 0.46 | X25: 58 | Y25: 11 | Z25: 84.06% | AA25: 15.94% | AB25: 1.700000048 | AC25: 0.42 | AD25: 53 | AE25: 16 | AF25: 76.81% | AG25: 23.19%
A26: 761 | B26: 0761 Fienberg Fisher K-8 Center | C26: 100 | D26: 18.39999962 | E26: 0.52 | F26: 84 | G26: 16 | H26: 84.00% | I26: 16.00% | J26: 3 | K26: 0.6 | L26: 62 | M26: 38 | N26: 62.00% | O26: 38.00% | P26: 8.699999809 | Q26: 0.54 | R26: 78 | S26: 22 | T26: 78.00% | U26: 22.00% | V26: 4.900000095 | W26: 0.49 | X26: 81 | Y26: 19 | Z26: 81.00% | AA26: 19.00% | AB26: 1.799999952 | AC26: 0.44 | AD26: 82 | AE26: 18 | AF26: 82.00% | AG26: 18.00%
A27: 950 | B27: 0950 Aventura City Of Excellence School | C27: 100 | D27: 23.79999924 | E27: 0.68 | F27: 50 | G27: 50 | H27: 50.00% | I27: 50.00% | J27: 3.700000048 | K27: 0.75 | L27: 40 | M27: 60 | N27: 40.00% | O27: 60.00% | P27: 11.5 | Q27: 0.72 | R27: 44 | S27: 56 | T27: 44.00% | U27: 56.00% | V27: 6.300000191 | W27: 0.63 | X27: 53 | Y27: 47 | Z27: 53.00% | AA27: 47.00% | AB27: 2.299999952 | AC27: 0.58 | AD27: 53 | AE27: 47 | AF27: 53.00% | AG27: 47.00%
A28: 961 | B28: 0961 Coral Gables Elementary | C28: 79 | D28: 22.79999924 | E28: 0.65 | F28: 44 | G28: 35 | H28: 55.70% | I28: 44.30% | J28: 3.400000095 | K28: 0.68 | L28: 39 | M28: 40 | N28: 49.37% | O28: 50.63% | P28: 10.89999962 | Q28: 0.68 | R28: 43 | S28: 36 | T28: 54.43% | U28: 45.57% | V28: 6.099999905 | W28: 0.61 | X28: 45 | Y28: 34 | Z28: 56.96% | AA28: 43.04% | AB28: 2.400000095 | AC28: 0.61 | AD28: 42 | AE28: 37 | AF28: 53.16% | AG28: 46.84%
A29: 1010 | B29: 1010 The Charter School At Waterstone | C29: 140 | D29: 22.89999962 | E29: 0.65 | F29: 81 | G29: 59 | H29: 57.86% | I29: 42.14% | J29: 3.400000095 | K29: 0.68 | L29: 64 | M29: 76 | N29: 45.71% | O29: 54.29% | P29: 11 | Q29: 0.69 | R29: 72 | S29: 68 | T29: 51.43% | U29: 48.57% | V29: 6.400000095 | W29: 0.64 | X29: 74 | Y29: 66 | Z29: 52.86% | AA29: 47.14% | AB29: 2.099999905 | AC29: 0.53 | AD29: 94 | AE29: 46 | AF29: 67.14% | AG29: 32.86%
A30: 1020 | B30: 1020 Youth Co-op Charter School | C30: 86 | D30: 20.5 | E30: 0.58 | F30: 61 | G30: 25 | H30: 70.93% | I30: 29.07% | J30: 3.299999952 | K30: 0.66 | L30: 47 | M30: 39 | N30: 54.65% | O30: 45.35% | P30: 9.699999809 | Q30: 0.6 | R30: 60 | S30: 26 | T30: 69.77% | U30: 30.23% | V30: 5.699999809 | W30: 0.57 | X30: 56 | Y30: 30 | Z30: 65.12% | AA30: 34.88% | AB30: 1.899999976 | AC30: 0.47 | AD30: 65 | AE30: 21 | AF30: 75.58% | AG30: 24.42%
A31: 1121 | B31: 1121 Coral Way K-8 Center | C31: 149 | D31: 20.89999962 | E31: 0.6 | F31: 102 | G31: 47 | H31: 68.46% | I31: 31.54% | J31: 3.400000095 | K31: 0.68 | L31: 71 | M31: 78 | N31: 47.65% | O31: 52.35% | P31: 10 | Q31: 0.63 | R31: 89 | S31: 60 | T31: 59.73% | U31: 40.27% | V31: 5.599999905 | W31: 0.56 | X31: 92 | Y31: 57 | Z31: 61.74% | AA31: 38.26% | AB31: 1.899999976 | AC31: 0.47 | AD31: 104 | AE31: 45 | AF31: 69.80% | AG31: 30.20%
A32: 1331 | B32: 1331 Devon Aire K-8 Center | C32: 173 | D32: 21.60000038 | E32: 0.62 | F32: 107 | G32: 66 | H32: 61.85% | I32: 38.15% | J32: 3.5 | K32: 0.7 | L32: 87 | M32: 86 | N32: 50.29% | O32: 49.71% | P32: 10.19999981 | Q32: 0.64 | R32: 99 | S32: 74 | T32: 57.23% | U32: 42.77% | V32: 5.900000095 | W32: 0.59 | X32: 107 | Y32: 66 | Z32: 61.85% | AA32: 38.15% | AB32: 2 | AC32: 0.49 | AD32: 117 | AE32: 56 | AF32: 67.63% | AG32: 32.37%
A33: 1681 | B33: 1681 Lillie C. Evans Elementary | C33: 30 | D33: 21.29999924 | E33: 0.61 | F33: 23 | G33: 7 | H33: 76.67% | I33: 23.33% | J33: 3.400000095 | K33: 0.67 | L33: 17 | M33: 13 | N33: 56.67% | O33: 43.33% | P33: 10.19999981 | Q33: 0.64 | R33: 22 | S33: 8 | T33: 73.33% | U33: 26.67% | V33: 5.800000191 | W33: 0.58 | X33: 20 | Y33: 10 | Z33: 66.67% | AA33: 33.33% | AB33: 2 | AC33: 0.49 | AD33: 22 | AE33: 8 | AF33: 73.33% | AG33: 26.67%
A34: 1721 | B34: 1721 Everglades K-8 Center | C34: 155 | D34: 20.20000076 | E34: 0.58 | F34: 104 | G34: 51 | H34: 67.10% | I34: 32.90% | J34: 3.200000048 | K34: 0.65 | L34: 78 | M34: 77 | N34: 50.32% | O34: 49.68% | P34: 9.5 | Q34: 0.6 | R34: 97 | S34: 58 | T34: 62.58% | U34: 37.42% | V34: 5.400000095 | W34: 0.54 | X34: 103 | Y34: 52 | Z34: 66.45% | AA34: 33.55% | AB34: 2.099999905 | AC34: 0.51 | AD34: 98 | AE34: 57 | AF34: 63.23% | AG34: 36.77%
A35: 2041 | B35: 2041 Benjamin Franklin Elementary School | C35: 58 | D35: 16.89999962 | E35: 0.48 | F35: 51 | G35: 7 | H35: 87.93% | I35: 12.07% | J35: 2.5 | K35: 0.51 | L35: 43 | M35: 15 | N35: 74.14% | O35: 25.86% | P35: 8.100000381 | Q35: 0.51 | R35: 53 | S35: 5 | T35: 91.38% | U35: 8.62% | V35: 4.5 | W35: 0.45 | X35: 49 | Y35: 9 | Z35: 84.48% | AA35: 15.52% | AB35: 1.700000048 | AC35: 0.44 | AD35: 48 | AE35: 10 | AF35: 82.76% | AG35: 17.24%
A36: 2060 | B36: 2060 Theodore R. And Thelma A. Gibson Charter | C36: 37 | D36: 17.10000038 | E36: 0.49 | F36: 35 | G36: 2 | H36: 94.59% | I36: 5.41% | J36: 2.5 | K36: 0.51 | L36: 29 | M36: 8 | N36: 78.38% | O36: 21.62% | P36: 7.699999809 | Q36: 0.48 | R36: 35 | S36: 2 | T36: 94.59% | U36: 5.41% | V36: 5 | W36: 0.5 | X36: 28 | Y36: 9 | Z36: 75.68% | AA36: 24.32% | AB36: 1.799999952 | AC36: 0.45 | AD36: 27 | AE36: 10 | AF36: 72.97% | AG36: 27.03%
A37: 2241 | B37: 2241 Gratigny Elementary | C37: 74 | D37: 17.70000076 | E37: 0.51 | F37: 63 | G37: 11 | H37: 85.14% | I37: 14.86% | J37: 2.900000095 | K37: 0.58 | L37: 47 | M37: 27 | N37: 63.51% | O37: 36.49% | P37: 8.100000381 | Q37: 0.51 | R37: 58 | S37: 16 | T37: 78.38% | U37: 21.62% | V37: 5.099999905 | W37: 0.51 | X37: 57 | Y37: 17 | Z37: 77.03% | AA37: 22.97% | AB37: 1.600000024 | AC37: 0.4 | AD37: 60 | AE37: 14 | AF37: 81.08% | AG37: 18.92%
A38: 2701 | B38: 2701 Kenwood K-8 Center | C38: 115 | D38: 22.29999924 | E38: 0.64 | F38: 69 | G38: 46 | H38: 60.00% | I38: 40.00% | J38: 3.5 | K38: 0.7 | L38: 51 | M38: 64 | N38: 44.35% | O38: 55.65% | P38: 10.60000038 | Q38: 0.66 | R38: 68 | S38: 47 | T38: 59.13% | U38: 40.87% | V38: 6.199999809 | W38: 0.62 | X38: 65 | Y38: 50 | Z38: 56.52% | AA38: 43.48% | AB38: 2 | AC38: 0.51 | AD38: 78 | AE38: 37 | AF38: 67.83% | AG38: 32.17%
A39: 2741 | B39: 2741 Key Biscayne K-8 Center | C39: 135 | D39: 22.20000076 | E39: 0.64 | F39: 76 | G39: 59 | H39: 56.30% | I39: 43.70% | J39: 3.599999905 | K39: 0.71 | L39: 49 | M39: 86 | N39: 36.30% | O39: 63.70% | P39: 10.39999962 | Q39: 0.65 | R39: 74 | S39: 61 | T39: 54.81% | U39: 45.19% | V39: 6.199999809 | W39: 0.62 | X39: 72 | Y39: 63 | Z39: 53.33% | AA39: 46.67% | AB39: 2.099999905 | AC39: 0.53 | AD39: 89 | AE39: 46 | AF39: 65.93% | AG39: 34.07%
A40: 2881 | B40: 2881 Leewood K-8 Center | C40: 80 | D40: 23.29999924 | E40: 0.67 | F40: 43 | G40: 37 | H40: 53.75% | I40: 46.25% | J40: 3.700000048 | K40: 0.74 | L40: 32 | M40: 48 | N40: 40.00% | O40: 60.00% | P40: 11.19999981 | Q40: 0.7 | R40: 38 | S40: 42 | T40: 47.50% | U40: 52.50% | V40: 6.300000191 | W40: 0.63 | X40: 43 | Y40: 37 | Z40: 53.75% | AA40: 46.25% | AB40: 2.099999905 | AC40: 0.52 | AD40: 56 | AE40: 24 | AF40: 70.00% | AG40: 30.00%
A41: 2901 | B41: 2901 Leisure City K-8 Center | C41: 109 | D41: 18.39999962 | E41: 0.52 | F41: 94 | G41: 15 | H41: 86.24% | I41: 13.76% | J41: 2.799999952 | K41: 0.56 | L41: 74 | M41: 35 | N41: 67.89% | O41: 32.11% | P41: 8.800000191 | Q41: 0.55 | R41: 88 | S41: 21 | T41: 80.73% | U41: 19.27% | V41: 5 | W41: 0.5 | X41: 84 | Y41: 25 | Z41: 77.06% | AA41: 22.94% | AB41: 1.700000048 | AC41: 0.43 | AD41: 86 | AE41: 23 | AF41: 78.90% | AG41: 21.10%
A42: 2911 | B42: 2911 Linda Lentin K - 8 Center | C42: 97 | D42: 19.5 | E42: 0.56 | F42: 75 | G42: 22 | H42: 77.32% | I42: 22.68% | J42: 3.099999905 | K42: 0.62 | L42: 57 | M42: 40 | N42: 58.76% | O42: 41.24% | P42: 9.100000381 | Q42: 0.57 | R42: 72 | S42: 25 | T42: 74.23% | U42: 25.77% | V42: 5.400000095 | W42: 0.54 | X42: 65 | Y42: 32 | Z42: 67.01% | AA42: 32.99% | AB42: 1.899999976 | AC42: 0.47 | AD42: 72 | AE42: 25 | AF42: 74.23% | AG42: 25.77%
A43: 3029 | B43: 3029 Doral Academy Of Technology | C43: 32 | D43: 27.39999962 | E43: 0.78 | F43: 6 | G43: 26 | H43: 18.75% | I43: 81.25% | J43: 4.199999809 | K43: 0.84 | L43: 5 | M43: 27 | N43: 15.62% | O43: 84.38% | P43: 13 | Q43: 0.81 | R43: 4 | S43: 28 | T43: 12.50% | U43: 87.50% | V43: 7.599999905 | W43: 0.76 | X43: 10 | Y43: 22 | Z43: 31.25% | AA43: 68.75% | AB43: 2.599999905 | AC43: 0.66 | AD43: 15 | AE43: 17 | AF43: 46.88% | AG43: 53.12%
A44: 3101 | B44: 3101 Frank C. Martin K-8 Center | C44: 151 | D44: 23.60000038 | E44: 0.67 | F44: 70 | G44: 81 | H44: 46.36% | I44: 53.64% | J44: 3.700000048 | K44: 0.74 | L44: 54 | M44: 97 | N44: 35.76% | O44: 64.24% | P44: 11.39999962 | Q44: 0.71 | R44: 72 | S44: 79 | T44: 47.68% | U44: 52.32% | V44: 6.5 | W44: 0.65 | X44: 75 | Y44: 76 | Z44: 49.67% | AA44: 50.33% | AB44: 2.099999905 | AC44: 0.51 | AD44: 92 | AE44: 59 | AF44: 60.93% | AG44: 39.07%
A45: 3191 | B45: 3191 Ada Merritt K-8 Center | C45: 109 | D45: 24.20000076 | E45: 0.69 | F45: 52 | G45: 57 | H45: 47.71% | I45: 52.29% | J45: 3.799999952 | K45: 0.77 | L45: 36 | M45: 73 | N45: 33.03% | O45: 66.97% | P45: 11.5 | Q45: 0.72 | R45: 53 | S45: 56 | T45: 48.62% | U45: 51.38% | V45: 6.599999905 | W45: 0.66 | X45: 45 | Y45: 64 | Z45: 41.28% | AA45: 58.72% | AB45: 2.200000048 | AC45: 0.56 | AD45: 63 | AE45: 46 | AF45: 57.80% | AG45: 42.20%
A46: 3281 | B46: 3281 Miami Lakes K-8 Center | C46: 182 | D46: 21 | E46: 0.6 | F46: 125 | G46: 57 | H46: 68.68% | I46: 31.32% | J46: 3.400000095 | K46: 0.67 | L46: 91 | M46: 91 | N46: 50.00% | O46: 50.00% | P46: 9.899999619 | Q46: 0.62 | R46: 117 | S46: 65 | T46: 64.29% | U46: 35.71% | V46: 5.699999809 | W46: 0.57 | X46: 109 | Y46: 73 | Z46: 59.89% | AA46: 40.11% | AB46: 2.099999905 | AC46: 0.51 | AD46: 119 | AE46: 63 | AF46: 65.38% | AG46: 34.62%
A47: 3421 | B47: 3421 Milam K-8 Center | C47: 102 | D47: 16.10000038 | E47: 0.46 | F47: 95 | G47: 7 | H47: 93.14% | I47: 6.86% | J47: 2.400000095 | K47: 0.49 | L47: 86 | M47: 16 | N47: 84.31% | O47: 15.69% | P47: 7.800000191 | Q47: 0.49 | R47: 90 | S47: 12 | T47: 88.24% | U47: 11.76% | V47: 4.300000191 | W47: 0.43 | X47: 87 | Y47: 15 | Z47: 85.29% | AA47: 14.71% | AB47: 1.600000024 | AC47: 0.4 | AD47: 89 | AE47: 13 | AF47: 87.25% | AG47: 12.75%
A48: 3621 | B48: 3621 Coconut Palms K-8 Academy | C48: 136 | D48: 19.5 | E48: 0.56 | F48: 109 | G48: 27 | H48: 80.15% | I48: 19.85% | J48: 3.099999905 | K48: 0.62 | L48: 79 | M48: 57 | N48: 58.09% | O48: 41.91% | P48: 9.300000191 | Q48: 0.58 | R48: 99 | S48: 37 | T48: 72.79% | U48: 27.21% | V48: 5.300000191 | W48: 0.53 | X48: 97 | Y48: 39 | Z48: 71.32% | AA48: 28.68% | AB48: 1.799999952 | AC48: 0.44 | AD48: 107 | AE48: 29 | AF48: 78.68% | AG48: 21.32%
A49: 3701 | B49: 3701 Norland Elementary School | C49: 1 | D49: 14 | E49: 0.4 | F49: 1 | H49: 100.00% | J49: 4 | K49: 0.8 | M49: 1 | O49: 100.00% | P49: 8 | Q49: 0.5 | R49: 1 | T49: 100.00% | V49: 2 | W49: 0.2 | X49: 1 | Z49: 100.00% | AB49: 0 | AC49: 0 | AD49: 1 | AF49: 100.00%
A50: 3821 | B50: 3821 North County Elementary School | C50: 44 | D50: 17.5 | E50: 0.5 | F50: 41 | G50: 3 | H50: 93.18% | I50: 6.82% | J50: 2.5 | K50: 0.5 | L50: 31 | M50: 13 | N50: 70.45% | O50: 29.55% | P50: 8.5 | Q50: 0.53 | R50: 40 | S50: 4 | T50: 90.91% | U50: 9.09% | V50: 4.699999809 | W50: 0.47 | X50: 38 | Y50: 6 | Z50: 86.36% | AA50: 13.64% | AB50: 1.799999952 | AC50: 0.45 | AD50: 31 | AE50: 13 | AF50: 70.45% | AG50: 29.55%
A51: 4021 | B51: 4021 Oak Grove Elementary | C51: 50 | D51: 17.79999924 | E51: 0.51 | F51: 45 | G51: 5 | H51: 90.00% | I51: 10.00% | J51: 2.599999905 | K51: 0.52 | L51: 35 | M51: 15 | N51: 70.00% | O51: 30.00% | P51: 8.399999619 | Q51: 0.53 | R51: 44 | S51: 6 | T51: 88.00% | U51: 12.00% | V51: 5.099999905 | W51: 0.51 | X51: 40 | Y51: 10 | Z51: 80.00% | AA51: 20.00% | AB51: 1.700000048 | AC51: 0.41 | AD51: 43 | AE51: 7 | AF51: 86.00% | AG51: 14.00%
A52: 4031 | B52: 4031 Gateway Environmental K-8 Learning Center | C52: 133 | D52: 18.79999924 | E52: 0.54 | F52: 108 | G52: 25 | H52: 81.20% | I52: 18.80% | J52: 3 | K52: 0.6 | L52: 83 | M52: 50 | N52: 62.41% | O52: 37.59% | P52: 8.899999619 | Q52: 0.56 | R52: 96 | S52: 37 | T52: 72.18% | U52: 27.82% | V52: 5.199999809 | W52: 0.52 | X52: 95 | Y52: 38 | Z52: 71.43% | AA52: 28.57% | AB52: 1.600000024 | AC52: 0.4 | AD52: 105 | AE52: 28 | AF52: 78.95% | AG52: 21.05%
A53: 4391 | B53: 4391 Irving and Beatrice Peskoe Elementary School | C53: 45 | D53: 17 | E53: 0.49 | F53: 40 | G53: 5 | H53: 88.89% | I53: 11.11% | J53: 2.599999905 | K53: 0.52 | L53: 29 | M53: 16 | N53: 64.44% | O53: 35.56% | P53: 7.900000095 | Q53: 0.5 | R53: 35 | S53: 10 | T53: 77.78% | U53: 22.22% | V53: 4.800000191 | W53: 0.48 | X53: 34 | Y53: 11 | Z53: 75.56% | AA53: 24.44% | AB53: 1.700000048 | AC53: 0.42 | AD53: 37 | AE53: 8 | AF53: 82.22% | AG53: 17.78%
A54: 4691 | B54: 4691 Jane S. Roberts K-8 Center | C54: 109 | D54: 21.39999962 | E54: 0.61 | F54: 78 | G54: 31 | H54: 71.56% | I54: 28.44% | J54: 3.299999952 | K54: 0.67 | L54: 59 | M54: 50 | N54: 54.13% | O54: 45.87% | P54: 10.39999962 | Q54: 0.65 | R54: 72 | S54: 37 | T54: 66.06% | U54: 33.94% | V54: 5.800000191 | W54: 0.58 | X54: 70 | Y54: 39 | Z54: 64.22% | AA54: 35.78% | AB54: 1.899999976 | AC54: 0.49 | AD54: 78 | AE54: 31 | AF54: 71.56% | AG54: 28.44%
A55: 5003 | B55: 5003 South Dade Middle School | C55: 252 | D55: 18.79999924 | E55: 0.54 | F55: 207 | G55: 45 | H55: 82.14% | I55: 17.86% | J55: 2.900000095 | K55: 0.59 | L55: 158 | M55: 94 | N55: 62.70% | O55: 37.30% | P55: 9 | Q55: 0.56 | R55: 196 | S55: 56 | T55: 77.78% | U55: 22.22% | V55: 5.199999809 | W55: 0.52 | X55: 188 | Y55: 64 | Z55: 74.60% | AA55: 25.40% | AB55: 1.799999952 | AC55: 0.45 | AD55: 190 | AE55: 62 | AF55: 75.40% | AG55: 24.60%
A56: 5005 | B56: 5005 David Lawrence Jr. K8 Center | C56: 166 | D56: 21.60000038 | E56: 0.62 | F56: 110 | G56: 56 | H56: 66.27% | I56: 33.73% | J56: 3.400000095 | K56: 0.69 | L56: 82 | M56: 84 | N56: 49.40% | O56: 50.60% | P56: 10.30000019 | Q56: 0.64 | R56: 106 | S56: 60 | T56: 63.86% | U56: 36.14% | V56: 5.800000191 | W56: 0.58 | X56: 102 | Y56: 64 | Z56: 61.45% | AA56: 38.55% | AB56: 2.099999905 | AC56: 0.52 | AD56: 108 | AE56: 58 | AF56: 65.06% | AG56: 34.94%
A57: 5007 | B57: 5007 Lincoln-marti Charter Schools (Hialeah) | C57: 37 | D57: 20.39999962 | E57: 0.58 | F57: 25 | G57: 12 | H57: 67.57% | I57: 32.43% | J57: 3.099999905 | K57: 0.63 | L57: 20 | M57: 17 | N57: 54.05% | O57: 45.95% | P57: 9.5 | Q57: 0.59 | R57: 24 | S57: 13 | T57: 64.86% | U57: 35.14% | V57: 5.800000191 | W57: 0.58 | X57: 20 | Y57: 17 | Z57: 54.05% | AA57: 45.95% | AB57: 2 | AC57: 0.5 | AD57: 23 | AE57: 14 | AF57: 62.16% | AG57: 37.84%
A58: 5021 | B58: 5021 Ben Sheppard Elementary | C58: 1 | D58: 26 | E58: 0.74 | G58: 1 | I58: 100.00% | J58: 4 | K58: 0.8 | M58: 1 | O58: 100.00% | P58: 14 | Q58: 0.88 | S58: 1 | U58: 100.00% | V58: 6 | W58: 0.6 | X58: 1 | Z58: 100.00% | AB58: 2 | AC58: 0.5 | AD58: 1 | AF58: 100.00%
A59: 5022 | B59: 5022 Ben Gamla Charter School (Miami Beach) | C59: 13 | D59: 20.29999924 | E59: 0.58 | F59: 11 | G59: 2 | H59: 84.62% | I59: 15.38% | J59: 3.200000048 | K59: 0.63 | L59: 6 | M59: 7 | N59: 46.15% | O59: 53.85% | P59: 9.199999809 | Q59: 0.58 | R59: 11 | S59: 2 | T59: 84.62% | U59: 15.38% | V59: 6.199999809 | W59: 0.62 | X59: 8 | Y59: 5 | Z59: 61.54% | AA59: 38.46% | AB59: 1.700000048 | AC59: 0.42 | AD59: 11 | AE59: 2 | AF59: 84.62% | AG59: 15.38%
A60: 5025 | B60: 5025 Lincoln-marti Charter Schools(Little Havana) | C60: 73 | D60: 16.20000076 | E60: 0.46 | F60: 64 | G60: 9 | H60: 87.67% | I60: 12.33% | J60: 2.299999952 | K60: 0.47 | L60: 58 | M60: 15 | N60: 79.45% | O60: 20.55% | P60: 8 | Q60: 0.5 | R60: 63 | S60: 10 | T60: 86.30% | U60: 13.70% | V60: 4.300000191 | W60: 0.43 | X60: 65 | Y60: 8 | Z60: 89.04% | AA60: 10.96% | AB60: 1.600000024 | AC60: 0.4 | AD60: 62 | AE60: 11 | AF60: 84.93% | AG60: 15.07%
A61: 5029 | B61: 5029 Excelsior Language Academy of Hialeah | C61: 80 | D61: 18.79999924 | E61: 0.54 | F61: 57 | G61: 23 | H61: 71.25% | I61: 28.75% | J61: 2.799999952 | K61: 0.55 | L61: 54 | M61: 26 | N61: 67.50% | O61: 32.50% | P61: 9.100000381 | Q61: 0.57 | R61: 55 | S61: 25 | T61: 68.75% | U61: 31.25% | V61: 5.199999809 | W61: 0.52 | X61: 57 | Y61: 23 | Z61: 71.25% | AA61: 28.75% | AB61: 1.799999952 | AC61: 0.45 | AD61: 55 | AE61: 25 | AF61: 68.75% | AG61: 31.25%
A62: 5032 | B62: 5032 Excelsior Charter Academy | C62: 15 | D62: 20 | E62: 0.57 | F62: 11 | G62: 4 | H62: 73.33% | I62: 26.67% | J62: 3.200000048 | K62: 0.64 | L62: 10 | M62: 5 | N62: 66.67% | O62: 33.33% | P62: 9.100000381 | Q62: 0.57 | R62: 12 | S62: 3 | T62: 80.00% | U62: 20.00% | V62: 5.699999809 | W62: 0.57 | X62: 10 | Y62: 5 | Z62: 66.67% | AA62: 33.33% | AB62: 1.899999976 | AC62: 0.48 | AD62: 11 | AE62: 4 | AF62: 73.33% | AG62: 26.67%
A63: 5047 | B63: 5047 Mater Academy (Miami Beach) | C63: 76 | D63: 21.29999924 | E63: 0.61 | F63: 57 | G63: 19 | H63: 75.00% | I63: 25.00% | J63: 3.400000095 | K63: 0.67 | L63: 38 | M63: 38 | N63: 50.00% | O63: 50.00% | P63: 10.19999981 | Q63: 0.64 | R63: 52 | S63: 24 | T63: 68.42% | U63: 31.58% | V63: 5.599999905 | W63: 0.56 | X63: 57 | Y63: 19 | Z63: 75.00% | AA63: 25.00% | AB63: 2.099999905 | AC63: 0.52 | AD63: 52 | AE63: 24 | AF63: 68.42% | AG63: 31.58%
A64: 5049 | B64: 5049 Pinecrest Cove Academy | C64: 31 | D64: 22.39999962 | E64: 0.64 | F64: 18 | G64: 13 | H64: 58.06% | I64: 41.94% | J64: 3.5 | K64: 0.71 | L64: 14 | M64: 17 | N64: 45.16% | O64: 54.84% | P64: 10.80000019 | Q64: 0.67 | R64: 17 | S64: 14 | T64: 54.84% | U64: 45.16% | V64: 5.699999809 | W64: 0.57 | X64: 20 | Y64: 11 | Z64: 64.52% | AA64: 35.48% | AB64: 2.299999952 | AC64: 0.58 | AD64: 17 | AE64: 14 | AF64: 54.84% | AG64: 45.16%
A65: 5051 | B65: 5051 Ernest R Graham Elementary | C65: 105 | D65: 20.89999962 | E65: 0.6 | F65: 74 | G65: 31 | H65: 70.48% | I65: 29.52% | J65: 3.099999905 | K65: 0.62 | L65: 58 | M65: 47 | N65: 55.24% | O65: 44.76% | P65: 10 | Q65: 0.63 | R65: 68 | S65: 37 | T65: 64.76% | U65: 35.24% | V65: 5.699999809 | W65: 0.57 | X65: 69 | Y65: 36 | Z65: 65.71% | AA65: 34.29% | AB65: 2.099999905 | AC65: 0.53 | AD65: 65 | AE65: 40 | AF65: 61.90% | AG65: 38.10%
A66: 5101 | B66: 5101 John I. Smith Elementary | C66: 127 | D66: 20.20000076 | E66: 0.58 | F66: 93 | G66: 34 | H66: 73.23% | I66: 26.77% | J66: 3.200000048 | K66: 0.64 | L66: 75 | M66: 52 | N66: 59.06% | O66: 40.94% | P66: 9.600000381 | Q66: 0.6 | R66: 89 | S66: 38 | T66: 70.08% | U66: 29.92% | V66: 5.599999905 | W66: 0.56 | X66: 81 | Y66: 46 | Z66: 63.78% | AA66: 36.22% | AB66: 1.799999952 | AC66: 0.45 | AD66: 95 | AE66: 32 | AF66: 74.80% | AG66: 25.20%
A67: 5141 | B67: 5141 Hubert O. Sibley Elem. | C67: 91 | D67: 18.39999962 | E67: 0.53 | F67: 79 | G67: 12 | H67: 86.81% | I67: 13.19% | J67: 2.900000095 | K67: 0.59 | L67: 57 | M67: 34 | N67: 62.64% | O67: 37.36% | P67: 8.899999619 | Q67: 0.56 | R67: 68 | S67: 23 | T67: 74.73% | U67: 25.27% | V67: 4.900000095 | W67: 0.49 | X67: 72 | Y67: 19 | Z67: 79.12% | AA67: 20.88% | AB67: 1.700000048 | AC67: 0.43 | AD67: 71 | AE67: 20 | AF67: 78.02% | AG67: 21.98%
A68: 5241 | B68: 5241 South Miami K-8 Center | C68: 79 | D68: 19.29999924 | E68: 0.55 | F68: 62 | G68: 17 | H68: 78.48% | I68: 21.52% | J68: 3.200000048 | K68: 0.64 | L68: 43 | M68: 36 | N68: 54.43% | O68: 45.57% | P68: 9 | Q68: 0.56 | R68: 61 | S68: 18 | T68: 77.22% | U68: 22.78% | V68: 5.300000191 | W68: 0.53 | X68: 58 | Y68: 21 | Z68: 73.42% | AA68: 26.58% | AB68: 1.799999952 | AC68: 0.45 | AD68: 58 | AE68: 21 | AF68: 73.42% | AG68: 26.58%
A69: 5671 | B69: 5671 Vineland K-8 Center | C69: 89 | D69: 24 | E69: 0.68 | F69: 40 | G69: 49 | H69: 44.94% | I69: 55.06% | J69: 4 | K69: 0.8 | L69: 23 | M69: 66 | N69: 25.84% | O69: 74.16% | P69: 11.30000019 | Q69: 0.71 | R69: 41 | S69: 48 | T69: 46.07% | U69: 53.93% | V69: 6.599999905 | W69: 0.66 | X69: 39 | Y69: 50 | Z69: 43.82% | AA69: 56.18% | AB69: 2.099999905 | AC69: 0.54 | AD69: 57 | AE69: 32 | AF69: 64.04% | AG69: 35.96%
A70: 5861 | B70: 5861 Dr. Henry W. Mack/West Little River Elem. | C70: 40 | D70: 16.70000076 | E70: 0.48 | F70: 36 | G70: 4 | H70: 90.00% | I70: 10.00% | J70: 2.599999905 | K70: 0.51 | L70: 30 | M70: 10 | N70: 75.00% | O70: 25.00% | P70: 8.199999809 | Q70: 0.51 | R70: 35 | S70: 5 | T70: 87.50% | U70: 12.50% | V70: 4.300000191 | W70: 0.43 | X70: 33 | Y70: 7 | Z70: 82.50% | AA70: 17.50% | AB70: 1.700000048 | AC70: 0.43 | AD70: 28 | AE70: 12 | AF70: 70.00% | AG70: 30.00%
A71: 5901 | B71: 5901 Carrie P. Meek/Westview Elementary | C71: 52 | D71: 18.29999924 | E71: 0.52 | F71: 43 | G71: 9 | H71: 82.69% | I71: 17.31% | J71: 2.700000048 | K71: 0.54 | L71: 36 | M71: 16 | N71: 69.23% | O71: 30.77% | P71: 8.800000191 | Q71: 0.55 | R71: 42 | S71: 10 | T71: 80.77% | U71: 19.23% | V71: 5.099999905 | W71: 0.51 | X71: 39 | Y71: 13 | Z71: 75.00% | AA71: 25.00% | AB71: 1.700000048 | AC71: 0.42 | AD71: 43 | AE71: 9 | AF71: 82.69% | AG71: 17.31%
A72: 5961 | B72: 5961 Winston Park K-8 Center | C72: 153 | D72: 20.89999962 | E72: 0.6 | F72: 96 | G72: 57 | H72: 62.75% | I72: 37.25% | J72: 3.200000048 | K72: 0.64 | L72: 85 | M72: 68 | N72: 55.56% | O72: 44.44% | P72: 10 | Q72: 0.63 | R72: 92 | S72: 61 | T72: 60.13% | U72: 39.87% | V72: 5.800000191 | W72: 0.58 | X72: 88 | Y72: 65 | Z72: 57.52% | AA72: 42.48% | AB72: 1.799999952 | AC72: 0.46 | AD72: 110 | AE72: 43 | AF72: 71.90% | AG72: 28.10%
A73: 6001 | B73: 6001 Herbert A. Ammons Middle School | C73: 421 | D73: 25.29999924 | E73: 0.72 | F73: 163 | G73: 258 | H73: 38.72% | I73: 61.28% | J73: 3.900000095 | K73: 0.79 | L73: 111 | M73: 310 | N73: 26.37% | O73: 73.63% | P73: 12 | Q73: 0.75 | R73: 160 | S73: 261 | T73: 38.00% | U73: 62.00% | V73: 7 | W73: 0.7 | X73: 150 | Y73: 271 | Z73: 35.63% | AA73: 64.37% | AB73: 2.400000095 | AC73: 0.6 | AD73: 225 | AE73: 196 | AF73: 53.44% | AG73: 46.56%
A74: 6003 | B74: 6003 Pinecrest Academy Middle | C74: 14 | D74: 20.39999962 | E74: 0.58 | F74: 12 | G74: 2 | H74: 85.71% | I74: 14.29% | J74: 2.900000095 | K74: 0.57 | L74: 10 | M74: 4 | N74: 71.43% | O74: 28.57% | P74: 10.10000038 | Q74: 0.63 | R74: 9 | S74: 5 | T74: 64.29% | U74: 35.71% | V74: 5.300000191 | W74: 0.53 | X74: 11 | Y74: 3 | Z74: 78.57% | AA74: 21.43% | AB74: 2.200000048 | AC74: 0.55 | AD74: 8 | AE74: 6 | AF74: 57.14% | AG74: 42.86%
A75: 6004 | B75: 6004 Somerset Academy Charter Middle | C75: 97 | D75: 23.20000076 | E75: 0.66 | F75: 52 | G75: 45 | H75: 53.61% | I75: 46.39% | J75: 3.599999905 | K75: 0.73 | L75: 37 | M75: 60 | N75: 38.14% | O75: 61.86% | P75: 11.19999981 | Q75: 0.7 | R75: 49 | S75: 48 | T75: 50.52% | U75: 49.48% | V75: 6.099999905 | W75: 0.61 | X75: 56 | Y75: 41 | Z75: 57.73% | AA75: 42.27% | AB75: 2.299999952 | AC75: 0.56 | AD75: 61 | AE75: 36 | AF75: 62.89% | AG75: 37.11%
A76: 6006 | B76: 6006 Archimedean Middle Conservatory | C76: 117 | D76: 25.79999924 | E76: 0.74 | F76: 38 | G76: 79 | H76: 32.48% | I76: 67.52% | J76: 3.900000095 | K76: 0.78 | L76: 34 | M76: 83 | N76: 29.06% | O76: 70.94% | P76: 12.39999962 | Q76: 0.78 | R76: 33 | S76: 84 | T76: 28.21% | U76: 71.79% | V76: 7.099999905 | W76: 0.71 | X76: 40 | Y76: 77 | Z76: 34.19% | AA76: 65.81% | AB76: 2.400000095 | AC76: 0.6 | AD76: 58 | AE76: 59 | AF76: 49.57% | AG76: 50.43%
A77: 6008 | B77: 6008 Lawrence Academy | C77: 47 | D77: 16.60000038 | E77: 0.47 | F77: 43 | G77: 4 | H77: 91.49% | I77: 8.51% | J77: 2.599999905 | K77: 0.52 | L77: 36 | M77: 11 | N77: 76.60% | O77: 23.40% | P77: 7.599999905 | Q77: 0.47 | R77: 39 | S77: 8 | T77: 82.98% | U77: 17.02% | V77: 4.900000095 | W77: 0.49 | X77: 37 | Y77: 10 | Z77: 78.72% | AA77: 21.28% | AB77: 1.5 | AC77: 0.37 | AD77: 40 | AE77: 7 | AF77: 85.11% | AG77: 14.89%
A78: 6009 | B78: 6009 Mater East Academy Middle School | C78: 103 | D78: 20.20000076 | E78: 0.58 | F78: 87 | G78: 16 | H78: 84.47% | I78: 15.53% | J78: 3 | K78: 0.61 | L78: 65 | M78: 38 | N78: 63.11% | O78: 36.89% | P78: 9.600000381 | Q78: 0.6 | R78: 76 | S78: 27 | T78: 73.79% | U78: 26.21% | V78: 5.599999905 | W78: 0.56 | X78: 71 | Y78: 32 | Z78: 68.93% | AA78: 31.07% | AB78: 2 | AC78: 0.49 | AD78: 70 | AE78: 33 | AF78: 67.96% | AG78: 32.04%
A79: =IFERROR(VALUE(LEFT(B79,4)),"") -> 6010 | B79: 6010 Florida International Academy | C79: 132 | D79: 18.70000076 | E79: 0.53 | F79: 120 | G79: 12 | H79: 90.91% | I79: 9.09% | J79: 3 | K79: 0.6 | L79: 81 | M79: 51 | N79: 61.36% | O79: 38.64% | P79: 8.899999619 | Q79: 0.56 | R79: 111 | S79: 21 | T79: 84.09% | U79: 15.91% | V79: 5.099999905 | W79: 0.51 | X79: 108 | Y79: 24 | Z79: 81.82% | AA79: 18.18% | AB79: 1.799999952 | AC79: 0.44 | AD79: 100 | AE79: 32 | AF79: 75.76% | AG79: 24.24%
A80: 6011 | B80: 6011 Allapattah Middle | C80: 188 | D80: 14.89999962 | E80: 0.43 | F80: 177 | G80: 11 | H80: 94.15% | I80: 5.85% | J80: 2.299999952 | K80: 0.46 | L80: 155 | M80: 33 | N80: 82.45% | O80: 17.55% | P80: 7 | Q80: 0.44 | R80: 181 | S80: 7 | T80: 96.28% | U80: 3.72% | V80: 4.099999905 | W80: 0.41 | X80: 169 | Y80: 19 | Z80: 89.89% | AA80: 10.11% | AB80: 1.5 | AC80: 0.37 | AD80: 157 | AE80: 31 | AF80: 83.51% | AG80: 16.49%
A81: 6012 | B81: 6012 Mater Academy Middle | C81: 477 | D81: 21.29999924 | E81: 0.61 | F81: 327 | G81: 150 | H81: 68.55% | I81: 31.45% | J81: 3.299999952 | K81: 0.66 | L81: 256 | M81: 221 | N81: 53.67% | O81: 46.33% | P81: 10.10000038 | Q81: 0.63 | R81: 305 | S81: 172 | T81: 63.94% | U81: 36.06% | V81: 6 | W81: 0.6 | X81: 282 | Y81: 195 | Z81: 59.12% | AA81: 40.88% | AB81: 2 | AC81: 0.49 | AD81: 338 | AE81: 139 | AF81: 70.86% | AG81: 29.14%
A82: 6013 | B82: 6013 Somerset Academy MS (South Campus) | C82: 43 | D82: 20.60000038 | E82: 0.59 | F82: 32 | G82: 11 | H82: 74.42% | I82: 25.58% | J82: 3.200000048 | K82: 0.65 | L82: 24 | M82: 19 | N82: 55.81% | O82: 44.19% | P82: 10 | Q82: 0.62 | R82: 29 | S82: 14 | T82: 67.44% | U82: 32.56% | V82: 5.5 | W82: 0.55 | X82: 32 | Y82: 11 | Z82: 74.42% | AA82: 25.58% | AB82: 1.899999976 | AC82: 0.48 | AD82: 32 | AE82: 11 | AF82: 74.42% | AG82: 25.58%
A83: 6020 | B83: 6020 Aspira Charter | C83: 203 | D83: 18.60000038 | E83: 0.53 | F83: 177 | G83: 26 | H83: 87.19% | I83: 12.81% | J83: 3.099999905 | K83: 0.61 | L83: 125 | M83: 78 | N83: 61.58% | O83: 38.42% | P83: 8.5 | Q83: 0.53 | R83: 172 | S83: 31 | T83: 84.73% | U83: 15.27% | V83: 5.099999905 | W83: 0.51 | X83: 148 | Y83: 55 | Z83: 72.91% | AA83: 27.09% | AB83: 1.899999976 | AC83: 0.48 | AD83: 142 | AE83: 61 | AF83: 69.95% | AG83: 30.05%
A84: 6021 | B84: 6021 Arvida Middle School | C84: 372 | D84: 23.5 | E84: 0.67 | F84: 202 | G84: 170 | H84: 54.30% | I84: 45.70% | J84: 3.700000048 | K84: 0.74 | L84: 138 | M84: 234 | N84: 37.10% | O84: 62.90% | P84: 11.19999981 | Q84: 0.7 | R84: 189 | S84: 183 | T84: 50.81% | U84: 49.19% | V84: 6.300000191 | W84: 0.63 | X84: 183 | Y84: 189 | Z84: 49.19% | AA84: 50.81% | AB84: 2.200000048 | AC84: 0.56 | AD84: 212 | AE84: 160 | AF84: 56.99% | AG84: 43.01%
A85: 6022 | B85: 6022 Pinecrest Academy Charter Middle | C85: 208 | D85: 21.39999962 | E85: 0.61 | F85: 136 | G85: 72 | H85: 65.38% | I85: 34.62% | J85: 3.5 | K85: 0.69 | L85: 100 | M85: 108 | N85: 48.08% | O85: 51.92% | P85: 10.10000038 | Q85: 0.63 | R85: 134 | S85: 74 | T85: 64.42% | U85: 35.58% | V85: 5.800000191 | W85: 0.58 | X85: 136 | Y85: 72 | Z85: 65.38% | AA85: 34.62% | AB85: 2.099999905 | AC85: 0.51 | AD85: 139 | AE85: 69 | AF85: 66.83% | AG85: 33.17%
A86: 6023 | B86: 6023 Andover Middle School | C86: 356 | D86: 18.89999962 | E86: 0.54 | F86: 296 | G86: 60 | H86: 83.15% | I86: 16.85% | J86: 3 | K86: 0.6 | L86: 222 | M86: 134 | N86: 62.36% | O86: 37.64% | P86: 9.100000381 | Q86: 0.57 | R86: 266 | S86: 90 | T86: 74.72% | U86: 25.28% | V86: 5.199999809 | W86: 0.52 | X86: 263 | Y86: 93 | Z86: 73.88% | AA86: 26.12% | AB86: 1.700000048 | AC86: 0.41 | AD86: 288 | AE86: 68 | AF86: 80.90% | AG86: 19.10%
A87: 6028 | B87: 6028 Renaisssance Middle Charter School | C87: 1 | D87: 20 | E87: 0.57 | F87: 1 | H87: 100.00% | J87: 4 | K87: 0.8 | M87: 1 | O87: 100.00% | P87: 10 | Q87: 0.63 | R87: 1 | T87: 100.00% | V87: 5 | W87: 0.5 | X87: 1 | Z87: 100.00% | AB87: 1 | AC87: 0.25 | AD87: 1 | AF87: 100.00%
A88: 6030 | B88: 6030 Doral Academy Charter Middle | C88: 467 | D88: 22.5 | E88: 0.64 | F88: 275 | G88: 192 | H88: 58.89% | I88: 41.11% | J88: 3.599999905 | K88: 0.71 | L88: 200 | M88: 267 | N88: 42.83% | O88: 57.17% | P88: 10.60000038 | Q88: 0.66 | R88: 269 | S88: 198 | T88: 57.60% | U88: 42.40% | V88: 6.300000191 | W88: 0.63 | X88: 244 | Y88: 223 | Z88: 52.25% | AA88: 47.75% | AB88: 2.099999905 | AC88: 0.52 | AD88: 310 | AE88: 157 | AF88: 66.38% | AG88: 33.62%
A89: 6031 | B89: 6031 Brownsville Middle School | C89: 210 | D89: 15.19999981 | E89: 0.43 | F89: 203 | G89: 7 | H89: 96.67% | I89: 3.33% | J89: 2.599999905 | K89: 0.52 | L89: 148 | M89: 62 | N89: 70.48% | O89: 29.52% | P89: 7.099999905 | Q89: 0.44 | R89: 196 | S89: 14 | T89: 93.33% | U89: 6.67% | V89: 4.199999809 | W89: 0.42 | X89: 187 | Y89: 23 | Z89: 89.05% | AA89: 10.95% | AB89: 1.299999952 | AC89: 0.33 | AD89: 189 | AE89: 21 | AF89: 90.00% | AG89: 10.00%
A90: 6033 | B90: 6033 Mater Academy Lakes Middle School | C90: 196 | D90: 23.79999924 | E90: 0.68 | F90: 97 | G90: 99 | H90: 49.49% | I90: 50.51% | J90: 3.599999905 | K90: 0.72 | L90: 85 | M90: 111 | N90: 43.37% | O90: 56.63% | P90: 11.39999962 | Q90: 0.71 | R90: 92 | S90: 104 | T90: 46.94% | U90: 53.06% | V90: 6.5 | W90: 0.65 | X90: 91 | Y90: 105 | Z90: 46.43% | AA90: 53.57% | AB90: 2.400000095 | AC90: 0.59 | AD90: 103 | AE90: 93 | AF90: 52.55% | AG90: 47.45%
A91: 6040 | B91: 6040 Doctors Charter School Of Miami Shores | C91: 84 | D91: 23.5 | E91: 0.67 | F91: 47 | G91: 37 | H91: 55.95% | I91: 44.05% | J91: 3.799999952 | K91: 0.76 | L91: 27 | M91: 57 | N91: 32.14% | O91: 67.86% | P91: 11 | Q91: 0.69 | R91: 45 | S91: 39 | T91: 53.57% | U91: 46.43% | V91: 6.5 | W91: 0.65 | X91: 42 | Y91: 42 | Z91: 50.00% | AA91: 50.00% | AB91: 2.200000048 | AC91: 0.55 | AD91: 51 | AE91: 33 | AF91: 60.71% | AG91: 39.29%
A92: 6041 | B92: 6041 Paul W. Bell Middle School | C92: 173 | D92: 18.39999962 | E92: 0.52 | F92: 141 | G92: 32 | H92: 81.50% | I92: 18.50% | J92: 2.799999952 | K92: 0.57 | L92: 112 | M92: 61 | N92: 64.74% | O92: 35.26% | P92: 8.600000381 | Q92: 0.54 | R92: 137 | S92: 36 | T92: 79.19% | U92: 20.81% | V92: 5.199999809 | W92: 0.52 | X92: 124 | Y92: 49 | Z92: 71.68% | AA92: 28.32% | AB92: 1.700000048 | AC92: 0.42 | AD92: 130 | AE92: 43 | AF92: 75.14% | AG92: 24.86%
A93: 6042 | B93: 6042 Mater Gardens Academy Middle School | C93: 97 | D93: 24.10000038 | E93: 0.69 | F93: 50 | G93: 47 | H93: 51.55% | I93: 48.45% | J93: 3.700000048 | K93: 0.74 | L93: 35 | M93: 62 | N93: 36.08% | O93: 63.92% | P93: 11.60000038 | Q93: 0.72 | R93: 48 | S93: 49 | T93: 49.48% | U93: 50.52% | V93: 6.5 | W93: 0.65 | X93: 47 | Y93: 50 | Z93: 48.45% | AA93: 51.55% | AB93: 2.299999952 | AC93: 0.57 | AD93: 59 | AE93: 38 | AF93: 60.82% | AG93: 39.18%
A94: 6043 | B94: 6043 Somerset Academy MS (Country Palms) | C94: 14 | D94: 19.70000076 | E94: 0.56 | F94: 12 | G94: 2 | H94: 85.71% | I94: 14.29% | J94: 3.400000095 | K94: 0.69 | L94: 5 | M94: 9 | N94: 35.71% | O94: 64.29% | P94: 9.5 | Q94: 0.6 | R94: 10 | S94: 4 | T94: 71.43% | U94: 28.57% | V94: 4.900000095 | W94: 0.49 | X94: 11 | Y94: 3 | Z94: 78.57% | AA94: 21.43% | AB94: 1.899999976 | AC94: 0.48 | AD94: 11 | AE94: 3 | AF94: 78.57% | AG94: 21.43%
A95: 6045 | B95: 6045 International Studies Charter Middle | C95: 68 | D95: 20.5 | E95: 0.59 | F95: 51 | G95: 17 | H95: 75.00% | I95: 25.00% | J95: 3.200000048 | K95: 0.64 | L95: 35 | M95: 33 | N95: 51.47% | O95: 48.53% | P95: 9.899999619 | Q95: 0.62 | R95: 45 | S95: 23 | T95: 66.18% | U95: 33.82% | V95: 5.5 | W95: 0.55 | X95: 46 | Y95: 22 | Z95: 67.65% | AA95: 32.35% | AB95: 2 | AC95: 0.49 | AD95: 47 | AE95: 21 | AF95: 69.12% | AG95: 30.88%
A96: 6047 | B96: 6047 Mater Acad. MS of International Studies | C96: 41 | D96: 21.10000038 | E96: 0.6 | F96: 34 | G96: 7 | H96: 82.93% | I96: 17.07% | J96: 3.5 | K96: 0.7 | L96: 17 | M96: 24 | N96: 41.46% | O96: 58.54% | P96: 10 | Q96: 0.63 | R96: 28 | S96: 13 | T96: 68.29% | U96: 31.71% | V96: 5.599999905 | W96: 0.56 | X96: 27 | Y96: 14 | Z96: 65.85% | AA96: 34.15% | AB96: 2 | AC96: 0.49 | AD96: 30 | AE96: 11 | AF96: 73.17% | AG96: 26.83%
A97: 6048 | B97: 6048 Miami Community Charter Middle School | C97: 78 | D97: 18.70000076 | E97: 0.53 | F97: 71 | G97: 7 | H97: 91.03% | I97: 8.97% | J97: 2.900000095 | K97: 0.57 | L97: 49 | M97: 29 | N97: 62.82% | O97: 37.18% | P97: 8.800000191 | Q97: 0.55 | R97: 69 | S97: 9 | T97: 88.46% | U97: 11.54% | V97: 5.300000191 | W97: 0.53 | X97: 61 | Y97: 17 | Z97: 78.21% | AA97: 21.79% | AB97: 1.700000048 | AC97: 0.44 | AD97: 57 | AE97: 21 | AF97: 73.08% | AG97: 26.92%
A98: 6049 | B98: 6049 River Cities Community Charter School | C98: 52 | D98: 13.39999962 | E98: 0.38 | F98: 48 | G98: 4 | H98: 92.31% | I98: 7.69% | J98: 2 | K98: 0.41 | L98: 46 | M98: 6 | N98: 88.46% | O98: 11.54% | P98: 6.099999905 | Q98: 0.38 | R98: 48 | S98: 4 | T98: 92.31% | U98: 7.69% | V98: 3.799999952 | W98: 0.38 | X98: 48 | Y98: 4 | Z98: 92.31% | AA98: 7.69% | AB98: 1.5 | AC98: 0.37 | AD98: 45 | AE98: 7 | AF98: 86.54% | AG98: 13.46%
A99: 6051 | B99: 6051 Carol City Middle School | C99: 212 | D99: 17.60000038 | E99: 0.5 | F99: 195 | G99: 17 | H99: 91.98% | I99: 8.02% | J99: 2.799999952 | K99: 0.57 | L99: 151 | M99: 61 | N99: 71.23% | O99: 28.77% | P99: 8.100000381 | Q99: 0.51 | R99: 180 | S99: 32 | T99: 84.91% | U99: 15.09% | V99: 4.800000191 | W99: 0.48 | X99: 179 | Y99: 33 | Z99: 84.43% | AA99: 15.57% | AB99: 1.899999976 | AC99: 0.47 | AD99: 160 | AE99: 52 | AF99: 75.47% | AG99: 24.53%
A100: 6052 | B100: 6052 Zelda Glazer Middle | C100: 408 | D100: 19.60000038 | E100: 0.56 | F100: 310 | G100: 98 | H100: 75.98% | I100: 24.02% | J100: 3.099999905 | K100: 0.62 | L100: 243 | M100: 165 | N100: 59.56% | O100: 40.44% | P100: 9.199999809 | Q100: 0.58 | R100: 293 | S100: 115 | T100: 71.81% | U100: 28.19% | V100: 5.400000095 | W100: 0.54 | X100: 272 | Y100: 136 | Z100: 66.67% | AA100: 33.33% | AB100: 1.799999952 | AC100: 0.46 | AD100: 308 | AE100: 100 | AF100: 75.49% | AG100: 24.51%
A101: 6053 | B101: 6053 Somerset Academy Middle (South Miami) | C101: 54 | D101: 24.20000076 | E101: 0.69 | F101: 22 | G101: 32 | H101: 40.74% | I101: 59.26% | J101: 3.799999952 | K101: 0.75 | L101: 17 | M101: 37 | N101: 31.48% | O101: 68.52% | P101: 11.80000019 | Q101: 0.74 | R101: 23 | S101: 31 | T101: 42.59% | U101: 57.41% | V101: 6.599999905 | W101: 0.66 | X101: 26 | Y101: 28 | Z101: 48.15% | AA101: 51.85% | AB101: 2.099999905 | AC101: 0.53 | AD101: 34 | AE101: 20 | AF101: 62.96% | AG101: 37.04%
A102: 6060 | B102: 6060 Aspira south | C102: 79 | D102: 19.89999962 | E102: 0.57 | F102: 64 | G102: 15 | H102: 81.01% | I102: 18.99% | J102: 3.299999952 | K102: 0.66 | L102: 40 | M102: 39 | N102: 50.63% | O102: 49.37% | P102: 9.300000191 | Q102: 0.58 | R102: 60 | S102: 19 | T102: 75.95% | U102: 24.05% | V102: 5.400000095 | W102: 0.54 | X102: 55 | Y102: 24 | Z102: 69.62% | AA102: 30.38% | AB102: 1.899999976 | AC102: 0.48 | AD102: 55 | AE102: 24 | AF102: 69.62% | AG102: 30.38%
A103: 6061 | B103: 6061 Campbell Drive Middle School | C103: 143 | D103: 15.5 | E103: 0.44 | F103: 137 | G103: 6 | H103: 95.80% | I103: 4.20% | J103: 2.299999952 | K103: 0.46 | L103: 118 | M103: 25 | N103: 82.52% | O103: 17.48% | P103: 7.400000095 | Q103: 0.46 | R103: 132 | S103: 11 | T103: 92.31% | U103: 7.69% | V103: 4.300000191 | W103: 0.43 | X103: 121 | Y103: 22 | Z103: 84.62% | AA103: 15.38% | AB103: 1.5 | AC103: 0.38 | AD103: 125 | AE103: 18 | AF103: 87.41% | AG103: 12.59%
A104: 6070 | B104: 6070 Aspira | C104: 170 | D104: 17.70000076 | E104: 0.51 | F104: 152 | G104: 18 | H104: 89.41% | I104: 10.59% | J104: 2.799999952 | K104: 0.56 | L104: 119 | M104: 51 | N104: 70.00% | O104: 30.00% | P104: 8.399999619 | Q104: 0.53 | R104: 141 | S104: 29 | T104: 82.94% | U104: 17.06% | V104: 4.900000095 | W104: 0.49 | X104: 140 | Y104: 30 | Z104: 82.35% | AA104: 17.65% | AB104: 1.600000024 | AC104: 0.41 | AD104: 136 | AE104: 34 | AF104: 80.00% | AG104: 20.00%
A105: 6071 | B105: 6071 G. W. Carver Middle | C105: 317 | D105: 24.79999924 | E105: 0.71 | F105: 128 | G105: 189 | H105: 40.38% | I105: 59.62% | J105: 3.900000095 | K105: 0.78 | L105: 96 | M105: 221 | N105: 30.28% | O105: 69.72% | P105: 11.89999962 | Q105: 0.74 | R105: 120 | S105: 197 | T105: 37.85% | U105: 62.15% | V105: 6.699999809 | W105: 0.67 | X105: 131 | Y105: 186 | Z105: 41.32% | AA105: 58.68% | AB105: 2.299999952 | AC105: 0.57 | AD105: 178 | AE105: 139 | AF105: 56.15% | AG105: 43.85%
A106: 6081 | B106: 6081 Centennial Middle School | C106: 344 | D106: 16.79999924 | E106: 0.48 | F106: 295 | G106: 49 | H106: 85.76% | I106: 14.24% | J106: 2.700000048 | K106: 0.54 | L106: 241 | M106: 103 | N106: 70.06% | O106: 29.94% | P106: 7.699999809 | Q106: 0.48 | R106: 288 | S106: 56 | T106: 83.72% | U106: 16.28% | V106: 4.699999809 | W106: 0.47 | X106: 273 | Y106: 71 | Z106: 79.36% | AA106: 20.64% | AB106: 1.700000048 | AC106: 0.41 | AD106: 271 | AE106: 73 | AF106: 78.78% | AG106: 21.22%
A107: 6091 | B107: 6091 CItrus Grove Middle School | C107: 261 | D107: 16.20000076 | E107: 0.46 | F107: 237 | G107: 24 | H107: 90.80% | I107: 9.20% | J107: 2.599999905 | K107: 0.53 | L107: 195 | M107: 66 | N107: 74.71% | O107: 25.29% | P107: 7.699999809 | Q107: 0.48 | R107: 226 | S107: 35 | T107: 86.59% | U107: 13.41% | V107: 4.300000191 | W107: 0.43 | X107: 227 | Y107: 34 | Z107: 86.97% | AA107: 13.03% | AB107: 1.600000024 | AC107: 0.4 | AD107: 215 | AE107: 46 | AF107: 82.38% | AG107: 17.62%
A108: 6111 | B108: 6111 Cutler Ridge Middle School | C108: 219 | D108: 16.70000076 | E108: 0.48 | F108: 190 | G108: 29 | H108: 86.76% | I108: 13.24% | J108: 2.700000048 | K108: 0.54 | L108: 152 | M108: 67 | N108: 69.41% | O108: 30.59% | P108: 7.900000095 | Q108: 0.49 | R108: 179 | S108: 40 | T108: 81.74% | U108: 18.26% | V108: 4.5 | W108: 0.45 | X108: 180 | Y108: 39 | Z108: 82.19% | AA108: 17.81% | AB108: 1.600000024 | AC108: 0.4 | AD108: 177 | AE108: 42 | AF108: 80.82% | AG108: 19.18%
A109: 6121 | B109: 6121 Ruben Dario Middle School | C109: 148 | D109: 18.10000038 | E109: 0.52 | F109: 121 | G109: 27 | H109: 81.76% | I109: 18.24% | J109: 2.799999952 | K109: 0.57 | L109: 102 | M109: 46 | N109: 68.92% | O109: 31.08% | P109: 8.5 | Q109: 0.53 | R109: 111 | S109: 37 | T109: 75.00% | U109: 25.00% | V109: 5 | W109: 0.5 | X109: 114 | Y109: 34 | Z109: 77.03% | AA109: 22.97% | AB109: 1.799999952 | AC109: 0.46 | AD109: 111 | AE109: 37 | AF109: 75.00% | AG109: 25.00%
A110: 6131 | B110: 6131 Howard Doolin Middle School | C110: 1 | D110: 19 | E110: 0.54 | F110: 1 | H110: 100.00% | J110: 2 | K110: 0.4 | L110: 1 | N110: 100.00% | P110: 9 | Q110: 0.56 | R110: 1 | T110: 100.00% | V110: 5 | W110: 0.5 | X110: 1 | Z110: 100.00% | AB110: 3 | AC110: 0.75 | AE110: 1 | AG110: 100.00%
A111: 6141 | B111: 6141 Charles R Drew Middle School | C111: 131 | D111: 17.29999924 | E111: 0.49 | F111: 121 | G111: 10 | H111: 92.37% | I111: 7.63% | J111: 2.599999905 | K111: 0.52 | L111: 106 | M111: 25 | N111: 80.92% | O111: 19.08% | P111: 8.300000191 | Q111: 0.52 | R111: 112 | S111: 19 | T111: 85.50% | U111: 14.50% | V111: 4.800000191 | W111: 0.48 | X111: 109 | Y111: 22 | Z111: 83.21% | AA111: 16.79% | AB111: 1.600000024 | AC111: 0.4 | AD111: 112 | AE111: 19 | AF111: 85.50% | AG111: 14.50%
A112: 6151 | B112: 6151 Doral Middle School | C112: 1 | D112: 18 | E112: 0.51 | F112: 1 | H112: 100.00% | J112: 5 | K112: 1 | M112: 1 | O112: 100.00% | P112: 7 | Q112: 0.44 | R112: 1 | T112: 100.00% | V112: 4 | W112: 0.4 | X112: 1 | Z112: 100.00% | AB112: 2 | AC112: 0.5 | AD112: 1 | AF112: 100.00%
A113: 6161 | B113: 6161 Lawton Chiles Middle | C113: 276 | D113: 19.10000038 | E113: 0.55 | F113: 219 | G113: 57 | H113: 79.35% | I113: 20.65% | J113: 3.099999905 | K113: 0.62 | L113: 158 | M113: 118 | N113: 57.25% | O113: 42.75% | P113: 8.800000191 | Q113: 0.55 | R113: 215 | S113: 61 | T113: 77.90% | U113: 22.10% | V113: 5.400000095 | W113: 0.54 | X113: 197 | Y113: 79 | Z113: 71.38% | AA113: 28.62% | AB113: 1.899999976 | AC113: 0.46 | AD113: 203 | AE113: 73 | AF113: 73.55% | AG113: 26.45%
A114: 6171 | B114: 6171 Henry H. Filer Middle School | C114: 357 | D114: 18.39999962 | E114: 0.53 | F114: 284 | G114: 73 | H114: 79.55% | I114: 20.45% | J114: 2.900000095 | K114: 0.58 | L114: 234 | M114: 123 | N114: 65.55% | O114: 34.45% | P114: 8.600000381 | Q114: 0.54 | R114: 280 | S114: 77 | T114: 78.43% | U114: 21.57% | V114: 5.099999905 | W114: 0.51 | X114: 259 | Y114: 98 | Z114: 72.55% | AA114: 27.45% | AB114: 1.799999952 | AC114: 0.45 | AD114: 271 | AE114: 86 | AF114: 75.91% | AG114: 24.09%
A115: 6211 | B115: 6211 Glades Middle School | C115: 350 | D115: 20.29999924 | E115: 0.58 | F115: 256 | G115: 94 | H115: 73.14% | I115: 26.86% | J115: 3.200000048 | K115: 0.65 | L115: 186 | M115: 164 | N115: 53.14% | O115: 46.86% | P115: 9.5 | Q115: 0.59 | R115: 239 | S115: 111 | T115: 68.29% | U115: 31.71% | V115: 5.599999905 | W115: 0.56 | X115: 226 | Y115: 124 | Z115: 64.57% | AA115: 35.43% | AB115: 1.899999976 | AC115: 0.48 | AD115: 252 | AE115: 98 | AF115: 72.00% | AG115: 28.00%
A116: 6221 | B116: 6221 Hammocks Middle School | C116: 344 | D116: 20 | E116: 0.57 | F116: 255 | G116: 89 | H116: 74.13% | I116: 25.87% | J116: 3.200000048 | K116: 0.64 | L116: 185 | M116: 159 | N116: 53.78% | O116: 46.22% | P116: 9.399999619 | Q116: 0.59 | R116: 236 | S116: 108 | T116: 68.60% | U116: 31.40% | V116: 5.5 | W116: 0.55 | X116: 224 | Y116: 120 | Z116: 65.12% | AA116: 34.88% | AB116: 1.899999976 | AC116: 0.47 | AD116: 258 | AE116: 86 | AF116: 75.00% | AG116: 25.00%
A117: 6231 | B117: 6231 Hialeah Middle School | C117: 259 | D117: 18.70000076 | E117: 0.53 | F117: 213 | G117: 46 | H117: 82.24% | I117: 17.76% | J117: 3 | K117: 0.6 | L117: 163 | M117: 96 | N117: 62.93% | O117: 37.07% | P117: 8.800000191 | Q117: 0.55 | R117: 207 | S117: 52 | T117: 79.92% | U117: 20.08% | V117: 5.099999905 | W117: 0.51 | X117: 195 | Y117: 64 | Z117: 75.29% | AA117: 24.71% | AB117: 1.799999952 | AC117: 0.44 | AD117: 197 | AE117: 62 | AF117: 76.06% | AG117: 23.94%
A118: 6241 | B118: 6241 Highland Oaks Middle School | C118: 393 | D118: 19.79999924 | E118: 0.57 | F118: 281 | G118: 112 | H118: 71.50% | I118: 28.50% | J118: 3.299999952 | K118: 0.65 | L118: 202 | M118: 191 | N118: 51.40% | O118: 48.60% | P118: 9.300000191 | Q118: 0.58 | R118: 269 | S118: 124 | T118: 68.45% | U118: 31.55% | V118: 5.5 | W118: 0.55 | X118: 258 | Y118: 135 | Z118: 65.65% | AA118: 34.35% | AB118: 1.799999952 | AC118: 0.46 | AD118: 289 | AE118: 104 | AF118: 73.54% | AG118: 26.46%
A119: 6251 | B119: 6251 Homestead Middle School | C119: 200 | D119: 16.89999962 | E119: 0.48 | F119: 180 | G119: 20 | H119: 90.00% | I119: 10.00% | J119: 2.5 | K119: 0.51 | L119: 152 | M119: 48 | N119: 76.00% | O119: 24.00% | P119: 7.900000095 | Q119: 0.49 | R119: 170 | S119: 30 | T119: 85.00% | U119: 15.00% | V119: 4.800000191 | W119: 0.48 | X119: 162 | Y119: 38 | Z119: 81.00% | AA119: 19.00% | AB119: 1.600000024 | AC119: 0.41 | AD119: 165 | AE119: 35 | AF119: 82.50% | AG119: 17.50%
A120: 6281 | B120: 6281 Thomas Jefferson Middle | C120: 62 | D120: 17.5 | E120: 0.5 | F120: 53 | G120: 9 | H120: 85.48% | I120: 14.52% | J120: 2.5 | K120: 0.5 | L120: 50 | M120: 12 | N120: 80.65% | O120: 19.35% | P120: 8.5 | Q120: 0.53 | R120: 49 | S120: 13 | T120: 79.03% | U120: 20.97% | V120: 4.699999809 | W120: 0.47 | X120: 50 | Y120: 12 | Z120: 80.65% | AA120: 19.35% | AB120: 1.799999952 | AC120: 0.46 | AD120: 45 | AE120: 17 | AF120: 72.58% | AG120: 27.42%
A121: 6301 | B121: 6301 JFK Middle School | C121: 437 | D121: 19.89999962 | E121: 0.57 | F121: 307 | G121: 130 | H121: 70.25% | I121: 29.75% | J121: 3.200000048 | K121: 0.63 | L121: 252 | M121: 185 | N121: 57.67% | O121: 42.33% | P121: 9.5 | Q121: 0.59 | R121: 292 | S121: 145 | T121: 66.82% | U121: 33.18% | V121: 5.400000095 | W121: 0.54 | X121: 289 | Y121: 148 | Z121: 66.13% | AA121: 33.87% | AB121: 1.799999952 | AC121: 0.46 | AD121: 317 | AE121: 120 | AF121: 72.54% | AG121: 27.46%
A122: 6331 | B122: 6331 Kinloch Park Middle School | C122: 369 | D122: 18 | E122: 0.51 | F122: 305 | G122: 64 | H122: 82.66% | I122: 17.34% | J122: 2.799999952 | K122: 0.57 | L122: 239 | M122: 130 | N122: 64.77% | O122: 35.23% | P122: 8.600000381 | Q122: 0.54 | R122: 284 | S122: 85 | T122: 76.96% | U122: 23.04% | V122: 4.800000191 | W122: 0.48 | X122: 295 | Y122: 74 | Z122: 79.95% | AA122: 20.05% | AB122: 1.799999952 | AC122: 0.45 | AD122: 283 | AE122: 86 | AF122: 76.69% | AG122: 23.31%
A123: 6351 | B123: 6351 Lake Stevens Middle School | C123: 219 | D123: 18.29999924 | E123: 0.52 | F123: 188 | G123: 31 | H123: 85.84% | I123: 14.16% | J123: 3 | K123: 0.6 | L123: 144 | M123: 75 | N123: 65.75% | O123: 34.25% | P123: 8.5 | Q123: 0.53 | R123: 182 | S123: 37 | T123: 83.11% | U123: 16.89% | V123: 4.900000095 | W123: 0.49 | X123: 176 | Y123: 43 | Z123: 80.37% | AA123: 19.63% | AB123: 1.799999952 | AC123: 0.46 | AD123: 168 | AE123: 51 | AF123: 76.71% | AG123: 23.29%
A124: 6361 | B124: 6361 Jose de Diego Middle School | C124: 115 | D124: 16.10000038 | E124: 0.46 | F124: 104 | G124: 11 | H124: 90.43% | I124: 9.57% | J124: 2.299999952 | K124: 0.47 | L124: 92 | M124: 23 | N124: 80.00% | O124: 20.00% | P124: 7.699999809 | Q124: 0.48 | R124: 101 | S124: 14 | T124: 87.83% | U124: 12.17% | V124: 4.699999809 | W124: 0.47 | X124: 99 | Y124: 16 | Z124: 86.09% | AA124: 13.91% | AB124: 1.5 | AC124: 0.37 | AD124: 101 | AE124: 14 | AF124: 87.83% | AG124: 12.17%
A125: 6391 | B125: 6391 Madison Middle School | C125: 148 | D125: 15.69999981 | E125: 0.45 | F125: 135 | G125: 13 | H125: 91.22% | I125: 8.78% | J125: 2.5 | K125: 0.49 | L125: 111 | M125: 37 | N125: 75.00% | O125: 25.00% | P125: 7.5 | Q125: 0.47 | R125: 131 | S125: 17 | T125: 88.51% | U125: 11.49% | V125: 4.300000191 | W125: 0.43 | X125: 125 | Y125: 23 | Z125: 84.46% | AA125: 15.54% | AB125: 1.5 | AC125: 0.36 | AD125: 129 | AE125: 19 | AF125: 87.16% | AG125: 12.84%
A126: 6411 | B126: 6411 Horace Mann Middle School | C126: 222 | D126: 18.5 | E126: 0.53 | F126: 178 | G126: 44 | H126: 80.18% | I126: 19.82% | J126: 2.799999952 | K126: 0.56 | L126: 146 | M126: 76 | N126: 65.77% | O126: 34.23% | P126: 8.800000191 | Q126: 0.55 | R126: 162 | S126: 60 | T126: 72.97% | U126: 27.03% | V126: 5.099999905 | W126: 0.51 | X126: 166 | Y126: 56 | Z126: 74.77% | AA126: 25.23% | AB126: 1.899999976 | AC126: 0.46 | AD126: 166 | AE126: 56 | AF126: 74.77% | AG126: 25.23%
A127: 6431 | B127: 6431 Arthur & Polly Mays Middle Community School | C127: 78 | D127: 17.89999962 | E127: 0.51 | F127: 69 | G127: 9 | H127: 88.46% | I127: 11.54% | J127: 3.099999905 | K127: 0.61 | L127: 46 | M127: 32 | N127: 58.97% | O127: 41.03% | P127: 8.199999809 | Q127: 0.52 | R127: 65 | S127: 13 | T127: 83.33% | U127: 16.67% | V127: 5 | W127: 0.5 | X127: 64 | Y127: 14 | Z127: 82.05% | AA127: 17.95% | AB127: 1.600000024 | AC127: 0.41 | AD127: 59 | AE127: 19 | AF127: 75.64% | AG127: 24.36%
A128: 6441 | B128: 6441 Howard D. McMillan Middle | C128: 235 | D128: 19.39999962 | E128: 0.55 | F128: 177 | G128: 58 | H128: 75.32% | I128: 24.68% | J128: 3.200000048 | K128: 0.64 | L128: 131 | M128: 104 | N128: 55.74% | O128: 44.26% | P128: 9 | Q128: 0.56 | R128: 176 | S128: 59 | T128: 74.89% | U128: 25.11% | V128: 5.5 | W128: 0.55 | X128: 159 | Y128: 76 | Z128: 67.66% | AA128: 32.34% | AB128: 1.799999952 | AC128: 0.44 | AD128: 173 | AE128: 62 | AF128: 73.62% | AG128: 26.38%
A129: 6481 | B129: 6481 Miami Edison Middle Schools | C129: 174 | D129: 16.20000076 | E129: 0.46 | F129: 168 | G129: 6 | H129: 96.55% | I129: 3.45% | J129: 2.400000095 | K129: 0.49 | L129: 142 | M129: 32 | N129: 81.61% | O129: 18.39% | P129: 7.699999809 | Q129: 0.48 | R129: 158 | S129: 16 | T129: 90.80% | U129: 9.20% | V129: 4.5 | W129: 0.45 | X129: 156 | Y129: 18 | Z129: 89.66% | AA129: 10.34% | AB129: 1.5 | AC129: 0.38 | AD129: 152 | AE129: 22 | AF129: 87.36% | AG129: 12.64%
A130: 6501 | B130: 6501 Miami Lakes Middle School | C130: 262 | D130: 17.39999962 | E130: 0.5 | F130: 206 | G130: 56 | H130: 78.63% | I130: 21.37% | J130: 2.700000048 | K130: 0.53 | L130: 177 | M130: 85 | N130: 67.56% | O130: 32.44% | P130: 8.199999809 | Q130: 0.51 | R130: 200 | S130: 62 | T130: 76.34% | U130: 23.66% | V130: 4.900000095 | W130: 0.49 | X130: 191 | Y130: 71 | Z130: 72.90% | AA130: 27.10% | AB130: 1.600000024 | AC130: 0.39 | AD130: 214 | AE130: 48 | AF130: 81.68% | AG130: 18.32%
A131: 6521 | B131: 6521 Miami Springs Middle School | C131: 493 | D131: 17.79999924 | E131: 0.51 | F131: 397 | G131: 96 | H131: 80.53% | I131: 19.47% | J131: 2.900000095 | K131: 0.58 | L131: 319 | M131: 174 | N131: 64.71% | O131: 35.29% | P131: 8.300000191 | Q131: 0.52 | R131: 382 | S131: 111 | T131: 77.48% | U131: 22.52% | V131: 4.900000095 | W131: 0.49 | X131: 367 | Y131: 126 | Z131: 74.44% | AA131: 25.56% | AB131: 1.700000048 | AC131: 0.42 | AD131: 380 | AE131: 113 | AF131: 77.08% | AG131: 22.92%
A132: 6541 | B132: 6541 Nautilus Middle | C132: 334 | D132: 20.70000076 | E132: 0.59 | F132: 224 | G132: 110 | H132: 67.07% | I132: 32.93% | J132: 3.299999952 | K132: 0.65 | L132: 180 | M132: 154 | N132: 53.89% | O132: 46.11% | P132: 9.800000191 | Q132: 0.62 | R132: 217 | S132: 117 | T132: 64.97% | U132: 35.03% | V132: 5.699999809 | W132: 0.57 | X132: 203 | Y132: 131 | Z132: 60.78% | AA132: 39.22% | AB132: 1.899999976 | AC132: 0.47 | AD132: 236 | AE132: 98 | AF132: 70.66% | AG132: 29.34%
A133: 6571 | B133: 6571 Norland Middle | C133: 214 | D133: 18.70000076 | E133: 0.53 | F133: 169 | G133: 45 | H133: 78.97% | I133: 21.03% | J133: 3 | K133: 0.61 | L133: 135 | M133: 79 | N133: 63.08% | O133: 36.92% | P133: 8.600000381 | Q133: 0.54 | R133: 167 | S133: 47 | T133: 78.04% | U133: 21.96% | V133: 5.199999809 | W133: 0.52 | X133: 157 | Y133: 57 | Z133: 73.36% | AA133: 26.64% | AB133: 1.799999952 | AC133: 0.45 | AD133: 163 | AE133: 51 | AF133: 76.17% | AG133: 23.83%
A134: 6591 | B134: 6591 North Dade Middle School | C134: 287 | D134: 18.60000038 | E134: 0.53 | F134: 239 | G134: 48 | H134: 83.28% | I134: 16.72% | J134: 2.799999952 | K134: 0.57 | L134: 198 | M134: 89 | N134: 68.99% | O134: 31.01% | P134: 8.899999619 | Q134: 0.56 | R134: 225 | S134: 62 | T134: 78.40% | U134: 21.60% | V134: 5.099999905 | W134: 0.51 | X134: 214 | Y134: 73 | Z134: 74.56% | AA134: 25.44% | AB134: 1.799999952 | AC134: 0.46 | AD134: 208 | AE134: 79 | AF134: 72.47% | AG134: 27.53%
A135: 6611 | B135: 6611 Country Club Middle School | C135: 442 | D135: 19 | E135: 0.54 | F135: 350 | G135: 92 | H135: 79.19% | I135: 20.81% | J135: 3.099999905 | K135: 0.61 | L135: 268 | M135: 174 | N135: 60.63% | O135: 39.37% | P135: 8.899999619 | Q135: 0.56 | R135: 333 | S135: 109 | T135: 75.34% | U135: 24.66% | V135: 5.199999809 | W135: 0.52 | X135: 312 | Y135: 130 | Z135: 70.59% | AA135: 29.41% | AB135: 1.700000048 | AC135: 0.43 | AD135: 342 | AE135: 100 | AF135: 77.38% | AG135: 22.62%
A136: 6631 | B136: 6631 North Miami Middle School | C136: 295 | D136: 17 | E136: 0.49 | F136: 262 | G136: 33 | H136: 88.81% | I136: 11.19% | J136: 2.799999952 | K136: 0.56 | L136: 200 | M136: 95 | N136: 67.80% | O136: 32.20% | P136: 8 | Q136: 0.5 | R136: 248 | S136: 47 | T136: 84.07% | U136: 15.93% | V136: 4.599999905 | W136: 0.46 | X136: 241 | Y136: 54 | Z136: 81.69% | AA136: 18.31% | AB136: 1.600000024 | AC136: 0.39 | AD136: 233 | AE136: 62 | AF136: 78.98% | AG136: 21.02%
A137: 6681 | B137: 6681 Palm Springs Middle | C137: 356 | D137: 19.20000076 | E137: 0.55 | F137: 279 | G137: 77 | H137: 78.37% | I137: 21.63% | J137: 3.099999905 | K137: 0.62 | L137: 218 | M137: 138 | N137: 61.24% | O137: 38.76% | P137: 9 | Q137: 0.56 | R137: 262 | S137: 94 | T137: 73.60% | U137: 26.40% | V137: 5.300000191 | W137: 0.53 | X137: 249 | Y137: 107 | Z137: 69.94% | AA137: 30.06% | AB137: 1.799999952 | AC137: 0.45 | AD137: 269 | AE137: 87 | AF137: 75.56% | AG137: 24.44%
A138: 6701 | B138: 6701 Palmetto Middle School | C138: 321 | D138: 22.39999962 | E138: 0.64 | F138: 178 | G138: 143 | H138: 55.45% | I138: 44.55% | J138: 3.5 | K138: 0.71 | L138: 140 | M138: 181 | N138: 43.61% | O138: 56.39% | P138: 10.60000038 | Q138: 0.66 | R138: 165 | S138: 156 | T138: 51.40% | U138: 48.60% | V138: 6.199999809 | W138: 0.62 | X138: 157 | Y138: 164 | Z138: 48.91% | AA138: 51.09% | AB138: 2.099999905 | AC138: 0.52 | AD138: 208 | AE138: 113 | AF138: 64.80% | AG138: 35.20%
A139: 6721 | B139: 6721 Parkway Middle Community School | C139: 125 | D139: 16.79999924 | E139: 0.48 | F139: 115 | G139: 10 | H139: 92.00% | I139: 8.00% | J139: 2.599999905 | K139: 0.52 | L139: 98 | M139: 27 | N139: 78.40% | O139: 21.60% | P139: 7.800000191 | Q139: 0.49 | R139: 110 | S139: 15 | T139: 88.00% | U139: 12.00% | V139: 4.699999809 | W139: 0.47 | X139: 106 | Y139: 19 | Z139: 84.80% | AA139: 15.20% | AB139: 1.700000048 | AC139: 0.44 | AD139: 99 | AE139: 26 | AF139: 79.20% | AG139: 20.80%
A140: 6741 | B140: 6741 Ponce de Leon Middle School | C140: 360 | D140: 20.20000076 | E140: 0.58 | F140: 245 | G140: 115 | H140: 68.06% | I140: 31.94% | J140: 3.200000048 | K140: 0.64 | L140: 191 | M140: 169 | N140: 53.06% | O140: 46.94% | P140: 9.5 | Q140: 0.6 | R140: 236 | S140: 124 | T140: 65.56% | U140: 34.44% | V140: 5.599999905 | W140: 0.56 | X140: 228 | Y140: 132 | Z140: 63.33% | AA140: 36.67% | AB140: 1.899999976 | AC140: 0.48 | AD140: 256 | AE140: 104 | AF140: 71.11% | AG140: 28.89%
A141: 6751 | B141: 6751 Hialeah Gardens Middle School | C141: 564 | D141: 19.5 | E141: 0.56 | F141: 422 | G141: 142 | H141: 74.82% | I141: 25.18% | J141: 3 | K141: 0.6 | L141: 333 | M141: 231 | N141: 59.04% | O141: 40.96% | P141: 9.399999619 | Q141: 0.59 | R141: 376 | S141: 188 | T141: 66.67% | U141: 33.33% | V141: 5.300000191 | W141: 0.53 | X141: 395 | Y141: 169 | Z141: 70.04% | AA141: 29.96% | AB141: 1.799999952 | AC141: 0.45 | AD141: 429 | AE141: 135 | AF141: 76.06% | AG141: 23.94%
A142: 6761 | B142: 6761 Redland Middle School | C142: 136 | D142: 15.19999981 | E142: 0.43 | F142: 125 | G142: 11 | H142: 91.91% | I142: 8.09% | J142: 2.599999905 | K142: 0.51 | L142: 102 | M142: 34 | N142: 75.00% | O142: 25.00% | P142: 7 | Q142: 0.44 | R142: 125 | S142: 11 | T142: 91.91% | U142: 8.09% | V142: 4.300000191 | W142: 0.43 | X142: 117 | Y142: 19 | Z142: 86.03% | AA142: 13.97% | AB142: 1.399999976 | AC142: 0.35 | AD142: 117 | AE142: 19 | AF142: 86.03% | AG142: 13.97%
A143: =IFERROR(VALUE(LEFT(B143,4)),"") -> 6771 | B143: 6771 Jorge Mas Canosa Middle School | C143: 653 | D143: 20.5 | E143: 0.59 | F143: 466 | G143: 187 | H143: 71.36% | I143: 28.64% | J143: 3.299999952 | K143: 0.66 | L143: 340 | M143: 313 | N143: 52.07% | O143: 47.93% | P143: 9.800000191 | Q143: 0.61 | R143: 425 | S143: 228 | T143: 65.08% | U143: 34.92% | V143: 5.699999809 | W143: 0.57 | X143: 415 | Y143: 238 | Z143: 63.55% | AA143: 36.45% | AB143: 1.799999952 | AC143: 0.44 | AD143: 486 | AE143: 167 | AF143: 74.43% | AG143: 25.57%
A144: 6781 | B144: 6781 Richmond heights Middle School | C144: 174 | D144: 18.10000038 | E144: 0.52 | F144: 154 | G144: 20 | H144: 88.51% | I144: 11.49% | J144: 3 | K144: 0.6 | L144: 117 | M144: 57 | N144: 67.24% | O144: 32.76% | P144: 8.600000381 | Q144: 0.54 | R144: 142 | S144: 32 | T144: 81.61% | U144: 18.39% | V144: 4.800000191 | W144: 0.48 | X144: 131 | Y144: 43 | Z144: 75.29% | AA144: 24.71% | AB144: 1.600000024 | AC144: 0.41 | AD144: 139 | AE144: 35 | AF144: 79.89% | AG144: 20.11%
A145: 6801 | B145: 6801 Riviera Middle School | C145: 229 | D145: 19.10000038 | E145: 0.54 | F145: 182 | G145: 47 | H145: 79.48% | I145: 20.52% | J145: 3.099999905 | K145: 0.62 | L145: 134 | M145: 95 | N145: 58.52% | O145: 41.48% | P145: 9 | Q145: 0.56 | R145: 171 | S145: 58 | T145: 74.67% | U145: 25.33% | V145: 5.300000191 | W145: 0.53 | X145: 165 | Y145: 64 | Z145: 72.05% | AA145: 27.95% | AB145: 1.799999952 | AC145: 0.44 | AD145: 168 | AE145: 61 | AF145: 73.36% | AG145: 26.64%
A146: 6821 | B146: 6821 Rockway Middle School | C146: 422 | D146: 19.10000038 | E146: 0.54 | F146: 327 | G146: 95 | H146: 77.49% | I146: 22.51% | J146: 3 | K146: 0.59 | L146: 266 | M146: 156 | N146: 63.03% | O146: 36.97% | P146: 9 | Q146: 0.56 | R146: 313 | S146: 109 | T146: 74.17% | U146: 25.83% | V146: 5.300000191 | W146: 0.53 | X146: 303 | Y146: 119 | Z146: 71.80% | AA146: 28.20% | AB146: 1.799999952 | AC146: 0.45 | AD146: 312 | AE146: 110 | AF146: 73.93% | AG146: 26.07%
A147: 6841 | B147: 6841 Shenandoah Middle School | C147: 396 | D147: 18.20000076 | E147: 0.52 | F147: 332 | G147: 64 | H147: 83.84% | I147: 16.16% | J147: 2.900000095 | K147: 0.58 | L147: 261 | M147: 135 | N147: 65.91% | O147: 34.09% | P147: 8.600000381 | Q147: 0.54 | R147: 313 | S147: 83 | T147: 79.04% | U147: 20.96% | V147: 5.099999905 | W147: 0.51 | X147: 303 | Y147: 93 | Z147: 76.52% | AA147: 23.48% | AB147: 1.700000048 | AC147: 0.42 | AD147: 315 | AE147: 81 | AF147: 79.55% | AG147: 20.45%
A148: 6861 | B148: 6861 Southwood Middle School | C148: 483 | D148: 21.10000038 | E148: 0.6 | F148: 324 | G148: 159 | H148: 67.08% | I148: 32.92% | J148: 3.400000095 | K148: 0.69 | L148: 216 | M148: 267 | N148: 44.72% | O148: 55.28% | P148: 9.899999619 | Q148: 0.62 | R148: 312 | S148: 171 | T148: 64.60% | U148: 35.40% | V148: 6 | W148: 0.6 | X148: 263 | Y148: 220 | Z148: 54.45% | AA148: 45.55% | AB148: 1.799999952 | AC148: 0.45 | AD148: 360 | AE148: 123 | AF148: 74.53% | AG148: 25.47%
A149: 6881 | B149: 6881 South Miami Middle School | C149: 291 | D149: 24.20000076 | E149: 0.69 | F149: 129 | G149: 162 | H149: 44.33% | I149: 55.67% | J149: 3.799999952 | K149: 0.76 | L149: 88 | M149: 203 | N149: 30.24% | O149: 69.76% | P149: 11.5 | Q149: 0.72 | R149: 131 | S149: 160 | T149: 45.02% | U149: 54.98% | V149: 6.599999905 | W149: 0.66 | X149: 119 | Y149: 172 | Z149: 40.89% | AA149: 59.11% | AB149: 2.299999952 | AC149: 0.57 | AD149: 164 | AE149: 127 | AF149: 56.36% | AG149: 43.64%
A150: 6901 | B150: 6901 WR Thomas Middle School | C150: 304 | D150: 22.10000038 | E150: 0.63 | F150: 173 | G150: 131 | H150: 56.91% | I150: 43.09% | J150: 3.5 | K150: 0.69 | L150: 144 | M150: 160 | N150: 47.37% | O150: 52.63% | P150: 10.39999962 | Q150: 0.65 | R150: 160 | S150: 144 | T150: 52.63% | U150: 47.37% | V150: 6.099999905 | W150: 0.61 | X150: 165 | Y150: 139 | Z150: 54.28% | AA150: 45.72% | AB150: 2.099999905 | AC150: 0.54 | AD150: 194 | AE150: 110 | AF150: 63.82% | AG150: 36.18%
A151: 6921 | B151: 6921 Lamar Louise Curry Middle School | C151: 357 | D151: 22.29999924 | E151: 0.64 | F151: 199 | G151: 158 | H151: 55.74% | I151: 44.26% | J151: 3.5 | K151: 0.71 | L151: 148 | M151: 209 | N151: 41.46% | O151: 58.54% | P151: 10.5 | Q151: 0.66 | R151: 197 | S151: 160 | T151: 55.18% | U151: 44.82% | V151: 6.099999905 | W151: 0.61 | X151: 193 | Y151: 164 | Z151: 54.06% | AA151: 45.94% | AB151: 2.200000048 | AC151: 0.54 | AD151: 219 | AE151: 138 | AF151: 61.34% | AG151: 38.66%
A152: 6961 | B152: 6961 West Miami Middle School | C152: 297 | D152: 18.70000076 | E152: 0.53 | F152: 243 | G152: 54 | H152: 81.82% | I152: 18.18% | J152: 3 | K152: 0.6 | L152: 195 | M152: 102 | N152: 65.66% | O152: 34.34% | P152: 8.699999809 | Q152: 0.55 | R152: 224 | S152: 73 | T152: 75.42% | U152: 24.58% | V152: 5.199999809 | W152: 0.52 | X152: 211 | Y152: 86 | Z152: 71.04% | AA152: 28.96% | AB152: 1.799999952 | AC152: 0.44 | AD152: 218 | AE152: 79 | AF152: 73.40% | AG152: 26.60%
A153: 7055 | B153: 7055 Young Women's Preparatory Academy | C153: 89 | D153: 22.70000076 | E153: 0.65 | F153: 53 | G153: 36 | H153: 59.55% | I153: 40.45% | J153: 3.5 | K153: 0.7 | L153: 43 | M153: 46 | N153: 48.31% | O153: 51.69% | P153: 10.80000019 | Q153: 0.68 | R153: 46 | S153: 43 | T153: 51.69% | U153: 48.31% | V153: 6.300000191 | W153: 0.63 | X153: 46 | Y153: 43 | Z153: 51.69% | AA153: 48.31% | AB153: 2.099999905 | AC153: 0.53 | AD153: 60 | AE153: 29 | AF153: 67.42% | AG153: 32.58%
A154: 7059 | B154: 7059 Miami Arts Charter | C154: 107 | D154: 23.89999962 | E154: 0.68 | F154: 51 | G154: 56 | H154: 47.66% | I154: 52.34% | J154: 3.900000095 | K154: 0.79 | L154: 32 | M154: 75 | N154: 29.91% | O154: 70.09% | P154: 11.30000019 | Q154: 0.71 | R154: 54 | S154: 53 | T154: 50.47% | U154: 49.53% | V154: 6.599999905 | W154: 0.66 | X154: 47 | Y154: 60 | Z154: 43.93% | AA154: 56.07% | AB154: 2 | AC154: 0.51 | AD154: 70 | AE154: 37 | AF154: 65.42% | AG154: 34.58%
A155: 7631 | B155: 7631 MacArthur South Senior High | C155: 8 | D155: 9.800000191 | E155: 0.28 | F155: 8 | H155: 100.00% | J155: 1.299999952 | K155: 0.25 | L155: 8 | N155: 100.00% | P155: 4.099999905 | Q155: 0.26 | R155: 8 | T155: 100.00% | V155: 3 | W155: 0.3 | X155: 7 | Y155: 1 | Z155: 87.50% | AA155: 12.50% | AB155: 1.399999976 | AC155: 0.34 | AD155: 7 | AE155: 1 | AF155: 87.50% | AG155: 12.50%
A156: 8101 | B156: 8101 Jan Mann Opp. Center | C156: 1 | D156: 0 | E156: 0 | F156: 1 | H156: 100.00% | J156: 0 | K156: 0 | L156: 1 | N156: 100.00% | P156: 0 | Q156: 0 | R156: 1 | T156: 100.00% | V156: 0 | W156: 0 | X156: 1 | Z156: 100.00% | AB156: 0 | AC156: 0 | AD156: 1 | AF156: 100.00%
A157: 8141 | B157: 8141 Juvenile Justice Center | C157: 3 | D157: 9.699999809 | E157: 0.27 | F157: 3 | H157: 100.00% | J157: 1.700000048 | K157: 0.33 | L157: 3 | N157: 100.00% | P157: 5 | Q157: 0.31 | R157: 3 | T157: 100.00% | V157: 2 | W157: 0.2 | X157: 3 | Z157: 100.00% | AB157: 1 | AC157: 0.25 | AD157: 3 | AF157: 100.00%
C158: =SUM(C14:C157) -> 24912
A159: 9999 | B159: 9999 DISTRICT | C159: 24471 | D159: 19.89999962 | E159: 0.57 | F159: 17920 | G159: 6551 | H159: 73.23% | I159: 26.77% | J159: 3.099999905 | K159: 0.63 | L159: 13825 | M159: 10646 | N159: 56.50% | O159: 43.50% | P159: 9.399999619 | Q159: 0.59 | R159: 16975 | S159: 7496 | T159: 69.37% | U159: 30.63% | V159: 5.5 | W159: 0.55 | X159: 16397 | Y159: 8074 | Z159: 67.01% | AA159: 32.99% | AB159: 1.899999976 | AC159: 0.47 | AD159: 17744 | AE159: 6727 | AF159: 72.51% | AG159: 27.49%
C160: 441
A207: =IFERROR(VALUE(LEFT(B207,4)),"") -> 
A271: =IFERROR(VALUE(LEFT(B271,4)),"") -> 

Sheet BLG7BM-R (hidden)
B1: R-G07-BM-SCHL-ALL
B3: Description: | C3: Reading, G07, BM, School, All
B4: Student Selection: | C4: Multiple | 2011-2012 Fall, 2011-2012 School Year
B5: Group By Data: | C5: School
B6: Assessments: | C6: Baseline 2011 - Grade 7 Reading AUGUST 2011 Teacher __________ Period _____
B7: Scores: | C7: Overall Avg Raw Score, Overall Avg % Correct, Standards Avg Raw Score, Standards Avg % Correct
B8: Author Name: | C8: Yuwadee Wongbundhit
A9: =COLUMN() -> 1 | B9: =COLUMN() -> 2 | C9: =COLUMN() -> 3 | D9: =COLUMN() -> 4 | E9: =COLUMN() -> 5 | F9: =COLUMN() -> 6 | G9: =COLUMN() -> 7 | H9: =COLUMN() -> 8 | I9: =COLUMN() -> 9 | J9: =COLUMN() -> 10 | K9: =COLUMN() -> 11 | L9: =COLUMN() -> 12 | M9: =COLUMN() -> 13 | N9: =COLUMN() -> 14 | O9: =COLUMN() -> 15 | P9: =COLUMN() -> 16 | Q9: =COLUMN() -> 17 | R9: =COLUMN() -> 18 | S9: =COLUMN() -> 19 | T9: =COLUMN() -> 20 | U9: =COLUMN() -> 21 | V9: =COLUMN() -> 22 | W9: =COLUMN() -> 23 | X9: =COLUMN() -> 24 | Y9: =COLUMN() -> 25 | Z9: =COLUMN() -> 26 | AA9: =COLUMN() -> 27 | AB9: =COLUMN() -> 28 | AC9: =COLUMN() -> 29 | AD9: =COLUMN() -> 30 | AE9: =COLUMN() -> 31
B10: Total Row(s): 132 Generated on Sep-17-2011 by Yuwadee Wongbundhit | C10: Baseline 2011 - Grade 7 Reading AUGUST 2011 Teacher __________ Period _____
C11: Total # students | D11: Overall (39 pts max) | F11: LA.7.1--LA.7.1.6: Benchmark LA.7.1.6.3 | H11: LA.7.1--LA.7.1.6: Benchmark LA.7.1.6.8 | J11: LA.7.1--LA.7.1.6: Benchmark LA.7.1.6.9 | L11: LA.7.1--LA.7.1.7: Benchmark LA.7.1.7.2 | N11: LA.7.1--LA.7.1.7: Benchmark LA.7.1.7.3 | P11: LA.7.1--LA.7.1.7: Benchmark LA.7.1.7.4 | R11: LA.7.1--LA.7.1.7: Benchmark LA.7.1.7.5 | T11: LA.7.1--LA.7.1.7: Benchmark LA.7.1.7.7 | V11: LA.7.2--LA.7.2.1: Benchmark LA.7.2.1.2 | X11: LA.7.2--LA.7.2.1: Benchmark LA.7.2.1.7 | Z11: LA.7.2--LA.7.2.2: Benchmark LA.7.2.2.1 | AB11: LA.7.6--LA.7.6.1: Benchmark LA.7.6.1.1 | AD11: LA.7.6--LA.7.6.2: Benchmark LA.7.6.2.2
D12: Avg Raw Score | E12: Avg % Correct | F12: Avg Raw Score | G12: Avg % Correct | H12: Avg Raw Score | I12: Avg % Correct | J12: Avg Raw Score | K12: Avg % Correct | L12: Avg Raw Score | M12: Avg % Correct | N12: Avg Raw Score | O12: Avg % Correct | P12: Avg Raw Score | Q12: Avg % Correct | R12: Avg Raw Score | S12: Avg % Correct | T12: Avg Raw Score | U12: Avg % Correct | V12: Avg Raw Score | W12: Avg % Correct | X12: Avg Raw Score | Y12: Avg % Correct | Z12: Avg Raw Score | AA12: Avg % Correct | AB12: Avg Raw Score | AC12: Avg % Correct | AD12: Avg Raw Score | AE12: Avg % Correct
B13: School Name
A14: =IFERROR(VALUE(LEFT(B14,4)),"") -> 70 | B14: 0070 Coral Reef Montessori Academy | C14: 31 | D14: 28.79999924 | E14: 0.74 | F14: 1.100000024 | G14: 0.53 | H14: 2.299999952 | I14: 0.77 | J14: 1.700000048 | K14: 0.84 | L14: 3.599999905 | M14: 0.72 | N14: 2.5 | O14: 0.82 | P14: 3.5 | Q14: 0.7 | R14: 1.5 | S14: 0.76 | T14: 2.900000095 | U14: 0.72 | V14: 2.700000048 | W14: 0.9 | X14: 1.600000024 | Y14: 0.79 | Z14: 0.6000000238 | AA14: 0.58 | AB14: 1.5 | AC14: 0.77 | AD14: 3.400000095 | AE14: 0.68
A15: 71 | B15: 0071 Eugenia B. Thomas K-8 | C15: 170 | D15: 27 | E15: 0.69 | F15: 1.200000048 | G15: 0.6 | H15: 2.299999952 | I15: 0.75 | J15: 1.5 | K15: 0.75 | L15: 3.599999905 | M15: 0.71 | N15: 2.299999952 | O15: 0.76 | P15: 3.099999905 | Q15: 0.61 | R15: 1.200000048 | S15: 0.62 | T15: 2.799999952 | U15: 0.7 | V15: 2.400000095 | W15: 0.82 | X15: 1.5 | Y15: 0.77 | Z15: 0.6000000238 | AA15: 0.6 | AB15: 1.5 | AC15: 0.73 | AD15: 3.099999905 | AE15: 0.62
A16: 72 | B16: 0072 Summerville Charter School | C16: 51 | D16: 27.39999962 | E16: 0.7 | F16: 1.100000024 | G16: 0.55 | H16: 2.200000048 | I16: 0.72 | J16: 1.600000024 | K16: 0.8 | L16: 3.400000095 | M16: 0.69 | N16: 2.5 | O16: 0.83 | P16: 3.299999952 | Q16: 0.65 | R16: 1.100000024 | S16: 0.54 | T16: 2.799999952 | U16: 0.69 | V16: 2.599999905 | W16: 0.86 | X16: 1.600000024 | Y16: 0.81 | Z16: 0.6999999881 | AA16: 0.67 | AB16: 1.5 | AC16: 0.75 | AD16: 3.099999905 | AE16: 0.62
A17: 73 | B17: 0073 Mandarin Lakes K-8 Center | C17: 120 | D17: 20.70000076 | E17: 0.53 | F17: 0.6000000238 | G17: 0.31 | H17: 1.799999952 | I17: 0.59 | J17: 1.399999976 | K17: 0.71 | L17: 2.700000048 | M17: 0.53 | N17: 1.899999976 | O17: 0.63 | P17: 2.099999905 | Q17: 0.43 | R17: 0.8000000119 | S17: 0.42 | T17: 2.299999952 | U17: 0.58 | V17: 2 | W17: 0.68 | X17: 1.299999952 | Y17: 0.63 | Z17: 0.400000006 | AA17: 0.37 | AB17: 1.100000024 | AC17: 0.56 | AD17: 2.299999952 | AE17: 0.45
A18: 91 | B18: 0091 Bob Graham Education Center | C18: 239 | D18: 26.29999924 | E18: 0.67 | F18: 1.100000024 | G18: 0.55 | H18: 2.099999905 | I18: 0.71 | J18: 1.5 | K18: 0.77 | L18: 3.400000095 | M18: 0.69 | N18: 2.200000048 | O18: 0.75 | P18: 2.900000095 | Q18: 0.58 | R18: 1.399999976 | S18: 0.68 | T18: 2.599999905 | U18: 0.64 | V18: 2.299999952 | W18: 0.78 | X18: 1.5 | Y18: 0.75 | Z18: 0.6000000238 | AA18: 0.59 | AB18: 1.5 | AC18: 0.74 | AD18: 3.099999905 | AE18: 0.63
A19: 92 | B19: 0092 Sunny Isles Beach Community School K-8 | C19: 207 | D19: 26.39999962 | E19: 0.68 | F19: 1.100000024 | G19: 0.54 | H19: 2.200000048 | I19: 0.73 | J19: 1.600000024 | K19: 0.79 | L19: 3.5 | M19: 0.71 | N19: 2.099999905 | O19: 0.7 | P19: 3 | Q19: 0.6 | R19: 1.299999952 | S19: 0.64 | T19: 2.700000048 | U19: 0.67 | V19: 2.400000095 | W19: 0.8 | X19: 1.5 | Y19: 0.76 | Z19: 0.6000000238 | AA19: 0.63 | AB19: 1.399999976 | AC19: 0.71 | AD19: 3 | AE19: 0.6
A20: 122 | B20: 0122 Dr. Rolando Espinosa K-8 Center | C20: 178 | D20: 28.20000076 | E20: 0.72 | F20: 1.299999952 | G20: 0.64 | H20: 2.200000048 | I20: 0.75 | J20: 1.600000024 | K20: 0.81 | L20: 3.700000048 | M20: 0.75 | N20: 2.5 | O20: 0.83 | P20: 3.299999952 | Q20: 0.66 | R20: 1.399999976 | S20: 0.69 | T20: 3 | U20: 0.74 | V20: 2.5 | W20: 0.82 | X20: 1.5 | Y20: 0.76 | Z20: 0.6999999881 | AA20: 0.66 | AB20: 1.5 | AC20: 0.74 | AD20: 3.099999905 | AE20: 0.61
A21: 231 | B21: 0231 Aventura Waterways K-8 | C21: 210 | D21: 27.79999924 | E21: 0.71 | F21: 1.200000048 | G21: 0.62 | H21: 2.200000048 | I21: 0.75 | J21: 1.600000024 | K21: 0.8 | L21: 3.700000048 | M21: 0.74 | N21: 2.200000048 | O21: 0.75 | P21: 3.200000048 | Q21: 0.64 | R21: 1.399999976 | S21: 0.69 | T21: 2.799999952 | U21: 0.71 | V21: 2.400000095 | W21: 0.82 | X21: 1.700000048 | Y21: 0.83 | Z21: 0.6000000238 | AA21: 0.6 | AB21: 1.5 | AC21: 0.73 | AD21: 3.200000048 | AE21: 0.64
A22: 241 | B22: 0241 Ruth K. Broad/Bay Harbor K-8 | C22: 117 | D22: 27.39999962 | E22: 0.7 | F22: 1.200000048 | G22: 0.58 | H22: 2.200000048 | I22: 0.74 | J22: 1.600000024 | K22: 0.8 | L22: 3.599999905 | M22: 0.71 | N22: 2.200000048 | O22: 0.74 | P22: 3.200000048 | Q22: 0.64 | R22: 1.299999952 | S22: 0.64 | T22: 2.900000095 | U22: 0.74 | V22: 2.400000095 | W22: 0.8 | X22: 1.5 | Y22: 0.74 | Z22: 0.6000000238 | AA22: 0.6 | AB22: 1.399999976 | AC22: 0.71 | AD22: 3.299999952 | AE22: 0.66
A23: 332 | B23: 0332 Somerset Silver Palms K-8 | C23: 136 | D23: 26.39999962 | E23: 0.68 | F23: 1.100000024 | G23: 0.56 | H23: 2.299999952 | I23: 0.77 | J23: 1.5 | K23: 0.77 | L23: 3.5 | M23: 0.7 | N23: 2.099999905 | O23: 0.72 | P23: 3.099999905 | Q23: 0.61 | R23: 1.299999952 | S23: 0.67 | T23: 2.5 | U23: 0.63 | V23: 2.299999952 | W23: 0.78 | X23: 1.5 | Y23: 0.75 | Z23: 0.6000000238 | AA23: 0.64 | AB23: 1.299999952 | AC23: 0.66 | AD23: 3.099999905 | AE23: 0.62
A24: 451 | B24: 0451 Doolin /Ashe K-8 Academy | C24: 207 | D24: 23.89999962 | E24: 0.61 | F24: 1 | G24: 0.51 | H24: 2 | I24: 0.68 | J24: 1.399999976 | K24: 0.72 | L24: 3.200000048 | M24: 0.63 | N24: 2 | O24: 0.67 | P24: 2.700000048 | Q24: 0.55 | R24: 1.100000024 | S24: 0.53 | T24: 2.5 | U24: 0.63 | V24: 2.200000048 | W24: 0.73 | X24: 1.299999952 | Y24: 0.66 | Z24: 0.5 | AA24: 0.54 | AB24: 1.200000048 | AC24: 0.6 | AD24: 2.700000048 | AE24: 0.53
A25: 761 | B25: 0761 Fienberg Fisher K-8 Center | C25: 92 | D25: 23.39999962 | E25: 0.6 | F25: 1.100000024 | G25: 0.53 | H25: 2 | I25: 0.66 | J25: 1.5 | K25: 0.74 | L25: 3.099999905 | M25: 0.62 | N25: 1.899999976 | O25: 0.63 | P25: 2.799999952 | Q25: 0.56 | R25: 1.100000024 | S25: 0.53 | T25: 2.400000095 | U25: 0.61 | V25: 2.200000048 | W25: 0.72 | X25: 1.200000048 | Y25: 0.59 | Z25: 0.5 | AA25: 0.53 | AB25: 1.200000048 | AC25: 0.6 | AD25: 2.5 | AE25: 0.5
A26: 950 | B26: 0950 Aventura City Of Excellence School | C26: 90 | D26: 31 | E26: 0.79 | F26: 1.399999976 | G26: 0.72 | H26: 2.5 | I26: 0.84 | J26: 1.799999952 | K26: 0.89 | L26: 4.199999809 | M26: 0.83 | N26: 2.400000095 | O26: 0.79 | P26: 3.799999952 | Q26: 0.75 | R26: 1.700000048 | S26: 0.84 | T26: 3 | U26: 0.76 | V26: 2.700000048 | W26: 0.89 | X26: 1.700000048 | Y26: 0.87 | Z26: 0.8000000119 | AA26: 0.78 | AB26: 1.600000024 | AC26: 0.79 | AD26: 3.5 | AE26: 0.7
A27: 961 | B27: 0961 Coral Gables Elementary | C27: 47 | D27: 30.5 | E27: 0.78 | F27: 1.5 | G27: 0.73 | H27: 2.400000095 | I27: 0.79 | J27: 1.700000048 | K27: 0.84 | L27: 4.300000191 | M27: 0.86 | N27: 2.5 | O27: 0.83 | P27: 3.599999905 | Q27: 0.71 | R27: 1.5 | S27: 0.73 | T27: 3.099999905 | U27: 0.78 | V27: 2.599999905 | W27: 0.87 | X27: 1.600000024 | Y27: 0.8 | Z27: 0.6999999881 | AA27: 0.72 | AB27: 1.700000048 | AC27: 0.86 | AD27: 3.400000095 | AE27: 0.68
A28: 1010 | B28: 1010 The Charter School At Waterstone | C28: 141 | D28: 29.70000076 | E28: 0.76 | F28: 1.299999952 | G28: 0.65 | H28: 2.200000048 | I28: 0.74 | J28: 1.600000024 | K28: 0.78 | L28: 4.099999905 | M28: 0.83 | N28: 2.5 | O28: 0.85 | P28: 3.599999905 | Q28: 0.72 | R28: 1.399999976 | S28: 0.72 | T28: 3 | U28: 0.75 | V28: 2.5 | W28: 0.84 | X28: 1.600000024 | Y28: 0.82 | Z28: 0.6999999881 | AA28: 0.66 | AB28: 1.399999976 | AC28: 0.72 | AD28: 3.599999905 | AE28: 0.72
A29: 1020 | B29: 1020 Youth Co-op Charter School | C29: 92 | D29: 28.10000038 | E29: 0.72 | F29: 1.200000048 | G29: 0.59 | H29: 2.299999952 | I29: 0.76 | J29: 1.600000024 | K29: 0.79 | L29: 3.799999952 | M29: 0.76 | N29: 2.299999952 | O29: 0.77 | P29: 3.299999952 | Q29: 0.65 | R29: 1.5 | S29: 0.73 | T29: 2.799999952 | U29: 0.71 | V29: 2.5 | W29: 0.84 | X29: 1.600000024 | Y29: 0.82 | Z29: 0.6000000238 | AA29: 0.64 | AB29: 1.5 | AC29: 0.75 | AD29: 3.099999905 | AE29: 0.61
A30: 1121 | B30: 1121 Coral Way K-8 Center | C30: 175 | D30: 27.39999962 | E30: 0.7 | F30: 1.299999952 | G30: 0.63 | H30: 2.200000048 | I30: 0.74 | J30: 1.600000024 | K30: 0.78 | L30: 3.599999905 | M30: 0.72 | N30: 2.200000048 | O30: 0.75 | P30: 3.099999905 | Q30: 0.63 | R30: 1.299999952 | S30: 0.65 | T30: 2.700000048 | U30: 0.68 | V30: 2.5 | W30: 0.84 | X30: 1.700000048 | Y30: 0.84 | Z30: 0.6000000238 | AA30: 0.63 | AB30: 1.5 | AC30: 0.73 | AD30: 3.099999905 | AE30: 0.61
A31: 1331 | B31: 1331 Devon Aire K-8 Center | C31: 181 | D31: 26.20000076 | E31: 0.67 | F31: 1.200000048 | G31: 0.59 | H31: 2 | I31: 0.67 | J31: 1.600000024 | K31: 0.79 | L31: 3.5 | M31: 0.7 | N31: 2.299999952 | O31: 0.76 | P31: 3 | Q31: 0.6 | R31: 1.299999952 | S31: 0.63 | T31: 2.599999905 | U31: 0.66 | V31: 2.299999952 | W31: 0.76 | X31: 1.5 | Y31: 0.75 | Z31: 0.6000000238 | AA31: 0.62 | AB31: 1.399999976 | AC31: 0.71 | AD31: 3 | AE31: 0.6
A32: 1681 | B32: 1681 Lillie C. Evans Elementary | C32: 15 | D32: 28.60000038 | E32: 0.73 | F32: 1.299999952 | G32: 0.63 | H32: 2.299999952 | I32: 0.78 | J32: 1.700000048 | K32: 0.83 | L32: 3.900000095 | M32: 0.77 | N32: 2.700000048 | O32: 0.89 | P32: 3.599999905 | Q32: 0.72 | R32: 1.5 | S32: 0.77 | T32: 3 | U32: 0.75 | V32: 2.400000095 | W32: 0.8 | X32: 1.5 | Y32: 0.73 | Z32: 0.8000000119 | AA32: 0.8 | AB32: 1.299999952 | AC32: 0.63 | AD32: 2.700000048 | AE32: 0.55
A33: 1721 | B33: 1721 Everglades K-8 Center | C33: 138 | D33: 27 | E33: 0.69 | F33: 1.299999952 | G33: 0.65 | H33: 2.200000048 | I33: 0.73 | J33: 1.600000024 | K33: 0.78 | L33: 3.700000048 | M33: 0.73 | N33: 2.200000048 | O33: 0.75 | P33: 3 | Q33: 0.61 | R33: 1.299999952 | S33: 0.64 | T33: 2.799999952 | U33: 0.71 | V33: 2.299999952 | W33: 0.78 | X33: 1.399999976 | Y33: 0.72 | Z33: 0.6000000238 | AA33: 0.62 | AB33: 1.299999952 | AC33: 0.67 | AD33: 3.099999905 | AE33: 0.63
A34: 2060 | B34: 2060 Theodore R. And Thelma A. Gibson Charter | C34: 40 | D34: 20.89999962 | E34: 0.54 | F34: 0.8000000119 | G34: 0.41 | H34: 1.799999952 | I34: 0.61 | J34: 1.200000048 | K34: 0.59 | L34: 2.799999952 | M34: 0.56 | N34: 1.899999976 | O34: 0.63 | P34: 2.400000095 | Q34: 0.47 | R34: 0.8999999762 | S34: 0.43 | T34: 2.400000095 | U34: 0.59 | V34: 2.099999905 | W34: 0.69 | X34: 1.100000024 | Y34: 0.56 | Z34: 0.5 | AA34: 0.5 | AB34: 1 | AC34: 0.5 | AD34: 2.099999905 | AE34: 0.43
A35: 2701 | B35: 2701 Kenwood K-8 Center | C35: 110 | D35: 26.89999962 | E35: 0.69 | F35: 1.200000048 | G35: 0.6 | H35: 2.200000048 | I35: 0.74 | J35: 1.5 | K35: 0.73 | L35: 3.5 | M35: 0.7 | N35: 2.299999952 | O35: 0.77 | P35: 3.200000048 | Q35: 0.65 | R35: 1.299999952 | S35: 0.63 | T35: 2.700000048 | U35: 0.68 | V35: 2.400000095 | W35: 0.81 | X35: 1.5 | Y35: 0.75 | Z35: 0.6999999881 | AA35: 0.7 | AB35: 1.399999976 | AC35: 0.69 | AD35: 3 | AE35: 0.59
A36: 2741 | B36: 2741 Key Biscayne K-8 Center | C36: 90 | D36: 27.89999962 | E36: 0.71 | F36: 1.299999952 | G36: 0.63 | H36: 2.200000048 | I36: 0.72 | J36: 1.5 | K36: 0.76 | L36: 3.799999952 | M36: 0.76 | N36: 2.299999952 | O36: 0.76 | P36: 3.400000095 | Q36: 0.68 | R36: 1.299999952 | S36: 0.66 | T36: 2.599999905 | U36: 0.66 | V36: 2.400000095 | W36: 0.79 | X36: 1.700000048 | Y36: 0.87 | Z36: 0.6000000238 | AA36: 0.62 | AB36: 1.600000024 | AC36: 0.78 | AD36: 3.200000048 | AE36: 0.64
A37: 2881 | B37: 2881 Leewood K-8 Center | C37: 55 | D37: 30.70000076 | E37: 0.79 | F37: 1.5 | G37: 0.74 | H37: 2.400000095 | I37: 0.79 | J37: 1.799999952 | K37: 0.9 | L37: 4 | M37: 0.8 | N37: 2.5 | O37: 0.82 | P37: 3.900000095 | Q37: 0.78 | R37: 1.399999976 | S37: 0.72 | T37: 3.299999952 | U37: 0.82 | V37: 2.5 | W37: 0.85 | X37: 1.700000048 | Y37: 0.83 | Z37: 0.8000000119 | AA37: 0.78 | AB37: 1.5 | AC37: 0.76 | AD37: 3.5 | AE37: 0.7
A38: 2901 | B38: 2901 Leisure City K-8 Center | C38: 135 | D38: 24.20000076 | E38: 0.62 | F38: 0.8999999762 | G38: 0.47 | H38: 1.899999976 | I38: 0.65 | J38: 1.5 | K38: 0.76 | L38: 3.200000048 | M38: 0.64 | N38: 2.099999905 | O38: 0.69 | P38: 2.799999952 | Q38: 0.56 | R38: 1.100000024 | S38: 0.55 | T38: 2.5 | U38: 0.62 | V38: 2.200000048 | W38: 0.75 | X38: 1.5 | Y38: 0.73 | Z38: 0.6000000238 | AA38: 0.57 | AB38: 1.100000024 | AC38: 0.56 | AD38: 2.799999952 | AE38: 0.55
A39: 2911 | B39: 2911 Linda Lentin K - 8 Center | C39: 98 | D39: 23.89999962 | E39: 0.61 | F39: 0.8999999762 | G39: 0.45 | H39: 2 | I39: 0.67 | J39: 1.399999976 | K39: 0.7 | L39: 3.200000048 | M39: 0.63 | N39: 2 | O39: 0.68 | P39: 2.799999952 | Q39: 0.56 | R39: 1.100000024 | S39: 0.55 | T39: 2.5 | U39: 0.63 | V39: 2.200000048 | W39: 0.73 | X39: 1.100000024 | Y39: 0.57 | Z39: 0.5 | AA39: 0.54 | AB39: 1.299999952 | AC39: 0.63 | AD39: 2.900000095 | AE39: 0.58
A40: 3029 | B40: 3029 Doral Academy Of Technology | C40: 34 | D40: 35 | E40: 0.9 | F40: 1.700000048 | G40: 0.84 | H40: 2.700000048 | I40: 0.91 | J40: 1.799999952 | K40: 0.91 | L40: 4.800000191 | M40: 0.95 | N40: 2.700000048 | O40: 0.89 | P40: 4.5 | Q40: 0.9 | R40: 1.799999952 | S40: 0.91 | T40: 3.599999905 | U40: 0.91 | V40: 2.700000048 | W40: 0.91 | X40: 1.899999976 | Y40: 0.96 | Z40: 0.8000000119 | AA40: 0.82 | AB40: 1.799999952 | AC40: 0.9 | AD40: 4.099999905 | AE40: 0.82
A41: 3101 | B41: 3101 Frank C. Martin K-8 Center | C41: 137 | D41: 30.60000038 | E41: 0.78 | F41: 1.299999952 | G41: 0.64 | H41: 2.400000095 | I41: 0.8 | J41: 1.700000048 | K41: 0.87 | L41: 3.900000095 | M41: 0.78 | N41: 2.400000095 | O41: 0.81 | P41: 3.599999905 | Q41: 0.73 | R41: 1.5 | S41: 0.77 | T41: 3.200000048 | U41: 0.8 | V41: 2.700000048 | W41: 0.91 | X41: 1.700000048 | Y41: 0.86 | Z41: 0.6999999881 | AA41: 0.74 | AB41: 1.700000048 | AC41: 0.83 | AD41: 3.5 | AE41: 0.71
A42: 3191 | B42: 3191 Ada Merritt K-8 Center | C42: 92 | D42: 32.20000076 | E42: 0.83 | F42: 1.399999976 | G42: 0.71 | H42: 2.5 | I42: 0.82 | J42: 1.700000048 | K42: 0.86 | L42: 4.300000191 | M42: 0.86 | N42: 2.5 | O42: 0.85 | P42: 3.900000095 | Q42: 0.77 | R42: 1.700000048 | S42: 0.83 | T42: 3.299999952 | U42: 0.82 | V42: 2.700000048 | W42: 0.91 | X42: 1.799999952 | Y42: 0.89 | Z42: 0.8000000119 | AA42: 0.8 | AB42: 1.600000024 | AC42: 0.82 | AD42: 4 | AE42: 0.81
A43: 3281 | B43: 3281 Miami Lakes K-8 Center | C43: 197 | D43: 27.89999962 | E43: 0.71 | F43: 1.299999952 | G43: 0.64 | H43: 2.299999952 | I43: 0.77 | J43: 1.600000024 | K43: 0.8 | L43: 3.799999952 | M43: 0.76 | N43: 2.299999952 | O43: 0.78 | P43: 3.299999952 | Q43: 0.65 | R43: 1.299999952 | S43: 0.64 | T43: 2.900000095 | U43: 0.72 | V43: 2.400000095 | W43: 0.8 | X43: 1.5 | Y43: 0.76 | Z43: 0.6000000238 | AA43: 0.64 | AB43: 1.399999976 | AC43: 0.71 | AD43: 3.099999905 | AE43: 0.63
A44: 3421 | B44: 3421 Milam K-8 Center | C44: 121 | D44: 22.89999962 | E44: 0.59 | F44: 1 | G44: 0.52 | H44: 1.799999952 | I44: 0.6 | J44: 1.299999952 | K44: 0.63 | L44: 3.099999905 | M44: 0.62 | N44: 2.200000048 | O44: 0.74 | P44: 2.5 | Q44: 0.5 | R44: 1.100000024 | S44: 0.54 | T44: 2.5 | U44: 0.63 | V44: 2.099999905 | W44: 0.69 | X44: 1.200000048 | Y44: 0.58 | Z44: 0.400000006 | AA44: 0.43 | AB44: 1.100000024 | AC44: 0.55 | AD44: 2.599999905 | AE44: 0.52
A45: 3621 | B45: 3621 Coconut Palms K-8 Academy | C45: 95 | D45: 25.70000076 | E45: 0.66 | F45: 0.8999999762 | G45: 0.45 | H45: 2 | I45: 0.66 | J45: 1.399999976 | K45: 0.7 | L45: 3.299999952 | M45: 0.67 | N45: 2.5 | O45: 0.82 | P45: 3.099999905 | Q45: 0.62 | R45: 1.299999952 | S45: 0.63 | T45: 2.900000095 | U45: 0.73 | V45: 2.200000048 | W45: 0.72 | X45: 1.399999976 | Y45: 0.71 | Z45: 0.6000000238 | AA45: 0.6 | AB45: 1.299999952 | AC45: 0.63 | AD45: 2.900000095 | AE45: 0.58
A46: 4691 | B46: 4691 Jane S. Roberts K-8 Center | C46: 95 | D46: 28.39999962 | E46: 0.73 | F46: 1.299999952 | G46: 0.66 | H46: 2.299999952 | I46: 0.78 | J46: 1.5 | K46: 0.74 | L46: 4 | M46: 0.79 | N46: 2.299999952 | O46: 0.75 | P46: 3.5 | Q46: 0.7 | R46: 1.299999952 | S46: 0.64 | T46: 2.700000048 | U46: 0.68 | V46: 2.5 | W46: 0.83 | X46: 1.600000024 | Y46: 0.82 | Z46: 0.6999999881 | AA46: 0.66 | AB46: 1.5 | AC46: 0.76 | AD46: 3.200000048 | AE46: 0.64
A47: 5003 | B47: 5003 South Dade Middle School | C47: 267 | D47: 21.70000076 | E47: 0.56 | F47: 0.8999999762 | G47: 0.43 | H47: 1.700000048 | I47: 0.57 | J47: 1.399999976 | K47: 0.68 | L47: 2.700000048 | M47: 0.54 | N47: 1.799999952 | O47: 0.62 | P47: 2.5 | Q47: 0.5 | R47: 1 | S47: 0.48 | T47: 2.299999952 | U47: 0.59 | V47: 2 | W47: 0.68 | X47: 1.200000048 | Y47: 0.61 | Z47: 0.5 | AA47: 0.48 | AB47: 1.100000024 | AC47: 0.55 | AD47: 2.5 | AE47: 0.5
A48: 5005 | B48: 5005 David Lawrence Jr. K8 Center | C48: 164 | D48: 27.29999924 | E48: 0.7 | F48: 1.100000024 | G48: 0.56 | H48: 2.099999905 | I48: 0.71 | J48: 1.600000024 | K48: 0.8 | L48: 3.599999905 | M48: 0.73 | N48: 2.400000095 | O48: 0.79 | P48: 3.299999952 | Q48: 0.67 | R48: 1.299999952 | S48: 0.67 | T48: 2.799999952 | U48: 0.69 | V48: 2.400000095 | W48: 0.79 | X48: 1.399999976 | Y48: 0.72 | Z48: 0.6000000238 | AA48: 0.6 | AB48: 1.5 | AC48: 0.73 | AD48: 3.200000048 | AE48: 0.63
A49: 5007 | B49: 5007 Lincoln-marti Charter Schools (Hialeah) | C49: 23 | D49: 22.29999924 | E49: 0.57 | F49: 1 | G49: 0.5 | H49: 1.700000048 | I49: 0.58 | J49: 1.100000024 | K49: 0.57 | L49: 3.099999905 | M49: 0.62 | N49: 2 | O49: 0.65 | P49: 2.799999952 | Q49: 0.56 | R49: 1.299999952 | S49: 0.65 | T49: 2.299999952 | U49: 0.57 | V49: 2 | W49: 0.65 | X49: 1.100000024 | Y49: 0.57 | Z49: 0.6999999881 | AA49: 0.65 | AB49: 0.8999999762 | AC49: 0.43 | AD49: 2.5 | AE49: 0.5
A50: 5025 | B50: 5025 Lincoln-marti Charter Schools(Little Havana) | C50: 59 | D50: 19.60000038 | E50: 0.5 | F50: 0.8000000119 | G50: 0.42 | H50: 1.600000024 | I50: 0.55 | J50: 1.100000024 | K50: 0.55 | L50: 2.5 | M50: 0.49 | N50: 1.700000048 | O50: 0.57 | P50: 2.200000048 | Q50: 0.44 | R50: 0.8000000119 | S50: 0.42 | T50: 2.299999952 | U50: 0.56 | V50: 2.099999905 | W50: 0.69 | X50: 1.100000024 | Y50: 0.53 | Z50: 0.3000000119 | AA50: 0.27 | AB50: 1 | AC50: 0.51 | AD50: 2.200000048 | AE50: 0.43
A51: 5029 | B51: 5029 Excelsior Language Academy of Hialeah | C51: 77 | D51: 23.39999962 | E51: 0.6 | F51: 1 | G51: 0.49 | H51: 1.899999976 | I51: 0.64 | J51: 1.299999952 | K51: 0.64 | L51: 3 | M51: 0.61 | N51: 2.099999905 | O51: 0.69 | P51: 2.599999905 | Q51: 0.51 | R51: 1.200000048 | S51: 0.61 | T51: 2.5 | U51: 0.62 | V51: 2.400000095 | W51: 0.78 | X51: 1.299999952 | Y51: 0.64 | Z51: 0.400000006 | AA51: 0.44 | AB51: 1.200000048 | AC51: 0.61 | AD51: 2.599999905 | AE51: 0.52
A52: 5032 | B52: 5032 Excelsior Charter Academy | C52: 16 | D52: 28.20000076 | E52: 0.72 | F52: 1.399999976 | G52: 0.72 | H52: 2.299999952 | I52: 0.77 | J52: 1.799999952 | K52: 0.88 | L52: 3.400000095 | M52: 0.69 | N52: 2.5 | O52: 0.83 | P52: 3.700000048 | Q52: 0.74 | R52: 1.299999952 | S52: 0.66 | T52: 3 | U52: 0.75 | V52: 2.299999952 | W52: 0.75 | X52: 1.5 | Y52: 0.75 | Z52: 0.6999999881 | AA52: 0.69 | AB52: 1.200000048 | AC52: 0.59 | AD52: 3.099999905 | AE52: 0.63
A53: 5047 | B53: 5047 Mater Academy (Miami Beach) | C53: 36 | D53: 24 | E53: 0.61 | F53: 1 | G53: 0.51 | H53: 1.899999976 | I53: 0.64 | J53: 1.399999976 | K53: 0.71 | L53: 3.299999952 | M53: 0.65 | N53: 2.099999905 | O53: 0.69 | P53: 3.099999905 | Q53: 0.62 | R53: 1.200000048 | S53: 0.61 | T53: 2.400000095 | U53: 0.6 | V53: 2 | W53: 0.68 | X53: 1.299999952 | Y53: 0.64 | Z53: 0.6000000238 | AA53: 0.61 | AB53: 1 | AC53: 0.5 | AD53: 2.599999905 | AE53: 0.53
A54: 5141 | B54: 5141 Hubert O. Sibley Elem. | C54: 65 | D54: 22.79999924 | E54: 0.58 | F54: 0.8999999762 | G54: 0.45 | H54: 1.899999976 | I54: 0.65 | J54: 1.399999976 | K54: 0.68 | L54: 3 | M54: 0.6 | N54: 2 | O54: 0.67 | P54: 2.599999905 | Q54: 0.53 | R54: 1.200000048 | S54: 0.59 | T54: 2.400000095 | U54: 0.59 | V54: 2 | W54: 0.66 | X54: 1.200000048 | Y54: 0.62 | Z54: 0.400000006 | AA54: 0.45 | AB54: 1.200000048 | AC54: 0.58 | AD54: 2.599999905 | AE54: 0.52
A55: 5241 | B55: 5241 South Miami K-8 Center | C55: 68 | D55: 24.39999962 | E55: 0.62 | F55: 0.8999999762 | G55: 0.46 | H55: 2 | I55: 0.65 | J55: 1.399999976 | K55: 0.68 | L55: 3.400000095 | M55: 0.67 | N55: 2.099999905 | O55: 0.72 | P55: 2.700000048 | Q55: 0.54 | R55: 1 | S55: 0.52 | T55: 2.599999905 | U55: 0.65 | V55: 2.200000048 | W55: 0.73 | X55: 1.5 | Y55: 0.75 | Z55: 0.5 | AA55: 0.5 | AB55: 1.299999952 | AC55: 0.64 | AD55: 2.799999952 | AE55: 0.56
A56: 5671 | B56: 5671 Vineland K-8 Center | C56: 69 | D56: 31.70000076 | E56: 0.81 | F56: 1.399999976 | G56: 0.7 | H56: 2.5 | I56: 0.82 | J56: 1.700000048 | K56: 0.87 | L56: 4.099999905 | M56: 0.83 | N56: 2.599999905 | O56: 0.88 | P56: 4 | Q56: 0.79 | R56: 1.600000024 | S56: 0.78 | T56: 3.200000048 | U56: 0.8 | V56: 2.599999905 | W56: 0.87 | X56: 1.899999976 | Y56: 0.94 | Z56: 0.8000000119 | AA56: 0.8 | AB56: 1.600000024 | AC56: 0.81 | AD56: 3.700000048 | AE56: 0.73
A57: 5961 | B57: 5961 Winston Park K-8 Center | C57: 171 | D57: 25.5 | E57: 0.65 | F57: 0.8999999762 | G57: 0.47 | H57: 2.200000048 | I57: 0.73 | J57: 1.600000024 | K57: 0.78 | L57: 3.400000095 | M57: 0.68 | N57: 2.099999905 | O57: 0.71 | P57: 2.799999952 | Q57: 0.56 | R57: 1.100000024 | S57: 0.54 | T57: 2.599999905 | U57: 0.66 | V57: 2.400000095 | W57: 0.79 | X57: 1.5 | Y57: 0.77 | Z57: 0.6000000238 | AA57: 0.56 | AB57: 1.399999976 | AC57: 0.68 | AD57: 2.900000095 | AE57: 0.59
A58: 6001 | B58: 6001 Herbert A. Ammons Middle School | C58: 394 | D58: 31 | E58: 0.79 | F58: 1.399999976 | G58: 0.69 | H58: 2.5 | I58: 0.84 | J58: 1.700000048 | K58: 0.86 | L58: 4.199999809 | M58: 0.84 | N58: 2.400000095 | O58: 0.81 | P58: 3.700000048 | Q58: 0.74 | R58: 1.600000024 | S58: 0.78 | T58: 3.099999905 | U58: 0.79 | V58: 2.599999905 | W58: 0.87 | X58: 1.700000048 | Y58: 0.87 | Z58: 0.6999999881 | AA58: 0.71 | AB58: 1.700000048 | AC58: 0.84 | AD58: 3.599999905 | AE58: 0.72
A59: 6004 | B59: 6004 Somerset Academy Charter Middle | C59: 45 | D59: 28.20000076 | E59: 0.72 | F59: 1.600000024 | G59: 0.8 | H59: 2.299999952 | I59: 0.78 | J59: 1.600000024 | K59: 0.8 | L59: 3.700000048 | M59: 0.74 | N59: 2.099999905 | O59: 0.71 | P59: 3.5 | Q59: 0.69 | R59: 1.299999952 | S59: 0.63 | T59: 2.700000048 | U59: 0.68 | V59: 2.599999905 | W59: 0.86 | X59: 1.600000024 | Y59: 0.79 | Z59: 0.5 | AA59: 0.53 | AB59: 1.5 | AC59: 0.77 | AD59: 3.200000048 | AE59: 0.64
A60: 6005 | B60: 6005 Ramz Academy Middle – Miami | C60: 1 | D60: 20 | E60: 0.51 | F60: 1 | G60: 0.5 | H60: 2 | I60: 0.67 | J60: 1 | K60: 0.5 | L60: 3 | M60: 0.6 | N60: 0 | O60: 0 | P60: 4 | Q60: 0.8 | R60: 0 | S60: 0 | T60: 3 | U60: 0.75 | V60: 3 | W60: 1 | X60: 1 | Y60: 0.5 | Z60: 0 | AA60: 0 | AB60: 1 | AC60: 0.5 | AD60: 1 | AE60: 0.2
A61: 6006 | B61: 6006 Archimedean Middle Conservatory | C61: 82 | D61: 32.40000153 | E61: 0.83 | F61: 1.5 | G61: 0.74 | H61: 2.599999905 | I61: 0.86 | J61: 1.799999952 | K61: 0.9 | L61: 4.400000095 | M61: 0.88 | N61: 2.599999905 | O61: 0.86 | P61: 4 | Q61: 0.81 | R61: 1.700000048 | S61: 0.84 | T61: 3.299999952 | U61: 0.83 | V61: 2.599999905 | W61: 0.86 | X61: 1.700000048 | Y61: 0.87 | Z61: 0.8000000119 | AA61: 0.8 | AB61: 1.700000048 | AC61: 0.85 | AD61: 3.700000048 | AE61: 0.75
A62: 6008 | B62: 6008 Lawrence Academy | C62: 39 | D62: 20.60000038 | E62: 0.53 | F62: 0.8999999762 | G62: 0.47 | H62: 1.600000024 | I62: 0.55 | J62: 1.600000024 | K62: 0.79 | L62: 2.700000048 | M62: 0.55 | N62: 1.799999952 | O62: 0.61 | P62: 2.400000095 | Q62: 0.49 | R62: 0.8000000119 | S62: 0.42 | T62: 2.200000048 | U62: 0.54 | V62: 1.899999976 | W62: 0.65 | X62: 1.299999952 | Y62: 0.64 | Z62: 0.3000000119 | AA62: 0.28 | AB62: 1 | AC62: 0.51 | AD62: 1.899999976 | AE62: 0.37
A63: 6009 | B63: 6009 Mater East Academy Middle School | C63: 123 | D63: 25.60000038 | E63: 0.66 | F63: 1.100000024 | G63: 0.54 | H63: 2 | I63: 0.68 | J63: 1.5 | K63: 0.76 | L63: 3.299999952 | M63: 0.67 | N63: 2.200000048 | O63: 0.73 | P63: 3 | Q63: 0.6 | R63: 1.200000048 | S63: 0.59 | T63: 2.799999952 | U63: 0.69 | V63: 2.200000048 | W63: 0.75 | X63: 1.5 | Y63: 0.73 | Z63: 0.6000000238 | AA63: 0.57 | AB63: 1.399999976 | AC63: 0.72 | AD63: 2.900000095 | AE63: 0.57
A64: 6010 | B64: 6010 Florida International Academy | C64: 113 | D64: 23.60000038 | E64: 0.61 | F64: 1 | G64: 0.5 | H64: 2 | I64: 0.65 | J64: 1.299999952 | K64: 0.67 | L64: 3 | M64: 0.6 | N64: 2 | O64: 0.68 | P64: 2.599999905 | Q64: 0.51 | R64: 1 | S64: 0.51 | T64: 2.5 | U64: 0.62 | V64: 2.200000048 | W64: 0.74 | X64: 1.399999976 | Y64: 0.71 | Z64: 0.5 | AA64: 0.48 | AB64: 1.399999976 | AC64: 0.68 | AD64: 2.700000048 | AE64: 0.54
A65: 6011 | B65: 6011 Allapattah Middle | C65: 204 | D65: 19.89999962 | E65: 0.51 | F65: 0.6999999881 | G65: 0.36 | H65: 1.600000024 | I65: 0.54 | J65: 1.299999952 | K65: 0.63 | L65: 2.5 | M65: 0.5 | N65: 1.899999976 | O65: 0.62 | P65: 2.200000048 | Q65: 0.44 | R65: 0.8999999762 | S65: 0.43 | T65: 2.200000048 | U65: 0.55 | V65: 1.899999976 | W65: 0.65 | X65: 1.100000024 | Y65: 0.55 | Z65: 0.3000000119 | AA65: 0.32 | AB65: 1 | AC65: 0.52 | AD65: 2.299999952 | AE65: 0.45
A66: 6012 | B66: 6012 Mater Academy Middle | C66: 453 | D66: 27.79999924 | E66: 0.71 | F66: 1.200000048 | G66: 0.61 | H66: 2.200000048 | I66: 0.74 | J66: 1.600000024 | K66: 0.8 | L66: 3.700000048 | M66: 0.74 | N66: 2.200000048 | O66: 0.75 | P66: 3.200000048 | Q66: 0.64 | R66: 1.399999976 | S66: 0.7 | T66: 2.799999952 | U66: 0.7 | V66: 2.400000095 | W66: 0.81 | X66: 1.600000024 | Y66: 0.79 | Z66: 0.6999999881 | AA66: 0.67 | AB66: 1.5 | AC66: 0.74 | AD66: 3.200000048 | AE66: 0.64
A67: 6013 | B67: 6013 Somerset Academy MS (South Campus) | C67: 37 | D67: 27.10000038 | E67: 0.69 | F67: 1.200000048 | G67: 0.61 | H67: 2.200000048 | I67: 0.73 | J67: 1.600000024 | K67: 0.81 | L67: 3.5 | M67: 0.71 | N67: 2.200000048 | O67: 0.72 | P67: 3.099999905 | Q67: 0.62 | R67: 1.399999976 | S67: 0.72 | T67: 2.799999952 | U67: 0.69 | V67: 2.5 | W67: 0.84 | X67: 1.5 | Y67: 0.73 | Z67: 0.6000000238 | AA67: 0.59 | AB67: 1.5 | AC67: 0.74 | AD67: 3 | AE67: 0.6
A68: 6020 | B68: 6020 Aspira Charter | C68: 192 | D68: 21.70000076 | E68: 0.56 | F68: 0.6000000238 | G68: 0.3 | H68: 1.799999952 | I68: 0.61 | J68: 1.399999976 | K68: 0.68 | L68: 2.799999952 | M68: 0.56 | N68: 2 | O68: 0.68 | P68: 2.200000048 | Q68: 0.43 | R68: 1 | S68: 0.49 | T68: 2.400000095 | U68: 0.6 | V68: 2 | W68: 0.67 | X68: 1.5 | Y68: 0.73 | Z68: 0.3000000119 | AA68: 0.34 | AB68: 1.200000048 | AC68: 0.61 | AD68: 2.400000095 | AE68: 0.48
A69: 6021 | B69: 6021 Arvida Middle School | C69: 419 | D69: 29.10000038 | E69: 0.75 | F69: 1.299999952 | G69: 0.65 | H69: 2.400000095 | I69: 0.79 | J69: 1.700000048 | K69: 0.83 | L69: 3.799999952 | M69: 0.75 | N69: 2.299999952 | O69: 0.77 | P69: 3.5 | Q69: 0.7 | R69: 1.399999976 | S69: 0.71 | T69: 3 | U69: 0.74 | V69: 2.5 | W69: 0.84 | X69: 1.600000024 | Y69: 0.82 | Z69: 0.6999999881 | AA69: 0.69 | AB69: 1.600000024 | AC69: 0.79 | AD69: 3.400000095 | AE69: 0.68
A70: 6022 | B70: 6022 Pinecrest Academy Charter Middle | C70: 286 | D70: 26.29999924 | E70: 0.68 | F70: 1 | G70: 0.51 | H70: 2.200000048 | I70: 0.73 | J70: 1.600000024 | K70: 0.8 | L70: 3.5 | M70: 0.71 | N70: 2.200000048 | O70: 0.72 | P70: 2.900000095 | Q70: 0.59 | R70: 1.299999952 | S70: 0.64 | T70: 2.700000048 | U70: 0.68 | V70: 2.400000095 | W70: 0.8 | X70: 1.5 | Y70: 0.77 | Z70: 0.5 | AA70: 0.52 | AB70: 1.5 | AC70: 0.74 | AD70: 3 | AE70: 0.6
A71: 6023 | B71: 6023 Andover Middle School | C71: 388 | D71: 21.79999924 | E71: 0.56 | F71: 0.8000000119 | G71: 0.39 | H71: 1.799999952 | I71: 0.58 | J71: 1.299999952 | K71: 0.67 | L71: 2.900000095 | M71: 0.57 | N71: 2 | O71: 0.67 | P71: 2.299999952 | Q71: 0.46 | R71: 0.8999999762 | S71: 0.47 | T71: 2.400000095 | U71: 0.6 | V71: 2.099999905 | W71: 0.7 | X71: 1.299999952 | Y71: 0.65 | Z71: 0.400000006 | AA71: 0.4 | AB71: 1.200000048 | AC71: 0.58 | AD71: 2.5 | AE71: 0.5
A72: 6030 | B72: 6030 Doral Academy Charter Middle | C72: 373 | D72: 27.60000038 | E72: 0.71 | F72: 1.200000048 | G72: 0.61 | H72: 2.299999952 | I72: 0.75 | J72: 1.700000048 | K72: 0.83 | L72: 3.599999905 | M72: 0.72 | N72: 2.200000048 | O72: 0.72 | P72: 3.200000048 | Q72: 0.64 | R72: 1.299999952 | S72: 0.66 | T72: 2.799999952 | U72: 0.7 | V72: 2.5 | W72: 0.82 | X72: 1.600000024 | Y72: 0.82 | Z72: 0.6000000238 | AA72: 0.62 | AB72: 1.5 | AC72: 0.77 | AD72: 3.099999905 | AE72: 0.63
A73: 6031 | B73: 6031 Brownsville Middle School | C73: 223 | D73: 17.89999962 | E73: 0.46 | F73: 0.5 | G73: 0.27 | H73: 1.5 | I73: 0.5 | J73: 1.299999952 | K73: 0.66 | L73: 2.299999952 | M73: 0.45 | N73: 1.600000024 | O73: 0.55 | P73: 1.799999952 | Q73: 0.37 | R73: 0.6000000238 | S73: 0.32 | T73: 2.099999905 | U73: 0.52 | V73: 1.899999976 | W73: 0.64 | X73: 1.200000048 | Y73: 0.58 | Z73: 0.3000000119 | AA73: 0.26 | AB73: 0.8999999762 | AC73: 0.46 | AD73: 1.799999952 | AE73: 0.37
A74: 6033 | B74: 6033 Mater Academy Lakes Middle School | C74: 176 | D74: 28.60000038 | E74: 0.73 | F74: 1.399999976 | G74: 0.71 | H74: 2.299999952 | I74: 0.76 | J74: 1.600000024 | K74: 0.8 | L74: 3.799999952 | M74: 0.76 | N74: 2.400000095 | O74: 0.78 | P74: 3.400000095 | Q74: 0.68 | R74: 1.399999976 | S74: 0.72 | T74: 2.799999952 | U74: 0.71 | V74: 2.5 | W74: 0.82 | X74: 1.600000024 | Y74: 0.8 | Z74: 0.6000000238 | AA74: 0.63 | AB74: 1.5 | AC74: 0.77 | AD74: 3.200000048 | AE74: 0.65
A75: 6040 | B75: 6040 Doctors Charter School Of Miami Shores | C75: 87 | D75: 29.70000076 | E75: 0.76 | F75: 1.299999952 | G75: 0.66 | H75: 2.5 | I75: 0.84 | J75: 1.600000024 | K75: 0.82 | L75: 3.900000095 | M75: 0.78 | N75: 2.400000095 | O75: 0.79 | P75: 3.599999905 | Q75: 0.73 | R75: 1.299999952 | S75: 0.66 | T75: 3 | U75: 0.74 | V75: 2.700000048 | W75: 0.89 | X75: 1.600000024 | Y75: 0.79 | Z75: 0.8000000119 | AA75: 0.76 | AB75: 1.5 | AC75: 0.74 | AD75: 3.5 | AE75: 0.71
A76: 6041 | B76: 6041 Paul W. Bell Middle School | C76: 241 | D76: 23.20000076 | E76: 0.6 | F76: 1 | G76: 0.51 | H76: 1.799999952 | I76: 0.61 | J76: 1.399999976 | K76: 0.68 | L76: 3.099999905 | M76: 0.63 | N76: 2 | O76: 0.65 | P76: 2.599999905 | Q76: 0.53 | R76: 1 | S76: 0.52 | T76: 2.400000095 | U76: 0.6 | V76: 2.200000048 | W76: 0.73 | X76: 1.399999976 | Y76: 0.68 | Z76: 0.5 | AA76: 0.45 | AB76: 1.200000048 | AC76: 0.62 | AD76: 2.599999905 | AE76: 0.52
A77: 6042 | B77: 6042 Mater Gardens Academy Middle School | C77: 84 | D77: 29.89999962 | E77: 0.77 | F77: 1.5 | G77: 0.74 | H77: 2.299999952 | I77: 0.76 | J77: 1.700000048 | K77: 0.83 | L77: 4.099999905 | M77: 0.82 | N77: 2.5 | O77: 0.82 | P77: 3.5 | Q77: 0.71 | R77: 1.5 | S77: 0.73 | T77: 3 | U77: 0.76 | V77: 2.599999905 | W77: 0.88 | X77: 1.600000024 | Y77: 0.78 | Z77: 0.8000000119 | AA77: 0.79 | AB77: 1.5 | AC77: 0.73 | AD77: 3.5 | AE77: 0.69
A78: 6043 | B78: 6043 Somerset Academy MS (Country Palms) | C78: 4 | D78: 23.29999924 | E78: 0.6 | F78: 1 | G78: 0.5 | H78: 2 | I78: 0.67 | J78: 1.5 | K78: 0.75 | L78: 3.5 | M78: 0.7 | N78: 1.799999952 | O78: 0.59 | P78: 2.799999952 | Q78: 0.55 | R78: 1.799999952 | S78: 0.88 | T78: 2 | U78: 0.5 | V78: 2.299999952 | W78: 0.75 | X78: 1.299999952 | Y78: 0.63 | Z78: 0.3000000119 | AA78: 0.25 | AB78: 1.299999952 | AC78: 0.63 | AD78: 2 | AE78: 0.4
A79: =IFERROR(VALUE(LEFT(B79,4)),"") -> 6045 | B79: 6045 International Studies Charter Middle | C79: 71 | D79: 26.89999962 | E79: 0.69 | F79: 1.200000048 | G79: 0.58 | H79: 2.099999905 | I79: 0.71 | J79: 1.700000048 | K79: 0.83 | L79: 3.700000048 | M79: 0.74 | N79: 2.200000048 | O79: 0.75 | P79: 3 | Q79: 0.6 | R79: 1.299999952 | S79: 0.63 | T79: 2.5 | U79: 0.61 | V79: 2.5 | W79: 0.83 | X79: 1.700000048 | Y79: 0.83 | Z79: 0.6999999881 | AA79: 0.68 | AB79: 1.5 | AC79: 0.75 | AD79: 3 | AE79: 0.6
A80: 6047 | B80: 6047 Mater Acad. MS of International Studies | C80: 48 | D80: 25.89999962 | E80: 0.66 | F80: 1.100000024 | G80: 0.57 | H80: 2.099999905 | I80: 0.71 | J80: 1.5 | K80: 0.77 | L80: 3.099999905 | M80: 0.63 | N80: 2.200000048 | O80: 0.73 | P80: 3 | Q80: 0.6 | R80: 1.299999952 | S80: 0.65 | T80: 2.799999952 | U80: 0.69 | V80: 2.5 | W80: 0.82 | X80: 1.5 | Y80: 0.76 | Z80: 0.6000000238 | AA80: 0.58 | AB80: 1.399999976 | AC80: 0.71 | AD80: 2.700000048 | AE80: 0.54
A81: 6048 | B81: 6048 Miami Community Charter Middle School | C81: 94 | D81: 23.39999962 | E81: 0.6 | F81: 0.8999999762 | G81: 0.46 | H81: 2 | I81: 0.67 | J81: 1.5 | K81: 0.73 | L81: 2.900000095 | M81: 0.58 | N81: 2.099999905 | O81: 0.69 | P81: 2.799999952 | Q81: 0.56 | R81: 1.100000024 | S81: 0.54 | T81: 2.400000095 | U81: 0.61 | V81: 2.200000048 | W81: 0.74 | X81: 1.299999952 | Y81: 0.65 | Z81: 0.5 | AA81: 0.5 | AB81: 1.299999952 | AC81: 0.64 | AD81: 2.5 | AE81: 0.5
A82: 6049 | B82: 6049 River Cities Community Charter School | C82: 30 | D82: 20 | E82: 0.51 | F82: 0.8999999762 | G82: 0.47 | H82: 1.799999952 | I82: 0.59 | J82: 1.299999952 | K82: 0.63 | L82: 2.599999905 | M82: 0.52 | N82: 1.600000024 | O82: 0.54 | P82: 2.5 | Q82: 0.5 | R82: 0.6999999881 | S82: 0.35 | T82: 1.899999976 | U82: 0.48 | V82: 2.099999905 | W82: 0.7 | X82: 1.200000048 | Y82: 0.58 | Z82: 0.400000006 | AA82: 0.4 | AB82: 1 | AC82: 0.48 | AD82: 2.099999905 | AE82: 0.41
A83: 6051 | B83: 6051 Carol City Middle School | C83: 217 | D83: 22.20000076 | E83: 0.57 | F83: 1 | G83: 0.5 | H83: 1.799999952 | I83: 0.6 | J83: 1.299999952 | K83: 0.65 | L83: 2.799999952 | M83: 0.55 | N83: 2 | O83: 0.67 | P83: 2.5 | Q83: 0.51 | R83: 1 | S83: 0.5 | T83: 2.400000095 | U83: 0.61 | V83: 2.099999905 | W83: 0.71 | X83: 1.200000048 | Y83: 0.62 | Z83: 0.400000006 | AA83: 0.44 | AB83: 1.100000024 | AC83: 0.57 | AD83: 2.400000095 | AE83: 0.48
A84: 6052 | B84: 6052 Zelda Glazer Middle | C84: 528 | D84: 24.5 | E84: 0.63 | F84: 1 | G84: 0.52 | H84: 2.099999905 | I84: 0.7 | J84: 1.5 | K84: 0.73 | L84: 3.299999952 | M84: 0.65 | N84: 2 | O84: 0.67 | P84: 2.700000048 | Q84: 0.54 | R84: 1.200000048 | S84: 0.61 | T84: 2.5 | U84: 0.63 | V84: 2.200000048 | W84: 0.73 | X84: 1.399999976 | Y84: 0.69 | Z84: 0.5 | AA84: 0.54 | AB84: 1.299999952 | AC84: 0.65 | AD84: 2.799999952 | AE84: 0.56
A85: 6053 | B85: 6053 Somerset Academy Middle (South Miami) | C85: 42 | D85: 30.10000038 | E85: 0.77 | F85: 1.399999976 | G85: 0.68 | H85: 2.400000095 | I85: 0.81 | J85: 1.700000048 | K85: 0.83 | L85: 3.900000095 | M85: 0.78 | N85: 2.299999952 | O85: 0.76 | P85: 3.799999952 | Q85: 0.77 | R85: 1.5 | S85: 0.73 | T85: 3.099999905 | U85: 0.77 | V85: 2.799999952 | W85: 0.93 | X85: 1.799999952 | Y85: 0.88 | Z85: 0.6000000238 | AA85: 0.62 | AB85: 1.5 | AC85: 0.76 | AD85: 3.400000095 | AE85: 0.68
A86: 6060 | B86: 6060 Aspira south | C86: 111 | D86: 26.39999962 | E86: 0.68 | F86: 1.100000024 | G86: 0.55 | H86: 2.200000048 | I86: 0.73 | J86: 1.5 | K86: 0.77 | L86: 3.5 | M86: 0.69 | N86: 2.099999905 | O86: 0.71 | P86: 3.099999905 | Q86: 0.62 | R86: 1.5 | S86: 0.73 | T86: 2.5 | U86: 0.61 | V86: 2.400000095 | W86: 0.8 | X86: 1.5 | Y86: 0.77 | Z86: 0.6000000238 | AA86: 0.59 | AB86: 1.399999976 | AC86: 0.71 | AD86: 3 | AE86: 0.61
A87: 6061 | B87: 6061 Campbell Drive Middle School | C87: 235 | D87: 20 | E87: 0.51 | F87: 0.8000000119 | G87: 0.41 | H87: 1.600000024 | I87: 0.54 | J87: 1.200000048 | K87: 0.62 | L87: 2.599999905 | M87: 0.51 | N87: 1.799999952 | O87: 0.6 | P87: 2.400000095 | Q87: 0.48 | R87: 0.8999999762 | S87: 0.44 | T87: 2.200000048 | U87: 0.54 | V87: 1.899999976 | W87: 0.63 | X87: 1.100000024 | Y87: 0.56 | Z87: 0.400000006 | AA87: 0.37 | AB87: 1 | AC87: 0.5 | AD87: 2.099999905 | AE87: 0.42
A88: 6070 | B88: 6070 Aspira | C88: 123 | D88: 20.79999924 | E88: 0.53 | F88: 0.8000000119 | G88: 0.4 | H88: 1.799999952 | I88: 0.59 | J88: 1.299999952 | K88: 0.66 | L88: 2.799999952 | M88: 0.55 | N88: 1.899999976 | O88: 0.62 | P88: 2.200000048 | Q88: 0.45 | R88: 0.8999999762 | S88: 0.43 | T88: 2.099999905 | U88: 0.53 | V88: 2.099999905 | W88: 0.71 | X88: 1.299999952 | Y88: 0.65 | Z88: 0.400000006 | AA88: 0.37 | AB88: 1.200000048 | AC88: 0.58 | AD88: 2.099999905 | AE88: 0.43
A89: 6071 | B89: 6071 G. W. Carver Middle | C89: 320 | D89: 33.09999847 | E89: 0.85 | F89: 1.5 | G89: 0.77 | H89: 2.599999905 | I89: 0.87 | J89: 1.799999952 | K89: 0.89 | L89: 4.400000095 | M89: 0.89 | N89: 2.599999905 | O89: 0.88 | P89: 4.099999905 | Q89: 0.83 | R89: 1.700000048 | S89: 0.84 | T89: 3.200000048 | U89: 0.81 | V89: 2.700000048 | W89: 0.9 | X89: 1.799999952 | Y89: 0.9 | Z89: 0.8000000119 | AA89: 0.79 | AB89: 1.700000048 | AC89: 0.87 | AD89: 4 | AE89: 0.79
A90: 6081 | B90: 6081 Centennial Middle School | C90: 266 | D90: 20 | E90: 0.51 | F90: 0.6999999881 | G90: 0.36 | H90: 1.700000048 | I90: 0.56 | J90: 1.299999952 | K90: 0.64 | L90: 2.599999905 | M90: 0.52 | N90: 1.700000048 | O90: 0.58 | P90: 2 | Q90: 0.4 | R90: 0.8999999762 | S90: 0.44 | T90: 2.200000048 | U90: 0.54 | V90: 2 | W90: 0.66 | X90: 1.200000048 | Y90: 0.61 | Z90: 0.400000006 | AA90: 0.37 | AB90: 1.100000024 | AC90: 0.54 | AD90: 2.299999952 | AE90: 0.45
A91: 6091 | B91: 6091 CItrus Grove Middle School | C91: 287 | D91: 19.39999962 | E91: 0.5 | F91: 0.8000000119 | G91: 0.38 | H91: 1.700000048 | I91: 0.56 | J91: 1.299999952 | K91: 0.63 | L91: 2.5 | M91: 0.5 | N91: 1.600000024 | O91: 0.54 | P91: 2.200000048 | Q91: 0.44 | R91: 0.8999999762 | S91: 0.43 | T91: 2 | U91: 0.5 | V91: 1.899999976 | W91: 0.62 | X91: 1.100000024 | Y91: 0.56 | Z91: 0.400000006 | AA91: 0.41 | AB91: 1 | AC91: 0.48 | AD91: 2.200000048 | AE91: 0.44
A92: 6111 | B92: 6111 Cutler Ridge Middle School | C92: 209 | D92: 22 | E92: 0.56 | F92: 0.8999999762 | G92: 0.43 | H92: 1.899999976 | I92: 0.64 | J92: 1.399999976 | K92: 0.7 | L92: 2.799999952 | M92: 0.57 | N92: 1.799999952 | O92: 0.61 | P92: 2.5 | Q92: 0.5 | R92: 0.8999999762 | S92: 0.45 | T92: 2.299999952 | U92: 0.57 | V92: 2.200000048 | W92: 0.74 | X92: 1.299999952 | Y92: 0.63 | Z92: 0.400000006 | AA92: 0.43 | AB92: 1.100000024 | AC92: 0.55 | AD92: 2.5 | AE92: 0.5
A93: 6121 | B93: 6121 Ruben Dario Middle School | C93: 248 | D93: 23.10000038 | E93: 0.59 | F93: 1 | G93: 0.48 | H93: 2 | I93: 0.67 | J93: 1.399999976 | K93: 0.7 | L93: 3.099999905 | M93: 0.62 | N93: 1.899999976 | O93: 0.64 | P93: 2.599999905 | Q93: 0.51 | R93: 1.100000024 | S93: 0.53 | T93: 2.5 | U93: 0.61 | V93: 2.099999905 | W93: 0.71 | X93: 1.399999976 | Y93: 0.68 | Z93: 0.5 | AA93: 0.49 | AB93: 1.200000048 | AC93: 0.58 | AD93: 2.599999905 | AE93: 0.52
A94: 6141 | B94: 6141 Charles R Drew Middle School | C94: 139 | D94: 20.5 | E94: 0.53 | F94: 0.8000000119 | G94: 0.42 | H94: 1.799999952 | I94: 0.59 | J94: 1.200000048 | K94: 0.62 | L94: 2.5 | M94: 0.5 | N94: 1.899999976 | O94: 0.64 | P94: 2.299999952 | Q94: 0.47 | R94: 0.8999999762 | S94: 0.44 | T94: 2.200000048 | U94: 0.55 | V94: 2 | W94: 0.66 | X94: 1.200000048 | Y94: 0.61 | Z94: 0.400000006 | AA94: 0.37 | AB94: 1.100000024 | AC94: 0.54 | AD94: 2.200000048 | AE94: 0.43
A95: 6151 | B95: 6151 Doral Middle School | C95: 232 | D95: 24.10000038 | E95: 0.62 | F95: 1.100000024 | G95: 0.55 | H95: 2 | I95: 0.67 | J95: 1.399999976 | K95: 0.68 | L95: 3.299999952 | M95: 0.65 | N95: 2.099999905 | O95: 0.7 | P95: 2.799999952 | Q95: 0.56 | R95: 1 | S95: 0.51 | T95: 2.5 | U95: 0.63 | V95: 2.299999952 | W95: 0.78 | X95: 1.299999952 | Y95: 0.65 | Z95: 0.5 | AA95: 0.5 | AB95: 1.200000048 | AC95: 0.6 | AD95: 2.700000048 | AE95: 0.54
A96: 6161 | B96: 6161 Lawton Chiles Middle | C96: 322 | D96: 25.10000038 | E96: 0.64 | F96: 1 | G96: 0.51 | H96: 2 | I96: 0.68 | J96: 1.5 | K96: 0.76 | L96: 3.299999952 | M96: 0.66 | N96: 2.099999905 | O96: 0.7 | P96: 3 | Q96: 0.59 | R96: 1.200000048 | S96: 0.58 | T96: 2.599999905 | U96: 0.66 | V96: 2.200000048 | W96: 0.75 | X96: 1.399999976 | Y96: 0.71 | Z96: 0.5 | AA96: 0.52 | AB96: 1.299999952 | AC96: 0.65 | AD96: 2.799999952 | AE96: 0.57
A97: 6171 | B97: 6171 Henry H. Filer Middle School | C97: 365 | D97: 22.70000076 | E97: 0.58 | F97: 1 | G97: 0.52 | H97: 1.899999976 | I97: 0.62 | J97: 1.399999976 | K97: 0.69 | L97: 3 | M97: 0.6 | N97: 1.899999976 | O97: 0.63 | P97: 2.5 | Q97: 0.5 | R97: 1.100000024 | S97: 0.54 | T97: 2.400000095 | U97: 0.61 | V97: 2 | W97: 0.67 | X97: 1.299999952 | Y97: 0.65 | Z97: 0.5 | AA97: 0.5 | AB97: 1.200000048 | AC97: 0.6 | AD97: 2.5 | AE97: 0.5
A98: 6211 | B98: 6211 Glades Middle School | C98: 375 | D98: 25.29999924 | E98: 0.65 | F98: 1.100000024 | G98: 0.53 | H98: 2.200000048 | I98: 0.72 | J98: 1.5 | K98: 0.74 | L98: 3.299999952 | M98: 0.66 | N98: 2 | O98: 0.67 | P98: 2.799999952 | Q98: 0.56 | R98: 1.200000048 | S98: 0.61 | T98: 2.599999905 | U98: 0.66 | V98: 2.400000095 | W98: 0.79 | X98: 1.399999976 | Y98: 0.71 | Z98: 0.6000000238 | AA98: 0.56 | AB98: 1.399999976 | AC98: 0.68 | AD98: 2.900000095 | AE98: 0.58
A99: 6221 | B99: 6221 Hammocks Middle School | C99: 363 | D99: 24.79999924 | E99: 0.64 | F99: 1.100000024 | G99: 0.54 | H99: 2 | I99: 0.67 | J99: 1.5 | K99: 0.74 | L99: 3.299999952 | M99: 0.65 | N99: 2 | O99: 0.68 | P99: 2.799999952 | Q99: 0.55 | R99: 1.100000024 | S99: 0.57 | T99: 2.599999905 | U99: 0.65 | V99: 2.299999952 | W99: 0.76 | X99: 1.399999976 | Y99: 0.71 | Z99: 0.6000000238 | AA99: 0.55 | AB99: 1.299999952 | AC99: 0.64 | AD99: 2.900000095 | AE99: 0.57
A100: 6231 | B100: 6231 Hialeah Middle School | C100: 243 | D100: 19.10000038 | E100: 0.49 | F100: 0.8000000119 | G100: 0.38 | H100: 1.700000048 | I100: 0.56 | J100: 1.200000048 | K100: 0.62 | L100: 2.5 | M100: 0.49 | N100: 1.600000024 | O100: 0.54 | P100: 2.099999905 | Q100: 0.42 | R100: 0.8999999762 | S100: 0.44 | T100: 2.099999905 | U100: 0.52 | V100: 1.899999976 | W100: 0.62 | X100: 1.100000024 | Y100: 0.55 | Z100: 0.400000006 | AA100: 0.44 | AB100: 0.8999999762 | AC100: 0.44 | AD100: 2.099999905 | AE100: 0.42
A101: 6241 | B101: 6241 Highland Oaks Middle School | C101: 390 | D101: 23.89999962 | E101: 0.61 | F101: 1.100000024 | G101: 0.53 | H101: 2 | I101: 0.66 | J101: 1.399999976 | K101: 0.72 | L101: 3.099999905 | M101: 0.62 | N101: 2 | O101: 0.66 | P101: 2.799999952 | Q101: 0.55 | R101: 1.200000048 | S101: 0.58 | T101: 2.5 | U101: 0.62 | V101: 2.099999905 | W101: 0.71 | X101: 1.299999952 | Y101: 0.67 | Z101: 0.5 | AA101: 0.54 | AB101: 1.200000048 | AC101: 0.6 | AD101: 2.799999952 | AE101: 0.56
A102: 6251 | B102: 6251 Homestead Middle School | C102: 188 | D102: 22.20000076 | E102: 0.57 | F102: 0.8999999762 | G102: 0.45 | H102: 1.799999952 | I102: 0.61 | J102: 1.399999976 | K102: 0.71 | L102: 2.799999952 | M102: 0.56 | N102: 2 | O102: 0.66 | P102: 2.400000095 | Q102: 0.48 | R102: 1 | S102: 0.5 | T102: 2.299999952 | U102: 0.58 | V102: 2.099999905 | W102: 0.71 | X102: 1.399999976 | Y102: 0.68 | Z102: 0.5 | AA102: 0.46 | AB102: 1.200000048 | AC102: 0.59 | AD102: 2.400000095 | AE102: 0.48
A103: 6281 | B103: 6281 Thomas Jefferson Middle | C103: 131 | D103: 19.89999962 | E103: 0.51 | F103: 0.8000000119 | G103: 0.4 | H103: 1.700000048 | I103: 0.58 | J103: 1.200000048 | K103: 0.59 | L103: 2.599999905 | M103: 0.53 | N103: 1.899999976 | O103: 0.63 | P103: 2.099999905 | Q103: 0.43 | R103: 0.8999999762 | S103: 0.43 | T103: 2.099999905 | U103: 0.52 | V103: 1.799999952 | W103: 0.59 | X103: 1.100000024 | Y103: 0.53 | Z103: 0.5 | AA103: 0.47 | AB103: 1 | AC103: 0.48 | AD103: 2.299999952 | AE103: 0.46
A104: 6301 | B104: 6301 JFK Middle School | C104: 469 | D104: 25.60000038 | E104: 0.66 | F104: 1.100000024 | G104: 0.56 | H104: 2.099999905 | I104: 0.69 | J104: 1.5 | K104: 0.74 | L104: 3.400000095 | M104: 0.68 | N104: 2.299999952 | O104: 0.75 | P104: 2.900000095 | Q104: 0.59 | R104: 1.200000048 | S104: 0.58 | T104: 2.5 | U104: 0.63 | V104: 2.200000048 | W104: 0.75 | X104: 1.399999976 | Y104: 0.71 | Z104: 0.6000000238 | AA104: 0.57 | AB104: 1.299999952 | AC104: 0.66 | AD104: 3 | AE104: 0.6
A105: 6331 | B105: 6331 Kinloch Park Middle School | C105: 379 | D105: 21.20000076 | E105: 0.54 | F105: 0.8999999762 | G105: 0.43 | H105: 1.799999952 | I105: 0.61 | J105: 1.299999952 | K105: 0.63 | L105: 2.900000095 | M105: 0.57 | N105: 1.799999952 | O105: 0.6 | P105: 2.299999952 | Q105: 0.46 | R105: 1 | S105: 0.48 | T105: 2.200000048 | U105: 0.54 | V105: 2 | W105: 0.66 | X105: 1.200000048 | Y105: 0.59 | Z105: 0.5 | AA105: 0.48 | AB105: 1.100000024 | AC105: 0.55 | AD105: 2.5 | AE105: 0.5
A106: 6351 | B106: 6351 Lake Stevens Middle School | C106: 203 | D106: 23.10000038 | E106: 0.59 | F106: 1 | G106: 0.49 | H106: 1.899999976 | I106: 0.63 | J106: 1.399999976 | K106: 0.71 | L106: 2.900000095 | M106: 0.58 | N106: 2.099999905 | O106: 0.71 | P106: 2.599999905 | Q106: 0.51 | R106: 1 | S106: 0.52 | T106: 2.5 | U106: 0.63 | V106: 2.099999905 | W106: 0.7 | X106: 1.299999952 | Y106: 0.63 | Z106: 0.6000000238 | AA106: 0.55 | AB106: 1.100000024 | AC106: 0.57 | AD106: 2.599999905 | AE106: 0.53
A107: 6361 | B107: 6361 Jose de Diego Middle School | C107: 168 | D107: 20.79999924 | E107: 0.53 | F107: 0.8999999762 | G107: 0.43 | H107: 1.799999952 | I107: 0.59 | J107: 1.299999952 | K107: 0.66 | L107: 2.700000048 | M107: 0.53 | N107: 1.899999976 | O107: 0.64 | P107: 2.400000095 | Q107: 0.48 | R107: 0.8000000119 | S107: 0.38 | T107: 2.299999952 | U107: 0.58 | V107: 2.099999905 | W107: 0.69 | X107: 1.100000024 | Y107: 0.56 | Z107: 0.3000000119 | AA107: 0.34 | AB107: 1.100000024 | AC107: 0.54 | AD107: 2.200000048 | AE107: 0.44
A108: 6391 | B108: 6391 Madison Middle School | C108: 137 | D108: 20.60000038 | E108: 0.53 | F108: 0.8000000119 | G108: 0.4 | H108: 1.700000048 | I108: 0.56 | J108: 1.299999952 | K108: 0.63 | L108: 2.700000048 | M108: 0.54 | N108: 1.899999976 | O108: 0.63 | P108: 2.299999952 | Q108: 0.47 | R108: 0.8999999762 | S108: 0.46 | T108: 2.400000095 | U108: 0.59 | V108: 1.899999976 | W108: 0.65 | X108: 1.100000024 | Y108: 0.53 | Z108: 0.400000006 | AA108: 0.42 | AB108: 1 | AC108: 0.5 | AD108: 2.200000048 | AE108: 0.45
A109: 6411 | B109: 6411 Horace Mann Middle School | C109: 205 | D109: 23.5 | E109: 0.6 | F109: 0.8999999762 | G109: 0.45 | H109: 1.799999952 | I109: 0.62 | J109: 1.399999976 | K109: 0.7 | L109: 3.099999905 | M109: 0.62 | N109: 2.099999905 | O109: 0.71 | P109: 2.799999952 | Q109: 0.56 | R109: 1.100000024 | S109: 0.55 | T109: 2.5 | U109: 0.62 | V109: 2.099999905 | W109: 0.7 | X109: 1.200000048 | Y109: 0.62 | Z109: 0.5 | AA109: 0.52 | AB109: 1.200000048 | AC109: 0.61 | AD109: 2.700000048 | AE109: 0.54
A110: 6421 | B110: 6421 Jose Marti Middle | C110: 218 | D110: 22.89999962 | E110: 0.59 | F110: 1 | G110: 0.5 | H110: 1.899999976 | I110: 0.64 | J110: 1.299999952 | K110: 0.67 | L110: 3 | M110: 0.61 | N110: 1.799999952 | O110: 0.61 | P110: 2.400000095 | Q110: 0.49 | R110: 1 | S110: 0.49 | T110: 2.400000095 | U110: 0.61 | V110: 2.299999952 | W110: 0.75 | X110: 1.399999976 | Y110: 0.7 | Z110: 0.5 | AA110: 0.51 | AB110: 1.200000048 | AC110: 0.58 | AD110: 2.599999905 | AE110: 0.52
A111: 6431 | B111: 6431 Arthur & Polly Mays Middle Community School | C111: 171 | D111: 18.70000076 | E111: 0.48 | F111: 0.6999999881 | G111: 0.37 | H111: 1.700000048 | I111: 0.56 | J111: 1.100000024 | K111: 0.55 | L111: 2.200000048 | M111: 0.45 | N111: 1.799999952 | O111: 0.59 | P111: 1.899999976 | Q111: 0.38 | R111: 0.6999999881 | S111: 0.36 | T111: 2.099999905 | U111: 0.52 | V111: 1.899999976 | W111: 0.63 | X111: 1.100000024 | Y111: 0.56 | Z111: 0.400000006 | AA111: 0.42 | AB111: 1 | AC111: 0.49 | AD111: 2.099999905 | AE111: 0.41
A112: 6441 | B112: 6441 Howard D. McMillan Middle | C112: 234 | D112: 25.70000076 | E112: 0.66 | F112: 1 | G112: 0.49 | H112: 2.099999905 | I112: 0.72 | J112: 1.600000024 | K112: 0.8 | L112: 3.400000095 | M112: 0.68 | N112: 2.099999905 | O112: 0.72 | P112: 2.900000095 | Q112: 0.57 | R112: 1.200000048 | S112: 0.6 | T112: 2.700000048 | U112: 0.67 | V112: 2.400000095 | W112: 0.79 | X112: 1.5 | Y112: 0.77 | Z112: 0.5 | AA112: 0.5 | AB112: 1.399999976 | AC112: 0.71 | AD112: 2.799999952 | AE112: 0.57
A113: 6481 | B113: 6481 Miami Edison Middle Schools | C113: 177 | D113: 20.10000038 | E113: 0.52 | F113: 0.6999999881 | G113: 0.36 | H113: 1.600000024 | I113: 0.54 | J113: 1.200000048 | K113: 0.59 | L113: 2.700000048 | M113: 0.54 | N113: 1.899999976 | O113: 0.64 | P113: 2.200000048 | Q113: 0.44 | R113: 0.8000000119 | S113: 0.4 | T113: 2.099999905 | U113: 0.53 | V113: 2 | W113: 0.67 | X113: 1.100000024 | Y113: 0.55 | Z113: 0.400000006 | AA113: 0.4 | AB113: 1.100000024 | AC113: 0.53 | AD113: 2.200000048 | AE113: 0.45
A114: 6501 | B114: 6501 Miami Lakes Middle School | C114: 271 | D114: 20 | E114: 0.51 | F114: 0.8000000119 | G114: 0.39 | H114: 1.700000048 | I114: 0.58 | J114: 1.200000048 | K114: 0.6 | L114: 2.599999905 | M114: 0.52 | N114: 1.700000048 | O114: 0.56 | P114: 2.099999905 | Q114: 0.42 | R114: 0.8999999762 | S114: 0.47 | T114: 2.200000048 | U114: 0.54 | V114: 1.899999976 | W114: 0.62 | X114: 1.200000048 | Y114: 0.58 | Z114: 0.400000006 | AA114: 0.38 | AB114: 1.100000024 | AC114: 0.54 | AD114: 2.400000095 | AE114: 0.47
A115: 6521 | B115: 6521 Miami Springs Middle School | C115: 523 | D115: 22.5 | E115: 0.58 | F115: 0.8999999762 | G115: 0.43 | H115: 2 | I115: 0.66 | J115: 1.399999976 | K115: 0.7 | L115: 2.900000095 | M115: 0.58 | N115: 1.899999976 | O115: 0.65 | P115: 2.400000095 | Q115: 0.47 | R115: 1 | S115: 0.51 | T115: 2.400000095 | U115: 0.6 | V115: 2.200000048 | W115: 0.72 | X115: 1.299999952 | Y115: 0.65 | Z115: 0.400000006 | AA115: 0.44 | AB115: 1.200000048 | AC115: 0.58 | AD115: 2.599999905 | AE115: 0.51
A116: 6541 | B116: 6541 Nautilus Middle | C116: 357 | D116: 25.60000038 | E116: 0.65 | F116: 1.100000024 | G116: 0.56 | H116: 2.200000048 | I116: 0.72 | J116: 1.600000024 | K116: 0.78 | L116: 3.299999952 | M116: 0.67 | N116: 2.099999905 | O116: 0.71 | P116: 2.900000095 | Q116: 0.58 | R116: 1.200000048 | S116: 0.6 | T116: 2.599999905 | U116: 0.65 | V116: 2.299999952 | W116: 0.78 | X116: 1.399999976 | Y116: 0.72 | Z116: 0.6000000238 | AA116: 0.56 | AB116: 1.399999976 | AC116: 0.68 | AD116: 2.799999952 | AE116: 0.56
A117: 6571 | B117: 6571 Norland Middle | C117: 237 | D117: 23.5 | E117: 0.6 | F117: 1.100000024 | G117: 0.53 | H117: 2 | I117: 0.66 | J117: 1.399999976 | K117: 0.69 | L117: 3 | M117: 0.6 | N117: 2.099999905 | O117: 0.71 | P117: 2.599999905 | Q117: 0.53 | R117: 1 | S117: 0.51 | T117: 2.599999905 | U117: 0.64 | V117: 2.200000048 | W117: 0.72 | X117: 1.299999952 | Y117: 0.65 | Z117: 0.5 | AA117: 0.48 | AB117: 1.299999952 | AC117: 0.65 | AD117: 2.5 | AE117: 0.5
A118: 6591 | B118: 6591 North Dade Middle School | C118: 172 | D118: 23.5 | E118: 0.6 | F118: 1 | G118: 0.5 | H118: 1.899999976 | I118: 0.64 | J118: 1.399999976 | K118: 0.68 | L118: 2.900000095 | M118: 0.58 | N118: 2.099999905 | O118: 0.71 | P118: 2.700000048 | Q118: 0.54 | R118: 1.100000024 | S118: 0.55 | T118: 2.5 | U118: 0.63 | V118: 2.200000048 | W118: 0.74 | X118: 1.299999952 | Y118: 0.65 | Z118: 0.5 | AA118: 0.55 | AB118: 1.200000048 | AC118: 0.6 | AD118: 2.599999905 | AE118: 0.52
A119: 6611 | B119: 6611 Country Club Middle School | C119: 438 | D119: 23.39999962 | E119: 0.6 | F119: 1 | G119: 0.51 | H119: 2 | I119: 0.67 | J119: 1.399999976 | K119: 0.7 | L119: 3 | M119: 0.61 | N119: 1.899999976 | O119: 0.65 | P119: 2.700000048 | Q119: 0.53 | R119: 1.100000024 | S119: 0.54 | T119: 2.400000095 | U119: 0.6 | V119: 2.200000048 | W119: 0.72 | X119: 1.299999952 | Y119: 0.66 | Z119: 0.5 | AA119: 0.53 | AB119: 1.200000048 | AC119: 0.61 | AD119: 2.599999905 | AE119: 0.52
A120: 6631 | B120: 6631 North Miami Middle School | C120: 315 | D120: 21.79999924 | E120: 0.56 | F120: 0.8000000119 | G120: 0.38 | H120: 1.799999952 | I120: 0.61 | J120: 1.299999952 | K120: 0.67 | L120: 2.700000048 | M120: 0.54 | N120: 2.099999905 | O120: 0.69 | P120: 2.299999952 | Q120: 0.46 | R120: 0.8999999762 | S120: 0.47 | T120: 2.400000095 | U120: 0.6 | V120: 2.200000048 | W120: 0.73 | X120: 1.200000048 | Y120: 0.62 | Z120: 0.400000006 | AA120: 0.37 | AB120: 1.200000048 | AC120: 0.61 | AD120: 2.400000095 | AE120: 0.48
A121: 6681 | B121: 6681 Palm Springs Middle | C121: 349 | D121: 22.60000038 | E121: 0.58 | F121: 1 | G121: 0.51 | H121: 1.899999976 | I121: 0.63 | J121: 1.399999976 | K121: 0.69 | L121: 2.900000095 | M121: 0.59 | N121: 1.799999952 | O121: 0.61 | P121: 2.5 | Q121: 0.5 | R121: 1 | S121: 0.52 | T121: 2.400000095 | U121: 0.6 | V121: 2.099999905 | W121: 0.71 | X121: 1.299999952 | Y121: 0.67 | Z121: 0.5 | AA121: 0.48 | AB121: 1.100000024 | AC121: 0.55 | AD121: 2.599999905 | AE121: 0.51
A122: 6701 | B122: 6701 Palmetto Middle School | C122: 356 | D122: 25.79999924 | E122: 0.66 | F122: 1.100000024 | G122: 0.53 | H122: 2.200000048 | I122: 0.73 | J122: 1.5 | K122: 0.74 | L122: 3.299999952 | M122: 0.66 | N122: 2.099999905 | O122: 0.69 | P122: 3 | Q122: 0.6 | R122: 1.200000048 | S122: 0.61 | T122: 2.700000048 | U122: 0.68 | V122: 2.299999952 | W122: 0.77 | X122: 1.5 | Y122: 0.75 | Z122: 0.6000000238 | AA122: 0.56 | AB122: 1.299999952 | AC122: 0.66 | AD122: 3 | AE122: 0.61
A123: 6721 | B123: 6721 Parkway Middle Community School | C123: 119 | D123: 21.10000038 | E123: 0.54 | F123: 0.8000000119 | G123: 0.42 | H123: 1.799999952 | I123: 0.59 | J123: 1.399999976 | K123: 0.7 | L123: 2.700000048 | M123: 0.54 | N123: 1.899999976 | O123: 0.64 | P123: 2.299999952 | Q123: 0.47 | R123: 0.8999999762 | S123: 0.47 | T123: 2.200000048 | U123: 0.55 | V123: 2.099999905 | W123: 0.71 | X123: 1.200000048 | Y123: 0.58 | Z123: 0.5 | AA123: 0.47 | AB123: 1.100000024 | AC123: 0.53 | AD123: 2.099999905 | AE123: 0.43
A124: 6741 | B124: 6741 Ponce de Leon Middle School | C124: 348 | D124: 24.20000076 | E124: 0.62 | F124: 1.100000024 | G124: 0.57 | H124: 2 | I124: 0.66 | J124: 1.399999976 | K124: 0.7 | L124: 3.099999905 | M124: 0.62 | N124: 2 | O124: 0.67 | P124: 2.799999952 | Q124: 0.56 | R124: 1.100000024 | S124: 0.57 | T124: 2.400000095 | U124: 0.6 | V124: 2.200000048 | W124: 0.74 | X124: 1.399999976 | Y124: 0.68 | Z124: 0.5 | AA124: 0.54 | AB124: 1.200000048 | AC124: 0.6 | AD124: 2.900000095 | AE124: 0.57
A125: 6751 | B125: 6751 Hialeah Gardens Middle School | C125: 598 | D125: 24.20000076 | E125: 0.62 | F125: 1 | G125: 0.5 | H125: 2 | I125: 0.67 | J125: 1.5 | K125: 0.76 | L125: 3.200000048 | M125: 0.64 | N125: 2 | O125: 0.68 | P125: 2.700000048 | Q125: 0.55 | R125: 1.100000024 | S125: 0.55 | T125: 2.400000095 | U125: 0.61 | V125: 2.200000048 | W125: 0.74 | X125: 1.299999952 | Y125: 0.67 | Z125: 0.5 | AA125: 0.53 | AB125: 1.299999952 | AC125: 0.66 | AD125: 2.700000048 | AE125: 0.54
A126: 6761 | B126: 6761 Redland Middle School | C126: 173 | D126: 19.79999924 | E126: 0.51 | F126: 0.8000000119 | G126: 0.41 | H126: 1.700000048 | I126: 0.57 | J126: 1.200000048 | K126: 0.6 | L126: 2.5 | M126: 0.5 | N126: 1.700000048 | O126: 0.57 | P126: 2.099999905 | Q126: 0.42 | R126: 0.8000000119 | S126: 0.4 | T126: 2.099999905 | U126: 0.52 | V126: 1.899999976 | W126: 0.63 | X126: 1.100000024 | Y126: 0.55 | Z126: 0.400000006 | AA126: 0.44 | AB126: 1.100000024 | AC126: 0.53 | AD126: 2.400000095 | AE126: 0.47
A127: 6771 | B127: 6771 Jorge Mas Canosa Middle School | C127: 577 | D127: 24.5 | E127: 0.63 | F127: 1 | G127: 0.5 | H127: 2 | I127: 0.68 | J127: 1.5 | K127: 0.75 | L127: 3.200000048 | M127: 0.65 | N127: 2.099999905 | O127: 0.68 | P127: 2.700000048 | Q127: 0.54 | R127: 1.100000024 | S127: 0.56 | T127: 2.599999905 | U127: 0.64 | V127: 2.299999952 | W127: 0.78 | X127: 1.399999976 | Y127: 0.69 | Z127: 0.5 | AA127: 0.5 | AB127: 1.299999952 | AC127: 0.65 | AD127: 2.700000048 | AE127: 0.55
A128: 6781 | B128: 6781 Richmond heights Middle School | C128: 212 | D128: 22.60000038 | E128: 0.58 | F128: 1 | G128: 0.49 | H128: 2 | I128: 0.67 | J128: 1.299999952 | K128: 0.67 | L128: 2.799999952 | M128: 0.56 | N128: 2 | O128: 0.66 | P128: 2.5 | Q128: 0.5 | R128: 1 | S128: 0.49 | T128: 2.400000095 | U128: 0.59 | V128: 2.200000048 | W128: 0.75 | X128: 1.299999952 | Y128: 0.66 | Z128: 0.400000006 | AA128: 0.45 | AB128: 1.200000048 | AC128: 0.59 | AD128: 2.5 | AE128: 0.49
A129: 6801 | B129: 6801 Riviera Middle School | C129: 232 | D129: 24 | E129: 0.62 | F129: 1.100000024 | G129: 0.57 | H129: 1.899999976 | I129: 0.65 | J129: 1.5 | K129: 0.77 | L129: 3.099999905 | M129: 0.62 | N129: 2 | O129: 0.66 | P129: 2.700000048 | Q129: 0.54 | R129: 1.100000024 | S129: 0.55 | T129: 2.5 | U129: 0.62 | V129: 2.200000048 | W129: 0.73 | X129: 1.399999976 | Y129: 0.68 | Z129: 0.5 | AA129: 0.53 | AB129: 1.200000048 | AC129: 0.61 | AD129: 2.700000048 | AE129: 0.55
A130: 6821 | B130: 6821 Rockway Middle School | C130: 456 | D130: 24.5 | E130: 0.63 | F130: 1.100000024 | G130: 0.55 | H130: 2.099999905 | I130: 0.68 | J130: 1.399999976 | K130: 0.71 | L130: 3.200000048 | M130: 0.64 | N130: 2.099999905 | O130: 0.71 | P130: 2.799999952 | Q130: 0.57 | R130: 1.100000024 | S130: 0.57 | T130: 2.5 | U130: 0.62 | V130: 2.200000048 | W130: 0.73 | X130: 1.399999976 | Y130: 0.7 | Z130: 0.5 | AA130: 0.54 | AB130: 1.299999952 | AC130: 0.63 | AD130: 2.799999952 | AE130: 0.56
A131: 6841 | B131: 6841 Shenandoah Middle School | C131: 414 | D131: 23.29999924 | E131: 0.6 | F131: 1 | G131: 0.51 | H131: 2.099999905 | I131: 0.69 | J131: 1.399999976 | K131: 0.7 | L131: 3 | M131: 0.6 | N131: 1.899999976 | O131: 0.64 | P131: 2.599999905 | Q131: 0.52 | R131: 1.100000024 | S131: 0.54 | T131: 2.400000095 | U131: 0.6 | V131: 2.200000048 | W131: 0.72 | X131: 1.299999952 | Y131: 0.67 | Z131: 0.5 | AA131: 0.53 | AB131: 1.200000048 | AC131: 0.61 | AD131: 2.5 | AE131: 0.51
A132: 6861 | B132: 6861 Southwood Middle School | C132: 522 | D132: 26.89999962 | E132: 0.69 | F132: 1.200000048 | G132: 0.6 | H132: 2.200000048 | I132: 0.75 | J132: 1.5 | K132: 0.77 | L132: 3.599999905 | M132: 0.72 | N132: 2.200000048 | O132: 0.75 | P132: 3.200000048 | Q132: 0.63 | R132: 1.299999952 | S132: 0.63 | T132: 2.799999952 | U132: 0.69 | V132: 2.400000095 | W132: 0.79 | X132: 1.399999976 | Y132: 0.71 | Z132: 0.6000000238 | AA132: 0.59 | AB132: 1.399999976 | AC132: 0.7 | AD132: 3.099999905 | AE132: 0.63
A133: 6881 | B133: 6881 South Miami Middle School | C133: 296 | D133: 29.70000076 | E133: 0.76 | F133: 1.399999976 | G133: 0.71 | H133: 2.5 | I133: 0.82 | J133: 1.700000048 | K133: 0.83 | L133: 3.799999952 | M133: 0.76 | N133: 2.400000095 | O133: 0.8 | P133: 3.599999905 | Q133: 0.72 | R133: 1.5 | S133: 0.73 | T133: 3 | U133: 0.76 | V133: 2.599999905 | W133: 0.85 | X133: 1.600000024 | Y133: 0.79 | Z133: 0.6999999881 | AA133: 0.69 | AB133: 1.600000024 | AC133: 0.8 | AD133: 3.5 | AE133: 0.69
A134: 6901 | B134: 6901 WR Thomas Middle School | C134: 229 | D134: 25.70000076 | E134: 0.66 | F134: 1.100000024 | G134: 0.56 | H134: 2.099999905 | I134: 0.69 | J134: 1.5 | K134: 0.73 | L134: 3.400000095 | M134: 0.67 | N134: 2.099999905 | O134: 0.69 | P134: 2.900000095 | Q134: 0.59 | R134: 1.299999952 | S134: 0.64 | T134: 2.599999905 | U134: 0.66 | V134: 2.299999952 | W134: 0.76 | X134: 1.399999976 | Y134: 0.71 | Z134: 0.6000000238 | AA134: 0.63 | AB134: 1.299999952 | AC134: 0.65 | AD134: 3.099999905 | AE134: 0.62
A135: 6921 | B135: 6921 Lamar Louise Curry Middle School | C135: 335 | D135: 27.70000076 | E135: 0.71 | F135: 1.200000048 | G135: 0.58 | H135: 2.299999952 | I135: 0.75 | J135: 1.600000024 | K135: 0.8 | L135: 3.700000048 | M135: 0.74 | N135: 2.299999952 | O135: 0.78 | P135: 3.099999905 | Q135: 0.63 | R135: 1.399999976 | S135: 0.69 | T135: 2.799999952 | U135: 0.71 | V135: 2.400000095 | W135: 0.8 | X135: 1.5 | Y135: 0.76 | Z135: 0.6999999881 | AA135: 0.66 | AB135: 1.5 | AC135: 0.74 | AD135: 3.200000048 | AE135: 0.64
A136: 6961 | B136: 6961 West Miami Middle School | C136: 304 | D136: 22 | E136: 0.56 | F136: 0.8999999762 | G136: 0.43 | H136: 1.799999952 | I136: 0.61 | J136: 1.399999976 | K136: 0.69 | L136: 2.900000095 | M136: 0.59 | N136: 1.899999976 | O136: 0.64 | P136: 2.299999952 | Q136: 0.46 | R136: 1 | S136: 0.5 | T136: 2.299999952 | U136: 0.58 | V136: 2.099999905 | W136: 0.71 | X136: 1.399999976 | Y136: 0.69 | Z136: 0.400000006 | AA136: 0.37 | AB136: 1.200000048 | AC136: 0.58 | AD136: 2.400000095 | AE136: 0.48
A137: 6981 | B137: 6981 Westview Middle School | C137: 165 | D137: 22.5 | E137: 0.58 | F137: 0.8000000119 | G137: 0.4 | H137: 1.799999952 | I137: 0.61 | J137: 1.399999976 | K137: 0.69 | L137: 2.900000095 | M137: 0.58 | N137: 2.099999905 | O137: 0.69 | P137: 2.599999905 | Q137: 0.52 | R137: 0.8999999762 | S137: 0.46 | T137: 2.5 | U137: 0.62 | V137: 2.200000048 | W137: 0.73 | X137: 1.200000048 | Y137: 0.59 | Z137: 0.400000006 | AA137: 0.38 | AB137: 1.200000048 | AC137: 0.62 | AD137: 2.5 | AE137: 0.49
A138: 7037 | B138: 7037 Mater Academy East Charter High School | C138: 1 | D138: 21 | E138: 0.54 | F138: 0 | G138: 0 | H138: 2 | I138: 0.67 | J138: 2 | K138: 1 | L138: 2 | M138: 0.4 | N138: 1 | O138: 0.33 | P138: 1 | Q138: 0.2 | R138: 1 | S138: 0.5 | T138: 2 | U138: 0.5 | V138: 3 | W138: 1 | X138: 0 | Y138: 0 | Z138: 1 | AA138: 1 | AB138: 2 | AC138: 1 | AD138: 4 | AE138: 0.8
A139: 7055 | B139: 7055 Young Women's Preparatory Academy | C139: 78 | D139: 30.70000076 | E139: 0.79 | F139: 1.200000048 | G139: 0.6 | H139: 2.299999952 | I139: 0.78 | J139: 1.700000048 | K139: 0.84 | L139: 4.099999905 | M139: 0.81 | N139: 2.599999905 | O139: 0.85 | P139: 3.799999952 | Q139: 0.76 | R139: 1.600000024 | S139: 0.78 | T139: 3.200000048 | U139: 0.81 | V139: 2.599999905 | W139: 0.86 | X139: 1.700000048 | Y139: 0.84 | Z139: 0.6999999881 | AA139: 0.72 | AB139: 1.700000048 | AC139: 0.86 | AD139: 3.599999905 | AE139: 0.72
A140: 7059 | B140: 7059 Miami Arts Charter | C140: 131 | D140: 29.89999962 | E140: 0.77 | F140: 1.200000048 | G140: 0.6 | H140: 2.400000095 | I140: 0.8 | J140: 1.700000048 | K140: 0.85 | L140: 4 | M140: 0.8 | N140: 2.400000095 | O140: 0.8 | P140: 3.599999905 | Q140: 0.72 | R140: 1.399999976 | S140: 0.71 | T140: 3.200000048 | U140: 0.79 | V140: 2.599999905 | W140: 0.86 | X140: 1.700000048 | Y140: 0.84 | Z140: 0.6999999881 | AA140: 0.71 | AB140: 1.600000024 | AC140: 0.82 | AD140: 3.400000095 | AE140: 0.68
